Workbook

Sheet lista1
A1: nro | B1: rubros o items | C1: Unid. | E1: $vjo | F1: $nvo | G1: Cantid. | H1: Parc. | J1: Muro | U1: Cielorrasos [m2] | X1: Pisos [m2] | Z1: ¿Qué % de beneficios desea? Incidirá sobre mater. y mano de obra | AD1: ¿Quiere PRECIOS con o sin IVA?
A3: 1 | B3: Trabajos preliminares | M3: esp. | N3: caras | O3: Alto | P3: Largo | Q3: AreaMur | R3: AreaPer | S3: per | U3: sup. Cubierta total | W3: 104.05 | X3: =W3 -> 104.05 | AB3: =MAX((Z4:Z12=Z3)*(AA4:AA12)) -> 1 | AD3: sin IVA | AF3: =MAX((AD4:AD6=AD3)*(AE4:AE6)) -> 1
B4: Limpieza y nivelación del terreno | C4: m2 | D4: =$N$27 -> 1 | E4: =IF((lista2!F4+lista3!F4+lista4!F4+lista5!F4)=0,0,(lista2!F4+lista3!F4+lista4!F4+lista5!F4)/((lista2!F4<>0)+(lista3!F4<>0)+(lista4!F4<>0)+(lista5!F4<>0))) -> 58.61589879 | F4: =D4*E4 -> 58.61589879 | G4: =W11 -> 162.5 | H4: =+F4*G4 -> 9525.083554 | J4: m | K4: x | L4: 1 | M4: 0.15 | N4: 2 | O4: 2.99 | P4: 1.24 | Q4: =P4*O4 -> 3.7076 | R4: =Q4*N4 -> 7.4152 | S4: =N4*P4 -> 2.48 | U4: patio 1 | X4: 21.28 | Z4: 0 | AA4: 1 | AD4: sin IVA | AE4: 1
B5: Obrador, depósito y sanitarios | C5: m2 | D5: =$N$27 -> 1 | E5: =IF((lista2!F5+lista3!F5+lista4!F5+lista5!F5)=0,0,(lista2!F5+lista3!F5+lista4!F5+lista5!F5)/((lista2!F5<>0)+(lista3!F5<>0)+(lista4!F5<>0)+(lista5!F5<>0))) -> 1326.414254 | F5: =D5*E5 -> 1326.414254 | G5: 13 | H5: =+F5*G5 -> 17243.3853 | J5: m | K5: x | L5: 2 | M5: 0.15 | N5: 1 | O5: 3.3 | P5: 5.32 | Q5: 17.556 | R5: 17.556 | S5: 5.32 | U5: patio 2 | X5: 14.7 | Z5: 0.05 | AA5: 1.05 | AD5: medio IVA | AE5: 1.105
B6: desmonte en terreno comun (si en terr. C. roca disgregable con barreta se debera mult. Prec. X 2,3) | C6: m3 | D6: =$N$27 -> 1 | E6: =IF((lista2!F6+lista3!F6+lista4!F6+lista5!F6)=0,0,(lista2!F6+lista3!F6+lista4!F6+lista5!F6)/((lista2!F6<>0)+(lista3!F6<>0)+(lista4!F6<>0)+(lista5!F6<>0))) -> 222.5322634 | F6: =D6*E6 -> 222.5322634 | G6: 0 | H6: =+F6*G6 -> 0 | J6: m | K6: x | L6: 2 | M6: 0.15 | N6: 2 | O6: 2.7 | P6: 6.3 | Q6: 17.01 | R6: 34.02 | S6: 12.6 | U6: pasillo | X6: 18.63 | Z6: 0.1 | AA6: 1.1 | AD6: con IVA | AE6: 1.21
A7: 2 | B7: Procedimientos y cumplimientos | J7: m | K7: x | L7: 3 | M7: 0.15 | N7: 2 | O7: 2.7 | P7: 3.9 | Q7: 10.53 | R7: 21.06 | S7: 7.8 | Z7: 0.15 | AA7: 1.15
B8: Replanteo | C8: m2 | D8: =$N$27 -> 1 | E8: =IF((lista2!F8+lista3!F8+lista4!F8+lista5!F8)=0,0,(lista2!F8+lista3!F8+lista4!F8+lista5!F8)/((lista2!F8<>0)+(lista3!F8<>0)+(lista4!F8<>0)+(lista5!F8<>0))) -> 28.45232814 | F8: =D8*E8 -> 28.45232814 | G8: =W3 -> 104.05 | H8: =+F8*G8 -> 2960.464743 | J8: m | K8: x | L8: 4 | M8: 0.15 | N8: 2 | O8: 2.7 | P8: 3.2 | Q8: 8.64 | R8: 17.28 | S8: 6.4 | Z8: 0.2 | AA8: 1.2
B9: Cartel de obra | C9: m2 | D9: =$N$27 -> 1 | E9: =IF((lista2!F9+lista3!F9+lista4!F9+lista5!F9)=0,0,(lista2!F9+lista3!F9+lista4!F9+lista5!F9)/((lista2!F9<>0)+(lista3!F9<>0)+(lista4!F9<>0)+(lista5!F9<>0))) -> 773.7416481 | F9: =D9*E9 -> 773.7416481 | G9: 0 | H9: =+F9*G9 -> 0 | J9: m | K9: x | L9: 5 | M9: 0.15 | N9: 2 | O9: 2.7 | P9: 3.1 | Q9: 8.37 | R9: 16.74 | S9: 6.2 | U9: total | W9: =W3 -> 104.05 | X9: =SUM(X3:X8) -> 158.66 | Z9: 0.25 | AA9: 1.25
B10: Cerco de obra | C10: ml | D10: =$N$27 -> 1 | E10: =IF((lista2!F10+lista3!F10+lista4!F10+lista5!F10)=0,0,(lista2!F10+lista3!F10+lista4!F10+lista5!F10)/((lista2!F10<>0)+(lista3!F10<>0)+(lista4!F10<>0)+(lista5!F10<>0))) -> 403.4510022 | F10: =D10*E10 -> 403.4510022 | G10: 0 | H10: =+F10*G10 -> 0 | J10: m | K10: x | L10: 6 | M10: 0.15 | N10: 2 | O10: 2.7 | P10: 3.3 | Q10: 8.91 | R10: 17.82 | S10: 6.6 | Z10: 0.3 | AA10: 1.3
B11: Defensa de protección para trabajo en obra | C11: ml | D11: =$N$27 -> 1 | E11: =IF((lista2!F11+lista3!F11+lista4!F11+lista5!F11)=0,0,(lista2!F11+lista3!F11+lista4!F11+lista5!F11)/((lista2!F11<>0)+(lista3!F11<>0)+(lista4!F11<>0)+(lista5!F11<>0))) -> 829.0089087 | F11: =D11*E11 -> 829.0089087 | G11: 0 | H11: =+F11*G11 -> 0 | J11: m | K11: x | L11: 7 | M11: 0.15 | N11: 1 | O11: 2.7 | P11: 6.72 | Q11: 18.144 | R11: 18.144 | S11: 6.72 | U11: sup. Del terreno | W11: 162.5 | X11: m2 | Z11: 0.35 | AA11: 1.35
E12: =IF((lista2!F12+lista3!F12+lista4!F12+lista5!F12)=0,0,(lista2!F12+lista3!F12+lista4!F12+lista5!F12)/((lista2!F12<>0)+(lista3!F12<>0)+(lista4!F12<>0)+(lista5!F12<>0))) -> 0 | J12: m | K12: Y | L12: 1a | M12: 0.15 | N12: 1 | O12: 2.7 | P12: =34.55-P13 -> 19.55 | Q12: 52.785 | R12: 52.785 | S12: 19.55 | T12: * | Z12: 0.4 | AA12: 1.4
A13: 3 | B13: Demoliciones | J13: m | K13: Y | L13: 1b | M13: 0.15 | N13: 1 | O13: 3.3 | P13: 15 | Q13: 49.5 | R13: 49.5 | S13: 15 | U13: bases de recalce de muros medianeros | X13: =(P12+P20)/X14 -> 10.00254453 | Y13: ud
B14: En los siguientes items, se incluye el retiro de los escombros de la obra hasta coloc.dentro del contenedor | J14: m | K14: Y | L14: 2a | M14: 0.15 | N14: 1 | O14: 2.7 | P14: 15.15 | Q14: 40.905 | R14: 40.905 | S14: 15.15 | U14: (ver * en planilla muro). La dist. Separ. | X14: 3.93 | Y14: m
B15: De estructura de hormigón, losas de HºAº, dados, camaras de HºAº (incluye cargarlo) | C15: m3 | D15: =$N$27 -> 1 | E15: =IF((lista2!F15+lista3!F15+lista4!F15+lista5!F15)=0,0,(lista2!F15+lista3!F15+lista4!F15+lista5!F15)/((lista2!F15<>0)+(lista3!F15<>0)+(lista4!F15<>0)+(lista5!F15<>0))) -> 1281.842738 | F15: =D15*E15 -> 1281.842738 | G15: 0 | H15: =+F15*G15 -> 0 | J15: m | K15: Y | L15: 2b | M15: 0.15 | N15: 2 | O15: 1 | P15: 4 | Q15: 4 | R15: 8 | S15: 8 | U15: vol. Bases recalc. Median | W15: =1*0.5 -> 0.5 | X15: 1.2 | Y15: =W15*X15*X13 -> 6.001526718
B16: De mamposteria (todos los items incluyen cargar escombros a un contenedor cercano, refiere a planta baja) | C16: m3 | D16: 1 | E16: =IF((lista2!F16+lista3!F16+lista4!F16+lista5!F16)=0,0,(lista2!F16+lista3!F16+lista4!F16+lista5!F16)/((lista2!F16<>0)+(lista3!F16<>0)+(lista4!F16<>0)+(lista5!F16<>0))) -> 415.9727554 | F16: 415.9727554 | G16: 0 | H16: 0 | J16: m | K16: Y | L16: 3 | M16: 0.3 | N16: 2 | O16: 2.7 | P16: 4 | Q16: 10.8 | R16: 21.6 | S16: 8 | U16: bases de colum. de muros nuevos | X16: =ROUNDUP((P25-P12-P20)/X17, 0) -> 24 | Y16: ud
B17: De pisos | C17: m2 | D17: 1 | E17: =IF((lista2!F17+lista3!F17+lista4!F17+lista5!F17)=0,0,(lista2!F17+lista3!F17+lista4!F17+lista5!F17)/((lista2!F17<>0)+(lista3!F17<>0)+(lista4!F17<>0)+(lista5!F17<>0))) -> 123.8534151 | F17: 123.8534151 | G17: 0 | H17: 0 | J17: m | K17: Y | L17: 4 | M17: 0.15 | N17: 2 | O17: 2.7 | P17: 11.45 | Q17: 30.915 | R17: 61.83 | S17: 22.9 | U17: (ver en planilla muro). La dist. Separ. | X17: 4 | Y17: m
B18: De contrapisos | C18: m2 | D18: 1 | E18: =IF((lista2!F18+lista3!F18+lista4!F18+lista5!F18)=0,0,(lista2!F18+lista3!F18+lista4!F18+lista5!F18)/((lista2!F18<>0)+(lista3!F18<>0)+(lista4!F18<>0)+(lista5!F18<>0))) -> 65.31803932 | F18: 65.31803932 | G18: 0 | H18: 0 | J18: m | K18: Y | L18: 5 | M18: 0.15 | N18: 2 | O18: 2.7 | P18: 0.6 | Q18: 1.62 | R18: 3.24 | S18: 1.2 | U18: profund. Pilot | V18: 1.6 | W18: vol de excav. a retirar | Y18: =3.14*0.23^2/4*V18*X16 -> 1.5946176
B19: Picado de revoques, cielorrasos suspendidos ó demolcic. de cubiert d tejas coloniales (sin recuper. de tejas) | C19: m2 | D19: 1 | E19: =IF((lista2!F19+lista3!F19+lista4!F19+lista5!F19)=0,0,(lista2!F19+lista3!F19+lista4!F19+lista5!F19)/((lista2!F19<>0)+(lista3!F19<>0)+(lista4!F19<>0)+(lista5!F19<>0))) -> 62.79216585 | F19: 62.79216585 | G19: 0 | H19: 0 | J19: m | K19: Y | L19: 6 | M19: 0.15 | N19: 2 | O19: 2.7 | P19: 4.94 | Q19: 13.338 | R19: 26.676 | S19: 9.88 | U19: Coef. Esponj. | V19: 1.35 | W19: ancho | X19: alto | Y19: vol. Tot. m3
B20: Picado de revestimientos | C20: m2 | D20: 1 | E20: =IF((lista2!F20+lista3!F20+lista4!F20+lista5!F20)=0,0,(lista2!F20+lista3!F20+lista4!F20+lista5!F20)/((lista2!F20<>0)+(lista3!F20<>0)+(lista4!F20<>0)+(lista5!F20<>0))) -> 73.9604314 | F20: 73.9604314 | G20: 0 | H20: 0 | J20: m | K20: Y | L20: 7 | M20: 0.15 | N20: 1 | O20: 2.7 | P20: 19.76 | Q20: 53.352 | R20: 53.352 | S20: 19.76 | T20: * | U20: vol. Vigas fundacion[m3] | W20: 0.25 | X20: 0.3 | Y20: =W20*X20*P25 -> 9.90225
B21: De estructura de madera con tejas francesa (o colonial) | C21: m2 | D21: 1 | E21: =IF((lista2!F21+lista3!F21+lista4!F21+lista5!F21)=0,0,(lista2!F21+lista3!F21+lista4!F21+lista5!F21)/((lista2!F21<>0)+(lista3!F21<>0)+(lista4!F21<>0)+(lista5!F21<>0))) -> 205.3955906 | F21: 205.3955906 | G21: 0 | H21: 0 | J21: tanque res | M21: 0.15 | N21: 2 | O21: 2.3 | P21: =2.3+1.1*2 -> 4.5 | Q21: 10.35 | R21: 20.7 | S21: 0 | W21: cam. Sep.m3 | X21: =2*2.3*2.5 -> 11.5 | Y21: cam. Insp,m3 | Z21: =0.6*0.6*1.6 -> 0.576 | AA21: cisterna | AB21: 0 | AC21: m3
B22: Demolición de obra completa | C22: m2 | D22: 1 | E22: =IF((lista2!F22+lista3!F22+lista4!F22+lista5!F22)=0,0,(lista2!F22+lista3!F22+lista4!F22+lista5!F22)/((lista2!F22<>0)+(lista3!F22<>0)+(lista4!F22<>0)+(lista5!F22<>0))) -> 871.4304039 | F22: 871.4304039 | G22: 28 | H22: 24400.05131 | U22: demoliciones | V22: =7*2+4*2 -> 22 | W22: 0.3 | X22: 3 | Y22: =V22*W22*X22 -> 19.8 | AA22: sotano | AB22: 0 | AC22: m3
B23: Contenedor/Volquete, alquiler | C23: u | D23: 1 | E23: =IF((lista2!F23+lista3!F23+lista4!F23+lista5!F23)=0,0,(lista2!F23+lista3!F23+lista4!F23+lista5!F23)/((lista2!F23<>0)+(lista3!F23<>0)+(lista4!F23<>0)+(lista5!F23<>0))) -> 607.9398664 | F23: 607.9398664 | G23: =Y25 -> 16 | H23: 9727.037862 | U23: desperdicios 20cm/m2 | W23: =W3 -> 104.05 | X23: 0.2 | Y23: =W23*X23 -> 20.81 | AA23: pozo Romano | AB23: =IF((3.14*AD25^2/4)<1,AD24*AD23,(3.14*AD25^2/4)*AD24*AD23) -> 0 | AC23: cantidad | AD23: 0
B24: Cargar Contenedor/Volquete | C24: u | D24: 1 | E24: =IF((lista2!F24+lista3!F24+lista4!F24+lista5!F24)=0,0,(lista2!F24+lista3!F24+lista4!F24+lista5!F24)/((lista2!F24<>0)+(lista3!F24<>0)+(lista4!F24<>0)+(lista5!F24<>0))) -> 605.1765033 | F24: 605.1765033 | G24: =Y25 -> 16 | H24: 9682.824053 | U24: capac volquetes | V24: 5 | X24: S = | Y24: =(Y18+Y15+SUM(Y20:Y23))*V19 -> 78.44633233 | AC24: profundid | AD24: 0
A25: 4 | B25: Movimientos de tierra | J25: sumatorias S = | P25: =SUM(P4:P24) -> 132.03 | Q25: =SUM(Q4:Q24) -> 360.4326 | R25: =SUM(R4:R24) -> 488.6232 | S25: =SUM(S4:S24) -> 173.56 | U25: cantidad de volquetes o contenedores: | Y25: =ROUND(Y24/V24,0) -> 16 | AC25: diametro
B26: Excavación manual p cimientos y bases column terreno común (si tosca mult.al prec.x 1,214 y x1,714 si es roca digregable) | C26: m3 | D26: =$N$27 -> 1 | E26: =IF((lista2!F26+lista3!F26+lista4!F26+lista5!F26)=0,0,(lista2!F26+lista3!F26+lista4!F26+lista5!F26)/((lista2!F26<>0)+(lista3!F26<>0)+(lista4!F26<>0)+(lista5!F26<>0))) -> 323.2383802 | F26: =D26*E26 -> 323.2383802 | G26: =Y15 -> 6.001526718 | H26: =+F26*G26 -> 1939.923775 | U26: vol. Colum (encad.) | W26: 0.13 | X26: 0.2 | Y26: =W26*X26*AVERAGE(O4:O20)*(X16+X13) -> 2.376057809 | AA26: pozo negr.m3 | AB26: =IF((3.14*AD28^2/4)<1,AD27*AD26,(3.14*AD28^2/4)*AD27*AD26) -> 6 | AC26: cantidad | AD26: 1
B27: Excavación manual de vigas de fundación hasta 1,20 m de prof. | C27: m3 | D27: 1 | E27: =IF((lista2!F27+lista3!F27+lista4!F27+lista5!F27)=0,0,(lista2!F27+lista3!F27+lista4!F27+lista5!F27)/((lista2!F27<>0)+(lista3!F27<>0)+(lista4!F27<>0)+(lista5!F27<>0))) -> 244.6622067 | F27: 244.6622067 | G27: =Y20 -> 9.90225 | H27: 2422.706336 | L27: mult | N27: =AB3*AF3 -> 1 | T27: US$prom | U27: vol. Colum (estruct.) | W27: 0.2 | X27: 0.3 | AC27: profundid | AD27: 6
B28: Excavación de pozos para pilotín (diám. 23 cm - prof. 1,6 m) | C28: u | D28: 1 | E28: =IF((lista2!F28+lista3!F28+lista4!F28+lista5!F28)=0,0,(lista2!F28+lista3!F28+lista4!F28+lista5!F28)/((lista2!F28<>0)+(lista3!F28<>0)+(lista4!F28<>0)+(lista5!F28<>0))) -> 154.7483296 | F28: 154.7483296 | G28: =X16 -> 24 | H28: 3713.959911 | J28: #1precio dólar oficial vta | P28: 9.335 | Q28: $AR | R28: =TODAY() -> 2015-11-12 | T28: =AVERAGE(P28:P29) -> 12.4075 | U28: cant. Col estr. | V28: 2 | W28: Alt.col. Estr | X28: 2.7 | Y28: =W27*X27*X28*V28 -> 0.324 | AC28: diametro
B29: Excavación p/ cisternas, cámaras sépt.,de inspec., sótanos a mano terr. Comun hast4m (tosca x1,351 y si fuese roc disgr x 1,89) | C29: m3 | D29: 1 | E29: =IF((lista2!F29+lista3!F29+lista4!F29+lista5!F29)=0,0,(lista2!F29+lista3!F29+lista4!F29+lista5!F29)/((lista2!F29<>0)+(lista3!F29<>0)+(lista4!F29<>0)+(lista5!F29<>0))) -> 335.4208874 | F29: 335.4208874 | G29: =$X$21+$Z$21+$AB$21+$AB$22 -> 12.076 | H29: 4050.542636 | J29: #2precio dólar blue vta | P29: 15.48 | Q29: $AR | R29: =TODAY() -> 2015-11-12 | U29: vol total de col | Y29: =Y26+Y28 -> 2.700057809
B30: Excavación p/ pozo absorbt o Romano, a mano terr. Comun hast10mprof.(tosca x1,364 y si fuese roc disgr x 1,909) | C30: m3 | D30: 1 | E30: =IF((lista2!F30+lista3!F30+lista4!F30+lista5!F30)=0,0,(lista2!F30+lista3!F30+lista4!F30+lista5!F30)/((lista2!F30<>0)+(lista3!F30<>0)+(lista4!F30<>0)+(lista5!F30<>0))) -> 509.9547327 | F30: =D30*E30 -> 509.9547327 | G30: =$AB$26 -> 6 | H30: 3059.728396
B31: Destape del terreno hasta 20/30 cm de profundidad con pala frontal o Excavación de sótanos a maquina | C31: m3 | D31: 1 | E31: =IF((lista2!F31+lista3!F31+lista4!F31+lista5!F31)=0,0,(lista2!F31+lista3!F31+lista4!F31+lista5!F31)/((lista2!F31<>0)+(lista3!F31<>0)+(lista4!F31<>0)+(lista5!F31<>0))) -> 143.8786107 | F31: =D31*E31 -> 143.8786107 | G31: 0 | H31: 0 | J31: #1rev. Rubro dólar oficial vta | P31: 4.4 | Q31: $AR | R31: 2012-04-01 | T31: =AVERAGE(P31:P32) -> 4.655 | U31: vol. Vig encad. Sup. | W31: 0.13 | X31: 0.17 | Y31: =W31*X31*P25 -> 2.917863
B32: Carga y retiro de tierra con camión | C32: m3 | D32: 1 | E32: =IF((lista2!F32+lista3!F32+lista4!F32+lista5!F32)=0,0,(lista2!F32+lista3!F32+lista4!F32+lista5!F32)/((lista2!F32<>0)+(lista3!F32<>0)+(lista4!F32<>0)+(lista5!F32<>0))) -> 198.9621381 | F32: 198.9621381 | G32: 0 | H32: 0 | J32: #2Rev.Rubro dólar blu vta | P32: 4.91 | Q32: $AR | R32: 2012-04-01 | S32: multip | T32: =T28/T31 -> 2.665413534 | U32: vol. Vig estruct. | W32: 0.2 | X32: 0.3
B33: terraplenamiento | C33: m3 | D33: 1 | E33: =IF((lista2!F33+lista3!F33+lista4!F33+lista5!F33)=0,0,(lista2!F33+lista3!F33+lista4!F33+lista5!F33)/((lista2!F33<>0)+(lista3!F33<>0)+(lista4!F33<>0)+(lista5!F33<>0))) -> 185.4315228 | F33: =D33*E33 -> 185.4315228 | G33: 0 | H33: =+F33*G33 -> 0 | J33: http://www.ambito.com/economia/mercados/monedas/dolar/ | U33: cantidad " | V33: 1 | W33: largo [m] | X33: 4 | Y33: =W32*X32*V33*X33 -> 0.24
A34: 5 | B34: Estructuras de hormigón armado | C34: Unid. | E34: Prec. | F34: Prec. | G34: Cant. | H34: Parcial | J34: http://www.ambito.com/economia/mercados/monedas/dolar/info/?ric=ARSB=&desde=15/12/2014&hasta=15/01/2015
B35: Incluye el material, mano de obra, armado y desarme de encofrados de madera tradicionales y equipos | E35: vjo | F35: nvo
B36: hormigon sin armar para relleno de cimientos | C36: m3 | D36: =$N$27 -> 1 | E36: =IF((lista2!F36+lista3!F36+lista4!F36+lista5!F36)=0,0,(lista2!F36+lista3!F36+lista4!F36+lista5!F36)/((lista2!F36<>0)+(lista3!F36<>0)+(lista4!F36<>0)+(lista5!F36<>0))) -> 1010.52601 | F36: =D36*E36 -> 1010.52601 | G36: =G25 -> 0 | H36: =+F36*G36 -> 0
B37: Bases céntricas cuantía 60 kg, HºAº p/ cabezal de pozos romanos (p/fuste pz rom dividir precio en 1,124) | C37: m3 | D37: 1 | E37: =IF((lista2!F37+lista3!F37+lista4!F37+lista5!F37)=0,0,(lista2!F37+lista3!F37+lista4!F37+lista5!F37)/((lista2!F37<>0)+(lista3!F37<>0)+(lista4!F37<>0)+(lista5!F37<>0))) -> 2691.016124 | F37: =D37*E37 -> 2691.016124 | G37: =G26 -> 6.001526718 | H37: =+F37*G37 -> 16150.20516 | J37: lista de precios tareas
B38: Vigas de fundación 60 kg/m3, arriostramiento y de equilibrio | C38: m3 | D38: 1 | E38: =IF((lista2!F38+lista3!F38+lista4!F38+lista5!F38)=0,0,(lista2!F38+lista3!F38+lista4!F38+lista5!F38)/((lista2!F38<>0)+(lista3!F38<>0)+(lista4!F38<>0)+(lista5!F38<>0))) -> 3985.037223 | F38: 3985.037223 | G38: =G27 -> 9.90225 | H38: 39460.83484 | J38: http://www.construircordoba.com/precios-de-tareas/movimiento-de-tierras/
B39: Pilotín diametro 23 cm / profundidad 1,6 m | C39: ml | D39: 1 | E39: =IF((lista2!F39+lista3!F39+lista4!F39+lista5!F39)=0,0,(lista2!F39+lista3!F39+lista4!F39+lista5!F39)/((lista2!F39<>0)+(lista3!F39<>0)+(lista4!F39<>0)+(lista5!F39<>0))) -> 244.1707572 | F39: 244.1707572 | G39: =G28*V18 -> 38.4 | H39: 9376.157078 | J39: lista de precios tareas
B40: Platea de fundación 35 kg/m3 de hierro o quiza con un poco mas de kg de cuantía, (bases de cañerías div./1,345). | C40: m3 | D40: 1 | E40: =IF((lista2!F40+lista3!F40+lista4!F40+lista5!F40)=0,0,(lista2!F40+lista3!F40+lista4!F40+lista5!F40)/((lista2!F40<>0)+(lista3!F40<>0)+(lista4!F40<>0)+(lista5!F40<>0))) -> 2416.814633 | F40: 2416.814633 | G40: 0 | H40: 0 | J40: http://www.colegioarquitectos.org.ar/imgarchivos/61499_2522015_m2_Enero.pdf
B41: Zapatas para tabique de hormigón para submuración 80 kg hierro, bases de columna y zapatas de columna | C41: m3 | D41: 1 | E41: =IF((lista2!F41+lista3!F41+lista4!F41+lista5!F41)=0,0,(lista2!F41+lista3!F41+lista4!F41+lista5!F41)/((lista2!F41<>0)+(lista3!F41<>0)+(lista4!F41<>0)+(lista5!F41<>0))) -> 2554.266999 | F41: 2554.266999 | G41: 0 | H41: 0
B42: Zapatas para muro de Mamposteria 30 cm de ladrillo común cuantía 35kg de hierro/m3 | C42: m3 | D42: 1 | E42: =IF((lista2!F42+lista3!F42+lista4!F42+lista5!F42)=0,0,(lista2!F42+lista3!F42+lista4!F42+lista5!F42)/((lista2!F42<>0)+(lista3!F42<>0)+(lista4!F42<>0)+(lista5!F42<>0))) -> 2759.497432 | F42: 2759.497432 | G42: 0 | H42: 0
B43: Tabiques de sótanos una cara vista 80 kg de hierro/m3 | C43: m3 | D43: 1 | E43: =IF((lista2!F43+lista3!F43+lista4!F43+lista5!F43)=0,0,(lista2!F43+lista3!F43+lista4!F43+lista5!F43)/((lista2!F43<>0)+(lista3!F43<>0)+(lista4!F43<>0)+(lista5!F43<>0))) -> 5147.261047 | F43: 5147.261047 | G43: 0 | H43: 0 | J43: Referencias: Cada dato que modifique o agregue, ACTUALICE EL COLOR de celda en ese istante.
B44: Losas espesor 10 cm | C44: m3 | D44: 1 | E44: =IF((lista2!F44+lista3!F44+lista4!F44+lista5!F44)=0,0,(lista2!F44+lista3!F44+lista4!F44+lista5!F44)/((lista2!F44<>0)+(lista3!F44<>0)+(lista4!F44<>0)+(lista5!F44<>0))) -> 4506.493292 | F44: 4506.493292 | G44: 0 | H44: 0
B45: Losas de hormigón a la vista con encofrado fenólico | C45: m3 | D45: 1 | E45: =IF((lista2!F45+lista3!F45+lista4!F45+lista5!F45)=0,0,(lista2!F45+lista3!F45+lista4!F45+lista5!F45)/((lista2!F45<>0)+(lista3!F45<>0)+(lista4!F45<>0)+(lista5!F45<>0))) -> 11791.71218 | F45: 11791.71218 | G45: 0 | H45: 0 | K45: ingrese datos nuevos referidos a su obra
B46: Losas casetonada 70 kg/m3 de hierro (es precio mínimo.. p/ prec max mult. X 1,216) | C46: m3 | D46: 1 | E46: =IF((lista2!F46+lista3!F46+lista4!F46+lista5!F46)=0,0,(lista2!F46+lista3!F46+lista4!F46+lista5!F46)/((lista2!F46<>0)+(lista3!F46<>0)+(lista4!F46<>0)+(lista5!F46<>0))) -> 8317.280579 | F46: 8317.280579 | G46: 0 | H46: 0
B47: Losa nervurada Aº en un sentid. bloqH 14*19*39 (o x 1,162 sii es Aºda en 2 sentid c bloq poliest exp. De 40*40*25) | C47: m2 | D47: 1 | E47: =IF((lista2!F47+lista3!F47+lista4!F47+lista5!F47)=0,0,(lista2!F47+lista3!F47+lista4!F47+lista5!F47)/((lista2!F47<>0)+(lista3!F47<>0)+(lista4!F47<>0)+(lista5!F47<>0))) -> 958.4027171 | F47: 958.4027171 | G47: 0 | H47: 0 | K47: celda con Fórmula (no modificarla)
B48: Losa hueca pretensada 12 cm de espesor con tomado de juntas | C48: m2 | D48: 1 | E48: =IF((lista2!F48+lista3!F48+lista4!F48+lista5!F48)=0,0,(lista2!F48+lista3!F48+lista4!F48+lista5!F48)/((lista2!F48<>0)+(lista3!F48<>0)+(lista4!F48<>0)+(lista5!F48<>0))) -> 699.4624499 | F48: 699.4624499 | G48: 0 | H48: 0
B49: Losa viguetas pretensadas de hormigón y ladrillos cerámicos espesor 17cm con capa de compresión. | C49: m2 | D49: 1 | E49: =IF((lista2!F49+lista3!F49+lista4!F49+lista5!F49)=0,0,(lista2!F49+lista3!F49+lista4!F49+lista5!F49)/((lista2!F49<>0)+(lista3!F49<>0)+(lista4!F49<>0)+(lista5!F49<>0))) -> 590.6371358 | F49: 590.6371358 | G49: =W3 -> 104.05 | H49: 61455.79398 | K49: Datos vinculados, vienen de otra celda (no mofificarla)
B50: columnas estructurales de aprox. 30x30 (Si son a la vista al precio mult. X 1,08) | C50: m3 | D50: 1 | E50: =IF((lista2!F50+lista3!F50+lista4!F50+lista5!F50)=0,0,(lista2!F50+lista3!F50+lista4!F50+lista5!F50)/((lista2!F50<>0)+(lista3!F50<>0)+(lista4!F50<>0)+(lista5!F50<>0))) -> 6496.063363 | F50: 6496.063363 | G50: =Y28 -> 0.324 | H50: 2104.72453
B51: Encadenado verticales, horizontales, dinteles, dadosdapoyo, llaves,banquinas 7cm esp. de HºAº | C51: m3 | D51: 1 | E51: =IF((lista2!F51+lista3!F51+lista4!F51+lista5!F51)=0,0,(lista2!F51+lista3!F51+lista4!F51+lista5!F51)/((lista2!F51<>0)+(lista3!F51<>0)+(lista4!F51<>0)+(lista5!F51<>0))) -> 5231.480292 | F51: 5231.480292 | G51: =Y26+Y31 -> 5.293920809 | H51: 27695.04238 | K51: prohibido modificar
B52: Vigas cuantía 180 kg/m3, vigas aprox. De 20x40 (Si son a la vista al precio mult. X 1,08) | C52: m3 | D52: 1 | E52: =IF((lista2!F52+lista3!F52+lista4!F52+lista5!F52)=0,0,(lista2!F52+lista3!F52+lista4!F52+lista5!F52)/((lista2!F52<>0)+(lista3!F52<>0)+(lista4!F52<>0)+(lista5!F52<>0))) -> 8566.383191 | F52: 8566.383191 | G52: =Y33 -> 0.24 | H52: 2055.931966
B53: Tabiques vistos cuantía 80 kg | C53: m3 | D53: 1 | E53: =IF((lista2!F53+lista3!F53+lista4!F53+lista5!F53)=0,0,(lista2!F53+lista3!F53+lista4!F53+lista5!F53)/((lista2!F53<>0)+(lista3!F53<>0)+(lista4!F53<>0)+(lista5!F53<>0))) -> 11203.8896 | F53: 11203.8896 | G53: 0 | H53: 0
B54: Tabiques cuantía 80 kg/m3 | C54: m3 | D54: 1 | E54: =IF((lista2!F54+lista3!F54+lista4!F54+lista5!F54)=0,0,(lista2!F54+lista3!F54+lista4!F54+lista5!F54)/((lista2!F54<>0)+(lista3!F54<>0)+(lista4!F54<>0)+(lista5!F54<>0))) -> 7718.917702 | F54: 7718.917702 | G54: 0 | H54: 0
B55: Escaleras cuantía 75 kg/m3 (sii es HºAº p/LOSAS macizas de escaleras a este prec. Dividir por 1,887) | C55: m3 | D55: 1 | E55: =IF((lista2!F55+lista3!F55+lista4!F55+lista5!F55)=0,0,(lista2!F55+lista3!F55+lista4!F55+lista5!F55)/((lista2!F55<>0)+(lista3!F55<>0)+(lista4!F55<>0)+(lista5!F55<>0))) -> 11959.61412 | F55: 11959.61412 | G55: 0 | H55: 0
B56: Tanque de bombeo cuantía 105 kg/m3 | C56: m3 | D56: 1 | E56: =IF((lista2!F56+lista3!F56+lista4!F56+lista5!F56)=0,0,(lista2!F56+lista3!F56+lista4!F56+lista5!F56)/((lista2!F56<>0)+(lista3!F56<>0)+(lista4!F56<>0)+(lista5!F56<>0))) -> 8036.743964 | F56: 8036.743964 | G56: 0 | H56: 0
B57: Tanque de reserva cuantía 105 kg/m3 y cisternas de HAº | C57: m3 | D57: 1 | E57: =IF((lista2!F57+lista3!F57+lista4!F57+lista5!F57)=0,0,(lista2!F57+lista3!F57+lista4!F57+lista5!F57)/((lista2!F57<>0)+(lista3!F57<>0)+(lista4!F57<>0)+(lista5!F57<>0))) -> 8870.603325 | F57: 8870.603325 | G57: =2.3*1.3*0.1 -> 0.299 | H57: 2652.310394
B58: Junta de PVC para hormigón | C58: ml | D58: 1 | E58: =IF((lista2!F58+lista3!F58+lista4!F58+lista5!F58)=0,0,(lista2!F58+lista3!F58+lista4!F58+lista5!F58)/((lista2!F58<>0)+(lista3!F58<>0)+(lista4!F58<>0)+(lista5!F58<>0))) -> 229.6655956 | F58: 229.6655956 | G58: 0 | H58: 0
B59: Barrera de vapor (dos manos de pintura asfáltica + 10% nafta) | C59: m2 | D59: 1 | E59: =IF((lista2!F59+lista3!F59+lista4!F59+lista5!F59)=0,0,(lista2!F59+lista3!F59+lista4!F59+lista5!F59)/((lista2!F59<>0)+(lista3!F59<>0)+(lista4!F59<>0)+(lista5!F59<>0))) -> 42.00684966 | F59: 42.00684966 | G59: =W3 -> 104.05 | H59: 4370.812707 | I59: =SUM(H57,H49) -> 64108.10437 | K59: =I59/I60 -> 0.3877776513
A60: 6 | B60: Estructuras metálicas | I60: =SUM(H36:H59) -> 165321.813
B61: En el caso de cubiertas no se consideran los cerramientos laterales ni superiores. Para los entrepisos no se incluye el solado. En ambos, tampoco la pintura. El armado es en taller. Incluye el montaje en obra y no se considera el flete
B62: Estructuras metálicas de perfiles normales | C62: kg | D62: =$N$27 -> 1 | E62: =IF((lista2!F62+lista3!F62+lista4!F62+lista5!F62)=0,0,(lista2!F62+lista3!F62+lista4!F62+lista5!F62)/((lista2!F62<>0)+(lista3!F62<>0)+(lista4!F62<>0)+(lista5!F62<>0))) -> 42.66632517 | F62: =D62*E62 -> 42.66632517 | G62: 0 | H62: =+F62*G62 -> 0
B63: Estructuras metálicas de perfiles ángulos | C63: kg | D63: =$N$27 -> 1 | E63: =IF((lista2!F63+lista3!F63+lista4!F63+lista5!F63)=0,0,(lista2!F63+lista3!F63+lista4!F63+lista5!F63)/((lista2!F63<>0)+(lista3!F63<>0)+(lista4!F63<>0)+(lista5!F63<>0))) -> 86.10639198 | F63: =D63*E63 -> 86.10639198 | G63: 0 | H63: =+F63*G63 -> 0
B64: Estructuras metálicas de hierro redondo | C64: kg | D64: =$N$27 -> 1 | E64: =IF((lista2!F64+lista3!F64+lista4!F64+lista5!F64)=0,0,(lista2!F64+lista3!F64+lista4!F64+lista5!F64)/((lista2!F64<>0)+(lista3!F64<>0)+(lista4!F64<>0)+(lista5!F64<>0))) -> 42.77685969 | F64: =D64*E64 -> 42.77685969 | G64: 0 | H64: =+F64*G64 -> 0
E65: =IF((lista2!F65+lista3!F65+lista4!F65+lista5!F65)=0,0,(lista2!F65+lista3!F65+lista4!F65+lista5!F65)/((lista2!F65<>0)+(lista3!F65<>0)+(lista4!F65<>0)+(lista5!F65<>0))) -> 0 | H65: =+F65*G65 -> 0
E66: =IF((lista2!F66+lista3!F66+lista4!F66+lista5!F66)=0,0,(lista2!F66+lista3!F66+lista4!F66+lista5!F66)/((lista2!F66<>0)+(lista3!F66<>0)+(lista4!F66<>0)+(lista5!F66<>0))) -> 0 | H66: =+F66*G66 -> 0
E67: =IF((lista2!F67+lista3!F67+lista4!F67+lista5!F67)=0,0,(lista2!F67+lista3!F67+lista4!F67+lista5!F67)/((lista2!F67<>0)+(lista3!F67<>0)+(lista4!F67<>0)+(lista5!F67<>0))) -> 0
A68: 7 | B68: Mampostería | C68: Unid. | E68: Precio | G68: Cantid. | H68: Parcial
B69: Bloques de hormigón estandar 19 x 19 x 39 ; idem cribada = D x 0,9365 | C69: m2 | D69: =$N$27 -> 1 | E69: =IF((lista2!F69+lista3!F69+lista4!F69+lista5!F69)=0,0,(lista2!F69+lista3!F69+lista4!F69+lista5!F69)/((lista2!F69<>0)+(lista3!F69<>0)+(lista4!F69<>0)+(lista5!F69<>0))) -> 339.7136255 | F69: =D69*E69 -> 339.7136255 | G69: 0 | H69: =+F69*G69 -> 0
B70: Bloques de hormigón estandar 9,2 x 19 x 39 ; ladrillos comunes de pandere 30 ud/m2 = corregir D x 0,88 | C70: m2 | D70: 1 | E70: =IF((lista2!F70+lista3!F70+lista4!F70+lista5!F70)=0,0,(lista2!F70+lista3!F70+lista4!F70+lista5!F70)/((lista2!F70<>0)+(lista3!F70<>0)+(lista4!F70<>0)+(lista5!F70<>0))) -> 246.561529 | F70: 246.561529 | G70: 0 | H70: 0
B71: Junta de dilatación bloque ""u""de hormigón | C71: ml | D71: 1 | E71: =IF((lista2!F71+lista3!F71+lista4!F71+lista5!F71)=0,0,(lista2!F71+lista3!F71+lista4!F71+lista5!F71)/((lista2!F71<>0)+(lista3!F71<>0)+(lista4!F71<>0)+(lista5!F71<>0))) -> 63.00467706 | F71: 63.00467706 | G71: 0 | H71: 0
B72: Encadenado pared bloques de hormigón | C72: ml | D72: 1 | E72: =IF((lista2!F72+lista3!F72+lista4!F72+lista5!F72)=0,0,(lista2!F72+lista3!F72+lista4!F72+lista5!F72)/((lista2!F72<>0)+(lista3!F72<>0)+(lista4!F72<>0)+(lista5!F72<>0))) -> 161.822539 | F72: 161.822539 | G72: 0 | H72: 0
B73: Ladrillos comunes elevación espesor 30 cm (si es de cimiento =D/1,03) si es p/ 1er piso =D*1,08 | C73: m3 | D73: 1 | E73: =IF((lista2!F73+lista3!F73+lista4!F73+lista5!F73)=0,0,(lista2!F73+lista3!F73+lista4!F73+lista5!F73)/((lista2!F73<>0)+(lista3!F73<>0)+(lista4!F73<>0)+(lista5!F73<>0))) -> 2702.044573 | F73: 2702.044573 | G73: 0 | H73: 0
B74: Ladrillos de máquina para vista espesor 30 cm sin tomado de juntas (con tomado junt =D x 1,094) | C74: m3 | D74: 1 | E74: =IF((lista2!F74+lista3!F74+lista4!F74+lista5!F74)=0,0,(lista2!F74+lista3!F74+lista4!F74+lista5!F74)/((lista2!F74<>0)+(lista3!F74<>0)+(lista4!F74<>0)+(lista5!F74<>0))) -> 4058.52367 | F74: 4058.52367 | G74: 0 | H74: 0
B75: Ladrillo común en elevación espesor 15 cm (si es de cimiento =D/1,03) si es p/ 1er piso =D*1,08 , cribadas | C75: m3 | D75: 1 | E75: =IF((lista2!F75+lista3!F75+lista4!F75+lista5!F75)=0,0,(lista2!F75+lista3!F75+lista4!F75+lista5!F75)/((lista2!F75<>0)+(lista3!F75<>0)+(lista4!F75<>0)+(lista5!F75<>0))) -> 2043.8559 | F75: 2043.8559 | G75: 0 | H75: 0
B76: Ladrillo de máquina para vista espesor 15 cm con tomado de junta | C76: m3 | D76: 1 | E76: =IF((lista2!F76+lista3!F76+lista4!F76+lista5!F76)=0,0,(lista2!F76+lista3!F76+lista4!F76+lista5!F76)/((lista2!F76<>0)+(lista3!F76<>0)+(lista4!F76<>0)+(lista5!F76<>0))) -> 5088.125078 | F76: 5088.125078 | G76: 0 | H76: 0
B77: Refuerzos horizontales o encadenado para mampostería (vigas o dintel) en ladrillo común | C77: ml | D77: 1 | E77: =IF((lista2!F77+lista3!F77+lista4!F77+lista5!F77)=0,0,(lista2!F77+lista3!F77+lista4!F77+lista5!F77)/((lista2!F77<>0)+(lista3!F77<>0)+(lista4!F77<>0)+(lista5!F77<>0))) -> 325.5241648 | F77: 325.5241648 | G77: 0 | H77: 0
B78: Ladrillo cerámico hueco de 8 x 18 x 33 pared de 8 cm de espesor | C78: m2 | D78: 1 | E78: =IF((lista2!F78+lista3!F78+lista4!F78+lista5!F78)=0,0,(lista2!F78+lista3!F78+lista4!F78+lista5!F78)/((lista2!F78<>0)+(lista3!F78<>0)+(lista4!F78<>0)+(lista5!F78<>0))) -> 205.8002264 | F78: 205.8002264 | G78: 0 | H78: 0
B79: Ladrillo cerámico hueco de 12 x 18 x 33 pared de 12 cm de espesor | C79: m2 | D79: 1 | E79: =IF((lista2!F79+lista3!F79+lista4!F79+lista5!F79)=0,0,(lista2!F79+lista3!F79+lista4!F79+lista5!F79)/((lista2!F79<>0)+(lista3!F79<>0)+(lista4!F79<>0)+(lista5!F79<>0))) -> 242.0680451 | F79: 242.0680451 | G79: 0 | H79: 0
B80: Ladrillo cerámico hueco de 18 x 18 x 33 pared de 18 cm de espesor | C80: m2 | D80: 1 | E80: =IF((lista2!F80+lista3!F80+lista4!F80+lista5!F80)=0,0,(lista2!F80+lista3!F80+lista4!F80+lista5!F80)/((lista2!F80<>0)+(lista3!F80<>0)+(lista4!F80<>0)+(lista5!F80<>0))) -> 307.6071155 | F80: 307.6071155 | G80: 0 | H80: 0
B81: Ladrillo cerámico portante de 13 x 19 x 33 | C81: m2 | D81: 1 | E81: =IF((lista2!F81+lista3!F81+lista4!F81+lista5!F81)=0,0,(lista2!F81+lista3!F81+lista4!F81+lista5!F81)/((lista2!F81<>0)+(lista3!F81<>0)+(lista4!F81<>0)+(lista5!F81<>0))) -> 279.6483258 | F81: 279.6483258 | G81: =Q25 -> 360.4326 | H81: 100794.3732
B82: Ladrillo cerámico portante de 18 x 19 x 33 | C82: m2 | D82: 1 | E82: =IF((lista2!F82+lista3!F82+lista4!F82+lista5!F82)=0,0,(lista2!F82+lista3!F82+lista4!F82+lista5!F82)/((lista2!F82<>0)+(lista3!F82<>0)+(lista4!F82<>0)+(lista5!F82<>0))) -> 332.7172054 | F82: 332.7172054 | G82: 0 | H82: 0
B83: Viga de encadenado superior con peine cerámico, armadura y hormigonado | C83: ml | D83: 1 | E83: =IF((lista2!F83+lista3!F83+lista4!F83+lista5!F83)=0,0,(lista2!F83+lista3!F83+lista4!F83+lista5!F83)/((lista2!F83<>0)+(lista3!F83<>0)+(lista4!F83<>0)+(lista5!F83<>0))) -> 202.2781737 | F83: 202.2781737 | G83: 0 | H83: 0
B84: Columna con bloque cerámico armadura y hormigón | C84: ml | D84: 1 | E84: =IF((lista2!F84+lista3!F84+lista4!F84+lista5!F84)=0,0,(lista2!F84+lista3!F84+lista4!F84+lista5!F84)/((lista2!F84<>0)+(lista3!F84<>0)+(lista4!F84<>0)+(lista5!F84<>0))) -> 188.3508241 | F84: 188.3508241 | G84: 0 | H84: 0
B85: Muro portante en elevación de HCCA tipo Retak | C85: m3 | D85: 1 | E85: =IF((lista2!F85+lista3!F85+lista4!F85+lista5!F85)=0,0,(lista2!F85+lista3!F85+lista4!F85+lista5!F85)/((lista2!F85<>0)+(lista3!F85<>0)+(lista4!F85<>0)+(lista5!F85<>0))) -> 2763.805167 | F85: 2763.805167 | G85: 0 | H85: 0
B86: Colocación de carpinterías (incluye amurado, marcos y premarcos) | C86: m2 | D86: 1 | E86: =IF((lista2!F86+lista3!F86+lista4!F86+lista5!F86)=0,0,(lista2!F86+lista3!F86+lista4!F86+lista5!F86)/((lista2!F86<>0)+(lista3!F86<>0)+(lista4!F86<>0)+(lista5!F86<>0))) -> 208.7997105 | F86: 208.7997105 | G86: 0 | H86: 0
B87: Colocación de barandas | C87: ml | D87: 1 | E87: =IF((lista2!F87+lista3!F87+lista4!F87+lista5!F87)=0,0,(lista2!F87+lista3!F87+lista4!F87+lista5!F87)/((lista2!F87<>0)+(lista3!F87<>0)+(lista4!F87<>0)+(lista5!F87<>0))) -> 182.603029 | F87: 182.603029 | G87: 0 | H87: 0
B88: Muro portante en elevación de HCCA de 15x25x50 tipo Retak | C88: m2 | D88: 1 | E88: =IF((lista2!F88+lista3!F88+lista4!F88+lista5!F88)=0,0,(lista2!F88+lista3!F88+lista4!F88+lista5!F88)/((lista2!F88<>0)+(lista3!F88<>0)+(lista4!F88<>0)+(lista5!F88<>0))) -> 439.7063252 | F88: 439.7063252 | G88: 0 | H88: 0
B89: murete de mesada de cocina hasta 95 cm de alto (incl mat y m.o: muro 0,15+ revoq gr y fno ambas caras) sin revestim. | C89: u | D89: 1 | E89: =IF((lista2!F89+lista3!F89+lista4!F89+lista5!F89)=0,0,(lista2!F89+lista3!F89+lista4!F89+lista5!F89)/((lista2!F89<>0)+(lista3!F89<>0)+(lista4!F89<>0)+(lista5!F89<>0))) -> 699.1308463 | F89: 699.1308463 | G89: 0 | H89: 0
B90: murete de mesada de cocina hasta 95 cm de alto (incl mat y m.o: muro 0,15+ revoq gr y revest. ambas caras) sin fino | C90: u | D90: 1 | E90: =IF((lista2!F90+lista3!F90+lista4!F90+lista5!F90)=0,0,(lista2!F90+lista3!F90+lista4!F90+lista5!F90)/((lista2!F90<>0)+(lista3!F90<>0)+(lista4!F90<>0)+(lista5!F90<>0))) -> 1024.036018 | F90: 1024.036018 | G90: 0 | H90: 0
B91: Conducto de ventilación | C91: ml | D91: 1 | E91: =IF((lista2!F91+lista3!F91+lista4!F91+lista5!F91)=0,0,(lista2!F91+lista3!F91+lista4!F91+lista5!F91)/((lista2!F91<>0)+(lista3!F91<>0)+(lista4!F91<>0)+(lista5!F91<>0))) -> 385.2128062 | F91: 385.2128062 | G91: 0 | H91: 0
B92: Sombrete conducto ventilación | C92: u | D92: 1 | E92: =IF((lista2!F92+lista3!F92+lista4!F92+lista5!F92)=0,0,(lista2!F92+lista3!F92+lista4!F92+lista5!F92)/((lista2!F92<>0)+(lista3!F92<>0)+(lista4!F92<>0)+(lista5!F92<>0))) -> 362.4426949 | F92: 362.4426949 | G92: 0 | H92: 0
B93: Rejilla para conducto | C93: ml | D93: 1 | E93: =IF((lista2!F93+lista3!F93+lista4!F93+lista5!F93)=0,0,(lista2!F93+lista3!F93+lista4!F93+lista5!F93)/((lista2!F93<>0)+(lista3!F93<>0)+(lista4!F93<>0)+(lista5!F93<>0))) -> 222.1743875 | F93: 222.1743875 | G93: 0 | H93: 0
B94: Conducto de presurización | C94: ml | D94: 1 | E94: =IF((lista2!F94+lista3!F94+lista4!F94+lista5!F94)=0,0,(lista2!F94+lista3!F94+lista4!F94+lista5!F94)/((lista2!F94<>0)+(lista3!F94<>0)+(lista4!F94<>0)+(lista5!F94<>0))) -> 418.5942316 | F94: 418.5942316 | G94: 0 | H94: 0
B95: Sombrete conducto presuriz. | C95: u | D95: 1 | E95: =IF((lista2!F95+lista3!F95+lista4!F95+lista5!F95)=0,0,(lista2!F95+lista3!F95+lista4!F95+lista5!F95)/((lista2!F95<>0)+(lista3!F95<>0)+(lista4!F95<>0)+(lista5!F95<>0))) -> 637.8947216 | F95: 637.8947216 | G95: 0 | H95: 0
B96: Reja conducto ventilación | C96: u | D96: 1 | E96: =IF((lista2!F96+lista3!F96+lista4!F96+lista5!F96)=0,0,(lista2!F96+lista3!F96+lista4!F96+lista5!F96)/((lista2!F96<>0)+(lista3!F96<>0)+(lista4!F96<>0)+(lista5!F96<>0))) -> 264.066971 | F96: 264.066971 | G96: 0 | H96: 0
B97: banquinas de mesada (contrapiso + carpeta + revest. Ceramico) | C97: ml | D97: 1 | E97: =IF((lista2!F97+lista3!F97+lista4!F97+lista5!F97)=0,0,(lista2!F97+lista3!F97+lista4!F97+lista5!F97)/((lista2!F97<>0)+(lista3!F97<>0)+(lista4!F97<>0)+(lista5!F97<>0))) -> 578.0955457 | F97: 578.0955457 | G97: =G245 -> 6.3 | H97: 3642.001938
B98: tomado de juntas en ladrillos visto rehundidas (al ras es 0,841*D) | C98: m2 | D98: 1 | E98: =IF((lista2!F98+lista3!F98+lista4!F98+lista5!F98)=0,0,(lista2!F98+lista3!F98+lista4!F98+lista5!F98)/((lista2!F98<>0)+(lista3!F98<>0)+(lista4!F98<>0)+(lista5!F98<>0))) -> 97.4435795 | F98: =D98*E98 -> 97.4435795 | H98: =+F98*G98 -> 0
B99: Muros de ladrillo de vidrio 20x20x10 cm | C99: m2 | D99: 1 | E99: =IF((lista2!F99+lista3!F99+lista4!F99+lista5!F99)=0,0,(lista2!F99+lista3!F99+lista4!F99+lista5!F99)/((lista2!F99<>0)+(lista3!F99<>0)+(lista4!F99<>0)+(lista5!F99<>0))) -> 3036.323892 | F99: =D99*E99 -> 3036.323892 | H99: =+F99*G99 -> 0
B100: Tabique de placas de yeso, tipo durlock 12,5 mm esp. | C100: m2 | D100: 1 | E100: =IF((lista2!F100+lista3!F100+lista4!F100+lista5!F100)=0,0,(lista2!F100+lista3!F100+lista4!F100+lista5!F100)/((lista2!F100<>0)+(lista3!F100<>0)+(lista4!F100<>0)+(lista5!F100<>0))) -> 477.1397051 | F100: =D100*E100 -> 477.1397051 | H100: =+F100*G100 -> 0
E101: =IF((lista2!F101+lista3!F101+lista4!F101+lista5!F101)=0,0,(lista2!F101+lista3!F101+lista4!F101+lista5!F101)/((lista2!F101<>0)+(lista3!F101<>0)+(lista4!F101<>0)+(lista5!F101<>0))) -> 0
A102: 8 | B102: Construcción con placas de roca de yeso | C102: Unid. | E102: Precio | G102: Cantid. | H102: Parcial
B103: En todos los casos las terminaciones quedan listas para pintar. Junta tomada con cinta tramada y mansilla
B104: Tabique simple espesor 9,5 cm. Estructura de chapa galvanizada con montantes cada 48 cm. Solera inferior y superior de 70mm. Placa normal 15mm | C104: m2 | D104: =$N$27 -> 1 | E104: =IF((lista2!F104+lista3!F104+lista4!F104+lista5!F104)=0,0,(lista2!F104+lista3!F104+lista4!F104+lista5!F104)/((lista2!F104<>0)+(lista3!F104<>0)+(lista4!F104<>0)+(lista5!F104<>0))) -> 261.303608 | F104: =D104*E104 -> 261.303608 | G104: 0 | H104: =+F104*G104 -> 0
B105: Idem con aislación de lana de vidrio | C105: m2 | D105: 1 | E105: =IF((lista2!F105+lista3!F105+lista4!F105+lista5!F105)=0,0,(lista2!F105+lista3!F105+lista4!F105+lista5!F105)/((lista2!F105<>0)+(lista3!F105<>0)+(lista4!F105<>0)+(lista5!F105<>0))) -> 292.9164811 | F105: 292.9164811 | G105: 0 | H105: 0
B106: Medio tabique espesor total 8,5 cm | C106: m2 | D106: 1 | E106: =IF((lista2!F106+lista3!F106+lista4!F106+lista5!F106)=0,0,(lista2!F106+lista3!F106+lista4!F106+lista5!F106)/((lista2!F106<>0)+(lista3!F106<>0)+(lista4!F106<>0)+(lista5!F106<>0))) -> 237.3176169 | F106: 237.3176169 | G106: 0 | H106: 0
B107: Pared divisoria de unidades funcionales espesor total 12 cm. Doble placa de 15mm en ambas caras. Montantes cada 40cm. Solera 70mm interior y super. | C107: m2 | D107: 1 | E107: =IF((lista2!F107+lista3!F107+lista4!F107+lista5!F107)=0,0,(lista2!F107+lista3!F107+lista4!F107+lista5!F107)/((lista2!F107<>0)+(lista3!F107<>0)+(lista4!F107<>0)+(lista5!F107<>0))) -> 373.0540089 | F107: 373.0540089 | G107: 0 | H107: 0
B108: Cielorraso suspendido, junta tomada con placas de 12,5mm, Estructura soleras y montantes de chapa galvanizada | C108: m2 | D108: 1 | E108: =IF((lista2!F108+lista3!F108+lista4!F108+lista5!F108)=0,0,(lista2!F108+lista3!F108+lista4!F108+lista5!F108)/((lista2!F108<>0)+(lista3!F108<>0)+(lista4!F108<>0)+(lista5!F108<>0))) -> 186.2506682 | F108: 186.2506682 | G108: 0 | H108: 0
B109: Idem con placa verde. | C109: m2 | D109: 1 | E109: =IF((lista2!F109+lista3!F109+lista4!F109+lista5!F109)=0,0,(lista2!F109+lista3!F109+lista4!F109+lista5!F109)/((lista2!F109<>0)+(lista3!F109<>0)+(lista4!F109<>0)+(lista5!F109<>0))) -> 212.4473497 | F109: 212.4473497 | G109: 0 | H109: 0
B110: Cielorraso suspendido desmontable. Estructura con bastidor de aluminio. Placas texturadas 60 x 1,20 | C110: m2 | D110: 1 | E110: =IF((lista2!F110+lista3!F110+lista4!F110+lista5!F110)=0,0,(lista2!F110+lista3!F110+lista4!F110+lista5!F110)/((lista2!F110<>0)+(lista3!F110<>0)+(lista4!F110<>0)+(lista5!F110<>0))) -> 420.583853 | F110: 420.583853 | G110: 0 | H110: 0
E111: =IF((lista2!F111+lista3!F111+lista4!F111+lista5!F111)=0,0,(lista2!F111+lista3!F111+lista4!F111+lista5!F111)/((lista2!F111<>0)+(lista3!F111<>0)+(lista4!F111<>0)+(lista5!F111<>0))) -> 0
A112: 9 | B112: Aislaciones
B113: De sótanos cementicia para cerramientos horizontal y vertical | C113: m2 | D113: =$N$27 -> 1 | E113: =IF((lista2!F113+lista3!F113+lista4!F113+lista5!F113)=0,0,(lista2!F113+lista3!F113+lista4!F113+lista5!F113)/((lista2!F113<>0)+(lista3!F113<>0)+(lista4!F113<>0)+(lista5!F113<>0))) -> 309.9387973 | F113: =D113*E113 -> 309.9387973 | G113: 0 | H113: =+F113*G113 -> 0
B114: Capa aisladora con tabique panderete | C114: m2 | D114: 1 | E114: =IF((lista2!F114+lista3!F114+lista4!F114+lista5!F114)=0,0,(lista2!F114+lista3!F114+lista4!F114+lista5!F114)/((lista2!F114<>0)+(lista3!F114<>0)+(lista4!F114<>0)+(lista5!F114<>0))) -> 392.9227895 | F114: 392.9227895 | G114: 0 | H114: 0
B115: Horizontal espesor 2 cm sobre muro | C115: m2 | D115: 1 | E115: =IF((lista2!F115+lista3!F115+lista4!F115+lista5!F115)=0,0,(lista2!F115+lista3!F115+lista4!F115+lista5!F115)/((lista2!F115<>0)+(lista3!F115<>0)+(lista4!F115<>0)+(lista5!F115<>0))) -> 181.6066493 | F115: 181.6066493 | G115: =P25*AVERAGE(M4:M20)-G122*0.3 -> 14.36947059 | H115: 2609.591405
B116: Film de polietileno bajo plateas o contrapisos | C116: m2 | D116: 1 | E116: =IF((lista2!F116+lista3!F116+lista4!F116+lista5!F116)=0,0,(lista2!F116+lista3!F116+lista4!F116+lista5!F116)/((lista2!F116<>0)+(lista3!F116<>0)+(lista4!F116<>0)+(lista5!F116<>0))) -> 39.46082405 | F116: 39.46082405 | G116: 0 | H116: 0
B117: Horizontal cementicia en contrapiso sobre terreno natural | C117: m2 | D117: 1 | E117: =IF((lista2!F117+lista3!F117+lista4!F117+lista5!F117)=0,0,(lista2!F117+lista3!F117+lista4!F117+lista5!F117)/((lista2!F117<>0)+(lista3!F117<>0)+(lista4!F117<>0)+(lista5!F117<>0))) -> 87.14064068 | F117: 87.14064068 | G117: 0 | H117: 0
B118: Horizontal sobre losa para locales húmedos | C118: m2 | D118: 1 | E118: =IF((lista2!F118+lista3!F118+lista4!F118+lista5!F118)=0,0,(lista2!F118+lista3!F118+lista4!F118+lista5!F118)/((lista2!F118<>0)+(lista3!F118<>0)+(lista4!F118<>0)+(lista5!F118<>0))) -> 117.2771269 | F118: 117.2771269 | G118: 0 | H118: 0
B119: Azotado hidrófugo bajo revestimientos | C119: m2 | D119: 1 | E119: =IF((lista2!F119+lista3!F119+lista4!F119+lista5!F119)=0,0,(lista2!F119+lista3!F119+lista4!F119+lista5!F119)/((lista2!F119<>0)+(lista3!F119<>0)+(lista4!F119<>0)+(lista5!F119<>0))) -> 32.27608018 | F119: 32.27608018 | G119: 0 | H119: 0
B120: Vertical de 1,5 de esp. sobre muros | C120: m2 | D120: 1 | E120: =IF((lista2!F120+lista3!F120+lista4!F120+lista5!F120)=0,0,(lista2!F120+lista3!F120+lista4!F120+lista5!F120)/((lista2!F120<>0)+(lista3!F120<>0)+(lista4!F120<>0)+(lista5!F120<>0))) -> 90.66909676 | F120: 90.66909676 | G120: =8*2.7 -> 21.6 | H120: 1958.45249
B121: Horizontal y vertical cementicia para interior tanques de agua | C121: m2 | D121: 1 | E121: =IF((lista2!F121+lista3!F121+lista4!F121+lista5!F121)=0,0,(lista2!F121+lista3!F121+lista4!F121+lista5!F121)/((lista2!F121<>0)+(lista3!F121<>0)+(lista4!F121<>0)+(lista5!F121<>0))) -> 225.6009577 | F121: 225.6009577 | G121: 0 | H121: 0
B122: inyeccion de líquidos químicos SIKA inertol infiltración, c perf c/15 cm a tres bolillos, rev.,rev fino (220MO+300mat) | C122: ml | D122: 1 | E122: =IF((lista2!F122+lista3!F122+lista4!F122+lista5!F122)=0,0,(lista2!F122+lista3!F122+lista4!F122+lista5!F122)/((lista2!F122<>0)+(lista3!F122<>0)+(lista4!F122<>0)+(lista5!F122<>0))) -> 438.3272319 | F122: 438.3272319 | G122: 22 | H122: 9643.199101
A123: 10 | B123: Cubiertas
B124: No se incluye la losa de hormigón
B125: Planas
B126: Sobre losa con barrera de vapor, contrapiso con pendiente. Carpeta para recibir, y proteger, aislación térmica e hidráulica con membrana con aluminio | C126: m2 | D126: =$N$27 -> 1 | E126: =IF((lista2!F126+lista3!F126+lista4!F126+lista5!F126)=0,0,(lista2!F126+lista3!F126+lista4!F126+lista5!F126)/((lista2!F126<>0)+(lista3!F126<>0)+(lista4!F126<>0)+(lista5!F126<>0))) -> 1028.965857 | F126: =D126*E126 -> 1028.965857 | G126: =W3 -> 104.05 | H126: =+F126*G126 -> 107063.8975
B127: Idem anterior. Cubierta transitable terminación baldosas 20 x 20 para terraza | C127: m2 | D127: =$N$27 -> 1 | E127: =IF((lista2!F127+lista3!F127+lista4!F127+lista5!F127)=0,0,(lista2!F127+lista3!F127+lista4!F127+lista5!F127)/((lista2!F127<>0)+(lista3!F127<>0)+(lista4!F127<>0)+(lista5!F127<>0))) -> 1338.683586 | F127: =D127*E127 -> 1338.683586 | G127: 0 | H127: =+F127*G127 -> 0
E128: =IF((lista2!F128+lista3!F128+lista4!F128+lista5!F128)=0,0,(lista2!F128+lista3!F128+lista4!F128+lista5!F128)/((lista2!F128<>0)+(lista3!F128<>0)+(lista4!F128<>0)+(lista5!F128<>0))) -> 0
B129: Con pendiente
B130: No incluye la pintura. Para las de madera se consideró la aplicación de preservador. No incluye correas
B131: Tejas francesa estructura de madera vista con aislación térmica | C131: m2 | D131: =$N$27 -> 1 | E131: =(lista2!F131+lista3!F131+lista4!F131+lista5!F131)/((IF(lista2!F131>0,(lista2!F131<>0),1)<>0)+(lista3!F131<>0)+(lista4!F131<>0)+(lista5!F131<>0)) -> 454.73902 | F131: =D131*E131 -> 454.73902 | G131: 0 | H131: =+F131*G131 -> 0
B132: Idem, con madera sin cepillar | C132: m2 | D132: 1 | E132: =(lista2!F132+lista3!F132+lista4!F132+lista5!F132)/((IF(lista2!F132>0,(lista2!F132<>0),1)<>0)+(lista3!F132<>0)+(lista4!F132<>0)+(lista5!F132<>0)) -> 440.093196 | F132: 440.093196 | G132: 0 | H132: 0
B133: Chapa ondulada N24 estructura de madera vista. No se considera con aislación térmica | C133: m2 | D133: 1 | E133: =(lista2!F133+lista3!F133+lista4!F133+lista5!F133)/((IF(lista2!F133>0,(lista2!F133<>0),1)<>0)+(lista3!F133<>0)+(lista4!F133<>0)+(lista5!F133<>0)) -> 305.0752784 | F133: 305.0752784 | G133: 0 | H133: 0
B134: Idem, chapa prepintada | C134: m2 | D134: 1 | E134: =(lista2!F134+lista3!F134+lista4!F134+lista5!F134)/((IF(lista2!F134>0,(lista2!F134<>0),1)<>0)+(lista3!F134<>0)+(lista4!F134<>0)+(lista5!F134<>0)) -> 326.0768374 | F134: 326.0768374 | G134: 0 | H134: 0
B135: Chapa ambas caras con aislación térmica | C135: m2 | D135: 1 | E135: =(lista2!F135+lista3!F135+lista4!F135+lista5!F135)/((IF(lista2!F135>0,(lista2!F135<>0),1)<>0)+(lista3!F135<>0)+(lista4!F135<>0)+(lista5!F135<>0)) -> 347.2441982 | F135: 347.2441982 | G135: 0 | H135: 0
B136: Teja colonial madera vista | C136: m2 | D136: 1 | E136: =(lista2!F136+lista3!F136+lista4!F136+lista5!F136)/((IF(lista2!F136>0,(lista2!F136<>0),1)<>0)+(lista3!F136<>0)+(lista4!F136<>0)+(lista5!F136<>0)) -> 476.0721826 | F136: 476.0721826 | G136: 0 | H136: 0
B137: Teja colonial madera sin cepillar | C137: m2 | D137: 1 | E137: =(lista2!F137+lista3!F137+lista4!F137+lista5!F137)/((IF(lista2!F137>0,(lista2!F137<>0),1)<>0)+(lista3!F137<>0)+(lista4!F137<>0)+(lista5!F137<>0)) -> 469.9375167 | F137: 469.9375167 | G137: 0 | H137: 0
B138: Chapa imitación tejas | C138: m2 | D138: 1 | E138: =(lista2!F138+lista3!F138+lista4!F138+lista5!F138)/((IF(lista2!F138>0,(lista2!F138<>0),1)<>0)+(lista3!F138<>0)+(lista4!F138<>0)+(lista5!F138<>0)) -> 470.1033185 | F138: 470.1033185 | G138: 0 | H138: 0
B139: Junta de dilatación membrana asfáltica | C139: m2 | D139: 1 | E139: =(lista2!F139+lista3!F139+lista4!F139+lista5!F139)/((IF(lista2!F139>0,(lista2!F139<>0),1)<>0)+(lista3!F139<>0)+(lista4!F139<>0)+(lista5!F139<>0)) -> 109.5949777 | F139: 109.5949777 | G139: 0 | H139: 0
B140: Tinglado chapa galvanizada sobre vigaa spagueti | C140: m2 | D140: 1 | E140: =(lista2!F140+lista3!F140+lista4!F140+lista5!F140)/((IF(lista2!F140>0,(lista2!F140<>0),1)<>0)+(lista3!F140<>0)+(lista4!F140<>0)+(lista5!F140<>0)) -> 187.9639532 | F140: 187.9639532 | G140: 0 | H140: 0
E141: =(lista2!F141+lista3!F141+lista4!F141+lista5!F141)/((IF(lista2!F141>0,(lista2!F141<>0),1)<>0)+(lista3!F141<>0)+(lista4!F141<>0)+(lista5!F141<>0)) -> 0
A142: 11 | B142: Contrapiso
B143: Hormigón de cascotes armado de espesor 15 cm sobre terreno natural | C143: m2 | D143: =$N$27 -> 1 | E143: =IF((lista2!F143+lista3!F143+lista4!F143+lista5!F143)=0,0,(lista2!F143+lista3!F143+lista4!F143+lista5!F143)/((lista2!F143<>0)+(lista3!F143<>0)+(lista4!F143<>0)+(lista5!F143<>0))) -> 298.5537416 | F143: =D143*E143 -> 298.5537416 | G143: =X9 -> 158.66 | H143: =+F143*G143 -> 47368.53665
B144: Hormigón de cascotes sobre losa espesor 7 cm | C144: m2 | D144: =$N$27 -> 1 | E144: =IF((lista2!F144+lista3!F144+lista4!F144+lista5!F144)=0,0,(lista2!F144+lista3!F144+lista4!F144+lista5!F144)/((lista2!F144<>0)+(lista3!F144<>0)+(lista4!F144<>0)+(lista5!F144<>0))) -> 126.5620267 | F144: =D144*E144 -> 126.5620267 | G144: 0 | H144: =+F144*G144 -> 0
B145: Hormigón de cascotes sobre losa local sanitario espesor 25 cm | C145: m2 | D145: =$N$27 -> 1 | E145: =IF((lista2!F145+lista3!F145+lista4!F145+lista5!F145)=0,0,(lista2!F145+lista3!F145+lista4!F145+lista5!F145)/((lista2!F145<>0)+(lista3!F145<>0)+(lista4!F145<>0)+(lista5!F145<>0))) -> 438.7115145 | F145: =D145*E145 -> 438.7115145 | G145: 0 | H145: =+F145*G145 -> 0
B146: Hormigón de arcilla expandida 10 cm de espesor | C146: m2 | D146: =$N$27 -> 1 | E146: =IF((lista2!F146+lista3!F146+lista4!F146+lista5!F146)=0,0,(lista2!F146+lista3!F146+lista4!F146+lista5!F146)/((lista2!F146<>0)+(lista3!F146<>0)+(lista4!F146<>0)+(lista5!F146<>0))) -> 280.4260802 | F146: =D146*E146 -> 280.4260802 | G146: 0 | H146: =+F146*G146 -> 0
B147: Mortero celular de 7 cm espesor | C147: m2 | D147: =$N$27 -> 1 | E147: =IF((lista2!F147+lista3!F147+lista4!F147+lista5!F147)=0,0,(lista2!F147+lista3!F147+lista4!F147+lista5!F147)/((lista2!F147<>0)+(lista3!F147<>0)+(lista4!F147<>0)+(lista5!F147<>0))) -> 87.21173719 | F147: =D147*E147 -> 87.21173719 | G147: 0 | H147: =+F147*G147 -> 0
E148: =IF((lista2!F148+lista3!F148+lista4!F148+lista5!F148)=0,0,(lista2!F148+lista3!F148+lista4!F148+lista5!F148)/((lista2!F148<>0)+(lista3!F148<>0)+(lista4!F148<>0)+(lista5!F148<>0))) -> 0
A149: 12 | B149: Carpetas
B150: De concreto bajo solado | C150: m2 | D150: =$N$27 -> 1 | E150: =IF((lista2!F150+lista3!F150+lista4!F150+lista5!F150)=0,0,(lista2!F150+lista3!F150+lista4!F150+lista5!F150)/((lista2!F150<>0)+(lista3!F150<>0)+(lista4!F150<>0)+(lista5!F150<>0))) -> 110.7555902 | F150: =D150*E150 -> 110.7555902 | G150: =X9 -> 158.66 | H150: =+F150*G150 -> 17572.48194
B151: Carpeta de mortero celular 2 cm espesor | C151: m2 | D151: =$N$27 -> 1 | E151: =IF((lista2!F151+lista3!F151+lista4!F151+lista5!F151)=0,0,(lista2!F151+lista3!F151+lista4!F151+lista5!F151)/((lista2!F151<>0)+(lista3!F151<>0)+(lista4!F151<>0)+(lista5!F151<>0))) -> 97.38091314 | F151: =D151*E151 -> 97.38091314 | G151: 0 | H151: =+F151*G151 -> 0
B152: Carpeta clavadora para parquet | C152: m2 | D152: =$N$27 -> 1 | E152: =IF((lista2!F152+lista3!F152+lista4!F152+lista5!F152)=0,0,(lista2!F152+lista3!F152+lista4!F152+lista5!F152)/((lista2!F152<>0)+(lista3!F152<>0)+(lista4!F152<>0)+(lista5!F152<>0))) -> 137.9470824 | F152: =D152*E152 -> 137.9470824 | G152: 0 | H152: =+F152*G152 -> 0
E153: =IF((lista2!F153+lista3!F153+lista4!F153+lista5!F153)=0,0,(lista2!F153+lista3!F153+lista4!F153+lista5!F153)/((lista2!F153<>0)+(lista3!F153<>0)+(lista4!F153<>0)+(lista5!F153<>0))) -> 0
A154: 13 | B154: Revoques
B155: No se considera el trabajo de andamio
B156: Grueso y fino a la cal al fieltro | C156: m2 | D156: =$N$27 -> 1 | E156: =IF((lista2!F156+lista3!F156+lista4!F156+lista5!F156)=0,0,(lista2!F156+lista3!F156+lista4!F156+lista5!F156)/((lista2!F156<>0)+(lista3!F156<>0)+(lista4!F156<>0)+(lista5!F156<>0))) -> 149.9566581 | F156: =D156*E156 -> 149.9566581 | G156: =0.7*(R25) -> 342.03624 | H156: =+F156*G156 -> 51290.61151
B157: Grueso a la cal impermeable para exterior completo | C157: m2 | D157: 1 | E157: =IF((lista2!F157+lista3!F157+lista4!F157+lista5!F157)=0,0,(lista2!F157+lista3!F157+lista4!F157+lista5!F157)/((lista2!F157<>0)+(lista3!F157<>0)+(lista4!F157<>0)+(lista5!F157<>0))) -> 277.6627171 | F157: 277.6627171 | G157: =0.3*(R25) -> 146.58696 | H157: 40701.73361
B158: Grueso bajo revestimientos | C158: m2 | D158: 1 | E158: =IF((lista2!F158+lista3!F158+lista4!F158+lista5!F158)=0,0,(lista2!F158+lista3!F158+lista4!F158+lista5!F158)/((lista2!F158<>0)+(lista3!F158<>0)+(lista4!F158<>0)+(lista5!F158<>0))) -> 151.432294 | F158: 151.432294 | G158: 0 | H158: 0
B159: Revoque proyectado exterior con hidrófugo | C159: m2 | D159: 1 | E159: =IF((lista2!F159+lista3!F159+lista4!F159+lista5!F159)=0,0,(lista2!F159+lista3!F159+lista4!F159+lista5!F159)/((lista2!F159<>0)+(lista3!F159<>0)+(lista4!F159<>0)+(lista5!F159<>0))) -> 79.14271715 | F159: 79.14271715 | G159: 0 | H159: 0
B160: Revoque proyectable grueso a la cal para interior | C160: m2 | D160: 1 | E160: =IF((lista2!F160+lista3!F160+lista4!F160+lista5!F160)=0,0,(lista2!F160+lista3!F160+lista4!F160+lista5!F160)/((lista2!F160<>0)+(lista3!F160<>0)+(lista4!F160<>0)+(lista5!F160<>0))) -> 65.76804009 | F160: 65.76804009 | G160: 0 | H160: 0
B161: Revoque proyectable fino a la cal para interior | C161: m2 | D161: 1 | E161: =IF((lista2!F161+lista3!F161+lista4!F161+lista5!F161)=0,0,(lista2!F161+lista3!F161+lista4!F161+lista5!F161)/((lista2!F161<>0)+(lista3!F161<>0)+(lista4!F161<>0)+(lista5!F161<>0))) -> 48.85625835 | F161: 48.85625835 | G161: 0 | H161: 0
B162: Revoque proyectable de yeso para interior, con engrosado | C162: m2 | D162: 1 | E162: =IF((lista2!F162+lista3!F162+lista4!F162+lista5!F162)=0,0,(lista2!F162+lista3!F162+lista4!F162+lista5!F162)/((lista2!F162<>0)+(lista3!F162<>0)+(lista4!F162<>0)+(lista5!F162<>0))) -> 86.32746102 | F162: 86.32746102 | G162: 0 | H162: 0
B163: Salpicado con molinete | C163: m2 | D163: 1 | E163: =IF((lista2!F163+lista3!F163+lista4!F163+lista5!F163)=0,0,(lista2!F163+lista3!F163+lista4!F163+lista5!F163)/((lista2!F163<>0)+(lista3!F163<>0)+(lista4!F163<>0)+(lista5!F163<>0))) -> 75.60561247 | F163: 75.60561247 | G163: 0 | H163: 0
B164: Salpicado con molinete exterior planchado | C164: m2 | D164: 1 | E164: =IF((lista2!F164+lista3!F164+lista4!F164+lista5!F164)=0,0,(lista2!F164+lista3!F164+lista4!F164+lista5!F164)/((lista2!F164<>0)+(lista3!F164<>0)+(lista4!F164<>0)+(lista5!F164<>0))) -> 87.65387528 | F164: 87.65387528 | G164: 0 | H164: 0
B165: Revoque especial super Iggam | C165: ml | D165: 1 | E165: =IF((lista2!F165+lista3!F165+lista4!F165+lista5!F165)=0,0,(lista2!F165+lista3!F165+lista4!F165+lista5!F165)/((lista2!F165<>0)+(lista3!F165<>0)+(lista4!F165<>0)+(lista5!F165<>0))) -> 291.3689978 | F165: 291.3689978 | G165: 0 | H165: 0
B166: Buñas super Iggam | C166: ml | D166: 1 | E166: =IF((lista2!F166+lista3!F166+lista4!F166+lista5!F166)=0,0,(lista2!F166+lista3!F166+lista4!F166+lista5!F166)/((lista2!F166<>0)+(lista3!F166<>0)+(lista4!F166<>0)+(lista5!F166<>0))) -> 72.28957684 | F166: 72.28957684 | G166: 0 | H166: 0
B167: http://www.construircordoba.com/precios-de-tareas/revoques/ | E167: =IF((lista2!F167+lista3!F167+lista4!F167+lista5!F167)=0,0,(lista2!F167+lista3!F167+lista4!F167+lista5!F167)/((lista2!F167<>0)+(lista3!F167<>0)+(lista4!F167<>0)+(lista5!F167<>0))) -> 0
A168: 14 | B168: Revestimientos | C168: Unid. | E168: Precio | G168: Cantid. | H168: Parcial
B169: Incluye la mano de obra completa, adhesivo y tomado de juntas
B170: Cerámico tipo San Lorenzo 20 x 20 | C170: m2 | D170: =$N$27 -> 1 | E170: =IF((lista2!F170+lista3!F170+lista4!F170+lista5!F170)=0,0,(lista2!F170+lista3!F170+lista4!F170+lista5!F170)/((lista2!F170<>0)+(lista3!F170<>0)+(lista4!F170<>0)+(lista5!F170<>0))) -> 235.9912027 | F170: =D170*E170 -> 235.9912027 | G170: 0 | H170: =+F170*G170 -> 0
B171: De venecita | C171: m2 | D171: 1 | E171: =IF((lista2!F171+lista3!F171+lista4!F171+lista5!F171)=0,0,(lista2!F171+lista3!F171+lista4!F171+lista5!F171)/((lista2!F171<>0)+(lista3!F171<>0)+(lista4!F171<>0)+(lista5!F171<>0))) -> 606.0607795 | F171: =D171*E171 -> 606.0607795 | G171: 0 | H171: =+F171*G171 -> 0
B172: Cerámico esmaltado 30 x 30 cm | C172: m2 | D172: 1 | E172: =IF((lista2!F172+lista3!F172+lista4!F172+lista5!F172)=0,0,(lista2!F172+lista3!F172+lista4!F172+lista5!F172)/((lista2!F172<>0)+(lista3!F172<>0)+(lista4!F172<>0)+(lista5!F172<>0))) -> 340.7779287 | F172: =D172*E172 -> 340.7779287 | G172: =(2.3*2+3.45*2)*2.3+(3.2+2.6)*0.6 -> 29.93 | H172: =+F172*G172 -> 10199.48341
B173: Revestimientos secos | D173: 1 | E173: =IF((lista2!F173+lista3!F173+lista4!F173+lista5!F173)=0,0,(lista2!F173+lista3!F173+lista4!F173+lista5!F173)/((lista2!F173<>0)+(lista3!F173<>0)+(lista4!F173<>0)+(lista5!F173<>0))) -> 0
B174: De muros con machiembrado de pino 1/2". Incluye la estructura sobre muro | C174: m2 | D174: 1 | E174: =IF((lista2!F174+lista3!F174+lista4!F174+lista5!F174)=0,0,(lista2!F174+lista3!F174+lista4!F174+lista5!F174)/((lista2!F174<>0)+(lista3!F174<>0)+(lista4!F174<>0)+(lista5!F174<>0))) -> 344.867706 | F174: =D174*E174 -> 344.867706 | G174: 0 | H174: =+F174*G174 -> 0
B175: Cerámica esmaltada 30x30 con guardas | C175: m2 | D175: 1 | E175: =IF((lista2!F175+lista3!F175+lista4!F175+lista5!F175)=0,0,(lista2!F175+lista3!F175+lista4!F175+lista5!F175)/((lista2!F175<>0)+(lista3!F175<>0)+(lista4!F175<>0)+(lista5!F175<>0))) -> 457.6129176 | F175: =D175*E175 -> 457.6129176 | G175: 0 | H175: =+F175*G175 -> 0
B176: Porcellanato 30x30 rústico | C176: m2 | D176: 1 | E176: =IF((lista2!F176+lista3!F176+lista4!F176+lista5!F176)=0,0,(lista2!F176+lista3!F176+lista4!F176+lista5!F176)/((lista2!F176<>0)+(lista3!F176<>0)+(lista4!F176<>0)+(lista5!F176<>0))) -> 383.7758575 | F176: =D176*E176 -> 383.7758575 | G176: 0 | H176: =+F176*G176 -> 0
B177: Tejuelas de ladrillo | C177: m2 | D177: 1 | E177: =IF((lista2!F177+lista3!F177+lista4!F177+lista5!F177)=0,0,(lista2!F177+lista3!F177+lista4!F177+lista5!F177)/((lista2!F177<>0)+(lista3!F177<>0)+(lista4!F177<>0)+(lista5!F177<>0))) -> 345.3098441 | F177: =D177*E177 -> 345.3098441 | G177: 0 | H177: =+F177*G177 -> 0
E178: =IF((lista2!F178+lista3!F178+lista4!F178+lista5!F178)=0,0,(lista2!F178+lista3!F178+lista4!F178+lista5!F178)/((lista2!F178<>0)+(lista3!F178<>0)+(lista4!F178<>0)+(lista5!F178<>0))) -> 0
A179: 15 | B179: Cielorrasos
B180: Aplicado a la cal fina fratasada | C180: m2 | D180: =$N$27 -> 1 | E180: =IF((lista2!F180+lista3!F180+lista4!F180+lista5!F180)=0,0,(lista2!F180+lista3!F180+lista4!F180+lista5!F180)/((lista2!F180<>0)+(lista3!F180<>0)+(lista4!F180<>0)+(lista5!F180<>0))) -> 202.2781737 | F180: =D180*E180 -> 202.2781737 | G180: 0 | H180: =+F180*G180 -> 0
B181: Aplicado grueso y fino a la cal al fieltro | C181: m2 | D181: 1 | E181: =IF((lista2!F181+lista3!F181+lista4!F181+lista5!F181)=0,0,(lista2!F181+lista3!F181+lista4!F181+lista5!F181)/((lista2!F181<>0)+(lista3!F181<>0)+(lista4!F181<>0)+(lista5!F181<>0))) -> 234.3331849 | F181: 234.3331849 | G181: =W9 -> 104.05 | H181: 24382.36788
B182: Suspendido a la cal armado en madera | C182: m2 | D182: 1 | E182: =IF((lista2!F182+lista3!F182+lista4!F182+lista5!F182)=0,0,(lista2!F182+lista3!F182+lista4!F182+lista5!F182)/((lista2!F182<>0)+(lista3!F182<>0)+(lista4!F182<>0)+(lista5!F182<>0))) -> 592.6861024 | F182: 592.6861024 | G182: 0 | H182: 0
B183: Suspendido a la cal armado en hierro | C183: m2 | D183: 1 | E183: =IF((lista2!F183+lista3!F183+lista4!F183+lista5!F183)=0,0,(lista2!F183+lista3!F183+lista4!F183+lista5!F183)/((lista2!F183<>0)+(lista3!F183<>0)+(lista4!F183<>0)+(lista5!F183<>0))) -> 690.5091537 | F183: 690.5091537 | G183: 0 | H183: 0
B184: Taparrollo armado a la cal | C184: ml | D184: 1 | E184: =IF((lista2!F184+lista3!F184+lista4!F184+lista5!F184)=0,0,(lista2!F184+lista3!F184+lista4!F184+lista5!F184)/((lista2!F184<>0)+(lista3!F184<>0)+(lista4!F184<>0)+(lista5!F184<>0))) -> 429.9792873 | F184: 429.9792873 | G184: 0 | H184: 0
B185: Suspendido termoacústico | C185: m2 | D185: 1 | E185: =IF((lista2!F185+lista3!F185+lista4!F185+lista5!F185)=0,0,(lista2!F185+lista3!F185+lista4!F185+lista5!F185)/((lista2!F185<>0)+(lista3!F185<>0)+(lista4!F185<>0)+(lista5!F185<>0))) -> 458.9393318 | F185: 458.9393318 | G185: 0 | H185: 0
B186: Suspendido con dorso de aluminio | C186: m2 | D186: 1 | E186: =IF((lista2!F186+lista3!F186+lista4!F186+lista5!F186)=0,0,(lista2!F186+lista3!F186+lista4!F186+lista5!F186)/((lista2!F186<>0)+(lista3!F186<>0)+(lista4!F186<>0)+(lista5!F186<>0))) -> 506.5797105 | F186: 506.5797105 | G186: 0 | H186: 0
B187: Paneles de aluminio microperforado | C187: m2 | D187: 1 | E187: =IF((lista2!F187+lista3!F187+lista4!F187+lista5!F187)=0,0,(lista2!F187+lista3!F187+lista4!F187+lista5!F187)/((lista2!F187<>0)+(lista3!F187<>0)+(lista4!F187<>0)+(lista5!F187<>0))) -> 410.9673497 | F187: 410.9673497 | G187: 0 | H187: 0
E188: =IF((lista2!F188+lista3!F188+lista4!F188+lista5!F188)=0,0,(lista2!F188+lista3!F188+lista4!F188+lista5!F188)/((lista2!F188<>0)+(lista3!F188<>0)+(lista4!F188<>0)+(lista5!F188<>0))) -> 0
A189: 16 | B189: Yeseria
B190: Enlucido de yeso | C190: m2 | D190: =$N$27 -> 1 | E190: =IF((lista2!F190+lista3!F190+lista4!F190+lista5!F190)=0,0,(lista2!F190+lista3!F190+lista4!F190+lista5!F190)/((lista2!F190<>0)+(lista3!F190<>0)+(lista4!F190<>0)+(lista5!F190<>0))) -> 161.1593318 | F190: =D190*E190 -> 161.1593318 | G190: 0 | H190: =+F190*G190 -> 0
B191: Enlucido de yeso reforzado con cemento | C191: m2 | D191: 1 | E191: =IF((lista2!F191+lista3!F191+lista4!F191+lista5!F191)=0,0,(lista2!F191+lista3!F191+lista4!F191+lista5!F191)/((lista2!F191<>0)+(lista3!F191<>0)+(lista4!F191<>0)+(lista5!F191<>0))) -> 173.8708018 | F191: 173.8708018 | G191: 0 | H191: 0
B192: Enlucido de yeso y engrosado con yeso gris | C192: m2 | D192: 1 | E192: =IF((lista2!F192+lista3!F192+lista4!F192+lista5!F192)=0,0,(lista2!F192+lista3!F192+lista4!F192+lista5!F192)/((lista2!F192<>0)+(lista3!F192<>0)+(lista4!F192<>0)+(lista5!F192<>0))) -> 227.4800445 | F192: 227.4800445 | G192: 0 | H192: 0
B193: Guardacanto de yesero. Incluye el recubrimiento de yeso | C193: ml | D193: 1 | E193: =IF((lista2!F193+lista3!F193+lista4!F193+lista5!F193)=0,0,(lista2!F193+lista3!F193+lista4!F193+lista5!F193)/((lista2!F193<>0)+(lista3!F193<>0)+(lista4!F193<>0)+(lista5!F193<>0))) -> 116.8349889 | F193: 116.8349889 | G193: 0 | H193: 0
B194: Fajas sobre revestimiento | C194: ml | D194: 1 | E194: =IF((lista2!F194+lista3!F194+lista4!F194+lista5!F194)=0,0,(lista2!F194+lista3!F194+lista4!F194+lista5!F194)/((lista2!F194<>0)+(lista3!F194<>0)+(lista4!F194<>0)+(lista5!F194<>0))) -> 261.6352116 | F194: 261.6352116 | G194: 0 | H194: 0
B195: Agujeros circulares hasta 40 cm de diámetro | C195: u | D195: 1 | E195: =IF((lista2!F195+lista3!F195+lista4!F195+lista5!F195)=0,0,(lista2!F195+lista3!F195+lista4!F195+lista5!F195)/((lista2!F195<>0)+(lista3!F195<>0)+(lista4!F195<>0)+(lista5!F195<>0))) -> 84.55890869 | F195: 84.55890869 | G195: 0 | H195: 0
B196: Cielorraso aplicado al yeso | C196: m2 | D196: 1 | E196: =IF((lista2!F196+lista3!F196+lista4!F196+lista5!F196)=0,0,(lista2!F196+lista3!F196+lista4!F196+lista5!F196)/((lista2!F196<>0)+(lista3!F196<>0)+(lista4!F196<>0)+(lista5!F196<>0))) -> 154.4167261 | F196: 154.4167261 | G196: 0 | H196: 0
B197: Cielorraso de yeso armado estructura de madera | C197: m2 | D197: 1 | E197: =IF((lista2!F197+lista3!F197+lista4!F197+lista5!F197)=0,0,(lista2!F197+lista3!F197+lista4!F197+lista5!F197)/((lista2!F197<>0)+(lista3!F197<>0)+(lista4!F197<>0)+(lista5!F197<>0))) -> 397.9242762 | F197: 397.9242762 | G197: 0 | H197: 0
B198: Cielorraso de yeso armado estructura de hierro | C198: m2 | D198: 1 | E198: =IF((lista2!F198+lista3!F198+lista4!F198+lista5!F198)=0,0,(lista2!F198+lista3!F198+lista4!F198+lista5!F198)/((lista2!F198<>0)+(lista3!F198<>0)+(lista4!F198<>0)+(lista5!F198<>0))) -> 500.1687082 | F198: 500.1687082 | G198: 0 | H198: 0
B199: Taparrollo de yeso armado | C199: ml | D199: 1 | E199: =IF((lista2!F199+lista3!F199+lista4!F199+lista5!F199)=0,0,(lista2!F199+lista3!F199+lista4!F199+lista5!F199)/((lista2!F199<>0)+(lista3!F199<>0)+(lista4!F199<>0)+(lista5!F199<>0))) -> 386.7602895 | F199: 386.7602895 | G199: 0 | H199: 0
E200: =IF((lista2!F200+lista3!F200+lista4!F200+lista5!F200)=0,0,(lista2!F200+lista3!F200+lista4!F200+lista5!F200)/((lista2!F200<>0)+(lista3!F200<>0)+(lista4!F200<>0)+(lista5!F200<>0))) -> 0
A201: 17 | B201: Solados | C201: Unid. | E201: Precio | G201: Cantid. | H201: Parcial
... 157 more rows

Sheet lista2
A1: =lista1!A1 -> nro | B1: =lista1!B1 -> rubros o items | C1: =lista1!C1 -> Unid. | E1: $vjo | F1: $nvo | G1: =lista1!G1 -> Cantid. | H1: Parc.
A2: =lista1!A2 -> 0 | B2: revista Rubro (mayo 2012) | C2: ¿quiere usar estos precios? | G2: si | I2: =MAX((I3:I4=G2)*(J3:J4)) -> 1
A3: =lista1!A3 -> 1 | B3: =lista1!B3 -> Trabajos preliminares | C3: =lista1!C3 -> 0 | G3: =lista1!G3 -> 0 | I3: si | J3: 1
A4: =lista1!A4 -> 0 | B4: =lista1!B4 -> Limpieza y nivelación del terreno | C4: =lista1!C4 -> m2 | D4: =$N$27 -> 1.763681592 | E4: 32 | F4: =D4*E4 -> 56.43781095 | G4: =lista1!G4 -> 162.5 | H4: =+F4*G4 -> 9171.144279 | I4: no | J4: 0
A5: =lista1!A5 -> 0 | B5: =lista1!B5 -> Obrador, depósito y sanitarios | C5: =lista1!C5 -> m2 | D5: =$N$27 -> 1.763681592 | F5: =D5*E5 -> 0 | G5: =lista1!G5 -> 13 | H5: =+F5*G5 -> 0
A6: =lista1!A6 -> 0 | B6: =lista1!B6 -> desmonte en terreno comun (si en terr. C. roca disgregable con barreta se debera mult. Prec. X 2,3) | C6: =lista1!C6 -> m3 | G6: =lista1!G6 -> 0
A7: =lista1!A7 -> 2 | B7: =lista1!B7 -> Procedimientos y cumplimientos | C7: =lista1!C7 -> 0 | G7: =lista1!G7 -> 0
A8: =lista1!A8 -> 0 | B8: =lista1!B8 -> Replanteo | C8: =lista1!C8 -> m2 | D8: =$N$27 -> 1.763681592 | E8: 17.85 | F8: =D8*E8 -> 31.48171642 | G8: =lista1!G8 -> 104.05 | H8: =+F8*G8 -> 3275.672593
A9: =lista1!A9 -> 0 | B9: =lista1!B9 -> Cartel de obra | C9: =lista1!C9 -> m2 | D9: =$N$27 -> 1.763681592 | F9: =D9*E9 -> 0 | G9: =lista1!G9 -> 0 | H9: =+F9*G9 -> 0
A10: =lista1!A10 -> 0 | B10: =lista1!B10 -> Cerco de obra | C10: =lista1!C10 -> ml | D10: =$N$27 -> 1.763681592 | F10: =D10*E10 -> 0 | G10: =lista1!G10 -> 0 | H10: =+F10*G10 -> 0
A11: =lista1!A11 -> 0 | B11: =lista1!B11 -> Defensa de protección para trabajo en obra | C11: =lista1!C11 -> ml | D11: =$N$27 -> 1.763681592 | F11: =D11*E11 -> 0 | G11: =lista1!G11 -> 0 | H11: =+F11*G11 -> 0
A12: =lista1!A12 -> 0 | B12: =lista1!B12 -> 0 | C12: =lista1!C12 -> 0 | G12: =lista1!G12 -> 0
A13: =lista1!A13 -> 3 | B13: =lista1!B13 -> Demoliciones | C13: =lista1!C13 -> 0 | G13: =lista1!G13 -> 0
A14: =lista1!A14 -> 0 | B14: =lista1!B14 -> En los siguientes items, se incluye el retiro de los escombros de la obra hasta coloc.dentro del contenedor | C14: =lista1!C14 -> 0 | G14: =lista1!G14 -> 0
A15: =lista1!A15 -> 0 | B15: =lista1!B15 -> De estructura de hormigón, losas de HºAº, dados, camaras de HºAº (incluye cargarlo) | C15: =lista1!C15 -> m3 | D15: =$N$27 -> 1.763681592 | F15: =D15*E15 -> 0 | G15: =lista1!G15 -> 0 | H15: =+F15*G15 -> 0
A16: =lista1!A16 -> 0 | B16: =lista1!B16 -> De mamposteria (todos los items incluyen cargar escombros a un contenedor cercano, refiere a planta baja) | C16: =lista1!C16 -> m3 | D16: 1.763681592 | F16: =D16*E16 -> 0 | G16: =lista1!G16 -> 0 | H16: =+F16*G16 -> 0
A17: =lista1!A17 -> 0 | B17: =lista1!B17 -> De pisos | C17: =lista1!C17 -> m2 | D17: 1.763681592 | F17: 0 | G17: =lista1!G17 -> 0 | H17: 0
A18: =lista1!A18 -> 0 | B18: =lista1!B18 -> De contrapisos | C18: =lista1!C18 -> m2 | D18: 1.763681592 | F18: 0 | G18: =lista1!G18 -> 0 | H18: 0
A19: =lista1!A19 -> 0 | B19: =lista1!B19 -> Picado de revoques, cielorrasos suspendidos ó demolcic. de cubiert d tejas coloniales (sin recuper. de tejas) | C19: =lista1!C19 -> m2 | D19: 1.763681592 | F19: 0 | G19: =lista1!G19 -> 0 | H19: 0
A20: =lista1!A20 -> 0 | B20: =lista1!B20 -> Picado de revestimientos | C20: =lista1!C20 -> m2 | D20: 1.763681592 | F20: 0 | G20: =lista1!G20 -> 0 | H20: 0
A21: =lista1!A21 -> 0 | B21: =lista1!B21 -> De estructura de madera con tejas francesa (o colonial) | C21: =lista1!C21 -> m2 | D21: 1.763681592 | F21: 0 | G21: =lista1!G21 -> 0 | H21: 0
A22: =lista1!A22 -> 0 | B22: =lista1!B22 -> Demolición de obra completa | C22: =lista1!C22 -> m2 | D22: 1.763681592 | F22: 0 | G22: =lista1!G22 -> 28 | H22: 0
A23: =lista1!A23 -> 0 | B23: =lista1!B23 -> Contenedor/Volquete, alquiler | C23: =lista1!C23 -> u | D23: 1.763681592 | F23: 0 | G23: =lista1!G23 -> 16 | H23: 0
A24: =lista1!A24 -> 0 | B24: =lista1!B24 -> Cargar Contenedor/Volquete | C24: =lista1!C24 -> u | D24: 1.763681592 | F24: 0 | G24: =lista1!G24 -> 16 | H24: 0
A25: =lista1!A25 -> 4 | B25: =lista1!B25 -> Movimientos de tierra | C25: =lista1!C25 -> 0 | G25: =lista1!G25 -> 0
A26: =lista1!A26 -> 0 | B26: =lista1!B26 -> Excavación manual p cimientos y bases column terreno común (si tosca mult.al prec.x 1,214 y x1,714 si es roca digregable) | C26: =lista1!C26 -> m3 | D26: =$N$27 -> 1.763681592 | F26: =D26*E26 -> 0 | G26: =lista1!G26 -> 6.001526718 | H26: =+F26*G26 -> 0
A27: =lista1!A27 -> 0 | B27: =lista1!B27 -> Excavación manual de vigas de fundación hasta 1,20 m de prof. | C27: =lista1!C27 -> m3 | D27: 1.763681592 | E27: 87.95 | F27: 155.115796 | G27: =lista1!G27 -> 9.90225 | H27: 1535.995391 | L27: mult | N27: =I2*T28/T31 -> 1.763681592 | T27: US$prom
A28: =lista1!A28 -> 0 | B28: =lista1!B28 -> Excavación de pozos para pilotín (diám. 23 cm - prof. 1,6 m) | C28: =lista1!C28 -> u | D28: 1.763681592 | F28: 0 | G28: =lista1!G28 -> 24 | H28: 0 | J28: #1precio dólar oficial vta | P28: =lista1!P28 -> 9.335 | Q28: =lista1!Q28 -> $AR | R28: =lista1!R28:S28 -> 2015-11-12 | T28: =AVERAGE(P28:P29) -> 12.4075
A29: =lista1!A29 -> 0 | B29: =lista1!B29 -> Excavación p/ cisternas, cámaras sépt.,de inspec., sótanos a mano terr. Comun hast4m (tosca x1,351 y si fuese roc disgr x 1,89) | C29: =lista1!C29 -> m3 | D29: 1.763681592 | F29: 0 | G29: =lista1!G29 -> 12.076 | H29: 0 | J29: #2precio dólar blue vta | P29: =lista1!P29 -> 15.48 | Q29: =lista1!Q29 -> $AR | R29: =lista1!R29:S29 -> 2015-11-12
A30: =lista1!A30 -> 0 | B30: =lista1!B30 -> Excavación p/ pozo absorbt o Romano, a mano terr. Comun hast10mprof.(tosca x1,364 y si fuese roc disgr x 1,909) | C30: =lista1!C30 -> m3
A31: =lista1!A31 -> 0 | B31: =lista1!B31 -> Destape del terreno hasta 20/30 cm de profundidad con pala frontal o Excavación de sótanos a maquina | C31: =lista1!C31 -> m3 | D31: 1.763681592 | E31: 87.95 | F31: 155.115796 | G31: =lista1!G31 -> 0 | H31: 0 | J31: #1rev. Rubro dólar oficial vta | P31: 5.29 | Q31: $AR | R31: 2012-04-01 | T31: =AVERAGE(P31:P32) -> 7.035
A32: =lista1!A32 -> 0 | B32: =lista1!B32 -> Carga y retiro de tierra con camión | C32: =lista1!C32 -> m3 | D32: 1.763681592 | F32: 0 | G32: =lista1!G32 -> 0 | H32: 0 | J32: #2Rev.Rubro dólar blu vta | P32: 8.78 | Q32: $AR | R32: 2012-04-01 | S32: multip | T32: =T28/T31 -> 1.763681592
A33: =lista1!A33 -> 0 | B33: =lista1!B33 -> terraplenamiento | C33: =lista1!C33 -> m3 | E33: 156 | G33: =lista1!G33 -> 0 | J33: http://www.ambito.com/economia/mercados/monedas/dolar/
A34: =lista1!A34 -> 5 | B34: =lista1!B34 -> Estructuras de hormigón armado | C34: =lista1!C34 -> Unid. | F34: Prec. | G34: =lista1!G34 -> Cant. | H34: Parcial | J34: http://www.ambito.com/economia/mercados/monedas/dolar/info/?ric=ARSB=&desde=15/12/2014&hasta=15/01/2015
A35: =lista1!A35 -> 0 | B35: =lista1!B35 -> Incluye el material, mano de obra, armado y desarme de encofrados de madera tradicionales y equipos | E35: vjo | F35: nvo
A36: =lista1!A36 -> 0 | B36: =lista1!B36 -> hormigon sin armar para relleno de cimientos | C36: =lista1!C36 -> m3 | D36: =$N$27 -> 1.763681592 | F36: =D36*E36 -> 0 | G36: =lista1!G36 -> 0 | H36: =+F36*G36 -> 0
A37: =lista1!A37 -> 0 | B37: =lista1!B37 -> Bases céntricas cuantía 60 kg, HºAº p/ cabezal de pozos romanos (p/fuste pz rom dividir precio en 1,124) | C37: =lista1!C37 -> m3 | D37: =$N$27 -> 1.763681592 | F37: =D37*E37 -> 0 | G37: =lista1!G37 -> 6.001526718 | H37: =+F37*G37 -> 0
A38: =lista1!A38 -> 0 | B38: =lista1!B38 -> Vigas de fundación 60 kg/m3, arriostramiento y de equilibrio | C38: =lista1!C38 -> m3 | D38: =$N$27 -> 1.763681592 | F38: =D38*E38 -> 0 | G38: =lista1!G38 -> 9.90225 | H38: =+F38*G38 -> 0
A39: =lista1!A39 -> 0 | B39: =lista1!B39 -> Pilotín diametro 23 cm / profundidad 1,6 m | C39: =lista1!C39 -> ml | D39: 1.763681592 | F39: 0 | G39: =lista1!G39 -> 38.4 | H39: 0
A40: =lista1!A40 -> 0 | B40: =lista1!B40 -> Platea de fundación 35 kg/m3 de hierro o quiza con un poco mas de kg de cuantía, (bases de cañerías div./1,345). | C40: =lista1!C40 -> m3 | D40: 1.763681592 | E40: 1077.3 | F40: 1900.014179 | G40: =lista1!G40 -> 0 | H40: 0
A41: =lista1!A41 -> 0 | B41: =lista1!B41 -> Zapatas para tabique de hormigón para submuración 80 kg hierro, bases de columna y zapatas de columna | C41: =lista1!C41 -> m3 | D41: 1.763681592 | F41: 0 | G41: =lista1!G41 -> 0 | H41: 0
A42: =lista1!A42 -> 0 | B42: =lista1!B42 -> Zapatas para muro de Mamposteria 30 cm de ladrillo común cuantía 35kg de hierro/m3 | C42: =lista1!C42 -> m3 | D42: 1.763681592 | F42: 0 | G42: =lista1!G42 -> 0 | H42: 0
A43: =lista1!A43 -> 0 | B43: =lista1!B43 -> Tabiques de sótanos una cara vista 80 kg de hierro/m3 | C43: =lista1!C43 -> m3 | D43: 1.763681592 | F43: 0 | G43: =lista1!G43 -> 0 | H43: 0
A44: =lista1!A44 -> 0 | B44: =lista1!B44 -> Losas espesor 10 cm | C44: =lista1!C44 -> m3 | D44: 1.763681592 | E44: 450 | F44: 793.6567164 | G44: =lista1!G44 -> 0 | H44: 0
A45: =lista1!A45 -> 0 | B45: =lista1!B45 -> Losas de hormigón a la vista con encofrado fenólico | C45: =lista1!C45 -> m3 | D45: 1.763681592 | F45: 0 | G45: =lista1!G45 -> 0 | H45: 0
A46: =lista1!A46 -> 0 | B46: =lista1!B46 -> Losas casetonada 70 kg/m3 de hierro (es precio mínimo.. p/ prec max mult. X 1,216) | C46: =lista1!C46 -> m3 | D46: 1.763681592 | F46: 0 | G46: =lista1!G46 -> 0 | H46: 0
A47: =lista1!A47 -> 0 | B47: =lista1!B47 -> Losa nervurada Aº en un sentid. bloqH 14*19*39 (o x 1,162 sii es Aºda en 2 sentid c bloq poliest exp. De 40*40*25) | C47: =lista1!C47 -> m2 | D47: 1.763681592 | F47: 0 | G47: =lista1!G47 -> 0 | H47: 0
A48: =lista1!A48 -> 0 | B48: =lista1!B48 -> Losa hueca pretensada 12 cm de espesor con tomado de juntas | C48: =lista1!C48 -> m2 | D48: 1.763681592 | F48: 0 | G48: =lista1!G48 -> 0 | H48: 0
A49: =lista1!A49 -> 0 | B49: =lista1!B49 -> Losa viguetas pretensadas de hormigón y ladrillos cerámicos espesor 17cm con capa de compresión. | C49: =lista1!C49 -> m2 | D49: 1.763681592 | F49: 0 | G49: =lista1!G49 -> 104.05 | H49: 0
A50: =lista1!A50 -> 0 | B50: =lista1!B50 -> columnas estructurales de aprox. 30x30 (Si son a la vista al precio mult. X 1,08) | C50: =lista1!C50 -> m3 | D50: 1.763681592 | E50: 1914.2 | F50: 3376.039303 | G50: =lista1!G50 -> 0.324 | H50: 1093.836734
A51: =lista1!A51 -> 0 | B51: =lista1!B51 -> Encadenado verticales, horizontales, dinteles, dadosdapoyo, llaves,banquinas 7cm esp. de HºAº | C51: =lista1!C51 -> m3 | D51: 1.763681592 | E51: 1896.3 | F51: 3344.469403 | G51: =lista1!G51 -> 5.293920809 | H51: 17705.35617
A52: =lista1!A52 -> 0 | B52: =lista1!B52 -> Vigas cuantía 180 kg/m3, vigas aprox. De 20x40 (Si son a la vista al precio mult. X 1,08) | C52: =lista1!C52 -> m3 | D52: 1.763681592 | F52: 0 | G52: =lista1!G52 -> 0.24 | H52: 0
A53: =lista1!A53 -> 0 | B53: =lista1!B53 -> Tabiques vistos cuantía 80 kg | C53: =lista1!C53 -> m3 | D53: 1.763681592 | F53: 0 | G53: =lista1!G53 -> 0 | H53: 0
A54: =lista1!A54 -> 0 | B54: =lista1!B54 -> Tabiques cuantía 80 kg/m3 | C54: =lista1!C54 -> m3 | D54: 1.763681592 | F54: 0 | G54: =lista1!G54 -> 0 | H54: 0
A55: =lista1!A55 -> 0 | B55: =lista1!B55 -> Escaleras cuantía 75 kg/m3 (sii es HºAº p/LOSAS macizas de escaleras a este prec. Dividir por 1,887) | C55: =lista1!C55 -> m3 | D55: 1.763681592 | F55: 0 | G55: =lista1!G55 -> 0 | H55: 0
A56: =lista1!A56 -> 0 | B56: =lista1!B56 -> Tanque de bombeo cuantía 105 kg/m3 | C56: =lista1!C56 -> m3 | D56: 1.763681592 | F56: 0 | G56: =lista1!G56 -> 0 | H56: 0
A57: =lista1!A57 -> 0 | B57: =lista1!B57 -> Tanque de reserva cuantía 105 kg/m3 y cisternas de HAº | C57: =lista1!C57 -> m3 | D57: 1.763681592 | F57: 0 | G57: =lista1!G57 -> 0.299 | H57: 0
A58: =lista1!A58 -> 0 | B58: =lista1!B58 -> Junta de PVC para hormigón | C58: =lista1!C58 -> ml | D58: =$N$27 -> 1.763681592 | E58: =([1]noimpr2!E56+'[1]no impr3'!E56+'[1]no impr4'!E56+[1]noimpr5!E56)/(([1]noimpr2!E56<>0)+('[1]no impr3'!E56<>0)+('[1]no impr4'!E56<>0)+([1]noimpr5!E56<>0)) -> 160.1 | F58: =D58*E58 -> 282.3654229 | G58: =lista1!G58 -> 0 | H58: =+F58*G58 -> 0
A59: =lista1!A59 -> 0 | B59: =lista1!B59 -> Barrera de vapor (dos manos de pintura asfáltica + 10% nafta) | C59: =lista1!C59 -> m2 | D59: 1.763681592 | E59: 25.7 | F59: =D59*E59 -> 45.32661692 | G59: =lista1!G59 -> 104.05 | H59: =+F59*G59 -> 4716.23449
A60: =lista1!A60 -> 6 | B60: =lista1!B60 -> Estructuras metálicas | C60: =lista1!C60 -> 0 | G60: =lista1!G60 -> 0
A61: =lista1!A61 -> 0 | B61: =lista1!B61 -> En el caso de cubiertas no se consideran los cerramientos laterales ni superiores. Para los entrepisos no se incluye el solado. En ambos, tampoco la pintura. El armado es en taller. Incluye el montaje en obra y no se considera el flete
A62: =lista1!A62 -> 0 | B62: =lista1!B62 -> Estructuras metálicas de perfiles normales | C62: =lista1!C62 -> kg | D62: =$N$27 -> 1.763681592 | F62: =D62*E62 -> 0 | G62: =lista1!G62 -> 0 | H62: =+F62*G62 -> 0
A63: =lista1!A63 -> 0 | B63: =lista1!B63 -> Estructuras metálicas de perfiles ángulos | C63: =lista1!C63 -> kg | D63: =$N$27 -> 1.763681592 | F63: =D63*E63 -> 0 | G63: =lista1!G63 -> 0 | H63: =+F63*G63 -> 0
A64: =lista1!A64 -> 0 | B64: =lista1!B64 -> Estructuras metálicas de hierro redondo | C64: =lista1!C64 -> kg | D64: =$N$27 -> 1.763681592 | F64: =D64*E64 -> 0 | G64: =lista1!G64 -> 0 | H64: =+F64*G64 -> 0
A65: =lista1!A65 -> 0 | B65: =lista1!B65 -> 0 | C65: =lista1!C65 -> 0 | G65: =lista1!G65 -> 0 | H65: =+F65*G65 -> 0
A66: =lista1!A66 -> 0 | B66: =lista1!B66 -> 0 | C66: =lista1!C66 -> 0 | G66: =lista1!G66 -> 0 | H66: =+F66*G66 -> 0
A67: =lista1!A67 -> 0 | B67: =lista1!B67 -> 0 | C67: =lista1!C67 -> 0 | G67: =lista1!G67 -> 0
A68: =lista1!A68 -> 7 | B68: =lista1!B68 -> Mampostería | C68: =lista1!C68 -> Unid. | E68: Precio | G68: =lista1!G68 -> Cantid. | H68: Parcial
A69: =lista1!A69 -> 0 | B69: =lista1!B69 -> Bloques de hormigón estandar 19 x 19 x 39 ; idem cribada = D x 0,9365 | C69: =lista1!C69 -> m2 | D69: =$N$27 -> 1.763681592 | F69: =D69*E69 -> 0 | G69: =lista1!G69 -> 0 | H69: =+F69*G69 -> 0
A70: =lista1!A70 -> 0 | B70: =lista1!B70 -> Bloques de hormigón estandar 9,2 x 19 x 39 ; ladrillos comunes de pandere 30 ud/m2 = corregir D x 0,88 | C70: =lista1!C70 -> m2 | D70: =$N$27 -> 1.763681592 | F70: =D70*E70 -> 0 | G70: =lista1!G70 -> 0 | H70: =+F70*G70 -> 0
A71: =lista1!A71 -> 0 | B71: =lista1!B71 -> Junta de dilatación bloque ""u""de hormigón | C71: =lista1!C71 -> ml | D71: 1.763681592 | F71: 0 | G71: =lista1!G71 -> 0 | H71: 0
A72: =lista1!A72 -> 0 | B72: =lista1!B72 -> Encadenado pared bloques de hormigón | C72: =lista1!C72 -> ml | D72: 1.763681592 | F72: 0 | G72: =lista1!G72 -> 0 | H72: 0
A73: =lista1!A73 -> 0 | B73: =lista1!B73 -> Ladrillos comunes elevación espesor 30 cm (si es de cimiento =D/1,03) si es p/ 1er piso =D*1,08 | C73: =lista1!C73 -> m3 | D73: 1.763681592 | F73: 0 | G73: =lista1!G73 -> 0 | H73: 0
A74: =lista1!A74 -> 0 | B74: =lista1!B74 -> Ladrillos de máquina para vista espesor 30 cm sin tomado de juntas (con tomado junt =D x 1,094) | C74: =lista1!C74 -> m3 | D74: 1.763681592 | F74: 0 | G74: =lista1!G74 -> 0 | H74: 0
A75: =lista1!A75 -> 0 | B75: =lista1!B75 -> Ladrillo común en elevación espesor 15 cm (si es de cimiento =D/1,03) si es p/ 1er piso =D*1,08 , cribadas | C75: =lista1!C75 -> m3 | D75: 1.763681592 | F75: 0 | G75: =lista1!G75 -> 0 | H75: 0
A76: =lista1!A76 -> 0 | B76: =lista1!B76 -> Ladrillo de máquina para vista espesor 15 cm con tomado de junta | C76: =lista1!C76 -> m3 | D76: 1.763681592 | F76: 0 | G76: =lista1!G76 -> 0 | H76: 0
A77: =lista1!A77 -> 0 | B77: =lista1!B77 -> Refuerzos horizontales o encadenado para mampostería (vigas o dintel) en ladrillo común | C77: =lista1!C77 -> ml | D77: 1.763681592 | F77: 0 | G77: =lista1!G77 -> 0 | H77: 0
A78: =lista1!A78 -> 0 | B78: =lista1!B78 -> Ladrillo cerámico hueco de 8 x 18 x 33 pared de 8 cm de espesor | C78: =lista1!C78 -> m2 | D78: 1.763681592 | F78: 0 | G78: =lista1!G78 -> 0 | H78: 0
A79: =lista1!A79 -> 0 | B79: =lista1!B79 -> Ladrillo cerámico hueco de 12 x 18 x 33 pared de 12 cm de espesor | C79: =lista1!C79 -> m2 | D79: 1.763681592 | F79: 0 | G79: =lista1!G79 -> 0 | H79: 0
A80: =lista1!A80 -> 0 | B80: =lista1!B80 -> Ladrillo cerámico hueco de 18 x 18 x 33 pared de 18 cm de espesor | C80: =lista1!C80 -> m2 | D80: 1.763681592 | F80: 0 | G80: =lista1!G80 -> 0 | H80: 0
A81: =lista1!A81 -> 0 | B81: =lista1!B81 -> Ladrillo cerámico portante de 13 x 19 x 33 | C81: =lista1!C81 -> m2 | D81: 1.763681592 | F81: 0 | G81: =lista1!G81 -> 360.4326 | H81: 0
A82: =lista1!A82 -> 0 | B82: =lista1!B82 -> Ladrillo cerámico portante de 18 x 19 x 33 | C82: =lista1!C82 -> m2 | D82: 1.763681592 | F82: 0 | G82: =lista1!G82 -> 0 | H82: 0
A83: =lista1!A83 -> 0 | B83: =lista1!B83 -> Viga de encadenado superior con peine cerámico, armadura y hormigonado | C83: =lista1!C83 -> ml | D83: 1.763681592 | F83: 0 | G83: =lista1!G83 -> 0 | H83: 0
A84: =lista1!A84 -> 0 | B84: =lista1!B84 -> Columna con bloque cerámico armadura y hormigón | C84: =lista1!C84 -> ml | D84: 1.763681592 | F84: 0 | G84: =lista1!G84 -> 0 | H84: 0
A85: =lista1!A85 -> 0 | B85: =lista1!B85 -> Muro portante en elevación de HCCA tipo Retak | C85: =lista1!C85 -> m3 | D85: 1.763681592 | F85: 0 | G85: =lista1!G85 -> 0 | H85: 0
A86: =lista1!A86 -> 0 | B86: =lista1!B86 -> Colocación de carpinterías (incluye amurado, marcos y premarcos) | C86: =lista1!C86 -> m2 | D86: 1.763681592 | F86: 0 | G86: =lista1!G86 -> 0 | H86: 0
A87: =lista1!A87 -> 0 | B87: =lista1!B87 -> Colocación de barandas | C87: =lista1!C87 -> ml | D87: 1.763681592 | F87: 0 | G87: =lista1!G87 -> 0 | H87: 0
A88: =lista1!A88 -> 0 | B88: =lista1!B88 -> Muro portante en elevación de HCCA de 15x25x50 tipo Retak | C88: =lista1!C88 -> m2 | D88: 1.763681592 | F88: 0 | G88: =lista1!G88 -> 0 | H88: 0
A89: =lista1!A89 -> 0 | B89: =lista1!B89 -> murete de mesada de cocina hasta 95 cm de alto (incl mat y m.o: muro 0,15+ revoq gr y fno ambas caras) sin revestim. | C89: =lista1!C89 -> u | D89: 1.763681592 | F89: 0 | G89: =lista1!G89 -> 0 | H89: 0
A90: =lista1!A90 -> 0 | B90: =lista1!B90 -> murete de mesada de cocina hasta 95 cm de alto (incl mat y m.o: muro 0,15+ revoq gr y revest. ambas caras) sin fino | C90: =lista1!C90 -> u | D90: 1.763681592 | F90: 0 | G90: =lista1!G90 -> 0 | H90: 0
A91: =lista1!A91 -> 0 | B91: =lista1!B91 -> Conducto de ventilación | C91: =lista1!C91 -> ml | D91: 1.763681592 | F91: 0 | G91: =lista1!G91 -> 0 | H91: 0
A92: =lista1!A92 -> 0 | B92: =lista1!B92 -> Sombrete conducto ventilación | C92: =lista1!C92 -> u | D92: 1.763681592 | F92: 0 | G92: =lista1!G92 -> 0 | H92: 0
A93: =lista1!A93 -> 0 | B93: =lista1!B93 -> Rejilla para conducto | C93: =lista1!C93 -> ml | D93: 1.763681592 | F93: 0 | G93: =lista1!G93 -> 0 | H93: 0
A94: =lista1!A94 -> 0 | B94: =lista1!B94 -> Conducto de presurización | C94: =lista1!C94 -> ml | D94: 1.763681592 | F94: 0 | G94: =lista1!G94 -> 0 | H94: 0
A95: =lista1!A95 -> 0 | B95: =lista1!B95 -> Sombrete conducto presuriz. | C95: =lista1!C95 -> u | D95: 1.763681592 | F95: 0 | G95: =lista1!G95 -> 0 | H95: 0
A96: =lista1!A96 -> 0 | B96: =lista1!B96 -> Reja conducto ventilación | C96: =lista1!C96 -> u | D96: 1.763681592 | F96: 0 | G96: =lista1!G96 -> 0 | H96: 0
A97: =lista1!A97 -> 0 | B97: =lista1!B97 -> banquinas de mesada (contrapiso + carpeta + revest. Ceramico) | C97: =lista1!C97 -> ml | D97: 1.763681592 | F97: 0 | G97: =lista1!G97 -> 6.3 | H97: 0
A98: =lista1!A98 -> 0 | B98: =lista1!B98 -> tomado de juntas en ladrillos visto rehundidas (al ras es 0,841*D) | C98: =lista1!C98 -> m2 | G98: =lista1!G98 -> 0
A99: =lista1!A99 -> 0 | B99: =lista1!B99 -> Muros de ladrillo de vidrio 20x20x10 cm | C99: =lista1!C99 -> m2 | G99: =lista1!G99 -> 0
A100: =lista1!A100 -> 0 | B100: =lista1!B100 -> Tabique de placas de yeso, tipo durlock 12,5 mm esp. | C100: =lista1!C100 -> m2 | G100: =lista1!G100 -> 0
A101: =lista1!A101 -> 0 | B101: =lista1!B101 -> 0 | C101: =lista1!C101 -> 0 | G101: =lista1!G101 -> 0
A102: =lista1!A102 -> 8 | B102: =lista1!B102 -> Construcción con placas de roca de yeso | C102: =lista1!C102 -> Unid. | E102: Precio | G102: =lista1!G102 -> Cantid. | H102: Parcial
A103: =lista1!A103 -> 0 | B103: =lista1!B103 -> En todos los casos las terminaciones quedan listas para pintar. Junta tomada con cinta tramada y mansilla
A104: =lista1!A104 -> 0 | B104: =lista1!B104 -> Tabique simple espesor 9,5 cm. Estructura de chapa galvanizada con montantes cada 48 cm. Solera inferior y superior de 70mm. Placa normal 15mm | C104: =lista1!C104 -> m2 | D104: =$N$27 -> 1.763681592 | F104: =D104*E104 -> 0 | G104: =lista1!G104 -> 0 | H104: =+F104*G104 -> 0
A105: =lista1!A105 -> 0 | B105: =lista1!B105 -> Idem con aislación de lana de vidrio | C105: =lista1!C105 -> m2 | D105: =$N$27 -> 1.763681592 | F105: =D105*E105 -> 0 | G105: =lista1!G105 -> 0 | H105: =+F105*G105 -> 0
A106: =lista1!A106 -> 0 | B106: =lista1!B106 -> Medio tabique espesor total 8,5 cm | C106: =lista1!C106 -> m2 | D106: 1.763681592 | F106: 0 | G106: =lista1!G106 -> 0 | H106: 0
A107: =lista1!A107 -> 0 | B107: =lista1!B107 -> Pared divisoria de unidades funcionales espesor total 12 cm. Doble placa de 15mm en ambas caras. Montantes cada 40cm. Solera 70mm interior y super. | C107: =lista1!C107 -> m2 | D107: 1.763681592 | F107: 0 | G107: =lista1!G107 -> 0 | H107: 0
A108: =lista1!A108 -> 0 | B108: =lista1!B108 -> Cielorraso suspendido, junta tomada con placas de 12,5mm, Estructura soleras y montantes de chapa galvanizada | C108: =lista1!C108 -> m2 | D108: 1.763681592 | F108: 0 | G108: =lista1!G108 -> 0 | H108: 0
A109: =lista1!A109 -> 0 | B109: =lista1!B109 -> Idem con placa verde. | C109: =lista1!C109 -> m2 | D109: 1.763681592 | F109: 0 | G109: =lista1!G109 -> 0 | H109: 0
A110: =lista1!A110 -> 0 | B110: =lista1!B110 -> Cielorraso suspendido desmontable. Estructura con bastidor de aluminio. Placas texturadas 60 x 1,20 | C110: =lista1!C110 -> m2 | D110: 1.763681592 | F110: 0 | G110: =lista1!G110 -> 0 | H110: 0
A111: =lista1!A111 -> 0 | B111: =lista1!B111 -> 0 | C111: =lista1!C111 -> 0 | G111: =lista1!G111 -> 0
A112: =lista1!A112 -> 9 | B112: =lista1!B112 -> Aislaciones | C112: =lista1!C112 -> 0 | G112: =lista1!G112 -> 0
A113: =lista1!A113 -> 0 | B113: =lista1!B113 -> De sótanos cementicia para cerramientos horizontal y vertical | C113: =lista1!C113 -> m2 | D113: =$N$27 -> 1.763681592 | F113: =D113*E113 -> 0 | G113: =lista1!G113 -> 0 | H113: =+F113*G113 -> 0
A114: =lista1!A114 -> 0 | B114: =lista1!B114 -> Capa aisladora con tabique panderete | C114: =lista1!C114 -> m2 | D114: =$N$27 -> 1.763681592 | F114: =D114*E114 -> 0 | G114: =lista1!G114 -> 0 | H114: 0
A115: =lista1!A115 -> 0 | B115: =lista1!B115 -> Horizontal espesor 2 cm sobre muro | C115: =lista1!C115 -> m2 | D115: 1.763681592 | F115: 0 | G115: =lista1!G115 -> 14.36947059 | H115: 0
A116: =lista1!A116 -> 0 | B116: =lista1!B116 -> Film de polietileno bajo plateas o contrapisos | C116: =lista1!C116 -> m2 | D116: 1.763681592 | F116: 0 | G116: =lista1!G116 -> 0 | H116: 0
A117: =lista1!A117 -> 0 | B117: =lista1!B117 -> Horizontal cementicia en contrapiso sobre terreno natural | C117: =lista1!C117 -> m2 | D117: 1.763681592 | F117: 0 | G117: =lista1!G117 -> 0 | H117: 0
A118: =lista1!A118 -> 0 | B118: =lista1!B118 -> Horizontal sobre losa para locales húmedos | C118: =lista1!C118 -> m2 | D118: 1.763681592 | F118: 0 | G118: =lista1!G118 -> 0 | H118: 0
A119: =lista1!A119 -> 0 | B119: =lista1!B119 -> Azotado hidrófugo bajo revestimientos | C119: =lista1!C119 -> m2 | D119: 1.763681592 | F119: 0 | G119: =lista1!G119 -> 0 | H119: 0
A120: =lista1!A120 -> 0 | B120: =lista1!B120 -> Vertical de 1,5 de esp. sobre muros | C120: =lista1!C120 -> m2 | D120: 1.763681592 | F120: 0 | G120: =lista1!G120 -> 21.6 | H120: 0
A121: =lista1!A121 -> 0 | B121: =lista1!B121 -> Horizontal y vertical cementicia para interior tanques de agua | C121: =lista1!C121 -> m2 | D121: 1.763681592 | F121: 0 | G121: =lista1!G121 -> 0 | H121: 0
A122: =lista1!A122 -> 0 | B122: =lista1!B122 -> inyeccion de líquidos químicos SIKA inertol infiltración, c perf c/15 cm a tres bolillos, rev.,rev fino (220MO+300mat) | C122: =lista1!C122 -> ml | D122: 1.763681592 | F122: 0 | G122: =lista1!G122 -> 22 | H122: 0
A123: =lista1!A123 -> 10 | B123: =lista1!B123 -> Cubiertas | C123: =lista1!C123 -> 0 | G123: =lista1!G123 -> 0
A124: =lista1!A124 -> 0 | B124: =lista1!B124 -> No se incluye la losa de hormigón | C124: =lista1!C124 -> 0 | G124: =lista1!G124 -> 0
A125: =lista1!A125 -> 0 | B125: =lista1!B125 -> Planas | C125: =lista1!C125 -> 0 | G125: =lista1!G125 -> 0
A126: =lista1!A126 -> 0 | B126: =lista1!B126 -> Sobre losa con barrera de vapor, contrapiso con pendiente. Carpeta para recibir, y proteger, aislación térmica e hidráulica con membrana con aluminio | C126: =lista1!C126 -> m2 | D126: =$N$27 -> 1.763681592 | F126: =D126*E126 -> 0 | G126: =lista1!G126 -> 104.05 | H126: =+F126*G126 -> 0
A127: =lista1!A127 -> 0 | B127: =lista1!B127 -> Idem anterior. Cubierta transitable terminación baldosas 20 x 20 para terraza | C127: =lista1!C127 -> m2 | D127: =$N$27 -> 1.763681592 | F127: =D127*E127 -> 0 | G127: =lista1!G127 -> 0 | H127: =+F127*G127 -> 0
A128: =lista1!A128 -> 0 | B128: =lista1!B128 -> 0 | C128: =lista1!C128 -> 0 | G128: =lista1!G128 -> 0
A129: =lista1!A129 -> 0 | B129: =lista1!B129 -> Con pendiente | C129: =lista1!C129 -> 0 | G129: =lista1!G129 -> 0
A130: =lista1!A130 -> 0 | B130: =lista1!B130 -> No incluye la pintura. Para las de madera se consideró la aplicación de preservador. No incluye correas | C130: =lista1!C130 -> 0 | G130: =lista1!G130 -> 0
A131: =lista1!A131 -> 0 | B131: =lista1!B131 -> Tejas francesa estructura de madera vista con aislación térmica | C131: =lista1!C131 -> m2 | D131: =$N$27 -> 1.763681592 | F131: =D131*E131 -> 0 | G131: =lista1!G131 -> 0 | H131: =+F131*G131 -> 0
A132: =lista1!A132 -> 0 | B132: =lista1!B132 -> Idem, con madera sin cepillar | C132: =lista1!C132 -> m2 | D132: =$N$27 -> 1.763681592 | F132: =D132*E132 -> 0 | G132: =lista1!G132 -> 0 | H132: =+F132*G132 -> 0
A133: =lista1!A133 -> 0 | B133: =lista1!B133 -> Chapa ondulada N24 estructura de madera vista. No se considera con aislación térmica | C133: =lista1!C133 -> m2 | D133: 1.763681592 | F133: 0 | G133: =lista1!G133 -> 0 | H133: 0
A134: =lista1!A134 -> 0 | B134: =lista1!B134 -> Idem, chapa prepintada | C134: =lista1!C134 -> m2 | D134: 1.763681592 | F134: 0 | G134: =lista1!G134 -> 0 | H134: 0
A135: =lista1!A135 -> 0 | B135: =lista1!B135 -> Chapa ambas caras con aislación térmica | C135: =lista1!C135 -> m2 | D135: 1.763681592 | F135: 0 | G135: =lista1!G135 -> 0 | H135: 0
A136: =lista1!A136 -> 0 | B136: =lista1!B136 -> Teja colonial madera vista | C136: =lista1!C136 -> m2 | D136: 1.763681592 | F136: 0 | G136: =lista1!G136 -> 0 | H136: 0
A137: =lista1!A137 -> 0 | B137: =lista1!B137 -> Teja colonial madera sin cepillar | C137: =lista1!C137 -> m2 | D137: 1.763681592 | F137: 0 | G137: =lista1!G137 -> 0 | H137: 0
A138: =lista1!A138 -> 0 | B138: =lista1!B138 -> Chapa imitación tejas | C138: =lista1!C138 -> m2 | D138: 1.763681592 | F138: 0 | G138: =lista1!G138 -> 0 | H138: 0
A139: =lista1!A139 -> 0 | B139: =lista1!B139 -> Junta de dilatación membrana asfáltica | C139: =lista1!C139 -> m2 | D139: 1.763681592 | F139: 0 | G139: =lista1!G139 -> 0 | H139: 0
A140: =lista1!A140 -> 0 | B140: =lista1!B140 -> Tinglado chapa galvanizada sobre vigaa spagueti | C140: =lista1!C140 -> m2 | D140: 1.763681592 | F140: 0 | G140: =lista1!G140 -> 0 | H140: 0
A141: =lista1!A141 -> 0 | B141: =lista1!B141 -> 0 | C141: =lista1!C141 -> 0 | G141: =lista1!G141 -> 0
A142: =lista1!A142 -> 11 | B142: =lista1!B142 -> Contrapiso | C142: =lista1!C142 -> 0 | G142: =lista1!G142 -> 0
A143: =lista1!A143 -> 0 | B143: =lista1!B143 -> Hormigón de cascotes armado de espesor 15 cm sobre terreno natural | C143: =lista1!C143 -> m2 | D143: =$N$27 -> 1.763681592 | F143: =D143*E143 -> 0 | G143: =lista1!G143 -> 158.66 | H143: =+F143*G143 -> 0
A144: =lista1!A144 -> 0 | B144: =lista1!B144 -> Hormigón de cascotes sobre losa espesor 7 cm | C144: =lista1!C144 -> m2 | D144: =$N$27 -> 1.763681592 | F144: =D144*E144 -> 0 | G144: =lista1!G144 -> 0 | H144: =+F144*G144 -> 0
A145: =lista1!A145 -> 0 | B145: =lista1!B145 -> Hormigón de cascotes sobre losa local sanitario espesor 25 cm | C145: =lista1!C145 -> m2 | D145: =$N$27 -> 1.763681592 | F145: =D145*E145 -> 0 | G145: =lista1!G145 -> 0 | H145: =+F145*G145 -> 0
A146: =lista1!A146 -> 0 | B146: =lista1!B146 -> Hormigón de arcilla expandida 10 cm de espesor | C146: =lista1!C146 -> m2 | D146: =$N$27 -> 1.763681592 | F146: =D146*E146 -> 0 | G146: =lista1!G146 -> 0 | H146: =+F146*G146 -> 0
A147: =lista1!A147 -> 0 | B147: =lista1!B147 -> Mortero celular de 7 cm espesor | C147: =lista1!C147 -> m2 | D147: =$N$27 -> 1.763681592 | F147: =D147*E147 -> 0 | G147: =lista1!G147 -> 0 | H147: =+F147*G147 -> 0
A148: =lista1!A148 -> 0 | B148: =lista1!B148 -> 0 | C148: =lista1!C148 -> 0 | G148: =lista1!G148 -> 0
A149: =lista1!A149 -> 12 | B149: =lista1!B149 -> Carpetas | C149: =lista1!C149 -> 0 | G149: =lista1!G149 -> 0
A150: =lista1!A150 -> 0 | B150: =lista1!B150 -> De concreto bajo solado | C150: =lista1!C150 -> m2 | D150: =$N$27 -> 1.763681592 | F150: =D150*E150 -> 0 | G150: =lista1!G150 -> 158.66 | H150: =+F150*G150 -> 0
A151: =lista1!A151 -> 0 | B151: =lista1!B151 -> Carpeta de mortero celular 2 cm espesor | C151: =lista1!C151 -> m2 | D151: =$N$27 -> 1.763681592 | F151: =D151*E151 -> 0 | G151: =lista1!G151 -> 0 | H151: =+F151*G151 -> 0
A152: =lista1!A152 -> 0 | B152: =lista1!B152 -> Carpeta clavadora para parquet | C152: =lista1!C152 -> m2 | D152: =$N$27 -> 1.763681592 | F152: =D152*E152 -> 0 | G152: =lista1!G152 -> 0 | H152: =+F152*G152 -> 0
A153: =lista1!A153 -> 0 | B153: =lista1!B153 -> 0 | C153: =lista1!C153 -> 0 | G153: =lista1!G153 -> 0
A154: =lista1!A154 -> 13 | B154: =lista1!B154 -> Revoques | C154: =lista1!C154 -> 0 | G154: =lista1!G154 -> 0
A155: =lista1!A155 -> 0 | B155: =lista1!B155 -> No se considera el trabajo de andamio | C155: =lista1!C155 -> 0 | G155: =lista1!G155 -> 0
A156: =lista1!A156 -> 0 | B156: =lista1!B156 -> Grueso y fino a la cal al fieltro | C156: =lista1!C156 -> m2 | D156: =$N$27 -> 1.763681592 | F156: =D156*E156 -> 0 | G156: =lista1!G156 -> 342.03624 | H156: =+F156*G156 -> 0
A157: =lista1!A157 -> 0 | B157: =lista1!B157 -> Grueso a la cal impermeable para exterior completo | C157: =lista1!C157 -> m2 | D157: =$N$27 -> 1.763681592 | F157: =D157*E157 -> 0 | G157: =lista1!G157 -> 146.58696 | H157: =+F157*G157 -> 0
A158: =lista1!A158 -> 0 | B158: =lista1!B158 -> Grueso bajo revestimientos | C158: =lista1!C158 -> m2 | D158: 1.763681592 | F158: 0 | G158: =lista1!G158 -> 0 | H158: 0
A159: =lista1!A159 -> 0 | B159: =lista1!B159 -> Revoque proyectado exterior con hidrófugo | C159: =lista1!C159 -> m2 | D159: 1.763681592 | F159: 0 | G159: =lista1!G159 -> 0 | H159: 0
A160: =lista1!A160 -> 0 | B160: =lista1!B160 -> Revoque proyectable grueso a la cal para interior | C160: =lista1!C160 -> m2 | D160: 1.763681592 | F160: 0 | G160: =lista1!G160 -> 0 | H160: 0
A161: =lista1!A161 -> 0 | B161: =lista1!B161 -> Revoque proyectable fino a la cal para interior | C161: =lista1!C161 -> m2 | D161: 1.763681592 | F161: 0 | G161: =lista1!G161 -> 0 | H161: 0
A162: =lista1!A162 -> 0 | B162: =lista1!B162 -> Revoque proyectable de yeso para interior, con engrosado | C162: =lista1!C162 -> m2 | D162: 1.763681592 | F162: 0 | G162: =lista1!G162 -> 0 | H162: 0
A163: =lista1!A163 -> 0 | B163: =lista1!B163 -> Salpicado con molinete | C163: =lista1!C163 -> m2 | D163: 1.763681592 | F163: 0 | G163: =lista1!G163 -> 0 | H163: 0
A164: =lista1!A164 -> 0 | B164: =lista1!B164 -> Salpicado con molinete exterior planchado | C164: =lista1!C164 -> m2 | D164: 1.763681592 | F164: 0 | G164: =lista1!G164 -> 0 | H164: 0
A165: =lista1!A165 -> 0 | B165: =lista1!B165 -> Revoque especial super Iggam | C165: =lista1!C165 -> ml | D165: 1.763681592 | F165: 0 | G165: =lista1!G165 -> 0 | H165: 0
A166: =lista1!A166 -> 0 | B166: =lista1!B166 -> Buñas super Iggam | C166: =lista1!C166 -> ml | D166: 1.763681592 | F166: 0 | G166: =lista1!G166 -> 0 | H166: 0
A167: =lista1!A167 -> 0 | B167: =lista1!B167 -> http://www.construircordoba.com/precios-de-tareas/revoques/ | C167: =lista1!C167 -> 0 | G167: =lista1!G167 -> 0
A168: =lista1!A168 -> 14 | B168: =lista1!B168 -> Revestimientos | C168: =lista1!C168 -> Unid. | E168: Precio | G168: =lista1!G168 -> Cantid. | H168: Parcial
A169: =lista1!A169 -> 0 | B169: =lista1!B169 -> Incluye la mano de obra completa, adhesivo y tomado de juntas
A170: =lista1!A170 -> 0 | B170: =lista1!B170 -> Cerámico tipo San Lorenzo 20 x 20 | C170: =lista1!C170 -> m2 | D170: =$N$27 -> 1.763681592 | F170: =D170*E170 -> 0 | G170: =lista1!G170 -> 0 | H170: =+F170*G170 -> 0
A171: =lista1!A171 -> 0 | B171: =lista1!B171 -> De venecita | C171: =lista1!C171 -> m2 | D171: =$N$27 -> 1.763681592 | F171: =D171*E171 -> 0 | G171: =lista1!G171 -> 0 | H171: =+F171*G171 -> 0
A172: =lista1!A172 -> 0 | B172: =lista1!B172 -> Cerámico esmaltado 30 x 30 cm | C172: =lista1!C172 -> m2 | D172: 1.763681592 | F172: 0 | G172: =lista1!G172 -> 29.93 | H172: 0
A173: =lista1!A173 -> 0 | B173: =lista1!B173 -> Revestimientos secos | C173: =lista1!C173 -> 0 | D173: 1.763681592 | F173: 0 | G173: =lista1!G173 -> 0 | H173: 0
A174: =lista1!A174 -> 0 | B174: =lista1!B174 -> De muros con machiembrado de pino 1/2". Incluye la estructura sobre muro | C174: =lista1!C174 -> m2 | D174: 1.763681592 | F174: 0 | G174: =lista1!G174 -> 0 | H174: 0
A175: =lista1!A175 -> 0 | B175: =lista1!B175 -> Cerámica esmaltada 30x30 con guardas | C175: =lista1!C175 -> m2 | D175: 1.763681592 | F175: 0 | G175: =lista1!G175 -> 0 | H175: 0
A176: =lista1!A176 -> 0 | B176: =lista1!B176 -> Porcellanato 30x30 rústico | C176: =lista1!C176 -> m2 | D176: 1.763681592 | F176: 0 | G176: =lista1!G176 -> 0 | H176: 0
A177: =lista1!A177 -> 0 | B177: =lista1!B177 -> Tejuelas de ladrillo | C177: =lista1!C177 -> m2 | D177: 1.763681592 | F177: 0 | G177: =lista1!G177 -> 0 | H177: 0
A178: =lista1!A178 -> 0 | B178: =lista1!B178 -> 0 | C178: =lista1!C178 -> 0 | G178: =lista1!G178 -> 0
A179: =lista1!A179 -> 15 | B179: =lista1!B179 -> Cielorrasos | C179: =lista1!C179 -> 0 | G179: =lista1!G179 -> 0
A180: =lista1!A180 -> 0 | B180: =lista1!B180 -> Aplicado a la cal fina fratasada | C180: =lista1!C180 -> m2 | D180: =$N$27 -> 1.763681592 | F180: =D180*E180 -> 0 | G180: =lista1!G180 -> 0 | H180: =+F180*G180 -> 0
A181: =lista1!A181 -> 0 | B181: =lista1!B181 -> Aplicado grueso y fino a la cal al fieltro | C181: =lista1!C181 -> m2 | D181: =$N$27 -> 1.763681592 | F181: =D181*E181 -> 0 | G181: =lista1!G181 -> 104.05 | H181: =+F181*G181 -> 0
A182: =lista1!A182 -> 0 | B182: =lista1!B182 -> Suspendido a la cal armado en madera | C182: =lista1!C182 -> m2 | D182: 1.763681592 | F182: 0 | G182: =lista1!G182 -> 0 | H182: 0
A183: =lista1!A183 -> 0 | B183: =lista1!B183 -> Suspendido a la cal armado en hierro | C183: =lista1!C183 -> m2 | D183: 1.763681592 | F183: 0 | G183: =lista1!G183 -> 0 | H183: 0
A184: =lista1!A184 -> 0 | B184: =lista1!B184 -> Taparrollo armado a la cal | C184: =lista1!C184 -> ml | D184: 1.763681592 | F184: 0 | G184: =lista1!G184 -> 0 | H184: 0
A185: =lista1!A185 -> 0 | B185: =lista1!B185 -> Suspendido termoacústico | C185: =lista1!C185 -> m2 | D185: 1.763681592 | F185: 0 | G185: =lista1!G185 -> 0 | H185: 0
A186: =lista1!A186 -> 0 | B186: =lista1!B186 -> Suspendido con dorso de aluminio | C186: =lista1!C186 -> m2 | D186: 1.763681592 | F186: 0 | G186: =lista1!G186 -> 0 | H186: 0
A187: =lista1!A187 -> 0 | B187: =lista1!B187 -> Paneles de aluminio microperforado | C187: =lista1!C187 -> m2 | D187: 1.763681592 | F187: 0 | G187: =lista1!G187 -> 0 | H187: 0
A188: =lista1!A188 -> 0 | B188: =lista1!B188 -> 0 | C188: =lista1!C188 -> 0 | G188: =lista1!G188 -> 0
A189: =lista1!A189 -> 16 | B189: =lista1!B189 -> Yeseria | C189: =lista1!C189 -> 0 | G189: =lista1!G189 -> 0
A190: =lista1!A190 -> 0 | B190: =lista1!B190 -> Enlucido de yeso | C190: =lista1!C190 -> m2 | D190: =$N$27 -> 1.763681592 | F190: =D190*E190 -> 0 | G190: =lista1!G190 -> 0 | H190: =+F190*G190 -> 0
A191: =lista1!A191 -> 0 | B191: =lista1!B191 -> Enlucido de yeso reforzado con cemento | C191: =lista1!C191 -> m2 | D191: =$N$27 -> 1.763681592 | F191: =D191*E191 -> 0 | G191: =lista1!G191 -> 0 | H191: =+F191*G191 -> 0
A192: =lista1!A192 -> 0 | B192: =lista1!B192 -> Enlucido de yeso y engrosado con yeso gris | C192: =lista1!C192 -> m2 | D192: 1.763681592 | F192: 0 | G192: =lista1!G192 -> 0 | H192: 0
A193: =lista1!A193 -> 0 | B193: =lista1!B193 -> Guardacanto de yesero. Incluye el recubrimiento de yeso | C193: =lista1!C193 -> ml | D193: 1.763681592 | F193: 0 | G193: =lista1!G193 -> 0 | H193: 0
A194: =lista1!A194 -> 0 | B194: =lista1!B194 -> Fajas sobre revestimiento | C194: =lista1!C194 -> ml | D194: 1.763681592 | F194: 0 | G194: =lista1!G194 -> 0 | H194: 0
A195: =lista1!A195 -> 0 | B195: =lista1!B195 -> Agujeros circulares hasta 40 cm de diámetro | C195: =lista1!C195 -> u | D195: 1.763681592 | F195: 0 | G195: =lista1!G195 -> 0 | H195: 0
A196: =lista1!A196 -> 0 | B196: =lista1!B196 -> Cielorraso aplicado al yeso | C196: =lista1!C196 -> m2 | D196: 1.763681592 | F196: 0 | G196: =lista1!G196 -> 0 | H196: 0
A197: =lista1!A197 -> 0 | B197: =lista1!B197 -> Cielorraso de yeso armado estructura de madera | C197: =lista1!C197 -> m2 | D197: 1.763681592 | F197: 0 | G197: =lista1!G197 -> 0 | H197: 0
A198: =lista1!A198 -> 0 | B198: =lista1!B198 -> Cielorraso de yeso armado estructura de hierro | C198: =lista1!C198 -> m2 | D198: 1.763681592 | F198: 0 | G198: =lista1!G198 -> 0 | H198: 0
A199: =lista1!A199 -> 0 | B199: =lista1!B199 -> Taparrollo de yeso armado | C199: =lista1!C199 -> ml | D199: 1.763681592 | F199: 0 | G199: =lista1!G199 -> 0 | H199: 0
A200: =lista1!A200 -> 0 | B200: =lista1!B200 -> 0 | C200: =lista1!C200 -> 0 | G200: =lista1!G200 -> 0
... 186 more rows

Sheet lista3
A1: =lista1!A1 -> nro | B1: =lista1!B1 -> rubros o items | C1: =lista1!C1 -> Unid. | E1: $vjo | F1: $nvo | G1: =lista1!G1 -> Cantid. | H1: Parc.
A2: =lista1!A2 -> 0 | B2: http://www.construircordoba.com/precios-de-tareas/hormigon/ | C2: ¿quiere usar estos precios? | G2: si | I2: =MAX((I3:I4=G2)*(J3:J4)) -> 1
A3: =lista1!A3 -> 1 | B3: =lista1!B3 -> Trabajos preliminares | C3: =lista1!C3 -> 0 | G3: =lista1!G3 -> 0 | I3: si | J3: 1
A4: =lista1!A4 -> 0 | B4: =lista1!B4 -> Limpieza y nivelación del terreno | C4: =lista1!C4 -> m2 | D4: =$N$27 -> 0.9022553657 | F4: =D4*E4 -> 0 | G4: =lista1!G4 -> 162.5 | H4: =+F4*G4 -> 0 | I4: no | J4: 0
A5: =lista1!A5 -> 0 | B5: =lista1!B5 -> Obrador, depósito y sanitarios | C5: =lista1!C5 -> m2 | D5: =$N$27 -> 0.9022553657 | F5: =D5*E5 -> 0 | G5: =lista1!G5 -> 13 | H5: =+F5*G5 -> 0
A6: =lista1!A6 -> 0 | B6: =lista1!B6 -> desmonte en terreno comun (si en terr. C. roca disgregable con barreta se debera mult. Prec. X 2,3) | C6: =lista1!C6 -> m3 | D6: =$N$27 -> 0.9022553657 | E6: 246.64 | F6: =D6*E6 -> 222.5322634 | G6: =lista1!G6 -> 0 | H6: =+F6*G6 -> 0
A7: =lista1!A7 -> 2 | B7: =lista1!B7 -> Procedimientos y cumplimientos | C7: =lista1!C7 -> 0 | G7: =lista1!G7 -> 0
A8: =lista1!A8 -> 0 | B8: =lista1!B8 -> Replanteo | C8: =lista1!C8 -> m2 | D8: =$N$27 -> 0.9022553657 | F8: =D8*E8 -> 0 | G8: =lista1!G8 -> 104.05 | H8: =+F8*G8 -> 0
A9: =lista1!A9 -> 0 | B9: =lista1!B9 -> Cartel de obra | C9: =lista1!C9 -> m2 | D9: =$N$27 -> 0.9022553657 | F9: =D9*E9 -> 0 | G9: =lista1!G9 -> 0 | H9: =+F9*G9 -> 0
A10: =lista1!A10 -> 0 | B10: =lista1!B10 -> Cerco de obra | C10: =lista1!C10 -> ml | D10: =$N$27 -> 0.9022553657 | F10: =D10*E10 -> 0 | G10: =lista1!G10 -> 0 | H10: =+F10*G10 -> 0
A11: =lista1!A11 -> 0 | B11: =lista1!B11 -> Defensa de protección para trabajo en obra | C11: =lista1!C11 -> ml | D11: =$N$27 -> 0.9022553657 | F11: =D11*E11 -> 0 | G11: =lista1!G11 -> 0 | H11: =+F11*G11 -> 0
A12: =lista1!A12 -> 0 | B12: =lista1!B12 -> 0 | C12: =lista1!C12 -> 0 | G12: =lista1!G12 -> 0
A13: =lista1!A13 -> 3 | B13: =lista1!B13 -> Demoliciones | C13: =lista1!C13 -> 0 | G13: =lista1!G13 -> 0
A14: =lista1!A14 -> 0 | B14: =lista1!B14 -> En los siguientes items, se incluye el retiro de los escombros de la obra hasta coloc.dentro del contenedor | C14: =lista1!C14 -> 0 | G14: =lista1!G14 -> 0
A15: =lista1!A15 -> 0 | B15: =lista1!B15 -> De estructura de hormigón, losas de HºAº, dados, camaras de HºAº (incluye cargarlo) | C15: =lista1!C15 -> m3 | D15: =$N$27 -> 0.9022553657 | E15: 575 | F15: =D15*E15 -> 518.7968353 | G15: =lista1!G15 -> 0 | H15: =+F15*G15 -> 0
A16: =lista1!A16 -> 0 | B16: =lista1!B16 -> De mamposteria (todos los items incluyen cargar escombros a un contenedor cercano, refiere a planta baja) | C16: =lista1!C16 -> m3 | D16: 0.9022553657 | E16: =(110+380)/2 -> 245 | F16: =D16*E16 -> 221.0525646 | G16: =lista1!G16 -> 0 | H16: =+F16*G16 -> 0
A17: =lista1!A17 -> 0 | B17: =lista1!B17 -> De pisos | C17: =lista1!C17 -> m2 | D17: 0.9022553657 | E17: 48.88 | F17: 44.10224228 | G17: =lista1!G17 -> 0 | H17: 0
A18: =lista1!A18 -> 0 | B18: =lista1!B18 -> De contrapisos | C18: =lista1!C18 -> m2 | D18: 0.9022553657 | E18: =81.45-E17 -> 32.57 | F18: 29.38645726 | G18: =lista1!G18 -> 0 | H18: 0
A19: =lista1!A19 -> 0 | B19: =lista1!B19 -> Picado de revoques, cielorrasos suspendidos ó demolcic. de cubiert d tejas coloniales (sin recuper. de tejas) | C19: =lista1!C19 -> m2 | D19: 0.9022553657 | E19: 54.3 | F19: 48.99246636 | G19: =lista1!G19 -> 0 | H19: 0
A20: =lista1!A20 -> 0 | B20: =lista1!B20 -> Picado de revestimientos | C20: =lista1!C20 -> m2 | D20: 0.9022553657 | E20: 54.3 | F20: 48.99246636 | G20: =lista1!G20 -> 0 | H20: 0
A21: =lista1!A21 -> 0 | B21: =lista1!B21 -> De estructura de madera con tejas francesa (o colonial) | C21: =lista1!C21 -> m2 | D21: 0.9022553657 | E21: 271.53 | F21: 244.9893995 | G21: =lista1!G21 -> 0 | H21: 0
A22: =lista1!A22 -> 0 | B22: =lista1!B22 -> Demolición de obra completa | C22: =lista1!C22 -> m2 | D22: 0.9022553657 | E22: =SUM(E16:E21) -> 706.58 | F22: 637.5155963 | G22: =lista1!G22 -> 28 | H22: 17850.4367
A23: =lista1!A23 -> 0 | B23: =lista1!B23 -> Contenedor/Volquete, alquiler | C23: =lista1!C23 -> u | D23: 0.9022553657 | F23: 0 | G23: =lista1!G23 -> 16 | H23: 0
A24: =lista1!A24 -> 0 | B24: =lista1!B24 -> Cargar Contenedor/Volquete | C24: =lista1!C24 -> u | D24: 0.9022553657 | F24: 0 | G24: =lista1!G24 -> 16 | H24: 0
A25: =lista1!A25 -> 4 | B25: =lista1!B25 -> Movimientos de tierra | C25: =lista1!C25 -> 0 | G25: =lista1!G25 -> 0
A26: =lista1!A26 -> 0 | B26: =lista1!B26 -> Excavación manual p cimientos y bases column terreno común (si tosca mult.al prec.x 1,214 y x1,714 si es roca digregable) | C26: =lista1!C26 -> m3 | D26: =$N$27 -> 0.9022553657 | E26: 287.73 | F26: =D26*E26 -> 259.6059364 | G26: =lista1!G26 -> 6.001526718 | H26: =+F26*G26 -> 1558.031963
A27: =lista1!A27 -> 0 | B27: =lista1!B27 -> Excavación manual de vigas de fundación hasta 1,20 m de prof. | C27: =lista1!C27 -> m3 | D27: 0.9022553657 | F27: 192 | G27: =lista1!G27 -> 9.90225 | H27: 1901.232 | L27: mult | N27: =$I$2*T28/T31/1.21 -> 0.9022553657 | T27: US$prom
A28: =lista1!A28 -> 0 | B28: =lista1!B28 -> Excavación de pozos para pilotín (diám. 23 cm - prof. 1,6 m) | C28: =lista1!C28 -> u | D28: 0.9022553657 | F28: 0 | G28: =lista1!G28 -> 24 | H28: 0 | J28: #1precio dólar oficial vta | P28: =lista1!P28 -> 9.335 | Q28: =lista1!Q28 -> $AR | R28: =lista1!R28:S28 -> 2015-11-12 | T28: =AVERAGE(P28:P29) -> 12.4075
A29: =lista1!A29 -> 0 | B29: =lista1!B29 -> Excavación p/ cisternas, cámaras sépt.,de inspec., sótanos a mano terr. Comun hast4m (tosca x1,351 y si fuese roc disgr x 1,89) | C29: =lista1!C29 -> m3 | D29: 0.9022553657 | E29: 380.22 | F29: 343.0555352 | G29: =lista1!G29 -> 12.076 | H29: 4142.738643 | J29: #2precio dólar blue vta | P29: =lista1!P29 -> 15.48 | Q29: =lista1!Q29 -> $AR | R29: =lista1!R29:S29 -> 2015-11-12
A30: =lista1!A30 -> 0 | B30: =lista1!B30 -> Excavación p/ pozo absorbt o Romano, a mano terr. Comun hast10mprof.(tosca x1,364 y si fuese roc disgr x 1,909) | C30: =lista1!C30 -> m3 | D30: 0.9022553657 | E30: 565.2 | F30: =D30*E30 -> 509.9547327 | G30: =lista1!G30 -> 6 | H30: =+F30*G30 -> 3059.728396
A31: =lista1!A31 -> 0 | B31: =lista1!B31 -> Destape del terreno hasta 20/30 cm de profundidad con pala frontal o Excavación de sótanos a maquina | C31: =lista1!C31 -> m3 | D31: 0.9022553657 | F31: 0 | G31: =lista1!G31 -> 0 | H31: 0 | P31: 9.08 | Q31: $AR | R31: 2015-07-07 | T31: =AVERAGE(P31:P32) -> 11.365
A32: =lista1!A32 -> 0 | B32: =lista1!B32 -> Carga y retiro de tierra con camión | C32: =lista1!C32 -> m3 | D32: 0.9022553657 | F32: 0 | G32: =lista1!G32 -> 0 | H32: 0 | P32: 13.65 | Q32: $AR | R32: 2015-07-07 | S32: multip
A33: =lista1!A33 -> 0 | B33: =lista1!B33 -> terraplenamiento | C33: =lista1!C33 -> m3 | D33: 0.9022553657 | E33: 205.52 | F33: =D33*E33 -> 185.4315228 | G33: =lista1!G33 -> 0 | H33: =+F33*G33 -> 0 | J33: http://www.construircordoba.com/precios-de-tareas/hormigon/
A34: =lista1!A34 -> 5 | B34: =lista1!B34 -> Estructuras de hormigón armado | C34: =lista1!C34 -> Unid. | E34: Prec. | F34: Prec. | G34: =lista1!G34 -> Cant. | H34: Parcial | J34: http://www.ambito.com/economia/mercados/monedas/dolar/info/?ric=ARSB=&desde=15/12/2014&hasta=15/01/2015
A35: =lista1!A35 -> 0 | B35: =lista1!B35 -> Incluye el material, mano de obra, armado y desarme de encofrados de madera tradicionales y equipos | E35: vjo | F35: nvo
A36: =lista1!A36 -> 0 | B36: =lista1!B36 -> hormigon sin armar para relleno de cimientos | C36: =lista1!C36 -> m3 | D36: =$N$27 -> 0.9022553657 | E36: 1120 | F36: =D36*E36 -> 1010.52601 | G36: =lista1!G36 -> 0 | H36: =+F36*G36 -> 0
A37: =lista1!A37 -> 0 | B37: =lista1!B37 -> Bases céntricas cuantía 60 kg, HºAº p/ cabezal de pozos romanos (p/fuste pz rom dividir precio en 1,124) | C37: =lista1!C37 -> m3 | D37: =$N$27 -> 0.9022553657 | E37: 2711 | F37: =D37*E37 -> 2446.014296 | G37: =lista1!G37 -> 6.001526718 | H37: =+F37*G37 -> 14679.82015
A38: =lista1!A38 -> 0 | B38: =lista1!B38 -> Vigas de fundación 60 kg/m3, arriostramiento y de equilibrio | C38: =lista1!C38 -> m3 | D38: =$N$27 -> 0.9022553657 | E38: 4985 | F38: =D38*E38 -> 4497.742998 | G38: =lista1!G38 -> 9.90225 | H38: =+F38*G38 -> 44537.7756
A39: =lista1!A39 -> 0 | B39: =lista1!B39 -> Pilotín diametro 23 cm / profundidad 1,6 m | C39: =lista1!C39 -> ml | D39: 0.9022553657 | F39: 0 | G39: =lista1!G39 -> 38.4 | H39: 0
A40: =lista1!A40 -> 0 | B40: =lista1!B40 -> Platea de fundación 35 kg/m3 de hierro o quiza con un poco mas de kg de cuantía, (bases de cañerías div./1,345). | C40: =lista1!C40 -> m3 | D40: 0.9022553657 | E40: 3228 | F40: 2912.480321 | G40: =lista1!G40 -> 0 | H40: 0
A41: =lista1!A41 -> 0 | B41: =lista1!B41 -> Zapatas para tabique de hormigón para submuración 80 kg hierro, bases de columna y zapatas de columna | C41: =lista1!C41 -> m3 | D41: 0.9022553657 | E41: 2875 | F41: 2593.984176 | G41: =lista1!G41 -> 0 | H41: 0
A42: =lista1!A42 -> 0 | B42: =lista1!B42 -> Zapatas para muro de Mamposteria 30 cm de ladrillo común cuantía 35kg de hierro/m3 | C42: =lista1!C42 -> m3 | D42: 0.9022553657 | E42: 3228 | F42: 2912.480321 | G42: =lista1!G42 -> 0 | H42: 0
A43: =lista1!A43 -> 0 | B43: =lista1!B43 -> Tabiques de sótanos una cara vista 80 kg de hierro/m3 | C43: =lista1!C43 -> m3 | D43: 0.9022553657 | F43: 0 | G43: =lista1!G43 -> 0 | H43: 0
A44: =lista1!A44 -> 0 | B44: =lista1!B44 -> Losas espesor 10 cm | C44: =lista1!C44 -> m3 | D44: 0.9022553657 | E44: 6010.77 | F44: 5423.249485 | G44: =lista1!G44 -> 0 | H44: 0
A45: =lista1!A45 -> 0 | B45: =lista1!B45 -> Losas de hormigón a la vista con encofrado fenólico | C45: =lista1!C45 -> m3 | D45: 0.9022553657 | F45: 0 | G45: =lista1!G45 -> 0 | H45: 0
A46: =lista1!A46 -> 0 | B46: =lista1!B46 -> Losas casetonada 70 kg/m3 de hierro (es precio mínimo.. p/ prec max mult. X 1,216) | C46: =lista1!C46 -> m3 | D46: 0.9022553657 | F46: 0 | G46: =lista1!G46 -> 0 | H46: 0
A47: =lista1!A47 -> 0 | B47: =lista1!B47 -> Losa nervurada Aº en un sentid. bloqH 14*19*39 (o x 1,162 sii es Aºda en 2 sentid c bloq poliest exp. De 40*40*25) | C47: =lista1!C47 -> m2 | D47: 0.9022553657 | E47: 1062.23 | F47: 958.4027171 | G47: =lista1!G47 -> 0 | H47: 0
A48: =lista1!A48 -> 0 | B48: =lista1!B48 -> Losa hueca pretensada 12 cm de espesor con tomado de juntas | C48: =lista1!C48 -> m2 | D48: 0.9022553657 | F48: 0 | G48: =lista1!G48 -> 0 | H48: 0
A49: =lista1!A49 -> 0 | B49: =lista1!B49 -> Losa viguetas pretensadas de hormigón y ladrillos cerámicos espesor 17cm con capa de compresión. | C49: =lista1!C49 -> m2 | D49: 0.9022553657 | E49: 725 | F49: 654.1351401 | G49: =lista1!G49 -> 104.05 | H49: 68062.76133
A50: =lista1!A50 -> 0 | B50: =lista1!B50 -> columnas estructurales de aprox. 30x30 (Si son a la vista al precio mult. X 1,08) | C50: =lista1!C50 -> m3 | D50: 0.9022553657 | E50: 9282 | F50: 8374.734305 | G50: =lista1!G50 -> 0.324 | H50: 2713.413915
A51: =lista1!A51 -> 0 | B51: =lista1!B51 -> Encadenado verticales, horizontales, dinteles, dadosdapoyo, llaves,banquinas 7cm esp. de HºAº | C51: =lista1!C51 -> m3 | D51: 0.9022553657 | E51: 5112.25 | F51: 4612.554993 | G51: =lista1!G51 -> 5.293920809 | H51: 24418.50086
A52: =lista1!A52 -> 0 | B52: =lista1!B52 -> Vigas cuantía 180 kg/m3, vigas aprox. De 20x40 (Si son a la vista al precio mult. X 1,08) | C52: =lista1!C52 -> m3 | D52: 0.9022553657 | E52: 7963 | F52: 7184.659477 | G52: =lista1!G52 -> 0.24 | H52: 1724.318275
A53: =lista1!A53 -> 0 | B53: =lista1!B53 -> Tabiques vistos cuantía 80 kg | C53: =lista1!C53 -> m3 | D53: 0.9022553657 | F53: 0 | G53: =lista1!G53 -> 0 | H53: 0
A54: =lista1!A54 -> 0 | B54: =lista1!B54 -> Tabiques cuantía 80 kg/m3 | C54: =lista1!C54 -> m3 | D54: 0.9022553657 | E54: 8990 | F54: 8111.275738 | G54: =lista1!G54 -> 0 | H54: 0
A55: =lista1!A55 -> 0 | B55: =lista1!B55 -> Escaleras cuantía 75 kg/m3 (sii es HºAº p/LOSAS macizas de escaleras a este prec. Dividir por 1,887) | C55: =lista1!C55 -> m3 | D55: 0.9022553657 | F55: 0 | G55: =lista1!G55 -> 0 | H55: 0
A56: =lista1!A56 -> 0 | B56: =lista1!B56 -> Tanque de bombeo cuantía 105 kg/m3 | C56: =lista1!C56 -> m3 | D56: 0.9022553657 | F56: 0 | G56: =lista1!G56 -> 0 | H56: 0
A57: =lista1!A57 -> 0 | B57: =lista1!B57 -> Tanque de reserva cuantía 105 kg/m3 y cisternas de HAº | C57: =lista1!C57 -> m3 | D57: 0.9022553657 | E57: 9411 | F57: 8491.125247 | G57: =lista1!G57 -> 0.299 | H57: 2538.846449
A58: =lista1!A58 -> 0 | B58: =lista1!B58 -> Junta de PVC para hormigón | C58: =lista1!C58 -> ml | D58: 0.9022553657 | F58: 0 | G58: =lista1!G58 -> 0 | H58: 0
A59: =lista1!A59 -> 0 | B59: =lista1!B59 -> Barrera de vapor (dos manos de pintura asfáltica + 10% nafta) | C59: =lista1!C59 -> m2 | D59: 0.9022553657 | F59: =D59*E59 -> 0 | G59: =lista1!G59 -> 104.05 | H59: =+F59*G59 -> 0
A60: =lista1!A60 -> 6 | B60: =lista1!B60 -> Estructuras metálicas | C60: =lista1!C60 -> 0 | G60: =lista1!G60 -> 0
A61: =lista1!A61 -> 0 | B61: =lista1!B61 -> En el caso de cubiertas no se consideran los cerramientos laterales ni superiores. Para los entrepisos no se incluye el solado. En ambos, tampoco la pintura. El armado es en taller. Incluye el montaje en obra y no se considera el flete
A62: =lista1!A62 -> 0 | B62: =lista1!B62 -> Estructuras metálicas de perfiles normales | C62: =lista1!C62 -> kg | D62: =$N$27 -> 0.9022553657 | F62: =D62*E62 -> 0 | G62: =lista1!G62 -> 0 | H62: =+F62*G62 -> 0
A63: =lista1!A63 -> 0 | B63: =lista1!B63 -> Estructuras metálicas de perfiles ángulos | C63: =lista1!C63 -> kg | D63: =$N$27 -> 0.9022553657 | F63: =D63*E63 -> 0 | G63: =lista1!G63 -> 0 | H63: =+F63*G63 -> 0
A64: =lista1!A64 -> 0 | B64: =lista1!B64 -> Estructuras metálicas de hierro redondo | C64: =lista1!C64 -> kg | D64: =$N$27 -> 0.9022553657 | F64: =D64*E64 -> 0 | G64: =lista1!G64 -> 0 | H64: =+F64*G64 -> 0
A65: =lista1!A65 -> 0 | B65: =lista1!B65 -> 0 | C65: =lista1!C65 -> 0 | G65: =lista1!G65 -> 0 | H65: =+F65*G65 -> 0
A66: =lista1!A66 -> 0 | B66: =lista1!B66 -> 0 | C66: =lista1!C66 -> 0 | G66: =lista1!G66 -> 0 | H66: =+F66*G66 -> 0
A67: =lista1!A67 -> 0 | B67: =lista1!B67 -> 0 | C67: =lista1!C67 -> 0 | G67: =lista1!G67 -> 0
A68: =lista1!A68 -> 7 | B68: =lista1!B68 -> Mampostería | C68: =lista1!C68 -> Unid. | E68: Precio | G68: =lista1!G68 -> Cantid. | H68: Parcial
A69: =lista1!A69 -> 0 | B69: =lista1!B69 -> Bloques de hormigón estandar 19 x 19 x 39 ; idem cribada = D x 0,9365 | C69: =lista1!C69 -> m2 | D69: =$N$27 -> 0.9022553657 | E69: 456.56 | F69: =D69*E69 -> 411.9337098 | G69: =lista1!G69 -> 0 | H69: =+F69*G69 -> 0
A70: =lista1!A70 -> 0 | B70: =lista1!B70 -> Bloques de hormigón estandar 9,2 x 19 x 39 ; ladrillos comunes de pandere 30 ud/m2 = corregir D x 0,88 | C70: =lista1!C70 -> m2 | D70: =$N$27 -> 0.9022553657 | E70: 279.72 | F70: =D70*E70 -> 252.3788709 | G70: =lista1!G70 -> 0 | H70: =+F70*G70 -> 0
A71: =lista1!A71 -> 0 | B71: =lista1!B71 -> Junta de dilatación bloque ""u""de hormigón | C71: =lista1!C71 -> ml | D71: 0.9022553657 | F71: 0 | G71: =lista1!G71 -> 0 | H71: 0
A72: =lista1!A72 -> 0 | B72: =lista1!B72 -> Encadenado pared bloques de hormigón | C72: =lista1!C72 -> ml | D72: 0.9022553657 | F72: 0 | G72: =lista1!G72 -> 0 | H72: 0
A73: =lista1!A73 -> 0 | B73: =lista1!B73 -> Ladrillos comunes elevación espesor 30 cm (si es de cimiento =D/1,03) si es p/ 1er piso =D*1,08 | C73: =lista1!C73 -> m3 | D73: 0.9022553657 | E73: 2616 | F73: 2360.300037 | G73: =lista1!G73 -> 0 | H73: 0
A74: =lista1!A74 -> 0 | B74: =lista1!B74 -> Ladrillos de máquina para vista espesor 30 cm sin tomado de juntas (con tomado junt =D x 1,094) | C74: =lista1!C74 -> m3 | D74: 0.9022553657 | F74: 0 | G74: =lista1!G74 -> 0 | H74: 0
A75: =lista1!A75 -> 0 | B75: =lista1!B75 -> Ladrillo común en elevación espesor 15 cm (si es de cimiento =D/1,03) si es p/ 1er piso =D*1,08 , cribadas | C75: =lista1!C75 -> m3 | D75: 0.9022553657 | E75: 2000 | F75: 1804.510731 | G75: =lista1!G75 -> 0 | H75: 0
A76: =lista1!A76 -> 0 | B76: =lista1!B76 -> Ladrillo de máquina para vista espesor 15 cm con tomado de junta | C76: =lista1!C76 -> m3 | D76: 0.9022553657 | F76: 0 | G76: =lista1!G76 -> 0 | H76: 0
A77: =lista1!A77 -> 0 | B77: =lista1!B77 -> Refuerzos horizontales o encadenado para mampostería (vigas o dintel) en ladrillo común | C77: =lista1!C77 -> ml | D77: 0.9022553657 | F77: 0 | G77: =lista1!G77 -> 0 | H77: 0
A78: =lista1!A78 -> 0 | B78: =lista1!B78 -> Ladrillo cerámico hueco de 8 x 18 x 33 pared de 8 cm de espesor | C78: =lista1!C78 -> m2 | D78: 0.9022553657 | E78: 279.9 | F78: 252.5412769 | G78: =lista1!G78 -> 0 | H78: 0
A79: =lista1!A79 -> 0 | B79: =lista1!B79 -> Ladrillo cerámico hueco de 12 x 18 x 33 pared de 12 cm de espesor | C79: =lista1!C79 -> m2 | D79: 0.9022553657 | E79: 310.8 | F79: 280.4209677 | G79: =lista1!G79 -> 0 | H79: 0
A80: =lista1!A80 -> 0 | B80: =lista1!B80 -> Ladrillo cerámico hueco de 18 x 18 x 33 pared de 18 cm de espesor | C80: =lista1!C80 -> m2 | D80: 0.9022553657 | E80: 378.04 | F80: 341.0886185 | G80: =lista1!G80 -> 0 | H80: 0
A81: =lista1!A81 -> 0 | B81: =lista1!B81 -> Ladrillo cerámico portante de 13 x 19 x 33 | C81: =lista1!C81 -> m2 | D81: 0.9022553657 | E81: 287.03 | F81: 258.9743576 | G81: =lista1!G81 -> 360.4326 | H81: 93342.80105
A82: =lista1!A82 -> 0 | B82: =lista1!B82 -> Ladrillo cerámico portante de 18 x 19 x 33 | C82: =lista1!C82 -> m2 | D82: 0.9022553657 | E82: 357.01 | F82: 322.1141881 | G82: =lista1!G82 -> 0 | H82: 0
A83: =lista1!A83 -> 0 | B83: =lista1!B83 -> Viga de encadenado superior con peine cerámico, armadura y hormigonado | C83: =lista1!C83 -> ml | D83: 0.9022553657 | F83: 0 | G83: =lista1!G83 -> 0 | H83: 0
A84: =lista1!A84 -> 0 | B84: =lista1!B84 -> Columna con bloque cerámico armadura y hormigón | C84: =lista1!C84 -> ml | D84: 0.9022553657 | F84: 0 | G84: =lista1!G84 -> 0 | H84: 0
A85: =lista1!A85 -> 0 | B85: =lista1!B85 -> Muro portante en elevación de HCCA tipo Retak | C85: =lista1!C85 -> m3 | D85: 0.9022553657 | F85: 0 | G85: =lista1!G85 -> 0 | H85: 0
A86: =lista1!A86 -> 0 | B86: =lista1!B86 -> Colocación de carpinterías (incluye amurado, marcos y premarcos) | C86: =lista1!C86 -> m2 | D86: 0.9022553657 | F86: 0 | G86: =lista1!G86 -> 0 | H86: 0
A87: =lista1!A87 -> 0 | B87: =lista1!B87 -> Colocación de barandas | C87: =lista1!C87 -> ml | D87: 0.9022553657 | F87: 0 | G87: =lista1!G87 -> 0 | H87: 0
A88: =lista1!A88 -> 0 | B88: =lista1!B88 -> Muro portante en elevación de HCCA de 15x25x50 tipo Retak | C88: =lista1!C88 -> m2 | D88: 0.9022553657 | F88: 0 | G88: =lista1!G88 -> 0 | H88: 0
A89: =lista1!A89 -> 0 | B89: =lista1!B89 -> murete de mesada de cocina hasta 95 cm de alto (incl mat y m.o: muro 0,15+ revoq gr y fno ambas caras) sin revestim. | C89: =lista1!C89 -> u | D89: 0.9022553657 | F89: 0 | G89: =lista1!G89 -> 0 | H89: 0
A90: =lista1!A90 -> 0 | B90: =lista1!B90 -> murete de mesada de cocina hasta 95 cm de alto (incl mat y m.o: muro 0,15+ revoq gr y revest. ambas caras) sin fino | C90: =lista1!C90 -> u | D90: 0.9022553657 | F90: 0 | G90: =lista1!G90 -> 0 | H90: 0
A91: =lista1!A91 -> 0 | B91: =lista1!B91 -> Conducto de ventilación | C91: =lista1!C91 -> ml | D91: 0.9022553657 | F91: 0 | G91: =lista1!G91 -> 0 | H91: 0
A92: =lista1!A92 -> 0 | B92: =lista1!B92 -> Sombrete conducto ventilación | C92: =lista1!C92 -> u | D92: 0.9022553657 | F92: 0 | G92: =lista1!G92 -> 0 | H92: 0
A93: =lista1!A93 -> 0 | B93: =lista1!B93 -> Rejilla para conducto | C93: =lista1!C93 -> ml | D93: 0.9022553657 | F93: 0 | G93: =lista1!G93 -> 0 | H93: 0
A94: =lista1!A94 -> 0 | B94: =lista1!B94 -> Conducto de presurización | C94: =lista1!C94 -> ml | D94: 0.9022553657 | F94: 0 | G94: =lista1!G94 -> 0 | H94: 0
A95: =lista1!A95 -> 0 | B95: =lista1!B95 -> Sombrete conducto presuriz. | C95: =lista1!C95 -> u | D95: 0.9022553657 | F95: 0 | G95: =lista1!G95 -> 0 | H95: 0
A96: =lista1!A96 -> 0 | B96: =lista1!B96 -> Reja conducto ventilación | C96: =lista1!C96 -> u | D96: 0.9022553657 | F96: 0 | G96: =lista1!G96 -> 0 | H96: 0
A97: =lista1!A97 -> 0 | B97: =lista1!B97 -> banquinas de mesada (contrapiso + carpeta + revest. Ceramico) | C97: =lista1!C97 -> ml | D97: 0.9022553657 | F97: 0 | G97: =lista1!G97 -> 6.3 | H97: 0
A98: =lista1!A98 -> 0 | B98: =lista1!B98 -> tomado de juntas en ladrillos visto rehundidas (al ras es 0,841*D) | C98: =lista1!C98 -> m2 | D98: 0.9022553657 | E98: 108 | F98: =D98*E98 -> 97.4435795 | G98: =lista1!G98 -> 0 | H98: =+F98*G98 -> 0
A99: =lista1!A99 -> 0 | B99: =lista1!B99 -> Muros de ladrillo de vidrio 20x20x10 cm | C99: =lista1!C99 -> m2 | D99: 0.9022553657 | E99: 3365.26 | F99: =D99*E99 -> 3036.323892 | G99: =lista1!G99 -> 0 | H99: =+F99*G99 -> 0
A100: =lista1!A100 -> 0 | B100: =lista1!B100 -> Tabique de placas de yeso, tipo durlock 12,5 mm esp. | C100: =lista1!C100 -> m2 | D100: 0.9022553657 | E100: 528.83 | F100: =D100*E100 -> 477.1397051 | G100: =lista1!G100 -> 0 | H100: =+F100*G100 -> 0
A101: =lista1!A101 -> 0 | B101: =lista1!B101 -> 0 | C101: =lista1!C101 -> 0 | G101: =lista1!G101 -> 0
A102: =lista1!A102 -> 8 | B102: =lista1!B102 -> Construcción con placas de roca de yeso | C102: =lista1!C102 -> Unid. | E102: Precio | G102: =lista1!G102 -> Cantid. | H102: Parcial
A103: =lista1!A103 -> 0 | B103: =lista1!B103 -> En todos los casos las terminaciones quedan listas para pintar. Junta tomada con cinta tramada y mansilla
A104: =lista1!A104 -> 0 | B104: =lista1!B104 -> Tabique simple espesor 9,5 cm. Estructura de chapa galvanizada con montantes cada 48 cm. Solera inferior y superior de 70mm. Placa normal 15mm | C104: =lista1!C104 -> m2 | D104: =$N$27 -> 0.9022553657 | F104: =D104*E104 -> 0 | G104: =lista1!G104 -> 0 | H104: =+F104*G104 -> 0
A105: =lista1!A105 -> 0 | B105: =lista1!B105 -> Idem con aislación de lana de vidrio | C105: =lista1!C105 -> m2 | D105: =$N$27 -> 0.9022553657 | F105: =D105*E105 -> 0 | G105: =lista1!G105 -> 0 | H105: =+F105*G105 -> 0
A106: =lista1!A106 -> 0 | B106: =lista1!B106 -> Medio tabique espesor total 8,5 cm | C106: =lista1!C106 -> m2 | D106: 0.9022553657 | F106: 0 | G106: =lista1!G106 -> 0 | H106: 0
A107: =lista1!A107 -> 0 | B107: =lista1!B107 -> Pared divisoria de unidades funcionales espesor total 12 cm. Doble placa de 15mm en ambas caras. Montantes cada 40cm. Solera 70mm interior y super. | C107: =lista1!C107 -> m2 | D107: 0.9022553657 | F107: 0 | G107: =lista1!G107 -> 0 | H107: 0
A108: =lista1!A108 -> 0 | B108: =lista1!B108 -> Cielorraso suspendido, junta tomada con placas de 12,5mm, Estructura soleras y montantes de chapa galvanizada | C108: =lista1!C108 -> m2 | D108: 0.9022553657 | F108: 0 | G108: =lista1!G108 -> 0 | H108: 0
A109: =lista1!A109 -> 0 | B109: =lista1!B109 -> Idem con placa verde. | C109: =lista1!C109 -> m2 | D109: 0.9022553657 | F109: 0 | G109: =lista1!G109 -> 0 | H109: 0
A110: =lista1!A110 -> 0 | B110: =lista1!B110 -> Cielorraso suspendido desmontable. Estructura con bastidor de aluminio. Placas texturadas 60 x 1,20 | C110: =lista1!C110 -> m2 | D110: 0.9022553657 | F110: 0 | G110: =lista1!G110 -> 0 | H110: 0
A111: =lista1!A111 -> 0 | B111: =lista1!B111 -> 0 | C111: =lista1!C111 -> 0 | G111: =lista1!G111 -> 0
A112: =lista1!A112 -> 9 | B112: =lista1!B112 -> Aislaciones | C112: =lista1!C112 -> 0 | G112: =lista1!G112 -> 0
A113: =lista1!A113 -> 0 | B113: =lista1!B113 -> De sótanos cementicia para cerramientos horizontal y vertical | C113: =lista1!C113 -> m2 | D113: =$N$27 -> 0.9022553657 | F113: =D113*E113 -> 0 | G113: =lista1!G113 -> 0 | H113: =+F113*G113 -> 0
A114: =lista1!A114 -> 0 | B114: =lista1!B114 -> Capa aisladora con tabique panderete | C114: =lista1!C114 -> m2 | D114: =$N$27 -> 0.9022553657 | E114: 581 | F114: =D114*E114 -> 524.2103675 | G114: =lista1!G114 -> 0 | H114: 0
A115: =lista1!A115 -> 0 | B115: =lista1!B115 -> Horizontal espesor 2 cm sobre muro | C115: =lista1!C115 -> m2 | D115: 0.9022553657 | E115: 180.82 | F115: 163.1458152 | G115: =lista1!G115 -> 14.36947059 | H115: 2344.318994
A116: =lista1!A116 -> 0 | B116: =lista1!B116 -> Film de polietileno bajo plateas o contrapisos | C116: =lista1!C116 -> m2 | D116: 0.9022553657 | F116: 0 | G116: =lista1!G116 -> 0 | H116: 0
A117: =lista1!A117 -> 0 | B117: =lista1!B117 -> Horizontal cementicia en contrapiso sobre terreno natural | C117: =lista1!C117 -> m2 | D117: 0.9022553657 | E117: 101.77 | F117: 91.82252857 | G117: =lista1!G117 -> 0 | H117: 0
A118: =lista1!A118 -> 0 | B118: =lista1!B118 -> Horizontal sobre losa para locales húmedos | C118: =lista1!C118 -> m2 | D118: 0.9022553657 | F118: 0 | G118: =lista1!G118 -> 0 | H118: 0
A119: =lista1!A119 -> 0 | B119: =lista1!B119 -> Azotado hidrófugo bajo revestimientos | C119: =lista1!C119 -> m2 | D119: 0.9022553657 | F119: 0 | G119: =lista1!G119 -> 0 | H119: 0
A120: =lista1!A120 -> 0 | B120: =lista1!B120 -> Vertical de 1,5 de esp. sobre muros | C120: =lista1!C120 -> m2 | D120: 0.9022553657 | E120: 124.17 | F120: 112.0330488 | G120: =lista1!G120 -> 21.6 | H120: 2419.913853
A121: =lista1!A121 -> 0 | B121: =lista1!B121 -> Horizontal y vertical cementicia para interior tanques de agua | C121: =lista1!C121 -> m2 | D121: 0.9022553657 | F121: 0 | G121: =lista1!G121 -> 0 | H121: 0
A122: =lista1!A122 -> 0 | B122: =lista1!B122 -> inyeccion de líquidos químicos SIKA inertol infiltración, c perf c/15 cm a tres bolillos, rev.,rev fino (220MO+300mat) | C122: =lista1!C122 -> ml | D122: 0.9022553657 | E122: 449.25 | F122: 405.338223 | G122: =lista1!G122 -> 22 | H122: 8917.440907
A123: =lista1!A123 -> 10 | B123: =lista1!B123 -> Cubiertas | C123: =lista1!C123 -> 0 | G123: =lista1!G123 -> 0
A124: =lista1!A124 -> 0 | B124: =lista1!B124 -> No se incluye la losa de hormigón | C124: =lista1!C124 -> 0 | G124: =lista1!G124 -> 0
A125: =lista1!A125 -> 0 | B125: =lista1!B125 -> Planas | C125: =lista1!C125 -> 0 | G125: =lista1!G125 -> 0
A126: =lista1!A126 -> 0 | B126: =lista1!B126 -> Sobre losa con barrera de vapor, contrapiso con pendiente. Carpeta para recibir, y proteger, aislación térmica e hidráulica con membrana con aluminio | C126: =lista1!C126 -> m2 | D126: =$N$27 -> 0.9022553657 | F126: =D126*E126 -> 0 | G126: =lista1!G126 -> 104.05 | H126: =+F126*G126 -> 0
A127: =lista1!A127 -> 0 | B127: =lista1!B127 -> Idem anterior. Cubierta transitable terminación baldosas 20 x 20 para terraza | C127: =lista1!C127 -> m2 | D127: =$N$27 -> 0.9022553657 | F127: =D127*E127 -> 0 | G127: =lista1!G127 -> 0 | H127: =+F127*G127 -> 0
A128: =lista1!A128 -> 0 | B128: =lista1!B128 -> 0 | C128: =lista1!C128 -> 0 | G128: =lista1!G128 -> 0
A129: =lista1!A129 -> 0 | B129: =lista1!B129 -> Con pendiente | C129: =lista1!C129 -> 0 | G129: =lista1!G129 -> 0
A130: =lista1!A130 -> 0 | B130: =lista1!B130 -> No incluye la pintura. Para las de madera se consideró la aplicación de preservador. No incluye correas | C130: =lista1!C130 -> 0 | G130: =lista1!G130 -> 0
A131: =lista1!A131 -> 0 | B131: =lista1!B131 -> Tejas francesa estructura de madera vista con aislación térmica | C131: =lista1!C131 -> m2 | D131: =$N$27 -> 0.9022553657 | F131: =D131*E131 -> 0 | G131: =lista1!G131 -> 0 | H131: =+F131*G131 -> 0
A132: =lista1!A132 -> 0 | B132: =lista1!B132 -> Idem, con madera sin cepillar | C132: =lista1!C132 -> m2 | D132: =$N$27 -> 0.9022553657 | F132: =D132*E132 -> 0 | G132: =lista1!G132 -> 0 | H132: =+F132*G132 -> 0
A133: =lista1!A133 -> 0 | B133: =lista1!B133 -> Chapa ondulada N24 estructura de madera vista. No se considera con aislación térmica | C133: =lista1!C133 -> m2 | D133: 0.9022553657 | F133: 0 | G133: =lista1!G133 -> 0 | H133: 0
A134: =lista1!A134 -> 0 | B134: =lista1!B134 -> Idem, chapa prepintada | C134: =lista1!C134 -> m2 | D134: 0.9022553657 | F134: 0 | G134: =lista1!G134 -> 0 | H134: 0
A135: =lista1!A135 -> 0 | B135: =lista1!B135 -> Chapa ambas caras con aislación térmica | C135: =lista1!C135 -> m2 | D135: 0.9022553657 | F135: 0 | G135: =lista1!G135 -> 0 | H135: 0
A136: =lista1!A136 -> 0 | B136: =lista1!B136 -> Teja colonial madera vista | C136: =lista1!C136 -> m2 | D136: 0.9022553657 | F136: 0 | G136: =lista1!G136 -> 0 | H136: 0
A137: =lista1!A137 -> 0 | B137: =lista1!B137 -> Teja colonial madera sin cepillar | C137: =lista1!C137 -> m2 | D137: 0.9022553657 | F137: 0 | G137: =lista1!G137 -> 0 | H137: 0
A138: =lista1!A138 -> 0 | B138: =lista1!B138 -> Chapa imitación tejas | C138: =lista1!C138 -> m2 | D138: 0.9022553657 | F138: 0 | G138: =lista1!G138 -> 0 | H138: 0
A139: =lista1!A139 -> 0 | B139: =lista1!B139 -> Junta de dilatación membrana asfáltica | C139: =lista1!C139 -> m2 | D139: 0.9022553657 | F139: 0 | G139: =lista1!G139 -> 0 | H139: 0
A140: =lista1!A140 -> 0 | B140: =lista1!B140 -> Tinglado chapa galvanizada sobre vigaa spagueti | C140: =lista1!C140 -> m2 | D140: 0.9022553657 | F140: 0 | G140: =lista1!G140 -> 0 | H140: 0
A141: =lista1!A141 -> 0 | B141: =lista1!B141 -> 0 | C141: =lista1!C141 -> 0 | G141: =lista1!G141 -> 0
A142: =lista1!A142 -> 11 | B142: =lista1!B142 -> Contrapiso | C142: =lista1!C142 -> 0 | G142: =lista1!G142 -> 0
A143: =lista1!A143 -> 0 | B143: =lista1!B143 -> Hormigón de cascotes armado de espesor 15 cm sobre terreno natural | C143: =lista1!C143 -> m2 | D143: =$N$27 -> 0.9022553657 | F143: =D143*E143 -> 0 | G143: =lista1!G143 -> 158.66 | H143: =+F143*G143 -> 0
A144: =lista1!A144 -> 0 | B144: =lista1!B144 -> Hormigón de cascotes sobre losa espesor 7 cm | C144: =lista1!C144 -> m2 | D144: =$N$27 -> 0.9022553657 | F144: =D144*E144 -> 0 | G144: =lista1!G144 -> 0 | H144: =+F144*G144 -> 0
A145: =lista1!A145 -> 0 | B145: =lista1!B145 -> Hormigón de cascotes sobre losa local sanitario espesor 25 cm | C145: =lista1!C145 -> m2 | D145: =$N$27 -> 0.9022553657 | F145: =D145*E145 -> 0 | G145: =lista1!G145 -> 0 | H145: =+F145*G145 -> 0
A146: =lista1!A146 -> 0 | B146: =lista1!B146 -> Hormigón de arcilla expandida 10 cm de espesor | C146: =lista1!C146 -> m2 | D146: =$N$27 -> 0.9022553657 | F146: =D146*E146 -> 0 | G146: =lista1!G146 -> 0 | H146: =+F146*G146 -> 0
A147: =lista1!A147 -> 0 | B147: =lista1!B147 -> Mortero celular de 7 cm espesor | C147: =lista1!C147 -> m2 | D147: =$N$27 -> 0.9022553657 | F147: =D147*E147 -> 0 | G147: =lista1!G147 -> 0 | H147: =+F147*G147 -> 0
A148: =lista1!A148 -> 0 | B148: =lista1!B148 -> 0 | C148: =lista1!C148 -> 0 | G148: =lista1!G148 -> 0
A149: =lista1!A149 -> 12 | B149: =lista1!B149 -> Carpetas | C149: =lista1!C149 -> 0 | G149: =lista1!G149 -> 0
A150: =lista1!A150 -> 0 | B150: =lista1!B150 -> De concreto bajo solado | C150: =lista1!C150 -> m2 | D150: =$N$27 -> 0.9022553657 | F150: =D150*E150 -> 0 | G150: =lista1!G150 -> 158.66 | H150: =+F150*G150 -> 0
A151: =lista1!A151 -> 0 | B151: =lista1!B151 -> Carpeta de mortero celular 2 cm espesor | C151: =lista1!C151 -> m2 | D151: =$N$27 -> 0.9022553657 | F151: =D151*E151 -> 0 | G151: =lista1!G151 -> 0 | H151: =+F151*G151 -> 0
A152: =lista1!A152 -> 0 | B152: =lista1!B152 -> Carpeta clavadora para parquet | C152: =lista1!C152 -> m2 | D152: =$N$27 -> 0.9022553657 | F152: =D152*E152 -> 0 | G152: =lista1!G152 -> 0 | H152: =+F152*G152 -> 0
A153: =lista1!A153 -> 0 | B153: =lista1!B153 -> 0 | C153: =lista1!C153 -> 0 | G153: =lista1!G153 -> 0
A154: =lista1!A154 -> 13 | B154: =lista1!B154 -> Revoques | C154: =lista1!C154 -> 0 | G154: =lista1!G154 -> 0
A155: =lista1!A155 -> 0 | B155: =lista1!B155 -> No se considera el trabajo de andamio | C155: =lista1!C155 -> 0 | G155: =lista1!G155 -> 0
A156: =lista1!A156 -> 0 | B156: =lista1!B156 -> Grueso y fino a la cal al fieltro | C156: =lista1!C156 -> m2 | D156: =$N$27 -> 0.9022553657 | F156: =D156*E156 -> 0 | G156: =lista1!G156 -> 342.03624 | H156: =+F156*G156 -> 0
A157: =lista1!A157 -> 0 | B157: =lista1!B157 -> Grueso a la cal impermeable para exterior completo | C157: =lista1!C157 -> m2 | D157: =$N$27 -> 0.9022553657 | F157: =D157*E157 -> 0 | G157: =lista1!G157 -> 146.58696 | H157: =+F157*G157 -> 0
A158: =lista1!A158 -> 0 | B158: =lista1!B158 -> Grueso bajo revestimientos | C158: =lista1!C158 -> m2 | D158: 0.9022553657 | F158: 0 | G158: =lista1!G158 -> 0 | H158: 0
A159: =lista1!A159 -> 0 | B159: =lista1!B159 -> Revoque proyectado exterior con hidrófugo | C159: =lista1!C159 -> m2 | D159: 0.9022553657 | F159: 0 | G159: =lista1!G159 -> 0 | H159: 0
A160: =lista1!A160 -> 0 | B160: =lista1!B160 -> Revoque proyectable grueso a la cal para interior | C160: =lista1!C160 -> m2 | D160: 0.9022553657 | F160: 0 | G160: =lista1!G160 -> 0 | H160: 0
A161: =lista1!A161 -> 0 | B161: =lista1!B161 -> Revoque proyectable fino a la cal para interior | C161: =lista1!C161 -> m2 | D161: 0.9022553657 | F161: 0 | G161: =lista1!G161 -> 0 | H161: 0
A162: =lista1!A162 -> 0 | B162: =lista1!B162 -> Revoque proyectable de yeso para interior, con engrosado | C162: =lista1!C162 -> m2 | D162: 0.9022553657 | F162: 0 | G162: =lista1!G162 -> 0 | H162: 0
A163: =lista1!A163 -> 0 | B163: =lista1!B163 -> Salpicado con molinete | C163: =lista1!C163 -> m2 | D163: 0.9022553657 | F163: 0 | G163: =lista1!G163 -> 0 | H163: 0
A164: =lista1!A164 -> 0 | B164: =lista1!B164 -> Salpicado con molinete exterior planchado | C164: =lista1!C164 -> m2 | D164: 0.9022553657 | F164: 0 | G164: =lista1!G164 -> 0 | H164: 0
A165: =lista1!A165 -> 0 | B165: =lista1!B165 -> Revoque especial super Iggam | C165: =lista1!C165 -> ml | D165: 0.9022553657 | F165: 0 | G165: =lista1!G165 -> 0 | H165: 0
A166: =lista1!A166 -> 0 | B166: =lista1!B166 -> Buñas super Iggam | C166: =lista1!C166 -> ml | D166: 0.9022553657 | F166: 0 | G166: =lista1!G166 -> 0 | H166: 0
A167: =lista1!A167 -> 0 | B167: =lista1!B167 -> http://www.construircordoba.com/precios-de-tareas/revoques/ | C167: =lista1!C167 -> 0 | G167: =lista1!G167 -> 0
A168: =lista1!A168 -> 14 | B168: =lista1!B168 -> Revestimientos | C168: =lista1!C168 -> Unid. | E168: Precio | G168: =lista1!G168 -> Cantid. | H168: Parcial
A169: =lista1!A169 -> 0 | B169: =lista1!B169 -> Incluye la mano de obra completa, adhesivo y tomado de juntas
A170: =lista1!A170 -> 0 | B170: =lista1!B170 -> Cerámico tipo San Lorenzo 20 x 20 | C170: =lista1!C170 -> m2 | D170: =$N$27 -> 0.9022553657 | F170: =D170*E170 -> 0 | G170: =lista1!G170 -> 0 | H170: =+F170*G170 -> 0
A171: =lista1!A171 -> 0 | B171: =lista1!B171 -> De venecita | C171: =lista1!C171 -> m2 | D171: =$N$27 -> 0.9022553657 | F171: =D171*E171 -> 0 | G171: =lista1!G171 -> 0 | H171: =+F171*G171 -> 0
A172: =lista1!A172 -> 0 | B172: =lista1!B172 -> Cerámico esmaltado 30 x 30 cm | C172: =lista1!C172 -> m2 | D172: 0.9022553657 | F172: 0 | G172: =lista1!G172 -> 29.93 | H172: 0
A173: =lista1!A173 -> 0 | B173: =lista1!B173 -> Revestimientos secos | C173: =lista1!C173 -> 0 | D173: 0.9022553657 | F173: 0 | G173: =lista1!G173 -> 0 | H173: 0
A174: =lista1!A174 -> 0 | B174: =lista1!B174 -> De muros con machiembrado de pino 1/2". Incluye la estructura sobre muro | C174: =lista1!C174 -> m2 | D174: 0.9022553657 | F174: 0 | G174: =lista1!G174 -> 0 | H174: 0
A175: =lista1!A175 -> 0 | B175: =lista1!B175 -> Cerámica esmaltada 30x30 con guardas | C175: =lista1!C175 -> m2 | D175: 0.9022553657 | F175: 0 | G175: =lista1!G175 -> 0 | H175: 0
A176: =lista1!A176 -> 0 | B176: =lista1!B176 -> Porcellanato 30x30 rústico | C176: =lista1!C176 -> m2 | D176: 0.9022553657 | F176: 0 | G176: =lista1!G176 -> 0 | H176: 0
A177: =lista1!A177 -> 0 | B177: =lista1!B177 -> Tejuelas de ladrillo | C177: =lista1!C177 -> m2 | D177: 0.9022553657 | F177: 0 | G177: =lista1!G177 -> 0 | H177: 0
A178: =lista1!A178 -> 0 | B178: =lista1!B178 -> 0 | C178: =lista1!C178 -> 0 | G178: =lista1!G178 -> 0
A179: =lista1!A179 -> 15 | B179: =lista1!B179 -> Cielorrasos | C179: =lista1!C179 -> 0 | G179: =lista1!G179 -> 0
A180: =lista1!A180 -> 0 | B180: =lista1!B180 -> Aplicado a la cal fina fratasada | C180: =lista1!C180 -> m2 | D180: =$N$27 -> 0.9022553657 | F180: =D180*E180 -> 0 | G180: =lista1!G180 -> 0 | H180: =+F180*G180 -> 0
A181: =lista1!A181 -> 0 | B181: =lista1!B181 -> Aplicado grueso y fino a la cal al fieltro | C181: =lista1!C181 -> m2 | D181: =$N$27 -> 0.9022553657 | F181: =D181*E181 -> 0 | G181: =lista1!G181 -> 104.05 | H181: =+F181*G181 -> 0
A182: =lista1!A182 -> 0 | B182: =lista1!B182 -> Suspendido a la cal armado en madera | C182: =lista1!C182 -> m2 | D182: 0.9022553657 | F182: 0 | G182: =lista1!G182 -> 0 | H182: 0
A183: =lista1!A183 -> 0 | B183: =lista1!B183 -> Suspendido a la cal armado en hierro | C183: =lista1!C183 -> m2 | D183: 0.9022553657 | F183: 0 | G183: =lista1!G183 -> 0 | H183: 0
A184: =lista1!A184 -> 0 | B184: =lista1!B184 -> Taparrollo armado a la cal | C184: =lista1!C184 -> ml | D184: 0.9022553657 | F184: 0 | G184: =lista1!G184 -> 0 | H184: 0
A185: =lista1!A185 -> 0 | B185: =lista1!B185 -> Suspendido termoacústico | C185: =lista1!C185 -> m2 | D185: 0.9022553657 | F185: 0 | G185: =lista1!G185 -> 0 | H185: 0
A186: =lista1!A186 -> 0 | B186: =lista1!B186 -> Suspendido con dorso de aluminio | C186: =lista1!C186 -> m2 | D186: 0.9022553657 | F186: 0 | G186: =lista1!G186 -> 0 | H186: 0
A187: =lista1!A187 -> 0 | B187: =lista1!B187 -> Paneles de aluminio microperforado | C187: =lista1!C187 -> m2 | D187: 0.9022553657 | F187: 0 | G187: =lista1!G187 -> 0 | H187: 0
A188: =lista1!A188 -> 0 | B188: =lista1!B188 -> 0 | C188: =lista1!C188 -> 0 | G188: =lista1!G188 -> 0
A189: =lista1!A189 -> 16 | B189: =lista1!B189 -> Yeseria | C189: =lista1!C189 -> 0 | G189: =lista1!G189 -> 0
A190: =lista1!A190 -> 0 | B190: =lista1!B190 -> Enlucido de yeso | C190: =lista1!C190 -> m2 | D190: =$N$27 -> 0.9022553657 | F190: =D190*E190 -> 0 | G190: =lista1!G190 -> 0 | H190: =+F190*G190 -> 0
A191: =lista1!A191 -> 0 | B191: =lista1!B191 -> Enlucido de yeso reforzado con cemento | C191: =lista1!C191 -> m2 | D191: =$N$27 -> 0.9022553657 | F191: =D191*E191 -> 0 | G191: =lista1!G191 -> 0 | H191: =+F191*G191 -> 0
A192: =lista1!A192 -> 0 | B192: =lista1!B192 -> Enlucido de yeso y engrosado con yeso gris | C192: =lista1!C192 -> m2 | D192: 0.9022553657 | F192: 0 | G192: =lista1!G192 -> 0 | H192: 0
A193: =lista1!A193 -> 0 | B193: =lista1!B193 -> Guardacanto de yesero. Incluye el recubrimiento de yeso | C193: =lista1!C193 -> ml | D193: 0.9022553657 | F193: 0 | G193: =lista1!G193 -> 0 | H193: 0
A194: =lista1!A194 -> 0 | B194: =lista1!B194 -> Fajas sobre revestimiento | C194: =lista1!C194 -> ml | D194: 0.9022553657 | F194: 0 | G194: =lista1!G194 -> 0 | H194: 0
A195: =lista1!A195 -> 0 | B195: =lista1!B195 -> Agujeros circulares hasta 40 cm de diámetro | C195: =lista1!C195 -> u | D195: 0.9022553657 | F195: 0 | G195: =lista1!G195 -> 0 | H195: 0
A196: =lista1!A196 -> 0 | B196: =lista1!B196 -> Cielorraso aplicado al yeso | C196: =lista1!C196 -> m2 | D196: 0.9022553657 | F196: 0 | G196: =lista1!G196 -> 0 | H196: 0
A197: =lista1!A197 -> 0 | B197: =lista1!B197 -> Cielorraso de yeso armado estructura de madera | C197: =lista1!C197 -> m2 | D197: 0.9022553657 | F197: 0 | G197: =lista1!G197 -> 0 | H197: 0
A198: =lista1!A198 -> 0 | B198: =lista1!B198 -> Cielorraso de yeso armado estructura de hierro | C198: =lista1!C198 -> m2 | D198: 0.9022553657 | F198: 0 | G198: =lista1!G198 -> 0 | H198: 0
A199: =lista1!A199 -> 0 | B199: =lista1!B199 -> Taparrollo de yeso armado | C199: =lista1!C199 -> ml | D199: 0.9022553657 | F199: 0 | G199: =lista1!G199 -> 0 | H199: 0
A200: =lista1!A200 -> 0 | B200: =lista1!B200 -> 0 | C200: =lista1!C200 -> 0 | G200: =lista1!G200 -> 0
... 186 more rows

Sheet lista4
A1: =lista1!A1 -> nro | B1: =lista1!B1 -> rubros o items | C1: =lista1!C1 -> Unid. | E1: $vjo | F1: $nvo | G1: =lista1!G1 -> Cantid. | H1: Parc. | I1: 350 | J1: pago al ayudante
A2: =lista1!A2 -> 0 | B2: precios German Invernizzi | C2: ¿quiere usar estos precios? | G2: si | I2: =MAX((I3:I4=G2)*(J3:J4)) -> 1
A3: =lista1!A3 -> 1 | B3: =lista1!B3 -> Trabajos preliminares | C3: =lista1!C3 -> 0 | G3: =lista1!G3 -> 0 | I3: si | J3: 1
A4: =lista1!A4 -> 0 | B4: =lista1!B4 -> Limpieza y nivelación del terreno | C4: =lista1!C4 -> m2 | D4: =$N$27 -> 1.105345212 | F4: =D4*E4 -> 0 | G4: =lista1!G4 -> 162.5 | H4: =+F4*G4 -> 0 | I4: no | J4: 0
A5: =lista1!A5 -> 0 | B5: =lista1!B5 -> Obrador, depósito y sanitarios | C5: =lista1!C5 -> m2 | D5: =$N$27 -> 1.105345212 | F5: =D5*E5 -> 0 | G5: =lista1!G5 -> 13 | H5: =+F5*G5 -> 0
A6: =lista1!A6 -> 0 | B6: =lista1!B6 -> desmonte en terreno comun (si en terr. C. roca disgregable con barreta se debera mult. Prec. X 2,3) | C6: =lista1!C6 -> m3 | G6: =lista1!G6 -> 0
A7: =lista1!A7 -> 2 | B7: =lista1!B7 -> Procedimientos y cumplimientos | C7: =lista1!C7 -> 0 | G7: =lista1!G7 -> 0
A8: =lista1!A8 -> 0 | B8: =lista1!B8 -> Replanteo | C8: =lista1!C8 -> m2 | D8: =$N$27 -> 1.105345212 | F8: =D8*E8 -> 0 | G8: =lista1!G8 -> 104.05 | H8: =+F8*G8 -> 0
A9: =lista1!A9 -> 0 | B9: =lista1!B9 -> Cartel de obra | C9: =lista1!C9 -> m2 | D9: =$N$27 -> 1.105345212 | F9: =D9*E9 -> 0 | G9: =lista1!G9 -> 0 | H9: =+F9*G9 -> 0
A10: =lista1!A10 -> 0 | B10: =lista1!B10 -> Cerco de obra | C10: =lista1!C10 -> ml | D10: =$N$27 -> 1.105345212 | F10: =D10*E10 -> 0 | G10: =lista1!G10 -> 0 | H10: =+F10*G10 -> 0
A11: =lista1!A11 -> 0 | B11: =lista1!B11 -> Defensa de protección para trabajo en obra | C11: =lista1!C11 -> ml | D11: =$N$27 -> 1.105345212 | F11: =D11*E11 -> 0 | G11: =lista1!G11 -> 0 | H11: =+F11*G11 -> 0
A12: =lista1!A12 -> 0 | B12: =lista1!B12 -> 0 | C12: =lista1!C12 -> 0 | G12: =lista1!G12 -> 0
A13: =lista1!A13 -> 3 | B13: =lista1!B13 -> Demoliciones | C13: =lista1!C13 -> 0 | G13: =lista1!G13 -> 0
A14: =lista1!A14 -> 0 | B14: =lista1!B14 -> En los siguientes items, se incluye el retiro de los escombros de la obra hasta coloc.dentro del contenedor | C14: =lista1!C14 -> 0 | G14: =lista1!G14 -> 0
A15: =lista1!A15 -> 0 | B15: =lista1!B15 -> De estructura de hormigón, losas de HºAº, dados, camaras de HºAº (incluye cargarlo) | C15: =lista1!C15 -> m3 | D15: =$N$27 -> 1.105345212 | F15: =D15*E15 -> 0 | G15: =lista1!G15 -> 0 | H15: =+F15*G15 -> 0
A16: =lista1!A16 -> 0 | B16: =lista1!B16 -> De mamposteria (todos los items incluyen cargar escombros a un contenedor cercano, refiere a planta baja) | C16: =lista1!C16 -> m3 | D16: 1.105345212 | E16: =150+E24/5 -> 269 | F16: =D16*E16 -> 297.3378619 | G16: =lista1!G16 -> 0 | H16: =+F16*G16 -> 0
A17: =lista1!A17 -> 0 | B17: =lista1!B17 -> De pisos | C17: =lista1!C17 -> m2 | D17: 1.105345212 | F17: 0 | G17: =lista1!G17 -> 0 | H17: 0
A18: =lista1!A18 -> 0 | B18: =lista1!B18 -> De contrapisos | C18: =lista1!C18 -> m2 | D18: 1.105345212 | F18: 0 | G18: =lista1!G18 -> 0 | H18: 0
A19: =lista1!A19 -> 0 | B19: =lista1!B19 -> Picado de revoques, cielorrasos suspendidos ó demolcic. de cubiert d tejas coloniales (sin recuper. de tejas) | C19: =lista1!C19 -> m2 | D19: 1.105345212 | E19: 28 | F19: 30.94966592 | G19: =lista1!G19 -> 0 | H19: 0
A20: =lista1!A20 -> 0 | B20: =lista1!B20 -> Picado de revestimientos | C20: =lista1!C20 -> m2 | D20: 1.105345212 | F20: 0 | G20: =lista1!G20 -> 0 | H20: 0
A21: =lista1!A21 -> 0 | B21: =lista1!B21 -> De estructura de madera con tejas francesa (o colonial) | C21: =lista1!C21 -> m2 | D21: 1.105345212 | E21: 150 | F21: 165.8017817 | G21: =lista1!G21 -> 0 | H21: 0
A22: =lista1!A22 -> 0 | B22: =lista1!B22 -> Demolición de obra completa | C22: =lista1!C22 -> m2 | D22: 1.105345212 | F22: 0 | G22: =lista1!G22 -> 28 | H22: 0
A23: =lista1!A23 -> 0 | B23: =lista1!B23 -> Contenedor/Volquete, alquiler | C23: =lista1!C23 -> u | D23: 1.105345212 | E23: 550 | F23: 607.9398664 | G23: =lista1!G23 -> 16 | H23: 9727.037862
A24: =lista1!A24 -> 0 | B24: =lista1!B24 -> Cargar Contenedor/Volquete | C24: =lista1!C24 -> u | D24: 1.105345212 | E24: =I1*1.7 -> 595 | F24: 657.6804009 | G24: =lista1!G24 -> 16 | H24: 10522.88641
A25: =lista1!A25 -> 4 | B25: =lista1!B25 -> Movimientos de tierra | C25: =lista1!C25 -> 0 | G25: =lista1!G25 -> 0
A26: =lista1!A26 -> 0 | B26: =lista1!B26 -> Excavación manual p cimientos y bases column terreno común (si tosca mult.al prec.x 1,214 y x1,714 si es roca digregable) | C26: =lista1!C26 -> m3 | D26: =$N$27 -> 1.105345212 | F26: =D26*E26 -> 0 | G26: =lista1!G26 -> 6.001526718 | H26: =+F26*G26 -> 0
A27: =lista1!A27 -> 0 | B27: =lista1!B27 -> Excavación manual de vigas de fundación hasta 1,20 m de prof. | C27: =lista1!C27 -> m3 | D27: 1.105345212 | F27: 0 | G27: =lista1!G27 -> 9.90225 | H27: 0 | L27: mult | N27: =I2*T28/T31 -> 1.105345212 | T27: US$prom
A28: =lista1!A28 -> 0 | B28: =lista1!B28 -> Excavación de pozos para pilotín (diám. 23 cm - prof. 1,6 m) | C28: =lista1!C28 -> u | D28: 1.105345212 | F28: 0 | G28: =lista1!G28 -> 24 | H28: 0 | J28: #1precio dólar oficial vta | P28: =lista1!P28 -> 9.335 | Q28: =lista1!Q28 -> $AR | R28: =lista1!R28:S28 -> 2015-11-12 | T28: =AVERAGE(P28:P29) -> 12.4075
A29: =lista1!A29 -> 0 | B29: =lista1!B29 -> Excavación p/ cisternas, cámaras sépt.,de inspec., sótanos a mano terr. Comun hast4m (tosca x1,351 y si fuese roc disgr x 1,89) | C29: =lista1!C29 -> m3 | D29: 1.105345212 | E29: 250 | F29: 276.3363029 | G29: =lista1!G29 -> 12.076 | H29: 3337.037194 | J29: #2precio dólar blue vta | P29: =lista1!P29 -> 15.48 | Q29: =lista1!Q29 -> $AR | R29: =lista1!R29:S29 -> 2015-11-12
A30: =lista1!A30 -> 0 | B30: =lista1!B30 -> Excavación p/ pozo absorbt o Romano, a mano terr. Comun hast10mprof.(tosca x1,364 y si fuese roc disgr x 1,909) | C30: =lista1!C30 -> m3
A31: =lista1!A31 -> 0 | B31: =lista1!B31 -> Destape del terreno hasta 20/30 cm de profundidad con pala frontal o Excavación de sótanos a maquina | C31: =lista1!C31 -> m3 | D31: 1.105345212 | F31: 0 | G31: =lista1!G31 -> 0 | H31: 0 | J31: #1 dólar oficial vta | P31: 8.75 | Q31: $AR | R31: 2015-01-01 | T31: =AVERAGE(P31:P32) -> 11.225
A32: =lista1!A32 -> 0 | B32: =lista1!B32 -> Carga y retiro de tierra con camión | C32: =lista1!C32 -> m3 | D32: 1.105345212 | F32: 0 | G32: =lista1!G32 -> 0 | H32: 0 | J32: #2 dólar blu vta | P32: 13.7 | Q32: $AR | R32: 2015-01-01
A33: =lista1!A33 -> 0 | B33: =lista1!B33 -> terraplenamiento | C33: =lista1!C33 -> m3 | G33: =lista1!G33 -> 0
A34: =lista1!A34 -> 5 | B34: =lista1!B34 -> Estructuras de hormigón armado | C34: =lista1!C34 -> Unid. | E34: Prec. | F34: Prec. | G34: =lista1!G34 -> Cant. | H34: Parcial | J34: http://www.ambito.com/economia/mercados/monedas/dolar/info/?ric=ARSB=&desde=15/12/2014&hasta=15/01/2015
A35: =lista1!A35 -> 0 | B35: =lista1!B35 -> Incluye el material, mano de obra, armado y desarme de encofrados de madera tradicionales y equipos | E35: vjo | F35: nvo
A36: =lista1!A36 -> 0 | B36: =lista1!B36 -> hormigon sin armar para relleno de cimientos | C36: =lista1!C36 -> m3 | D36: =lista1!D36 -> 1 | F36: =D36*E36 -> 0 | G36: =lista1!G36 -> 0 | H36: =+F36*G36 -> 0 | I36: =lista1!I36 -> 0 | J36: =lista1!J36 -> 0 | K36: =lista1!K36 -> 0 | L36: =lista1!L36 -> 0 | M36: =lista1!M36 -> 0 | N36: =lista1!N36 -> 0 | O36: =lista1!O36 -> 0 | P36: =lista1!P36 -> 0 | Q36: =lista1!Q36 -> 0 | R36: =lista1!R36 -> 0 | S36: =lista1!S36 -> 0 | T36: =lista1!T36 -> 0 | U36: =lista1!U36 -> 0 | V36: =lista1!V36 -> 0 | W36: =lista1!W36 -> 0 | X36: =lista1!X36 -> 0 | Y36: =lista1!Y36 -> 0 | Z36: =lista1!Z36 -> 0 | AA36: =lista1!AA36 -> 0 | AB36: =lista1!AB36 -> 0 | AC36: =lista1!AC36 -> 0 | AD36: =lista1!AD36 -> 0 | AE36: =lista1!AE36 -> 0 | AF36: =lista1!AF36 -> 0 | AG36: =lista1!AG36 -> 0 | AH36: =lista1!AH36 -> 0 | AI36: =lista1!AI36 -> 0 | AJ36: =lista1!AJ36 -> 0 | AK36: =lista1!AK36 -> 0 | AL36: =lista1!AL36 -> 0 | AM36: =lista1!AM36 -> 0 | AN36: =lista1!AN36 -> 0 | AO36: =lista1!AO36 -> 0 | AP36: =lista1!AP36 -> 0 | AQ36: =lista1!AQ36 -> 0 | AR36: =lista1!AR36 -> 0 | AS36: =lista1!AS36 -> 0 | AT36: =lista1!AT36 -> 0 | AU36: =lista1!AU36 -> 0 | AV36: =lista1!AV36 -> 0 | AW36: =lista1!AW36 -> 0 | AX36: =lista1!AX36 -> 0 | AY36: =lista1!AY36 -> 0 | AZ36: =lista1!AZ36 -> 0 | BA36: =lista1!BA36 -> 0 | BB36: =lista1!BB36 -> 0 | BC36: =lista1!BC36 -> 0 | BD36: =lista1!BD36 -> 0 | BE36: =lista1!BE36 -> 0 | BF36: =lista1!BF36 -> 0 | BG36: =lista1!BG36 -> 0 | BH36: =lista1!BH36 -> 0 | BI36: =lista1!BI36 -> 0 | BJ36: =lista1!BJ36 -> 0 | BK36: =lista1!BK36 -> 0 | BL36: =lista1!BL36 -> 0 | BM36: =lista1!BM36 -> 0 | BN36: =lista1!BN36 -> 0 | BO36: =lista1!BO36 -> 0 | BP36: =lista1!BP36 -> 0 | BQ36: =lista1!BQ36 -> 0 | BR36: =lista1!BR36 -> 0 | BS36: =lista1!BS36 -> 0 | BT36: =lista1!BT36 -> 0 | BU36: =lista1!BU36 -> 0 | BV36: =lista1!BV36 -> 0 | BW36: =lista1!BW36 -> 0 | BX36: =lista1!BX36 -> 0 | BY36: =lista1!BY36 -> 0 | BZ36: =lista1!BZ36 -> 0 | CA36: =lista1!CA36 -> 0 | CB36: =lista1!CB36 -> 0 | CC36: =lista1!CC36 -> 0 | CD36: =lista1!CD36 -> 0 | CE36: =lista1!CE36 -> 0 | CF36: =lista1!CF36 -> 0 | CG36: =lista1!CG36 -> 0 | CH36: =lista1!CH36 -> 0 | CI36: =lista1!CI36 -> 0 | CJ36: =lista1!CJ36 -> 0 | CK36: =lista1!CK36 -> 0 | CL36: =lista1!CL36 -> 0 | CM36: =lista1!CM36 -> 0 | CN36: =lista1!CN36 -> 0 | CO36: =lista1!CO36 -> 0 | CP36: =lista1!CP36 -> 0 | CQ36: =lista1!CQ36 -> 0 | CR36: =lista1!CR36 -> 0 | CS36: =lista1!CS36 -> 0 | CT36: =lista1!CT36 -> 0 | CU36: =lista1!CU36 -> 0 | CV36: =lista1!CV36 -> 0 | CW36: =lista1!CW36 -> 0 | CX36: =lista1!CX36 -> 0 | CY36: =lista1!CY36 -> 0 | CZ36: =lista1!CZ36 -> 0 | DA36: =lista1!DA36 -> 0 | DB36: =lista1!DB36 -> 0 | DC36: =lista1!DC36 -> 0 | DD36: =lista1!DD36 -> 0 | DE36: =lista1!DE36 -> 0 | DF36: =lista1!DF36 -> 0 | DG36: =lista1!DG36 -> 0 | DH36: =lista1!DH36 -> 0 | DI36: =lista1!DI36 -> 0 | DJ36: =lista1!DJ36 -> 0 | DK36: =lista1!DK36 -> 0 | DL36: =lista1!DL36 -> 0 | DM36: =lista1!DM36 -> 0 | DN36: =lista1!DN36 -> 0 | DO36: =lista1!DO36 -> 0 | DP36: =lista1!DP36 -> 0 | DQ36: =lista1!DQ36 -> 0 | DR36: =lista1!DR36 -> 0 | DS36: =lista1!DS36 -> 0 | DT36: =lista1!DT36 -> 0 | DU36: =lista1!DU36 -> 0 | DV36: =lista1!DV36 -> 0 | DW36: =lista1!DW36 -> 0 | DX36: =lista1!DX36 -> 0 | DY36: =lista1!DY36 -> 0 | DZ36: =lista1!DZ36 -> 0 | EA36: =lista1!EA36 -> 0 | EB36: =lista1!EB36 -> 0 | EC36: =lista1!EC36 -> 0 | ED36: =lista1!ED36 -> 0 | EE36: =lista1!EE36 -> 0 | EF36: =lista1!EF36 -> 0 | EG36: =lista1!EG36 -> 0 | EH36: =lista1!EH36 -> 0 | EI36: =lista1!EI36 -> 0 | EJ36: =lista1!EJ36 -> 0 | EK36: =lista1!EK36 -> 0 | EL36: =lista1!EL36 -> 0 | EM36: =lista1!EM36 -> 0 | EN36: =lista1!EN36 -> 0 | EO36: =lista1!EO36 -> 0 | EP36: =lista1!EP36 -> 0 | EQ36: =lista1!EQ36 -> 0 | ER36: =lista1!ER36 -> 0 | ES36: =lista1!ES36 -> 0 | ET36: =lista1!ET36 -> 0 | EU36: =lista1!EU36 -> 0 | EV36: =lista1!EV36 -> 0 | EW36: =lista1!EW36 -> 0 | EX36: =lista1!EX36 -> 0 | EY36: =lista1!EY36 -> 0 | EZ36: =lista1!EZ36 -> 0 | FA36: =lista1!FA36 -> 0 | FB36: =lista1!FB36 -> 0 | FC36: =lista1!FC36 -> 0 | FD36: =lista1!FD36 -> 0 | FE36: =lista1!FE36 -> 0 | FF36: =lista1!FF36 -> 0 | FG36: =lista1!FG36 -> 0 | FH36: =lista1!FH36 -> 0 | FI36: =lista1!FI36 -> 0 | FJ36: =lista1!FJ36 -> 0 | FK36: =lista1!FK36 -> 0 | FL36: =lista1!FL36 -> 0 | FM36: =lista1!FM36 -> 0 | FN36: =lista1!FN36 -> 0 | FO36: =lista1!FO36 -> 0 | FP36: =lista1!FP36 -> 0 | FQ36: =lista1!FQ36 -> 0 | FR36: =lista1!FR36 -> 0 | FS36: =lista1!FS36 -> 0 | FT36: =lista1!FT36 -> 0 | FU36: =lista1!FU36 -> 0 | FV36: =lista1!FV36 -> 0 | FW36: =lista1!FW36 -> 0 | FX36: =lista1!FX36 -> 0 | FY36: =lista1!FY36 -> 0 | FZ36: =lista1!FZ36 -> 0 | GA36: =lista1!GA36 -> 0 | GB36: =lista1!GB36 -> 0 | GC36: =lista1!GC36 -> 0 | GD36: =lista1!GD36 -> 0 | GE36: =lista1!GE36 -> 0 | GF36: =lista1!GF36 -> 0 | GG36: =lista1!GG36 -> 0 | GH36: =lista1!GH36 -> 0 | GI36: =lista1!GI36 -> 0 | GJ36: =lista1!GJ36 -> 0 | GK36: =lista1!GK36 -> 0 | GL36: =lista1!GL36 -> 0 | GM36: =lista1!GM36 -> 0 | GN36: =lista1!GN36 -> 0 | GO36: =lista1!GO36 -> 0 | GP36: =lista1!GP36 -> 0 | GQ36: =lista1!GQ36 -> 0 | GR36: =lista1!GR36 -> 0 | GS36: =lista1!GS36 -> 0 | GT36: =lista1!GT36 -> 0 | GU36: =lista1!GU36 -> 0 | GV36: =lista1!GV36 -> 0 | GW36: =lista1!GW36 -> 0 | GX36: =lista1!GX36 -> 0 | GY36: =lista1!GY36 -> 0 | GZ36: =lista1!GZ36 -> 0 | HA36: =lista1!HA36 -> 0 | HB36: =lista1!HB36 -> 0 | HC36: =lista1!HC36 -> 0 | HD36: =lista1!HD36 -> 0 | HE36: =lista1!HE36 -> 0 | HF36: =lista1!HF36 -> 0 | HG36: =lista1!HG36 -> 0 | HH36: =lista1!HH36 -> 0 | HI36: =lista1!HI36 -> 0 | HJ36: =lista1!HJ36 -> 0 | HK36: =lista1!HK36 -> 0 | HL36: =lista1!HL36 -> 0 | HM36: =lista1!HM36 -> 0 | HN36: =lista1!HN36 -> 0 | HO36: =lista1!HO36 -> 0 | HP36: =lista1!HP36 -> 0 | HQ36: =lista1!HQ36 -> 0 | HR36: =lista1!HR36 -> 0 | HS36: =lista1!HS36 -> 0 | HT36: =lista1!HT36 -> 0 | HU36: =lista1!HU36 -> 0 | HV36: =lista1!HV36 -> 0 | HW36: =lista1!HW36 -> 0 | HX36: =lista1!HX36 -> 0 | HY36: =lista1!HY36 -> 0 | HZ36: =lista1!HZ36 -> 0 | IA36: =lista1!IA36 -> 0 | IB36: =lista1!IB36 -> 0 | IC36: =lista1!IC36 -> 0 | ID36: =lista1!ID36 -> 0 | IE36: =lista1!IE36 -> 0 | IF36: =lista1!IF36 -> 0 | IG36: =lista1!IG36 -> 0 | IH36: =lista1!IH36 -> 0 | II36: =lista1!II36 -> 0 | IJ36: =lista1!IJ36 -> 0 | IK36: =lista1!IK36 -> 0 | IL36: =lista1!IL36 -> 0 | IM36: =lista1!IM36 -> 0 | IN36: =lista1!IN36 -> 0 | IO36: =lista1!IO36 -> 0 | IP36: =lista1!IP36 -> 0 | IQ36: =lista1!IQ36 -> 0 | IR36: =lista1!IR36 -> 0 | IS36: =lista1!IS36 -> 0 | IT36: =lista1!IT36 -> 0 | IU36: =lista1!IU36 -> 0 | IV36: =lista1!IV36 -> 0 | IW36: =lista1!IW36 -> 0
A37: =lista1!A37 -> 0 | B37: =lista1!B37 -> Bases céntricas cuantía 60 kg, HºAº p/ cabezal de pozos romanos (p/fuste pz rom dividir precio en 1,124) | C37: =lista1!C37 -> m3 | D37: =$N$27 -> 1.105345212 | F37: =D37*E37 -> 0 | G37: =lista1!G37 -> 6.001526718 | H37: =+F37*G37 -> 0
A38: =lista1!A38 -> 0 | B38: =lista1!B38 -> Vigas de fundación 60 kg/m3, arriostramiento y de equilibrio | C38: =lista1!C38 -> m3 | D38: =$N$27 -> 1.105345212 | F38: =D38*E38 -> 0 | G38: =lista1!G38 -> 9.90225 | H38: =+F38*G38 -> 0
A39: =lista1!A39 -> 0 | B39: =lista1!B39 -> Pilotín diametro 23 cm / profundidad 1,6 m | C39: =lista1!C39 -> ml | D39: 1.105345212 | F39: 0 | G39: =lista1!G39 -> 38.4 | H39: 0
A40: =lista1!A40 -> 0 | B40: =lista1!B40 -> Platea de fundación 35 kg/m3 de hierro o quiza con un poco mas de kg de cuantía, (bases de cañerías div./1,345). | C40: =lista1!C40 -> m3 | D40: 1.105345212 | F40: 0 | G40: =lista1!G40 -> 0 | H40: 0
A41: =lista1!A41 -> 0 | B41: =lista1!B41 -> Zapatas para tabique de hormigón para submuración 80 kg hierro, bases de columna y zapatas de columna | C41: =lista1!C41 -> m3 | D41: 1.105345212 | F41: 0 | G41: =lista1!G41 -> 0 | H41: 0
A42: =lista1!A42 -> 0 | B42: =lista1!B42 -> Zapatas para muro de Mamposteria 30 cm de ladrillo común cuantía 35kg de hierro/m3 | C42: =lista1!C42 -> m3 | D42: 1.105345212 | F42: 0 | G42: =lista1!G42 -> 0 | H42: 0
A43: =lista1!A43 -> 0 | B43: =lista1!B43 -> Tabiques de sótanos una cara vista 80 kg de hierro/m3 | C43: =lista1!C43 -> m3 | D43: 1.105345212 | F43: 0 | G43: =lista1!G43 -> 0 | H43: 0
A44: =lista1!A44 -> 0 | B44: =lista1!B44 -> Losas espesor 10 cm | C44: =lista1!C44 -> m3 | D44: 1.105345212 | F44: 0 | G44: =lista1!G44 -> 0 | H44: 0
A45: =lista1!A45 -> 0 | B45: =lista1!B45 -> Losas de hormigón a la vista con encofrado fenólico | C45: =lista1!C45 -> m3 | D45: 1.105345212 | F45: 0 | G45: =lista1!G45 -> 0 | H45: 0
A46: =lista1!A46 -> 0 | B46: =lista1!B46 -> Losas casetonada 70 kg/m3 de hierro (es precio mínimo.. p/ prec max mult. X 1,216) | C46: =lista1!C46 -> m3 | D46: 1.105345212 | F46: 0 | G46: =lista1!G46 -> 0 | H46: 0
A47: =lista1!A47 -> 0 | B47: =lista1!B47 -> Losa nervurada Aº en un sentid. bloqH 14*19*39 (o x 1,162 sii es Aºda en 2 sentid c bloq poliest exp. De 40*40*25) | C47: =lista1!C47 -> m2 | D47: 1.105345212 | F47: 0 | G47: =lista1!G47 -> 0 | H47: 0
A48: =lista1!A48 -> 0 | B48: =lista1!B48 -> Losa hueca pretensada 12 cm de espesor con tomado de juntas | C48: =lista1!C48 -> m2 | D48: 1.105345212 | F48: 0 | G48: =lista1!G48 -> 0 | H48: 0
A49: =lista1!A49 -> 0 | B49: =lista1!B49 -> Losa viguetas pretensadas de hormigón y ladrillos cerámicos espesor 17cm con capa de compresión. | C49: =lista1!C49 -> m2 | D49: 1.105345212 | F49: 0 | G49: =lista1!G49 -> 104.05 | H49: 0
A50: =lista1!A50 -> 0 | B50: =lista1!B50 -> columnas estructurales de aprox. 30x30 (Si son a la vista al precio mult. X 1,08) | C50: =lista1!C50 -> m3 | D50: 1.105345212 | F50: 0 | G50: =lista1!G50 -> 0.324 | H50: 0
A51: =lista1!A51 -> 0 | B51: =lista1!B51 -> Encadenado verticales, horizontales, dinteles, dadosdapoyo, llaves,banquinas 7cm esp. de HºAº | C51: =lista1!C51 -> m3 | D51: 1.105345212 | F51: 0 | G51: =lista1!G51 -> 5.293920809 | H51: 0
A52: =lista1!A52 -> 0 | B52: =lista1!B52 -> Vigas cuantía 180 kg/m3, vigas aprox. De 20x40 (Si son a la vista al precio mult. X 1,08) | C52: =lista1!C52 -> m3 | D52: 1.105345212 | F52: 0 | G52: =lista1!G52 -> 0.24 | H52: 0
A53: =lista1!A53 -> 0 | B53: =lista1!B53 -> Tabiques vistos cuantía 80 kg | C53: =lista1!C53 -> m3 | D53: 1.105345212 | F53: 0 | G53: =lista1!G53 -> 0 | H53: 0
A54: =lista1!A54 -> 0 | B54: =lista1!B54 -> Tabiques cuantía 80 kg/m3 | C54: =lista1!C54 -> m3 | D54: 1.105345212 | F54: 0 | G54: =lista1!G54 -> 0 | H54: 0
A55: =lista1!A55 -> 0 | B55: =lista1!B55 -> Escaleras cuantía 75 kg/m3 (sii es HºAº p/LOSAS macizas de escaleras a este prec. Dividir por 1,887) | C55: =lista1!C55 -> m3 | D55: 1.105345212 | F55: 0 | G55: =lista1!G55 -> 0 | H55: 0
A56: =lista1!A56 -> 0 | B56: =lista1!B56 -> Tanque de bombeo cuantía 105 kg/m3 | C56: =lista1!C56 -> m3 | D56: 1.105345212 | F56: 0 | G56: =lista1!G56 -> 0 | H56: 0
A57: =lista1!A57 -> 0 | B57: =lista1!B57 -> Tanque de reserva cuantía 105 kg/m3 y cisternas de HAº | C57: =lista1!C57 -> m3 | D57: 1.105345212 | F57: 0 | G57: =lista1!G57 -> 0.299 | H57: 0
A58: =lista1!A58 -> 0 | B58: =lista1!B58 -> Junta de PVC para hormigón | C58: =lista1!C58 -> ml | D58: 1.105345212 | F58: 0 | G58: =lista1!G58 -> 0 | H58: 0
A59: =lista1!A59 -> 0 | B59: =lista1!B59 -> Barrera de vapor (dos manos de pintura asfáltica + 10% nafta) | C59: =lista1!C59 -> m2 | D59: 1.105345212 | E59: 35 | F59: 38.68708241 | G59: =lista1!G59 -> 104.05 | H59: 4025.390924
A60: =lista1!A60 -> 6 | B60: =lista1!B60 -> Estructuras metálicas | C60: =lista1!C60 -> 0 | G60: =lista1!G60 -> 0
A61: =lista1!A61 -> 0 | B61: =lista1!B61 -> En el caso de cubiertas no se consideran los cerramientos laterales ni superiores. Para los entrepisos no se incluye el solado. En ambos, tampoco la pintura. El armado es en taller. Incluye el montaje en obra y no se considera el flete
A62: =lista1!A62 -> 0 | B62: =lista1!B62 -> Estructuras metálicas de perfiles normales | C62: =lista1!C62 -> kg | D62: =$N$27 -> 1.105345212 | F62: =D62*E62 -> 0 | G62: =lista1!G62 -> 0 | H62: =+F62*G62 -> 0
A63: =lista1!A63 -> 0 | B63: =lista1!B63 -> Estructuras metálicas de perfiles ángulos | C63: =lista1!C63 -> kg | D63: =$N$27 -> 1.105345212 | F63: =D63*E63 -> 0 | G63: =lista1!G63 -> 0 | H63: =+F63*G63 -> 0
A64: =lista1!A64 -> 0 | B64: =lista1!B64 -> Estructuras metálicas de hierro redondo | C64: =lista1!C64 -> kg | D64: =$N$27 -> 1.105345212 | F64: =D64*E64 -> 0 | G64: =lista1!G64 -> 0 | H64: =+F64*G64 -> 0
A65: =lista1!A65 -> 0 | B65: =lista1!B65 -> 0 | C65: =lista1!C65 -> 0 | G65: =lista1!G65 -> 0 | H65: =+F65*G65 -> 0
A66: =lista1!A66 -> 0 | B66: =lista1!B66 -> 0 | C66: =lista1!C66 -> 0 | G66: =lista1!G66 -> 0 | H66: =+F66*G66 -> 0
A67: =lista1!A67 -> 0 | B67: =lista1!B67 -> 0 | C67: =lista1!C67 -> 0 | G67: =lista1!G67 -> 0
A68: =lista1!A68 -> 7 | B68: =lista1!B68 -> Mampostería | C68: =lista1!C68 -> Unid. | E68: Precio | G68: =lista1!G68 -> Cantid. | H68: Parcial
A69: =lista1!A69 -> 0 | B69: =lista1!B69 -> Bloques de hormigón estandar 19 x 19 x 39 ; idem cribada = D x 0,9365 | C69: =lista1!C69 -> m2 | D69: =$N$27 -> 1.105345212 | F69: =D69*E69 -> 0 | G69: =lista1!G69 -> 0 | H69: =+F69*G69 -> 0
A70: =lista1!A70 -> 0 | B70: =lista1!B70 -> Bloques de hormigón estandar 9,2 x 19 x 39 ; ladrillos comunes de pandere 30 ud/m2 = corregir D x 0,88 | C70: =lista1!C70 -> m2 | D70: =$N$27 -> 1.105345212 | F70: =D70*E70 -> 0 | G70: =lista1!G70 -> 0 | H70: =+F70*G70 -> 0
A71: =lista1!A71 -> 0 | B71: =lista1!B71 -> Junta de dilatación bloque ""u""de hormigón | C71: =lista1!C71 -> ml | D71: 1.105345212 | F71: 0 | G71: =lista1!G71 -> 0 | H71: 0
A72: =lista1!A72 -> 0 | B72: =lista1!B72 -> Encadenado pared bloques de hormigón | C72: =lista1!C72 -> ml | D72: 1.105345212 | F72: 0 | G72: =lista1!G72 -> 0 | H72: 0
A73: =lista1!A73 -> 0 | B73: =lista1!B73 -> Ladrillos comunes elevación espesor 30 cm (si es de cimiento =D/1,03) si es p/ 1er piso =D*1,08 | C73: =lista1!C73 -> m3 | D73: 1.105345212 | F73: 0 | G73: =lista1!G73 -> 0 | H73: 0
A74: =lista1!A74 -> 0 | B74: =lista1!B74 -> Ladrillos de máquina para vista espesor 30 cm sin tomado de juntas (con tomado junt =D x 1,094) | C74: =lista1!C74 -> m3 | D74: 1.105345212 | F74: 0 | G74: =lista1!G74 -> 0 | H74: 0
A75: =lista1!A75 -> 0 | B75: =lista1!B75 -> Ladrillo común en elevación espesor 15 cm (si es de cimiento =D/1,03) si es p/ 1er piso =D*1,08 , cribadas | C75: =lista1!C75 -> m3 | D75: 1.105345212 | F75: 0 | G75: =lista1!G75 -> 0 | H75: 0
A76: =lista1!A76 -> 0 | B76: =lista1!B76 -> Ladrillo de máquina para vista espesor 15 cm con tomado de junta | C76: =lista1!C76 -> m3 | D76: 1.105345212 | F76: 0 | G76: =lista1!G76 -> 0 | H76: 0
A77: =lista1!A77 -> 0 | B77: =lista1!B77 -> Refuerzos horizontales o encadenado para mampostería (vigas o dintel) en ladrillo común | C77: =lista1!C77 -> ml | D77: 1.105345212 | F77: 0 | G77: =lista1!G77 -> 0 | H77: 0
A78: =lista1!A78 -> 0 | B78: =lista1!B78 -> Ladrillo cerámico hueco de 8 x 18 x 33 pared de 8 cm de espesor | C78: =lista1!C78 -> m2 | D78: 1.105345212 | F78: 0 | G78: =lista1!G78 -> 0 | H78: 0
A79: =lista1!A79 -> 0 | B79: =lista1!B79 -> Ladrillo cerámico hueco de 12 x 18 x 33 pared de 12 cm de espesor | C79: =lista1!C79 -> m2 | D79: 1.105345212 | F79: 0 | G79: =lista1!G79 -> 0 | H79: 0
A80: =lista1!A80 -> 0 | B80: =lista1!B80 -> Ladrillo cerámico hueco de 18 x 18 x 33 pared de 18 cm de espesor | C80: =lista1!C80 -> m2 | D80: 1.105345212 | F80: 0 | G80: =lista1!G80 -> 0 | H80: 0
A81: =lista1!A81 -> 0 | B81: =lista1!B81 -> Ladrillo cerámico portante de 13 x 19 x 33 | C81: =lista1!C81 -> m2 | D81: 1.105345212 | F81: 0 | G81: =lista1!G81 -> 360.4326 | H81: 0
A82: =lista1!A82 -> 0 | B82: =lista1!B82 -> Ladrillo cerámico portante de 18 x 19 x 33 | C82: =lista1!C82 -> m2 | D82: 1.105345212 | F82: 0 | G82: =lista1!G82 -> 0 | H82: 0
A83: =lista1!A83 -> 0 | B83: =lista1!B83 -> Viga de encadenado superior con peine cerámico, armadura y hormigonado | C83: =lista1!C83 -> ml | D83: 1.105345212 | F83: 0 | G83: =lista1!G83 -> 0 | H83: 0
A84: =lista1!A84 -> 0 | B84: =lista1!B84 -> Columna con bloque cerámico armadura y hormigón | C84: =lista1!C84 -> ml | D84: 1.105345212 | F84: 0 | G84: =lista1!G84 -> 0 | H84: 0
A85: =lista1!A85 -> 0 | B85: =lista1!B85 -> Muro portante en elevación de HCCA tipo Retak | C85: =lista1!C85 -> m3 | D85: 1.105345212 | F85: 0 | G85: =lista1!G85 -> 0 | H85: 0
A86: =lista1!A86 -> 0 | B86: =lista1!B86 -> Colocación de carpinterías (incluye amurado, marcos y premarcos) | C86: =lista1!C86 -> m2 | D86: 1.105345212 | F86: 0 | G86: =lista1!G86 -> 0 | H86: 0
A87: =lista1!A87 -> 0 | B87: =lista1!B87 -> Colocación de barandas | C87: =lista1!C87 -> ml | D87: 1.105345212 | F87: 0 | G87: =lista1!G87 -> 0 | H87: 0
A88: =lista1!A88 -> 0 | B88: =lista1!B88 -> Muro portante en elevación de HCCA de 15x25x50 tipo Retak | C88: =lista1!C88 -> m2 | D88: 1.105345212 | F88: 0 | G88: =lista1!G88 -> 0 | H88: 0
A89: =lista1!A89 -> 0 | B89: =lista1!B89 -> murete de mesada de cocina hasta 95 cm de alto (incl mat y m.o: muro 0,15+ revoq gr y fno ambas caras) sin revestim. | C89: =lista1!C89 -> u | D89: 1.105345212 | F89: 0 | G89: =lista1!G89 -> 0 | H89: 0
A90: =lista1!A90 -> 0 | B90: =lista1!B90 -> murete de mesada de cocina hasta 95 cm de alto (incl mat y m.o: muro 0,15+ revoq gr y revest. ambas caras) sin fino | C90: =lista1!C90 -> u | D90: 1.105345212 | F90: 0 | G90: =lista1!G90 -> 0 | H90: 0
A91: =lista1!A91 -> 0 | B91: =lista1!B91 -> Conducto de ventilación | C91: =lista1!C91 -> ml | D91: 1.105345212 | F91: 0 | G91: =lista1!G91 -> 0 | H91: 0
A92: =lista1!A92 -> 0 | B92: =lista1!B92 -> Sombrete conducto ventilación | C92: =lista1!C92 -> u | D92: 1.105345212 | F92: 0 | G92: =lista1!G92 -> 0 | H92: 0
A93: =lista1!A93 -> 0 | B93: =lista1!B93 -> Rejilla para conducto | C93: =lista1!C93 -> ml | D93: 1.105345212 | F93: 0 | G93: =lista1!G93 -> 0 | H93: 0
A94: =lista1!A94 -> 0 | B94: =lista1!B94 -> Conducto de presurización | C94: =lista1!C94 -> ml | D94: 1.105345212 | F94: 0 | G94: =lista1!G94 -> 0 | H94: 0
A95: =lista1!A95 -> 0 | B95: =lista1!B95 -> Sombrete conducto presuriz. | C95: =lista1!C95 -> u | D95: 1.105345212 | F95: 0 | G95: =lista1!G95 -> 0 | H95: 0
A96: =lista1!A96 -> 0 | B96: =lista1!B96 -> Reja conducto ventilación | C96: =lista1!C96 -> u | D96: 1.105345212 | F96: 0 | G96: =lista1!G96 -> 0 | H96: 0
A97: =lista1!A97 -> 0 | B97: =lista1!B97 -> banquinas de mesada (contrapiso + carpeta + revest. Ceramico) | C97: =lista1!C97 -> ml | D97: 1.105345212 | F97: 0 | G97: =lista1!G97 -> 6.3 | H97: 0
A98: =lista1!A98 -> 0 | B98: =lista1!B98 -> tomado de juntas en ladrillos visto rehundidas (al ras es 0,841*D) | C98: =lista1!C98 -> m2 | G98: =lista1!G98 -> 0
A99: =lista1!A99 -> 0 | B99: =lista1!B99 -> Muros de ladrillo de vidrio 20x20x10 cm | C99: =lista1!C99 -> m2 | G99: =lista1!G99 -> 0
A100: =lista1!A100 -> 0 | B100: =lista1!B100 -> Tabique de placas de yeso, tipo durlock 12,5 mm esp. | C100: =lista1!C100 -> m2 | G100: =lista1!G100 -> 0
A101: =lista1!A101 -> 0 | B101: =lista1!B101 -> 0 | C101: =lista1!C101 -> 0 | G101: =lista1!G101 -> 0
A102: =lista1!A102 -> 8 | B102: =lista1!B102 -> Construcción con placas de roca de yeso | C102: =lista1!C102 -> Unid. | E102: Precio | G102: =lista1!G102 -> Cantid. | H102: Parcial
A103: =lista1!A103 -> 0 | B103: =lista1!B103 -> En todos los casos las terminaciones quedan listas para pintar. Junta tomada con cinta tramada y mansilla
A104: =lista1!A104 -> 0 | B104: =lista1!B104 -> Tabique simple espesor 9,5 cm. Estructura de chapa galvanizada con montantes cada 48 cm. Solera inferior y superior de 70mm. Placa normal 15mm | C104: =lista1!C104 -> m2 | D104: =$N$27 -> 1.105345212 | F104: =D104*E104 -> 0 | G104: =lista1!G104 -> 0 | H104: =+F104*G104 -> 0
A105: =lista1!A105 -> 0 | B105: =lista1!B105 -> Idem con aislación de lana de vidrio | C105: =lista1!C105 -> m2 | D105: =$N$27 -> 1.105345212 | F105: =D105*E105 -> 0 | G105: =lista1!G105 -> 0 | H105: =+F105*G105 -> 0
A106: =lista1!A106 -> 0 | B106: =lista1!B106 -> Medio tabique espesor total 8,5 cm | C106: =lista1!C106 -> m2 | D106: 1.105345212 | F106: 0 | G106: =lista1!G106 -> 0 | H106: 0
A107: =lista1!A107 -> 0 | B107: =lista1!B107 -> Pared divisoria de unidades funcionales espesor total 12 cm. Doble placa de 15mm en ambas caras. Montantes cada 40cm. Solera 70mm interior y super. | C107: =lista1!C107 -> m2 | D107: 1.105345212 | F107: 0 | G107: =lista1!G107 -> 0 | H107: 0
A108: =lista1!A108 -> 0 | B108: =lista1!B108 -> Cielorraso suspendido, junta tomada con placas de 12,5mm, Estructura soleras y montantes de chapa galvanizada | C108: =lista1!C108 -> m2 | D108: 1.105345212 | F108: 0 | G108: =lista1!G108 -> 0 | H108: 0
A109: =lista1!A109 -> 0 | B109: =lista1!B109 -> Idem con placa verde. | C109: =lista1!C109 -> m2 | D109: 1.105345212 | F109: 0 | G109: =lista1!G109 -> 0 | H109: 0
A110: =lista1!A110 -> 0 | B110: =lista1!B110 -> Cielorraso suspendido desmontable. Estructura con bastidor de aluminio. Placas texturadas 60 x 1,20 | C110: =lista1!C110 -> m2 | D110: 1.105345212 | F110: 0 | G110: =lista1!G110 -> 0 | H110: 0
A111: =lista1!A111 -> 0 | B111: =lista1!B111 -> 0 | C111: =lista1!C111 -> 0 | G111: =lista1!G111 -> 0
A112: =lista1!A112 -> 9 | B112: =lista1!B112 -> Aislaciones | C112: =lista1!C112 -> 0 | G112: =lista1!G112 -> 0
A113: =lista1!A113 -> 0 | B113: =lista1!B113 -> De sótanos cementicia para cerramientos horizontal y vertical | C113: =lista1!C113 -> m2 | D113: =$N$27 -> 1.105345212 | F113: =D113*E113 -> 0 | G113: =lista1!G113 -> 0 | H113: =+F113*G113 -> 0
A114: =lista1!A114 -> 0 | B114: =lista1!B114 -> Capa aisladora con tabique panderete | C114: =lista1!C114 -> m2 | D114: =$N$27 -> 1.105345212 | F114: =D114*E114 -> 0 | G114: =lista1!G114 -> 0 | H114: 0
A115: =lista1!A115 -> 0 | B115: =lista1!B115 -> Horizontal espesor 2 cm sobre muro | C115: =lista1!C115 -> m2 | D115: 1.105345212 | F115: 0 | G115: =lista1!G115 -> 14.36947059 | H115: 0
A116: =lista1!A116 -> 0 | B116: =lista1!B116 -> Film de polietileno bajo plateas o contrapisos | C116: =lista1!C116 -> m2 | D116: 1.105345212 | F116: 0 | G116: =lista1!G116 -> 0 | H116: 0
A117: =lista1!A117 -> 0 | B117: =lista1!B117 -> Horizontal cementicia en contrapiso sobre terreno natural | C117: =lista1!C117 -> m2 | D117: 1.105345212 | F117: 0 | G117: =lista1!G117 -> 0 | H117: 0
A118: =lista1!A118 -> 0 | B118: =lista1!B118 -> Horizontal sobre losa para locales húmedos | C118: =lista1!C118 -> m2 | D118: 1.105345212 | F118: 0 | G118: =lista1!G118 -> 0 | H118: 0
A119: =lista1!A119 -> 0 | B119: =lista1!B119 -> Azotado hidrófugo bajo revestimientos | C119: =lista1!C119 -> m2 | D119: 1.105345212 | F119: 0 | G119: =lista1!G119 -> 0 | H119: 0
A120: =lista1!A120 -> 0 | B120: =lista1!B120 -> Vertical de 1,5 de esp. sobre muros | C120: =lista1!C120 -> m2 | D120: 1.105345212 | F120: 0 | G120: =lista1!G120 -> 21.6 | H120: 0
A121: =lista1!A121 -> 0 | B121: =lista1!B121 -> Horizontal y vertical cementicia para interior tanques de agua | C121: =lista1!C121 -> m2 | D121: 1.105345212 | F121: 0 | G121: =lista1!G121 -> 0 | H121: 0
A122: =lista1!A122 -> 0 | B122: =lista1!B122 -> inyeccion de líquidos químicos SIKA inertol infiltración, c perf c/15 cm a tres bolillos, rev.,rev fino (220MO+300mat) | C122: =lista1!C122 -> ml | D122: 1.105345212 | E122: =I122+E156+F19+135 -> 302.9496659 | F122: 334.8639626 | G122: =lista1!G122 -> 22 | H122: 7367.007177 | I122: 27 | J122: $/litro
A123: =lista1!A123 -> 10 | B123: =lista1!B123 -> Cubiertas | C123: =lista1!C123 -> 0 | G123: =lista1!G123 -> 0 | I123: 5 | J123: entran 5 litros/ml/pared30
A124: =lista1!A124 -> 0 | B124: =lista1!B124 -> No se incluye la losa de hormigón | C124: =lista1!C124 -> 0 | G124: =lista1!G124 -> 0
A125: =lista1!A125 -> 0 | B125: =lista1!B125 -> Planas | C125: =lista1!C125 -> 0 | G125: =lista1!G125 -> 0
A126: =lista1!A126 -> 0 | B126: =lista1!B126 -> Sobre losa con barrera de vapor, contrapiso con pendiente. Carpeta para recibir, y proteger, aislación térmica e hidráulica con membrana con aluminio | C126: =lista1!C126 -> m2 | D126: =$N$27 -> 1.105345212 | F126: =D126*E126 -> 0 | G126: =lista1!G126 -> 104.05 | H126: =+F126*G126 -> 0
A127: =lista1!A127 -> 0 | B127: =lista1!B127 -> Idem anterior. Cubierta transitable terminación baldosas 20 x 20 para terraza | C127: =lista1!C127 -> m2 | D127: =$N$27 -> 1.105345212 | F127: =D127*E127 -> 0 | G127: =lista1!G127 -> 0 | H127: =+F127*G127 -> 0
A128: =lista1!A128 -> 0 | B128: =lista1!B128 -> 0 | C128: =lista1!C128 -> 0 | G128: =lista1!G128 -> 0
A129: =lista1!A129 -> 0 | B129: =lista1!B129 -> Con pendiente | C129: =lista1!C129 -> 0 | G129: =lista1!G129 -> 0
A130: =lista1!A130 -> 0 | B130: =lista1!B130 -> No incluye la pintura. Para las de madera se consideró la aplicación de preservador. No incluye correas | C130: =lista1!C130 -> 0 | G130: =lista1!G130 -> 0
A131: =lista1!A131 -> 0 | B131: =lista1!B131 -> Tejas francesa estructura de madera vista con aislación térmica | C131: =lista1!C131 -> m2 | D131: =$N$27 -> 1.105345212 | F131: =D131*E131 -> 0 | G131: =lista1!G131 -> 0 | H131: =+F131*G131 -> 0
A132: =lista1!A132 -> 0 | B132: =lista1!B132 -> Idem, con madera sin cepillar | C132: =lista1!C132 -> m2 | D132: =$N$27 -> 1.105345212 | F132: =D132*E132 -> 0 | G132: =lista1!G132 -> 0 | H132: =+F132*G132 -> 0
A133: =lista1!A133 -> 0 | B133: =lista1!B133 -> Chapa ondulada N24 estructura de madera vista. No se considera con aislación térmica | C133: =lista1!C133 -> m2 | D133: 1.105345212 | F133: 0 | G133: =lista1!G133 -> 0 | H133: 0
A134: =lista1!A134 -> 0 | B134: =lista1!B134 -> Idem, chapa prepintada | C134: =lista1!C134 -> m2 | D134: 1.105345212 | F134: 0 | G134: =lista1!G134 -> 0 | H134: 0
A135: =lista1!A135 -> 0 | B135: =lista1!B135 -> Chapa ambas caras con aislación térmica | C135: =lista1!C135 -> m2 | D135: 1.105345212 | F135: 0 | G135: =lista1!G135 -> 0 | H135: 0
A136: =lista1!A136 -> 0 | B136: =lista1!B136 -> Teja colonial madera vista | C136: =lista1!C136 -> m2 | D136: 1.105345212 | F136: 0 | G136: =lista1!G136 -> 0 | H136: 0
A137: =lista1!A137 -> 0 | B137: =lista1!B137 -> Teja colonial madera sin cepillar | C137: =lista1!C137 -> m2 | D137: 1.105345212 | F137: 0 | G137: =lista1!G137 -> 0 | H137: 0
A138: =lista1!A138 -> 0 | B138: =lista1!B138 -> Chapa imitación tejas | C138: =lista1!C138 -> m2 | D138: 1.105345212 | F138: 0 | G138: =lista1!G138 -> 0 | H138: 0
A139: =lista1!A139 -> 0 | B139: =lista1!B139 -> Junta de dilatación membrana asfáltica | C139: =lista1!C139 -> m2 | D139: 1.105345212 | F139: 0 | G139: =lista1!G139 -> 0 | H139: 0
A140: =lista1!A140 -> 0 | B140: =lista1!B140 -> Tinglado chapa galvanizada sobre vigaa spagueti | C140: =lista1!C140 -> m2 | D140: 1.105345212 | F140: 0 | G140: =lista1!G140 -> 0 | H140: 0
A141: =lista1!A141 -> 0 | B141: =lista1!B141 -> 0 | C141: =lista1!C141 -> 0 | G141: =lista1!G141 -> 0
A142: =lista1!A142 -> 11 | B142: =lista1!B142 -> Contrapiso | C142: =lista1!C142 -> 0 | G142: =lista1!G142 -> 0
A143: =lista1!A143 -> 0 | B143: =lista1!B143 -> Hormigón de cascotes armado de espesor 15 cm sobre terreno natural | C143: =lista1!C143 -> m2 | D143: =$N$27 -> 1.105345212 | F143: =D143*E143 -> 0 | G143: =lista1!G143 -> 158.66 | H143: =+F143*G143 -> 0
A144: =lista1!A144 -> 0 | B144: =lista1!B144 -> Hormigón de cascotes sobre losa espesor 7 cm | C144: =lista1!C144 -> m2 | D144: =$N$27 -> 1.105345212 | F144: =D144*E144 -> 0 | G144: =lista1!G144 -> 0 | H144: =+F144*G144 -> 0
A145: =lista1!A145 -> 0 | B145: =lista1!B145 -> Hormigón de cascotes sobre losa local sanitario espesor 25 cm | C145: =lista1!C145 -> m2 | D145: =$N$27 -> 1.105345212 | F145: =D145*E145 -> 0 | G145: =lista1!G145 -> 0 | H145: =+F145*G145 -> 0
A146: =lista1!A146 -> 0 | B146: =lista1!B146 -> Hormigón de arcilla expandida 10 cm de espesor | C146: =lista1!C146 -> m2 | D146: =$N$27 -> 1.105345212 | F146: =D146*E146 -> 0 | G146: =lista1!G146 -> 0 | H146: =+F146*G146 -> 0
A147: =lista1!A147 -> 0 | B147: =lista1!B147 -> Mortero celular de 7 cm espesor | C147: =lista1!C147 -> m2 | D147: =$N$27 -> 1.105345212 | F147: =D147*E147 -> 0 | G147: =lista1!G147 -> 0 | H147: =+F147*G147 -> 0
A148: =lista1!A148 -> 0 | B148: =lista1!B148 -> 0 | C148: =lista1!C148 -> 0 | G148: =lista1!G148 -> 0
A149: =lista1!A149 -> 12 | B149: =lista1!B149 -> Carpetas | C149: =lista1!C149 -> 0 | G149: =lista1!G149 -> 0
A150: =lista1!A150 -> 0 | B150: =lista1!B150 -> De concreto bajo solado | C150: =lista1!C150 -> m2 | D150: =$N$27 -> 1.105345212 | F150: =D150*E150 -> 0 | G150: =lista1!G150 -> 158.66 | H150: =+F150*G150 -> 0
A151: =lista1!A151 -> 0 | B151: =lista1!B151 -> Carpeta de mortero celular 2 cm espesor | C151: =lista1!C151 -> m2 | D151: =$N$27 -> 1.105345212 | F151: =D151*E151 -> 0 | G151: =lista1!G151 -> 0 | H151: =+F151*G151 -> 0
A152: =lista1!A152 -> 0 | B152: =lista1!B152 -> Carpeta clavadora para parquet | C152: =lista1!C152 -> m2 | D152: =$N$27 -> 1.105345212 | F152: =D152*E152 -> 0 | G152: =lista1!G152 -> 0 | H152: =+F152*G152 -> 0
A153: =lista1!A153 -> 0 | B153: =lista1!B153 -> 0 | C153: =lista1!C153 -> 0 | G153: =lista1!G153 -> 0
A154: =lista1!A154 -> 13 | B154: =lista1!B154 -> Revoques | C154: =lista1!C154 -> 0 | G154: =lista1!G154 -> 0
A155: =lista1!A155 -> 0 | B155: =lista1!B155 -> No se considera el trabajo de andamio | C155: =lista1!C155 -> 0 | G155: =lista1!G155 -> 0
A156: =lista1!A156 -> 0 | B156: =lista1!B156 -> Grueso y fino a la cal al fieltro | C156: =lista1!C156 -> m2 | D156: =$N$27 -> 1.105345212 | E156: 110 | F156: =D156*E156 -> 121.5879733 | G156: =lista1!G156 -> 342.03624 | H156: =+F156*G156 -> 41587.49321
A157: =lista1!A157 -> 0 | B157: =lista1!B157 -> Grueso a la cal impermeable para exterior completo | C157: =lista1!C157 -> m2 | D157: =$N$27 -> 1.105345212 | F157: =D157*E157 -> 0 | G157: =lista1!G157 -> 146.58696 | H157: =+F157*G157 -> 0
A158: =lista1!A158 -> 0 | B158: =lista1!B158 -> Grueso bajo revestimientos | C158: =lista1!C158 -> m2 | D158: 1.105345212 | F158: 0 | G158: =lista1!G158 -> 0 | H158: 0
A159: =lista1!A159 -> 0 | B159: =lista1!B159 -> Revoque proyectado exterior con hidrófugo | C159: =lista1!C159 -> m2 | D159: 1.105345212 | F159: 0 | G159: =lista1!G159 -> 0 | H159: 0
A160: =lista1!A160 -> 0 | B160: =lista1!B160 -> Revoque proyectable grueso a la cal para interior | C160: =lista1!C160 -> m2 | D160: 1.105345212 | F160: 0 | G160: =lista1!G160 -> 0 | H160: 0
A161: =lista1!A161 -> 0 | B161: =lista1!B161 -> Revoque proyectable fino a la cal para interior | C161: =lista1!C161 -> m2 | D161: 1.105345212 | F161: 0 | G161: =lista1!G161 -> 0 | H161: 0
A162: =lista1!A162 -> 0 | B162: =lista1!B162 -> Revoque proyectable de yeso para interior, con engrosado | C162: =lista1!C162 -> m2 | D162: 1.105345212 | F162: 0 | G162: =lista1!G162 -> 0 | H162: 0
A163: =lista1!A163 -> 0 | B163: =lista1!B163 -> Salpicado con molinete | C163: =lista1!C163 -> m2 | D163: 1.105345212 | F163: 0 | G163: =lista1!G163 -> 0 | H163: 0
A164: =lista1!A164 -> 0 | B164: =lista1!B164 -> Salpicado con molinete exterior planchado | C164: =lista1!C164 -> m2 | D164: 1.105345212 | F164: 0 | G164: =lista1!G164 -> 0 | H164: 0
A165: =lista1!A165 -> 0 | B165: =lista1!B165 -> Revoque especial super Iggam | C165: =lista1!C165 -> ml | D165: 1.105345212 | F165: 0 | G165: =lista1!G165 -> 0 | H165: 0
A166: =lista1!A166 -> 0 | B166: =lista1!B166 -> Buñas super Iggam | C166: =lista1!C166 -> ml | D166: 1.105345212 | F166: 0 | G166: =lista1!G166 -> 0 | H166: 0
A167: =lista1!A167 -> 0 | B167: =lista1!B167 -> http://www.construircordoba.com/precios-de-tareas/revoques/ | C167: =lista1!C167 -> 0 | G167: =lista1!G167 -> 0
A168: =lista1!A168 -> 14 | B168: =lista1!B168 -> Revestimientos | C168: =lista1!C168 -> Unid. | E168: Precio | G168: =lista1!G168 -> Cantid. | H168: Parcial
A169: =lista1!A169 -> 0 | B169: =lista1!B169 -> Incluye la mano de obra completa, adhesivo y tomado de juntas
A170: =lista1!A170 -> 0 | B170: =lista1!B170 -> Cerámico tipo San Lorenzo 20 x 20 | C170: =lista1!C170 -> m2 | D170: =$N$27 -> 1.105345212 | F170: =D170*E170 -> 0 | G170: =lista1!G170 -> 0 | H170: =+F170*G170 -> 0
A171: =lista1!A171 -> 0 | B171: =lista1!B171 -> De venecita | C171: =lista1!C171 -> m2 | D171: =$N$27 -> 1.105345212 | F171: =D171*E171 -> 0 | G171: =lista1!G171 -> 0 | H171: =+F171*G171 -> 0
A172: =lista1!A172 -> 0 | B172: =lista1!B172 -> Cerámico esmaltado 30 x 30 cm | C172: =lista1!C172 -> m2 | D172: 1.105345212 | F172: 0 | G172: =lista1!G172 -> 29.93 | H172: 0
A173: =lista1!A173 -> 0 | B173: =lista1!B173 -> Revestimientos secos | C173: =lista1!C173 -> 0 | D173: 1.105345212 | F173: 0 | G173: =lista1!G173 -> 0 | H173: 0
A174: =lista1!A174 -> 0 | B174: =lista1!B174 -> De muros con machiembrado de pino 1/2". Incluye la estructura sobre muro | C174: =lista1!C174 -> m2 | D174: 1.105345212 | F174: 0 | G174: =lista1!G174 -> 0 | H174: 0
A175: =lista1!A175 -> 0 | B175: =lista1!B175 -> Cerámica esmaltada 30x30 con guardas | C175: =lista1!C175 -> m2 | D175: 1.105345212 | F175: 0 | G175: =lista1!G175 -> 0 | H175: 0
A176: =lista1!A176 -> 0 | B176: =lista1!B176 -> Porcellanato 30x30 rústico | C176: =lista1!C176 -> m2 | D176: 1.105345212 | F176: 0 | G176: =lista1!G176 -> 0 | H176: 0
A177: =lista1!A177 -> 0 | B177: =lista1!B177 -> Tejuelas de ladrillo | C177: =lista1!C177 -> m2 | D177: 1.105345212 | F177: 0 | G177: =lista1!G177 -> 0 | H177: 0
A178: =lista1!A178 -> 0 | B178: =lista1!B178 -> 0 | C178: =lista1!C178 -> 0 | G178: =lista1!G178 -> 0
A179: =lista1!A179 -> 15 | B179: =lista1!B179 -> Cielorrasos | C179: =lista1!C179 -> 0 | G179: =lista1!G179 -> 0
A180: =lista1!A180 -> 0 | B180: =lista1!B180 -> Aplicado a la cal fina fratasada | C180: =lista1!C180 -> m2 | D180: =$N$27 -> 1.105345212 | F180: =D180*E180 -> 0 | G180: =lista1!G180 -> 0 | H180: =+F180*G180 -> 0
A181: =lista1!A181 -> 0 | B181: =lista1!B181 -> Aplicado grueso y fino a la cal al fieltro | C181: =lista1!C181 -> m2 | D181: =$N$27 -> 1.105345212 | F181: =D181*E181 -> 0 | G181: =lista1!G181 -> 104.05 | H181: =+F181*G181 -> 0
A182: =lista1!A182 -> 0 | B182: =lista1!B182 -> Suspendido a la cal armado en madera | C182: =lista1!C182 -> m2 | D182: 1.105345212 | F182: 0 | G182: =lista1!G182 -> 0 | H182: 0
A183: =lista1!A183 -> 0 | B183: =lista1!B183 -> Suspendido a la cal armado en hierro | C183: =lista1!C183 -> m2 | D183: 1.105345212 | F183: 0 | G183: =lista1!G183 -> 0 | H183: 0
A184: =lista1!A184 -> 0 | B184: =lista1!B184 -> Taparrollo armado a la cal | C184: =lista1!C184 -> ml | D184: 1.105345212 | F184: 0 | G184: =lista1!G184 -> 0 | H184: 0
A185: =lista1!A185 -> 0 | B185: =lista1!B185 -> Suspendido termoacústico | C185: =lista1!C185 -> m2 | D185: 1.105345212 | F185: 0 | G185: =lista1!G185 -> 0 | H185: 0
A186: =lista1!A186 -> 0 | B186: =lista1!B186 -> Suspendido con dorso de aluminio | C186: =lista1!C186 -> m2 | D186: 1.105345212 | F186: 0 | G186: =lista1!G186 -> 0 | H186: 0
A187: =lista1!A187 -> 0 | B187: =lista1!B187 -> Paneles de aluminio microperforado | C187: =lista1!C187 -> m2 | D187: 1.105345212 | F187: 0 | G187: =lista1!G187 -> 0 | H187: 0
A188: =lista1!A188 -> 0 | B188: =lista1!B188 -> 0 | C188: =lista1!C188 -> 0 | G188: =lista1!G188 -> 0
A189: =lista1!A189 -> 16 | B189: =lista1!B189 -> Yeseria | C189: =lista1!C189 -> 0 | G189: =lista1!G189 -> 0
A190: =lista1!A190 -> 0 | B190: =lista1!B190 -> Enlucido de yeso | C190: =lista1!C190 -> m2 | D190: =$N$27 -> 1.105345212 | F190: =D190*E190 -> 0 | G190: =lista1!G190 -> 0 | H190: =+F190*G190 -> 0
A191: =lista1!A191 -> 0 | B191: =lista1!B191 -> Enlucido de yeso reforzado con cemento | C191: =lista1!C191 -> m2 | D191: =$N$27 -> 1.105345212 | F191: =D191*E191 -> 0 | G191: =lista1!G191 -> 0 | H191: =+F191*G191 -> 0
A192: =lista1!A192 -> 0 | B192: =lista1!B192 -> Enlucido de yeso y engrosado con yeso gris | C192: =lista1!C192 -> m2 | D192: 1.105345212 | F192: 0 | G192: =lista1!G192 -> 0 | H192: 0
A193: =lista1!A193 -> 0 | B193: =lista1!B193 -> Guardacanto de yesero. Incluye el recubrimiento de yeso | C193: =lista1!C193 -> ml | D193: 1.105345212 | F193: 0 | G193: =lista1!G193 -> 0 | H193: 0
A194: =lista1!A194 -> 0 | B194: =lista1!B194 -> Fajas sobre revestimiento | C194: =lista1!C194 -> ml | D194: 1.105345212 | F194: 0 | G194: =lista1!G194 -> 0 | H194: 0
A195: =lista1!A195 -> 0 | B195: =lista1!B195 -> Agujeros circulares hasta 40 cm de diámetro | C195: =lista1!C195 -> u | D195: 1.105345212 | F195: 0 | G195: =lista1!G195 -> 0 | H195: 0
A196: =lista1!A196 -> 0 | B196: =lista1!B196 -> Cielorraso aplicado al yeso | C196: =lista1!C196 -> m2 | D196: 1.105345212 | F196: 0 | G196: =lista1!G196 -> 0 | H196: 0
A197: =lista1!A197 -> 0 | B197: =lista1!B197 -> Cielorraso de yeso armado estructura de madera | C197: =lista1!C197 -> m2 | D197: 1.105345212 | F197: 0 | G197: =lista1!G197 -> 0 | H197: 0
A198: =lista1!A198 -> 0 | B198: =lista1!B198 -> Cielorraso de yeso armado estructura de hierro | C198: =lista1!C198 -> m2 | D198: 1.105345212 | F198: 0 | G198: =lista1!G198 -> 0 | H198: 0
A199: =lista1!A199 -> 0 | B199: =lista1!B199 -> Taparrollo de yeso armado | C199: =lista1!C199 -> ml | D199: 1.105345212 | F199: 0 | G199: =lista1!G199 -> 0 | H199: 0
A200: =lista1!A200 -> 0 | B200: =lista1!B200 -> 0 | C200: =lista1!C200 -> 0 | G200: =lista1!G200 -> 0
... 178 more rows

Sheet lista5
A1: =lista1!A1 -> nro | B1: =lista1!B1 -> rubros o items | C1: =lista1!C1 -> Unid. | E1: $vjo | F1: $nvo | G1: =lista1!G1 -> Cantid. | H1: Parc.
A2: =lista1!A2 -> 0 | B2: origen desconocido pero acordes a precios mat. Y mano de obra año 2015 Argentina | C2: ¿quiere usar estos precios? | G2: si | I2: =MAX((I3:I4=G2)*(J3:J4)) -> 1
A3: =lista1!A3 -> 1 | B3: =lista1!B3 -> Trabajos preliminares | C3: =lista1!C3 -> 0 | G3: =lista1!G3 -> 0 | I3: si | J3: 1
A4: =lista1!A4 -> 0 | B4: =lista1!B4 -> Limpieza y nivelación del terreno | C4: =lista1!C4 -> m2 | D4: =$N$27 -> 1.105345212 | E4: 55 | F4: =D4*E4 -> 60.79398664 | G4: =lista1!G4 -> 162.5 | H4: =+F4*G4 -> 9879.022829 | I4: no | J4: 0
A5: =lista1!A5 -> 0 | B5: =lista1!B5 -> Obrador, depósito y sanitarios | C5: =lista1!C5 -> m2 | D5: =$N$27 -> 1.105345212 | E5: 1200 | F5: =D5*E5 -> 1326.414254 | G5: =lista1!G5 -> 13 | H5: =+F5*G5 -> 17243.3853
A6: =lista1!A6 -> 0 | B6: =lista1!B6 -> desmonte en terreno comun (si en terr. C. roca disgregable con barreta se debera mult. Prec. X 2,3) | C6: =lista1!C6 -> m3 | G6: =lista1!G6 -> 0
A7: =lista1!A7 -> 2 | B7: =lista1!B7 -> Procedimientos y cumplimientos | C7: =lista1!C7 -> 0 | G7: =lista1!G7 -> 0
A8: =lista1!A8 -> 0 | B8: =lista1!B8 -> Replanteo | C8: =lista1!C8 -> m2 | D8: =$N$27 -> 1.105345212 | E8: 23 | F8: =D8*E8 -> 25.42293987 | G8: =lista1!G8 -> 104.05 | H8: =+F8*G8 -> 2645.256893
A9: =lista1!A9 -> 0 | B9: =lista1!B9 -> Cartel de obra | C9: =lista1!C9 -> m2 | D9: =$N$27 -> 1.105345212 | E9: 700 | F9: =D9*E9 -> 773.7416481 | G9: =lista1!G9 -> 0 | H9: =+F9*G9 -> 0
A10: =lista1!A10 -> 0 | B10: =lista1!B10 -> Cerco de obra | C10: =lista1!C10 -> ml | D10: =$N$27 -> 1.105345212 | E10: 365 | F10: =D10*E10 -> 403.4510022 | G10: =lista1!G10 -> 0 | H10: =+F10*G10 -> 0
A11: =lista1!A11 -> 0 | B11: =lista1!B11 -> Defensa de protección para trabajo en obra | C11: =lista1!C11 -> ml | D11: =$N$27 -> 1.105345212 | E11: 750 | F11: =D11*E11 -> 829.0089087 | G11: =lista1!G11 -> 0 | H11: =+F11*G11 -> 0
A12: =lista1!A12 -> 0 | B12: =lista1!B12 -> 0 | C12: =lista1!C12 -> 0 | G12: =lista1!G12 -> 0
A13: =lista1!A13 -> 3 | B13: =lista1!B13 -> Demoliciones | C13: =lista1!C13 -> 0 | G13: =lista1!G13 -> 0
A14: =lista1!A14 -> 0 | B14: =lista1!B14 -> En los siguientes items, se incluye el retiro de los escombros de la obra hasta coloc.dentro del contenedor | C14: =lista1!C14 -> 0 | G14: =lista1!G14 -> 0
A15: =lista1!A15 -> 0 | B15: =lista1!B15 -> De estructura de hormigón, losas de HºAº, dados, camaras de HºAº (incluye cargarlo) | C15: =lista1!C15 -> m3 | D15: =$N$27 -> 1.105345212 | E15: 1850 | F15: =D15*E15 -> 2044.888641 | G15: =lista1!G15 -> 0 | H15: =+F15*G15 -> 0
A16: =lista1!A16 -> 0 | B16: =lista1!B16 -> De mamposteria (todos los items incluyen cargar escombros a un contenedor cercano, refiere a planta baja) | C16: =lista1!C16 -> m3 | D16: 1.105345212 | E16: 660 | F16: =D16*E16 -> 729.5278396 | G16: =lista1!G16 -> 0 | H16: =+F16*G16 -> 0
A17: =lista1!A17 -> 0 | B17: =lista1!B17 -> De pisos | C17: =lista1!C17 -> m2 | D17: 1.105345212 | E17: 184.2 | F17: 203.604588 | G17: =lista1!G17 -> 0 | H17: 0
A18: =lista1!A18 -> 0 | B18: =lista1!B18 -> De contrapisos | C18: =lista1!C18 -> m2 | D18: 1.105345212 | E18: 91.6 | F18: 101.2496214 | G18: =lista1!G18 -> 0 | H18: 0
A19: =lista1!A19 -> 0 | B19: =lista1!B19 -> Picado de revoques, cielorrasos suspendidos ó demolcic. de cubiert d tejas coloniales (sin recuper. de tejas) | C19: =lista1!C19 -> m2 | D19: 1.105345212 | E19: 98.1 | F19: 108.4343653 | G19: =lista1!G19 -> 0 | H19: 0
A20: =lista1!A20 -> 0 | B20: =lista1!B20 -> Picado de revestimientos | C20: =lista1!C20 -> m2 | D20: 1.105345212 | E20: 89.5 | F20: 98.92839644 | G20: =lista1!G20 -> 0 | H20: 0
A21: =lista1!A21 -> 0 | B21: =lista1!B21 -> De estructura de madera con tejas francesa (o colonial) | C21: =lista1!C21 -> m2 | D21: 1.105345212 | E21: 0 | F21: 0 | G21: =lista1!G21 -> 0 | H21: 0
A22: =lista1!A22 -> 0 | B22: =lista1!B22 -> Demolición de obra completa | C22: =lista1!C22 -> m2 | D22: 1.105345212 | E22: 1000 | F22: 1105.345212 | G22: =lista1!G22 -> 28 | H22: 30949.66592
A23: =lista1!A23 -> 0 | B23: =lista1!B23 -> Contenedor/Volquete, alquiler | C23: =lista1!C23 -> u | D23: 1.105345212 | E23: 550 | F23: 607.9398664 | G23: =lista1!G23 -> 16 | H23: 9727.037862
A24: =lista1!A24 -> 0 | B24: =lista1!B24 -> Cargar Contenedor/Volquete | C24: =lista1!C24 -> u | D24: 1.105345212 | E24: 500 | F24: 552.6726058 | G24: =lista1!G24 -> 16 | H24: 8842.761693
A25: =lista1!A25 -> 4 | B25: =lista1!B25 -> Movimientos de tierra | C25: =lista1!C25 -> 0 | G25: =lista1!G25 -> 0
A26: =lista1!A26 -> 0 | B26: =lista1!B26 -> Excavación manual p cimientos y bases column terreno común (si tosca mult.al prec.x 1,214 y x1,714 si es roca digregable) | C26: =lista1!C26 -> m3 | D26: =$N$27 -> 1.105345212 | E26: 350 | F26: =D26*E26 -> 386.8708241 | G26: =lista1!G26 -> 6.001526718 | H26: =+F26*G26 -> 2321.815587
A27: =lista1!A27 -> 0 | B27: =lista1!B27 -> Excavación manual de vigas de fundación hasta 1,20 m de prof. | C27: =lista1!C27 -> m3 | D27: 1.105345212 | E27: 350 | F27: 386.8708241 | G27: =lista1!G27 -> 9.90225 | H27: 3830.891617 | L27: mult | N27: =I2*T28/T31 -> 1.105345212 | T27: US$prom
A28: =lista1!A28 -> 0 | B28: =lista1!B28 -> Excavación de pozos para pilotín (diám. 23 cm - prof. 1,6 m) | C28: =lista1!C28 -> u | D28: 1.105345212 | E28: 140 | F28: 154.7483296 | G28: =lista1!G28 -> 24 | H28: 3713.959911 | J28: #1precio dólar oficial vta | P28: =lista1!P28 -> 9.335 | Q28: =lista1!Q28 -> $AR | R28: =lista1!R28:S28 -> 2015-11-12 | T28: =AVERAGE(P28:P29) -> 12.4075
A29: =lista1!A29 -> 0 | B29: =lista1!B29 -> Excavación p/ cisternas, cámaras sépt.,de inspec., sótanos a mano terr. Comun hast4m (tosca x1,351 y si fuese roc disgr x 1,89) | C29: =lista1!C29 -> m3 | D29: 1.105345212 | E29: 350 | F29: 386.8708241 | G29: =lista1!G29 -> 12.076 | H29: 4671.852071 | J29: #2precio dólar blue vta | P29: =lista1!P29 -> 15.48 | Q29: =lista1!Q29 -> $AR | R29: =lista1!R29:S29 -> 2015-11-12
A30: =lista1!A30 -> 0 | B30: =lista1!B30 -> Excavación p/ pozo absorbt o Romano, a mano terr. Comun hast10mprof.(tosca x1,364 y si fuese roc disgr x 1,909) | C30: =lista1!C30 -> m3 | D30: 1.105345212 | E30: 0 | F30: =D30*E30 -> 0 | G30: =lista1!G30 -> 6 | H30: =+F30*G30 -> 0
A31: =lista1!A31 -> 0 | B31: =lista1!B31 -> Destape del terreno hasta 20/30 cm de profundidad con pala frontal o Excavación de sótanos a maquina | C31: =lista1!C31 -> m3 | D31: 1.105345212 | E31: 120 | F31: =D31*E31 -> 132.6414254 | G31: =lista1!G31 -> 0 | H31: =+F31*G31 -> 0 | J31: #1 dólar oficial vta | P31: 8.75 | Q31: $AR | R31: 2015-01-01 | T31: =AVERAGE(P31:P32) -> 11.225
A32: =lista1!A32 -> 0 | B32: =lista1!B32 -> Carga y retiro de tierra con camión | C32: =lista1!C32 -> m3 | D32: 1.105345212 | E32: 180 | F32: 198.9621381 | G32: =lista1!G32 -> 0 | H32: 0 | J32: #2 dólar blu vta | P32: 13.7 | Q32: $AR | R32: 2015-01-01
A33: =lista1!A33 -> 0 | B33: =lista1!B33 -> terraplenamiento | C33: =lista1!C33 -> m3 | G33: =lista1!G33 -> 0
A34: =lista1!A34 -> 5 | B34: =lista1!B34 -> Estructuras de hormigón armado | C34: =lista1!C34 -> Unid. | E34: Prec. | F34: Prec. | G34: =lista1!G34 -> Cant. | H34: Parcial | J34: http://www.ambito.com/economia/mercados/monedas/dolar/info/?ric=ARSB=&desde=15/12/2014&hasta=15/01/2015
A35: =lista1!A35 -> 0 | B35: =lista1!B35 -> Incluye el material, mano de obra, armado y desarme de encofrados de madera tradicionales y equipos | E35: vjo | F35: nvo
A36: =lista1!A36 -> 0 | B36: =lista1!B36 -> hormigon sin armar para relleno de cimientos | C36: =lista1!C36 -> m3 | D36: =$N$27 -> 1.105345212 | E36: 0 | F36: =D36*E36 -> 0 | G36: =lista1!G36 -> 0 | H36: =+F36*G36 -> 0
A37: =lista1!A37 -> 0 | B37: =lista1!B37 -> Bases céntricas cuantía 60 kg, HºAº p/ cabezal de pozos romanos (p/fuste pz rom dividir precio en 1,124) | C37: =lista1!C37 -> m3 | D37: =$N$27 -> 1.105345212 | E37: 2656.2 | F37: =D37*E37 -> 2936.017951 | G37: =lista1!G37 -> 6.001526718 | H37: =+F37*G37 -> 17620.59018
A38: =lista1!A38 -> 0 | B38: =lista1!B38 -> Vigas de fundación 60 kg/m3, arriostramiento y de equilibrio | C38: =lista1!C38 -> m3 | D38: =$N$27 -> 1.105345212 | E38: 3141.4 | F38: =D38*E38 -> 3472.331448 | G38: =lista1!G38 -> 9.90225 | H38: =+F38*G38 -> 34383.89408
A39: =lista1!A39 -> 0 | B39: =lista1!B39 -> Pilotín diametro 23 cm / profundidad 1,6 m | C39: =lista1!C39 -> ml | D39: 1.105345212 | E39: 220.9 | F39: 244.1707572 | G39: =lista1!G39 -> 38.4 | H39: 9376.157078
A40: =lista1!A40 -> 0 | B40: =lista1!B40 -> Platea de fundación 35 kg/m3 de hierro o quiza con un poco mas de kg de cuantía, (bases de cañerías div./1,345). | C40: =lista1!C40 -> m3 | D40: 1.105345212 | E40: 2205.6 | F40: 2437.949399 | G40: =lista1!G40 -> 0 | H40: 0
A41: =lista1!A41 -> 0 | B41: =lista1!B41 -> Zapatas para tabique de hormigón para submuración 80 kg hierro, bases de columna y zapatas de columna | C41: =lista1!C41 -> m3 | D41: 1.105345212 | E41: 2274.9 | F41: 2514.549822 | G41: =lista1!G41 -> 0 | H41: 0
A42: =lista1!A42 -> 0 | B42: =lista1!B42 -> Zapatas para muro de Mamposteria 30 cm de ladrillo común cuantía 35kg de hierro/m3 | C42: =lista1!C42 -> m3 | D42: 1.105345212 | E42: 2358.1 | F42: 2606.514543 | G42: =lista1!G42 -> 0 | H42: 0
A43: =lista1!A43 -> 0 | B43: =lista1!B43 -> Tabiques de sótanos una cara vista 80 kg de hierro/m3 | C43: =lista1!C43 -> m3 | D43: 1.105345212 | E43: 4656.7 | F43: 5147.261047 | G43: =lista1!G43 -> 0 | H43: 0
A44: =lista1!A44 -> 0 | B44: =lista1!B44 -> Losas espesor 10 cm | C44: =lista1!C44 -> m3 | D44: 1.105345212 | E44: 6606.6 | F44: 7302.573675 | G44: =lista1!G44 -> 0 | H44: 0
A45: =lista1!A45 -> 0 | B45: =lista1!B45 -> Losas de hormigón a la vista con encofrado fenólico | C45: =lista1!C45 -> m3 | D45: 1.105345212 | E45: 10667.9 | F45: 11791.71218 | G45: =lista1!G45 -> 0 | H45: 0
A46: =lista1!A46 -> 0 | B46: =lista1!B46 -> Losas casetonada 70 kg/m3 de hierro (es precio mínimo.. p/ prec max mult. X 1,216) | C46: =lista1!C46 -> m3 | D46: 1.105345212 | E46: 7524.6 | F46: 8317.280579 | G46: =lista1!G46 -> 0 | H46: 0
A47: =lista1!A47 -> 0 | B47: =lista1!B47 -> Losa nervurada Aº en un sentid. bloqH 14*19*39 (o x 1,162 sii es Aºda en 2 sentid c bloq poliest exp. De 40*40*25) | C47: =lista1!C47 -> m2 | D47: 1.105345212 | F47: 0 | G47: =lista1!G47 -> 0 | H47: 0
A48: =lista1!A48 -> 0 | B48: =lista1!B48 -> Losa hueca pretensada 12 cm de espesor con tomado de juntas | C48: =lista1!C48 -> m2 | D48: 1.105345212 | E48: 632.8 | F48: 699.4624499 | G48: =lista1!G48 -> 0 | H48: 0
A49: =lista1!A49 -> 0 | B49: =lista1!B49 -> Losa viguetas pretensadas de hormigón y ladrillos cerámicos espesor 17cm con capa de compresión. | C49: =lista1!C49 -> m2 | D49: 1.105345212 | E49: 476.9 | F49: 527.1391314 | G49: =lista1!G49 -> 104.05 | H49: 54848.82662
A50: =lista1!A50 -> 0 | B50: =lista1!B50 -> columnas estructurales de aprox. 30x30 (Si son a la vista al precio mult. X 1,08) | C50: =lista1!C50 -> m3 | D50: 1.105345212 | E50: 7000 | F50: 7737.416481 | G50: =lista1!G50 -> 0.324 | H50: 2506.92294
A51: =lista1!A51 -> 0 | B51: =lista1!B51 -> Encadenado verticales, horizontales, dinteles, dadosdapoyo, llaves,banquinas 7cm esp. de HºAº | C51: =lista1!C51 -> m3 | D51: 1.105345212 | E51: 7000 | F51: 7737.416481 | G51: =lista1!G51 -> 5.293920809 | H51: 40961.27011
A52: =lista1!A52 -> 0 | B52: =lista1!B52 -> Vigas cuantía 180 kg/m3, vigas aprox. De 20x40 (Si son a la vista al precio mult. X 1,08) | C52: =lista1!C52 -> m3 | D52: 1.105345212 | E52: 9000 | F52: 9948.106904 | G52: =lista1!G52 -> 0.24 | H52: 2387.545657
A53: =lista1!A53 -> 0 | B53: =lista1!B53 -> Tabiques vistos cuantía 80 kg | C53: =lista1!C53 -> m3 | D53: 1.105345212 | E53: 10136.1 | F53: 11203.8896 | G53: =lista1!G53 -> 0 | H53: 0
A54: =lista1!A54 -> 0 | B54: =lista1!B54 -> Tabiques cuantía 80 kg/m3 | C54: =lista1!C54 -> m3 | D54: 1.105345212 | E54: 6628.3 | F54: 7326.559666 | G54: =lista1!G54 -> 0 | H54: 0
A55: =lista1!A55 -> 0 | B55: =lista1!B55 -> Escaleras cuantía 75 kg/m3 (sii es HºAº p/LOSAS macizas de escaleras a este prec. Dividir por 1,887) | C55: =lista1!C55 -> m3 | D55: 1.105345212 | E55: 10819.8 | F55: 11959.61412 | G55: =lista1!G55 -> 0 | H55: 0
A56: =lista1!A56 -> 0 | B56: =lista1!B56 -> Tanque de bombeo cuantía 105 kg/m3 | C56: =lista1!C56 -> m3 | D56: 1.105345212 | E56: 7270.8 | F56: 8036.743964 | G56: =lista1!G56 -> 0 | H56: 0
A57: =lista1!A57 -> 0 | B57: =lista1!B57 -> Tanque de reserva cuantía 105 kg/m3 y cisternas de HAº | C57: =lista1!C57 -> m3 | D57: 1.105345212 | E57: 8368.5 | F57: 9250.081403 | G57: =lista1!G57 -> 0.299 | H57: 2765.77434
A58: =lista1!A58 -> 0 | B58: =lista1!B58 -> Junta de PVC para hormigón | C58: =lista1!C58 -> ml | D58: 1.105345212 | E58: 160.1 | F58: 176.9657684 | G58: =lista1!G58 -> 0 | H58: 0
A59: =lista1!A59 -> 0 | B59: =lista1!B59 -> Barrera de vapor (dos manos de pintura asfáltica + 10% nafta) | C59: =lista1!C59 -> m2 | D59: 1.105345212 | F59: 0 | G59: =lista1!G59 -> 104.05 | H59: 0
A60: =lista1!A60 -> 6 | B60: =lista1!B60 -> Estructuras metálicas | C60: =lista1!C60 -> 0 | G60: =lista1!G60 -> 0
A61: =lista1!A61 -> 0 | B61: =lista1!B61 -> En el caso de cubiertas no se consideran los cerramientos laterales ni superiores. Para los entrepisos no se incluye el solado. En ambos, tampoco la pintura. El armado es en taller. Incluye el montaje en obra y no se considera el flete
A62: =lista1!A62 -> 0 | B62: =lista1!B62 -> Estructuras metálicas de perfiles normales | C62: =lista1!C62 -> kg | D62: =$N$27 -> 1.105345212 | E62: 38.6 | F62: =D62*E62 -> 42.66632517 | G62: =lista1!G62 -> 0 | H62: =+F62*G62 -> 0
A63: =lista1!A63 -> 0 | B63: =lista1!B63 -> Estructuras metálicas de perfiles ángulos | C63: =lista1!C63 -> kg | D63: =$N$27 -> 1.105345212 | E63: 77.9 | F63: =D63*E63 -> 86.10639198 | G63: =lista1!G63 -> 0 | H63: =+F63*G63 -> 0
A64: =lista1!A64 -> 0 | B64: =lista1!B64 -> Estructuras metálicas de hierro redondo | C64: =lista1!C64 -> kg | D64: =$N$27 -> 1.105345212 | E64: 38.7 | F64: =D64*E64 -> 42.77685969 | G64: =lista1!G64 -> 0 | H64: =+F64*G64 -> 0
A65: =lista1!A65 -> 0 | B65: =lista1!B65 -> 0 | C65: =lista1!C65 -> 0 | G65: =lista1!G65 -> 0 | H65: =+F65*G65 -> 0
A66: =lista1!A66 -> 0 | B66: =lista1!B66 -> 0 | C66: =lista1!C66 -> 0 | G66: =lista1!G66 -> 0 | H66: =+F66*G66 -> 0
A67: =lista1!A67 -> 0 | B67: =lista1!B67 -> 0 | C67: =lista1!C67 -> 0 | G67: =lista1!G67 -> 0
A68: =lista1!A68 -> 7 | B68: =lista1!B68 -> Mampostería | C68: =lista1!C68 -> Unid. | E68: Precio | G68: =lista1!G68 -> Cantid. | H68: Parcial
A69: =lista1!A69 -> 0 | B69: =lista1!B69 -> Bloques de hormigón estandar 19 x 19 x 39 ; idem cribada = D x 0,9365 | C69: =lista1!C69 -> m2 | D69: =$N$27 -> 1.105345212 | E69: 242 | F69: =D69*E69 -> 267.4935412 | G69: =lista1!G69 -> 0 | H69: =+F69*G69 -> 0
A70: =lista1!A70 -> 0 | B70: =lista1!B70 -> Bloques de hormigón estandar 9,2 x 19 x 39 ; ladrillos comunes de pandere 30 ud/m2 = corregir D x 0,88 | C70: =lista1!C70 -> m2 | D70: =$N$27 -> 1.105345212 | E70: 217.8 | F70: =D70*E70 -> 240.7441871 | G70: =lista1!G70 -> 0 | H70: =+F70*G70 -> 0
A71: =lista1!A71 -> 0 | B71: =lista1!B71 -> Junta de dilatación bloque ""u""de hormigón | C71: =lista1!C71 -> ml | D71: 1.105345212 | E71: 57 | F71: 63.00467706 | G71: =lista1!G71 -> 0 | H71: 0
A72: =lista1!A72 -> 0 | B72: =lista1!B72 -> Encadenado pared bloques de hormigón | C72: =lista1!C72 -> ml | D72: 1.105345212 | E72: 146.4 | F72: 161.822539 | G72: =lista1!G72 -> 0 | H72: 0
A73: =lista1!A73 -> 0 | B73: =lista1!B73 -> Ladrillos comunes elevación espesor 30 cm (si es de cimiento =D/1,03) si es p/ 1er piso =D*1,08 | C73: =lista1!C73 -> m3 | D73: 1.105345212 | E73: 2753.7 | F73: 3043.789109 | G73: =lista1!G73 -> 0 | H73: 0
A74: =lista1!A74 -> 0 | B74: =lista1!B74 -> Ladrillos de máquina para vista espesor 30 cm sin tomado de juntas (con tomado junt =D x 1,094) | C74: =lista1!C74 -> m3 | D74: 1.105345212 | E74: =4016.5/1.0939 -> 3671.725021 | F74: 4058.52367 | G74: =lista1!G74 -> 0 | H74: 0
A75: =lista1!A75 -> 0 | B75: =lista1!B75 -> Ladrillo común en elevación espesor 15 cm (si es de cimiento =D/1,03) si es p/ 1er piso =D*1,08 , cribadas | C75: =lista1!C75 -> m3 | D75: 1.105345212 | E75: 2065.6 | F75: 2283.201069 | G75: =lista1!G75 -> 0 | H75: 0
A76: =lista1!A76 -> 0 | B76: =lista1!B76 -> Ladrillo de máquina para vista espesor 15 cm con tomado de junta | C76: =lista1!C76 -> m3 | D76: 1.105345212 | E76: 4603.2 | F76: 5088.125078 | G76: =lista1!G76 -> 0 | H76: 0
A77: =lista1!A77 -> 0 | B77: =lista1!B77 -> Refuerzos horizontales o encadenado para mampostería (vigas o dintel) en ladrillo común | C77: =lista1!C77 -> ml | D77: 1.105345212 | E77: 294.5 | F77: 325.5241648 | G77: =lista1!G77 -> 0 | H77: 0
A78: =lista1!A78 -> 0 | B78: =lista1!B78 -> Ladrillo cerámico hueco de 8 x 18 x 33 pared de 8 cm de espesor | C78: =lista1!C78 -> m2 | D78: 1.105345212 | E78: 143.9 | F78: 159.0591759 | G78: =lista1!G78 -> 0 | H78: 0
A79: =lista1!A79 -> 0 | B79: =lista1!B79 -> Ladrillo cerámico hueco de 12 x 18 x 33 pared de 12 cm de espesor | C79: =lista1!C79 -> m2 | D79: 1.105345212 | E79: 184.3 | F79: 203.7151225 | G79: =lista1!G79 -> 0 | H79: 0
A80: =lista1!A80 -> 0 | B80: =lista1!B80 -> Ladrillo cerámico hueco de 18 x 18 x 33 pared de 18 cm de espesor | C80: =lista1!C80 -> m2 | D80: 1.105345212 | E80: 248 | F80: 274.1256125 | G80: =lista1!G80 -> 0 | H80: 0
A81: =lista1!A81 -> 0 | B81: =lista1!B81 -> Ladrillo cerámico portante de 13 x 19 x 33 | C81: =lista1!C81 -> m2 | D81: 1.105345212 | E81: 271.7 | F81: 300.322294 | G81: =lista1!G81 -> 360.4326 | H81: 108245.9453
A82: =lista1!A82 -> 0 | B82: =lista1!B82 -> Ladrillo cerámico portante de 18 x 19 x 33 | C82: =lista1!C82 -> m2 | D82: 1.105345212 | E82: 310.6 | F82: 343.3202227 | G82: =lista1!G82 -> 0 | H82: 0
A83: =lista1!A83 -> 0 | B83: =lista1!B83 -> Viga de encadenado superior con peine cerámico, armadura y hormigonado | C83: =lista1!C83 -> ml | D83: 1.105345212 | E83: 183 | F83: 202.2781737 | G83: =lista1!G83 -> 0 | H83: 0
A84: =lista1!A84 -> 0 | B84: =lista1!B84 -> Columna con bloque cerámico armadura y hormigón | C84: =lista1!C84 -> ml | D84: 1.105345212 | E84: 170.4 | F84: 188.3508241 | G84: =lista1!G84 -> 0 | H84: 0
A85: =lista1!A85 -> 0 | B85: =lista1!B85 -> Muro portante en elevación de HCCA tipo Retak | C85: =lista1!C85 -> m3 | D85: 1.105345212 | E85: 2500.4 | F85: 2763.805167 | G85: =lista1!G85 -> 0 | H85: 0
A86: =lista1!A86 -> 0 | B86: =lista1!B86 -> Colocación de carpinterías (incluye amurado, marcos y premarcos) | C86: =lista1!C86 -> m2 | D86: 1.105345212 | E86: 188.9 | F86: 208.7997105 | G86: =lista1!G86 -> 0 | H86: 0
A87: =lista1!A87 -> 0 | B87: =lista1!B87 -> Colocación de barandas | C87: =lista1!C87 -> ml | D87: 1.105345212 | E87: 165.2 | F87: 182.603029 | G87: =lista1!G87 -> 0 | H87: 0
A88: =lista1!A88 -> 0 | B88: =lista1!B88 -> Muro portante en elevación de HCCA de 15x25x50 tipo Retak | C88: =lista1!C88 -> m2 | D88: 1.105345212 | E88: 397.8 | F88: 439.7063252 | G88: =lista1!G88 -> 0 | H88: 0
A89: =lista1!A89 -> 0 | B89: =lista1!B89 -> murete de mesada de cocina hasta 95 cm de alto (incl mat y m.o: muro 0,15+ revoq gr y fno ambas caras) sin revestim. | C89: =lista1!C89 -> u | D89: 1.105345212 | E89: =(0.15*E75+2*E156) -> 632.5 | F89: 699.1308463 | G89: =lista1!G89 -> 0 | H89: 0
A90: =lista1!A90 -> 0 | B90: =lista1!B90 -> murete de mesada de cocina hasta 95 cm de alto (incl mat y m.o: muro 0,15+ revoq gr y revest. ambas caras) sin fino | C90: =lista1!C90 -> u | D90: 1.105345212 | E90: =(0.15*E75+2*E172) -> 926.44 | F90: 1024.036018 | G90: =lista1!G90 -> 0 | H90: 0
A91: =lista1!A91 -> 0 | B91: =lista1!B91 -> Conducto de ventilación | C91: =lista1!C91 -> ml | D91: 1.105345212 | E91: 348.5 | F91: 385.2128062 | G91: =lista1!G91 -> 0 | H91: 0
A92: =lista1!A92 -> 0 | B92: =lista1!B92 -> Sombrete conducto ventilación | C92: =lista1!C92 -> u | D92: 1.105345212 | E92: 327.9 | F92: 362.4426949 | G92: =lista1!G92 -> 0 | H92: 0
A93: =lista1!A93 -> 0 | B93: =lista1!B93 -> Rejilla para conducto | C93: =lista1!C93 -> ml | D93: 1.105345212 | E93: 201 | F93: 222.1743875 | G93: =lista1!G93 -> 0 | H93: 0
A94: =lista1!A94 -> 0 | B94: =lista1!B94 -> Conducto de presurización | C94: =lista1!C94 -> ml | D94: 1.105345212 | E94: 378.7 | F94: 418.5942316 | G94: =lista1!G94 -> 0 | H94: 0
A95: =lista1!A95 -> 0 | B95: =lista1!B95 -> Sombrete conducto presuriz. | C95: =lista1!C95 -> u | D95: 1.105345212 | E95: 577.1 | F95: 637.8947216 | G95: =lista1!G95 -> 0 | H95: 0
A96: =lista1!A96 -> 0 | B96: =lista1!B96 -> Reja conducto ventilación | C96: =lista1!C96 -> u | D96: 1.105345212 | E96: 238.9 | F96: 264.066971 | G96: =lista1!G96 -> 0 | H96: 0
A97: =lista1!A97 -> 0 | B97: =lista1!B97 -> banquinas de mesada (contrapiso + carpeta + revest. Ceramico) | C97: =lista1!C97 -> ml | D97: 1.105345212 | E97: =E144+E150+E172 -> 523 | F97: 578.0955457 | G97: =lista1!G97 -> 6.3 | H97: 3642.001938
A98: =lista1!A98 -> 0 | B98: =lista1!B98 -> tomado de juntas en ladrillos visto rehundidas (al ras es 0,841*D) | C98: =lista1!C98 -> m2 | G98: =lista1!G98 -> 0
A99: =lista1!A99 -> 0 | B99: =lista1!B99 -> Muros de ladrillo de vidrio 20x20x10 cm | C99: =lista1!C99 -> m2 | G99: =lista1!G99 -> 0
A100: =lista1!A100 -> 0 | B100: =lista1!B100 -> Tabique de placas de yeso, tipo durlock 12,5 mm esp. | C100: =lista1!C100 -> m2 | G100: =lista1!G100 -> 0
A101: =lista1!A101 -> 0 | B101: =lista1!B101 -> 0 | C101: =lista1!C101 -> 0 | G101: =lista1!G101 -> 0
A102: =lista1!A102 -> 8 | B102: =lista1!B102 -> Construcción con placas de roca de yeso | C102: =lista1!C102 -> Unid. | E102: Precio | G102: =lista1!G102 -> Cantid. | H102: Parcial
A103: =lista1!A103 -> 0 | B103: =lista1!B103 -> En todos los casos las terminaciones quedan listas para pintar. Junta tomada con cinta tramada y mansilla
A104: =lista1!A104 -> 0 | B104: =lista1!B104 -> Tabique simple espesor 9,5 cm. Estructura de chapa galvanizada con montantes cada 48 cm. Solera inferior y superior de 70mm. Placa normal 15mm | C104: =lista1!C104 -> m2 | D104: =$N$27 -> 1.105345212 | E104: 236.4 | F104: =D104*E104 -> 261.303608 | G104: =lista1!G104 -> 0 | H104: =+F104*G104 -> 0
A105: =lista1!A105 -> 0 | B105: =lista1!B105 -> Idem con aislación de lana de vidrio | C105: =lista1!C105 -> m2 | D105: =$N$27 -> 1.105345212 | E105: 265 | F105: =D105*E105 -> 292.9164811 | G105: =lista1!G105 -> 0 | H105: =+F105*G105 -> 0
A106: =lista1!A106 -> 0 | B106: =lista1!B106 -> Medio tabique espesor total 8,5 cm | C106: =lista1!C106 -> m2 | D106: 1.105345212 | E106: 214.7 | F106: 237.3176169 | G106: =lista1!G106 -> 0 | H106: 0
A107: =lista1!A107 -> 0 | B107: =lista1!B107 -> Pared divisoria de unidades funcionales espesor total 12 cm. Doble placa de 15mm en ambas caras. Montantes cada 40cm. Solera 70mm interior y super. | C107: =lista1!C107 -> m2 | D107: 1.105345212 | E107: 337.5 | F107: 373.0540089 | G107: =lista1!G107 -> 0 | H107: 0
A108: =lista1!A108 -> 0 | B108: =lista1!B108 -> Cielorraso suspendido, junta tomada con placas de 12,5mm, Estructura soleras y montantes de chapa galvanizada | C108: =lista1!C108 -> m2 | D108: 1.105345212 | E108: 168.5 | F108: 186.2506682 | G108: =lista1!G108 -> 0 | H108: 0
A109: =lista1!A109 -> 0 | B109: =lista1!B109 -> Idem con placa verde. | C109: =lista1!C109 -> m2 | D109: 1.105345212 | E109: 192.2 | F109: 212.4473497 | G109: =lista1!G109 -> 0 | H109: 0
A110: =lista1!A110 -> 0 | B110: =lista1!B110 -> Cielorraso suspendido desmontable. Estructura con bastidor de aluminio. Placas texturadas 60 x 1,20 | C110: =lista1!C110 -> m2 | D110: 1.105345212 | E110: 380.5 | F110: 420.583853 | G110: =lista1!G110 -> 0 | H110: 0
A111: =lista1!A111 -> 0 | B111: =lista1!B111 -> 0 | C111: =lista1!C111 -> 0 | G111: =lista1!G111 -> 0
A112: =lista1!A112 -> 9 | B112: =lista1!B112 -> Aislaciones | C112: =lista1!C112 -> 0 | G112: =lista1!G112 -> 0
A113: =lista1!A113 -> 0 | B113: =lista1!B113 -> De sótanos cementicia para cerramientos horizontal y vertical | C113: =lista1!C113 -> m2 | D113: =$N$27 -> 1.105345212 | E113: 280.4 | F113: =D113*E113 -> 309.9387973 | G113: =lista1!G113 -> 0 | H113: =+F113*G113 -> 0
A114: =lista1!A114 -> 0 | B114: =lista1!B114 -> Capa aisladora con tabique panderete | C114: =lista1!C114 -> m2 | D114: =$N$27 -> 1.105345212 | E114: 236.7 | F114: =D114*E114 -> 261.6352116 | G114: =lista1!G114 -> 0 | H114: 0
A115: =lista1!A115 -> 0 | B115: =lista1!B115 -> Horizontal espesor 2 cm sobre muro | C115: =lista1!C115 -> m2 | D115: 1.105345212 | E115: 181 | F115: 200.0674833 | G115: =lista1!G115 -> 14.36947059 | H115: 2874.863817
A116: =lista1!A116 -> 0 | B116: =lista1!B116 -> Film de polietileno bajo plateas o contrapisos | C116: =lista1!C116 -> m2 | D116: 1.105345212 | E116: 35.7 | F116: 39.46082405 | G116: =lista1!G116 -> 0 | H116: 0
A117: =lista1!A117 -> 0 | B117: =lista1!B117 -> Horizontal cementicia en contrapiso sobre terreno natural | C117: =lista1!C117 -> m2 | D117: 1.105345212 | E117: 74.6 | F117: 82.45875278 | G117: =lista1!G117 -> 0 | H117: 0
A118: =lista1!A118 -> 0 | B118: =lista1!B118 -> Horizontal sobre losa para locales húmedos | C118: =lista1!C118 -> m2 | D118: 1.105345212 | E118: 106.1 | F118: 117.2771269 | G118: =lista1!G118 -> 0 | H118: 0
A119: =lista1!A119 -> 0 | B119: =lista1!B119 -> Azotado hidrófugo bajo revestimientos | C119: =lista1!C119 -> m2 | D119: 1.105345212 | E119: 29.2 | F119: 32.27608018 | G119: =lista1!G119 -> 0 | H119: 0
A120: =lista1!A120 -> 0 | B120: =lista1!B120 -> Vertical de 1,5 de esp. sobre muros | C120: =lista1!C120 -> m2 | D120: 1.105345212 | E120: 62.7 | F120: 69.30514477 | G120: =lista1!G120 -> 21.6 | H120: 1496.991127
A121: =lista1!A121 -> 0 | B121: =lista1!B121 -> Horizontal y vertical cementicia para interior tanques de agua | C121: =lista1!C121 -> m2 | D121: 1.105345212 | E121: 204.1 | F121: 225.6009577 | G121: =lista1!G121 -> 0 | H121: 0
A122: =lista1!A122 -> 0 | B122: =lista1!B122 -> inyeccion de líquidos químicos SIKA inertol infiltración, c perf c/15 cm a tres bolillos, rev.,rev fino (220MO+300mat) | C122: =lista1!C122 -> ml | D122: 1.105345212 | E122: 520 | F122: 574.77951 | G122: =lista1!G122 -> 22 | H122: 12645.14922
A123: =lista1!A123 -> 10 | B123: =lista1!B123 -> Cubiertas | C123: =lista1!C123 -> 0 | G123: =lista1!G123 -> 0
A124: =lista1!A124 -> 0 | B124: =lista1!B124 -> No se incluye la losa de hormigón | C124: =lista1!C124 -> 0 | G124: =lista1!G124 -> 0
A125: =lista1!A125 -> 0 | B125: =lista1!B125 -> Planas | C125: =lista1!C125 -> 0 | G125: =lista1!G125 -> 0
A126: =lista1!A126 -> 0 | B126: =lista1!B126 -> Sobre losa con barrera de vapor, contrapiso con pendiente. Carpeta para recibir, y proteger, aislación térmica e hidráulica con membrana con aluminio | C126: =lista1!C126 -> m2 | D126: =$N$27 -> 1.105345212 | E126: 930.9 | F126: =D126*E126 -> 1028.965857 | G126: =lista1!G126 -> 104.05 | H126: =+F126*G126 -> 107063.8975
A127: =lista1!A127 -> 0 | B127: =lista1!B127 -> Idem anterior. Cubierta transitable terminación baldosas 20 x 20 para terraza | C127: =lista1!C127 -> m2 | D127: =$N$27 -> 1.105345212 | E127: 1211.1 | F127: =D127*E127 -> 1338.683586 | G127: =lista1!G127 -> 0 | H127: =+F127*G127 -> 0
A128: =lista1!A128 -> 0 | B128: =lista1!B128 -> 0 | C128: =lista1!C128 -> 0 | G128: =lista1!G128 -> 0
A129: =lista1!A129 -> 0 | B129: =lista1!B129 -> Con pendiente | C129: =lista1!C129 -> 0 | G129: =lista1!G129 -> 0
A130: =lista1!A130 -> 0 | B130: =lista1!B130 -> No incluye la pintura. Para las de madera se consideró la aplicación de preservador. No incluye correas | C130: =lista1!C130 -> 0 | G130: =lista1!G130 -> 0
A131: =lista1!A131 -> 0 | B131: =lista1!B131 -> Tejas francesa estructura de madera vista con aislación térmica | C131: =lista1!C131 -> m2 | D131: =$N$27 -> 1.105345212 | E131: 822.8 | F131: =D131*E131 -> 909.4780401 | G131: =lista1!G131 -> 0 | H131: =+F131*G131 -> 0
A132: =lista1!A132 -> 0 | B132: =lista1!B132 -> Idem, con madera sin cepillar | C132: =lista1!C132 -> m2 | D132: =$N$27 -> 1.105345212 | E132: 796.3 | F132: =D132*E132 -> 880.186392 | G132: =lista1!G132 -> 0 | H132: =+F132*G132 -> 0
A133: =lista1!A133 -> 0 | B133: =lista1!B133 -> Chapa ondulada N24 estructura de madera vista. No se considera con aislación térmica | C133: =lista1!C133 -> m2 | D133: 1.105345212 | E133: 552 | F133: 610.1505568 | G133: =lista1!G133 -> 0 | H133: 0
A134: =lista1!A134 -> 0 | B134: =lista1!B134 -> Idem, chapa prepintada | C134: =lista1!C134 -> m2 | D134: 1.105345212 | E134: 590 | F134: 652.1536748 | G134: =lista1!G134 -> 0 | H134: 0
A135: =lista1!A135 -> 0 | B135: =lista1!B135 -> Chapa ambas caras con aislación térmica | C135: =lista1!C135 -> m2 | D135: 1.105345212 | E135: 628.3 | F135: 694.4883964 | G135: =lista1!G135 -> 0 | H135: 0
A136: =lista1!A136 -> 0 | B136: =lista1!B136 -> Teja colonial madera vista | C136: =lista1!C136 -> m2 | D136: 1.105345212 | E136: 861.4 | F136: 952.1443653 | G136: =lista1!G136 -> 0 | H136: 0
A137: =lista1!A137 -> 0 | B137: =lista1!B137 -> Teja colonial madera sin cepillar | C137: =lista1!C137 -> m2 | D137: 1.105345212 | E137: 850.3 | F137: 939.8750334 | G137: =lista1!G137 -> 0 | H137: 0
A138: =lista1!A138 -> 0 | B138: =lista1!B138 -> Chapa imitación tejas | C138: =lista1!C138 -> m2 | D138: 1.105345212 | E138: 850.6 | F138: 940.206637 | G138: =lista1!G138 -> 0 | H138: 0
A139: =lista1!A139 -> 0 | B139: =lista1!B139 -> Junta de dilatación membrana asfáltica | C139: =lista1!C139 -> m2 | D139: 1.105345212 | E139: 198.3 | F139: 219.1899555 | G139: =lista1!G139 -> 0 | H139: 0
A140: =lista1!A140 -> 0 | B140: =lista1!B140 -> Tinglado chapa galvanizada sobre vigaa spagueti | C140: =lista1!C140 -> m2 | D140: 1.105345212 | E140: 340.1 | F140: 375.9279065 | G140: =lista1!G140 -> 0 | H140: 0
A141: =lista1!A141 -> 0 | B141: =lista1!B141 -> 0 | C141: =lista1!C141 -> 0 | G141: =lista1!G141 -> 0
A142: =lista1!A142 -> 11 | B142: =lista1!B142 -> Contrapiso | C142: =lista1!C142 -> 0 | G142: =lista1!G142 -> 0
A143: =lista1!A143 -> 0 | B143: =lista1!B143 -> Hormigón de cascotes armado de espesor 15 cm sobre terreno natural | C143: =lista1!C143 -> m2 | D143: =$N$27 -> 1.105345212 | E143: 270.1 | F143: =D143*E143 -> 298.5537416 | G143: =lista1!G143 -> 158.66 | H143: =+F143*G143 -> 47368.53665
A144: =lista1!A144 -> 0 | B144: =lista1!B144 -> Hormigón de cascotes sobre losa espesor 7 cm | C144: =lista1!C144 -> m2 | D144: =$N$27 -> 1.105345212 | E144: 114.5 | F144: =D144*E144 -> 126.5620267 | G144: =lista1!G144 -> 0 | H144: =+F144*G144 -> 0
A145: =lista1!A145 -> 0 | B145: =lista1!B145 -> Hormigón de cascotes sobre losa local sanitario espesor 25 cm | C145: =lista1!C145 -> m2 | D145: =$N$27 -> 1.105345212 | E145: 396.9 | F145: =D145*E145 -> 438.7115145 | G145: =lista1!G145 -> 0 | H145: =+F145*G145 -> 0
A146: =lista1!A146 -> 0 | B146: =lista1!B146 -> Hormigón de arcilla expandida 10 cm de espesor | C146: =lista1!C146 -> m2 | D146: =$N$27 -> 1.105345212 | E146: 253.7 | F146: =D146*E146 -> 280.4260802 | G146: =lista1!G146 -> 0 | H146: =+F146*G146 -> 0
A147: =lista1!A147 -> 0 | B147: =lista1!B147 -> Mortero celular de 7 cm espesor | C147: =lista1!C147 -> m2 | D147: =$N$27 -> 1.105345212 | E147: 78.9 | F147: =D147*E147 -> 87.21173719 | G147: =lista1!G147 -> 0 | H147: =+F147*G147 -> 0
A148: =lista1!A148 -> 0 | B148: =lista1!B148 -> 0 | C148: =lista1!C148 -> 0 | G148: =lista1!G148 -> 0
A149: =lista1!A149 -> 12 | B149: =lista1!B149 -> Carpetas | C149: =lista1!C149 -> 0 | G149: =lista1!G149 -> 0
A150: =lista1!A150 -> 0 | B150: =lista1!B150 -> De concreto bajo solado | C150: =lista1!C150 -> m2 | D150: =$N$27 -> 1.105345212 | E150: 100.2 | F150: =D150*E150 -> 110.7555902 | G150: =lista1!G150 -> 158.66 | H150: =+F150*G150 -> 17572.48194
A151: =lista1!A151 -> 0 | B151: =lista1!B151 -> Carpeta de mortero celular 2 cm espesor | C151: =lista1!C151 -> m2 | D151: =$N$27 -> 1.105345212 | E151: 88.1 | F151: =D151*E151 -> 97.38091314 | G151: =lista1!G151 -> 0 | H151: =+F151*G151 -> 0
A152: =lista1!A152 -> 0 | B152: =lista1!B152 -> Carpeta clavadora para parquet | C152: =lista1!C152 -> m2 | D152: =$N$27 -> 1.105345212 | E152: 124.8 | F152: =D152*E152 -> 137.9470824 | G152: =lista1!G152 -> 0 | H152: =+F152*G152 -> 0
A153: =lista1!A153 -> 0 | B153: =lista1!B153 -> 0 | C153: =lista1!C153 -> 0 | G153: =lista1!G153 -> 0
A154: =lista1!A154 -> 13 | B154: =lista1!B154 -> Revoques | C154: =lista1!C154 -> 0 | G154: =lista1!G154 -> 0
A155: =lista1!A155 -> 0 | B155: =lista1!B155 -> No se considera el trabajo de andamio | C155: =lista1!C155 -> 0 | G155: =lista1!G155 -> 0
A156: =lista1!A156 -> 0 | B156: =lista1!B156 -> Grueso y fino a la cal al fieltro | C156: =lista1!C156 -> m2 | D156: =$N$27 -> 1.105345212 | E156: =AVERAGE((130+30),162.66) -> 161.33 | F156: =D156*E156 -> 178.325343 | G156: =lista1!G156 -> 342.03624 | H156: =+F156*G156 -> 60993.72981
A157: =lista1!A157 -> 0 | B157: =lista1!B157 -> Grueso a la cal impermeable para exterior completo | C157: =lista1!C157 -> m2 | D157: =$N$27 -> 1.105345212 | E157: 251.2 | F157: =D157*E157 -> 277.6627171 | G157: =lista1!G157 -> 146.58696 | H157: =+F157*G157 -> 40701.73361
A158: =lista1!A158 -> 0 | B158: =lista1!B158 -> Grueso bajo revestimientos | C158: =lista1!C158 -> m2 | D158: 1.105345212 | E158: 137 | F158: 151.432294 | G158: =lista1!G158 -> 0 | H158: 0
A159: =lista1!A159 -> 0 | B159: =lista1!B159 -> Revoque proyectado exterior con hidrófugo | C159: =lista1!C159 -> m2 | D159: 1.105345212 | E159: 71.6 | F159: 79.14271715 | G159: =lista1!G159 -> 0 | H159: 0
A160: =lista1!A160 -> 0 | B160: =lista1!B160 -> Revoque proyectable grueso a la cal para interior | C160: =lista1!C160 -> m2 | D160: 1.105345212 | E160: 59.5 | F160: 65.76804009 | G160: =lista1!G160 -> 0 | H160: 0
A161: =lista1!A161 -> 0 | B161: =lista1!B161 -> Revoque proyectable fino a la cal para interior | C161: =lista1!C161 -> m2 | D161: 1.105345212 | E161: 44.2 | F161: 48.85625835 | G161: =lista1!G161 -> 0 | H161: 0
A162: =lista1!A162 -> 0 | B162: =lista1!B162 -> Revoque proyectable de yeso para interior, con engrosado | C162: =lista1!C162 -> m2 | D162: 1.105345212 | E162: 78.1 | F162: 86.32746102 | G162: =lista1!G162 -> 0 | H162: 0
A163: =lista1!A163 -> 0 | B163: =lista1!B163 -> Salpicado con molinete | C163: =lista1!C163 -> m2 | D163: 1.105345212 | E163: 68.4 | F163: 75.60561247 | G163: =lista1!G163 -> 0 | H163: 0
A164: =lista1!A164 -> 0 | B164: =lista1!B164 -> Salpicado con molinete exterior planchado | C164: =lista1!C164 -> m2 | D164: 1.105345212 | E164: 79.3 | F164: 87.65387528 | G164: =lista1!G164 -> 0 | H164: 0
A165: =lista1!A165 -> 0 | B165: =lista1!B165 -> Revoque especial super Iggam | C165: =lista1!C165 -> ml | D165: 1.105345212 | E165: 263.6 | F165: 291.3689978 | G165: =lista1!G165 -> 0 | H165: 0
A166: =lista1!A166 -> 0 | B166: =lista1!B166 -> Buñas super Iggam | C166: =lista1!C166 -> ml | D166: 1.105345212 | E166: 65.4 | F166: 72.28957684 | G166: =lista1!G166 -> 0 | H166: 0
A167: =lista1!A167 -> 0 | B167: =lista1!B167 -> http://www.construircordoba.com/precios-de-tareas/revoques/ | C167: =lista1!C167 -> 0 | G167: =lista1!G167 -> 0
A168: =lista1!A168 -> 14 | B168: =lista1!B168 -> Revestimientos | C168: =lista1!C168 -> Unid. | E168: Precio | G168: =lista1!G168 -> Cantid. | H168: Parcial
A169: =lista1!A169 -> 0 | B169: =lista1!B169 -> Incluye la mano de obra completa, adhesivo y tomado de juntas
A170: =lista1!A170 -> 0 | B170: =lista1!B170 -> Cerámico tipo San Lorenzo 20 x 20 | C170: =lista1!C170 -> m2 | D170: =$N$27 -> 1.105345212 | E170: 213.5 | F170: =D170*E170 -> 235.9912027 | G170: =lista1!G170 -> 0 | H170: =+F170*G170 -> 0
A171: =lista1!A171 -> 0 | B171: =lista1!B171 -> De venecita | C171: =lista1!C171 -> m2 | D171: =$N$27 -> 1.105345212 | E171: 548.3 | F171: =D171*E171 -> 606.0607795 | G171: =lista1!G171 -> 0 | H171: =+F171*G171 -> 0
A172: =lista1!A172 -> 0 | B172: =lista1!B172 -> Cerámico esmaltado 30 x 30 cm | C172: =lista1!C172 -> m2 | D172: 1.105345212 | E172: 308.3 | F172: 340.7779287 | G172: =lista1!G172 -> 29.93 | H172: 10199.48341
A173: =lista1!A173 -> 0 | B173: =lista1!B173 -> Revestimientos secos | C173: =lista1!C173 -> 0 | D173: 1.105345212 | F173: 0 | G173: =lista1!G173 -> 0 | H173: 0
A174: =lista1!A174 -> 0 | B174: =lista1!B174 -> De muros con machiembrado de pino 1/2". Incluye la estructura sobre muro | C174: =lista1!C174 -> m2 | D174: 1.105345212 | E174: 312 | F174: 344.867706 | G174: =lista1!G174 -> 0 | H174: 0
A175: =lista1!A175 -> 0 | B175: =lista1!B175 -> Cerámica esmaltada 30x30 con guardas | C175: =lista1!C175 -> m2 | D175: 1.105345212 | E175: 414 | F175: 457.6129176 | G175: =lista1!G175 -> 0 | H175: 0
A176: =lista1!A176 -> 0 | B176: =lista1!B176 -> Porcellanato 30x30 rústico | C176: =lista1!C176 -> m2 | D176: 1.105345212 | E176: 347.2 | F176: 383.7758575 | G176: =lista1!G176 -> 0 | H176: 0
A177: =lista1!A177 -> 0 | B177: =lista1!B177 -> Tejuelas de ladrillo | C177: =lista1!C177 -> m2 | D177: 1.105345212 | E177: 312.4 | F177: 345.3098441 | G177: =lista1!G177 -> 0 | H177: 0
A178: =lista1!A178 -> 0 | B178: =lista1!B178 -> 0 | C178: =lista1!C178 -> 0 | G178: =lista1!G178 -> 0
A179: =lista1!A179 -> 15 | B179: =lista1!B179 -> Cielorrasos | C179: =lista1!C179 -> 0 | G179: =lista1!G179 -> 0
A180: =lista1!A180 -> 0 | B180: =lista1!B180 -> Aplicado a la cal fina fratasada | C180: =lista1!C180 -> m2 | D180: =$N$27 -> 1.105345212 | E180: 183 | F180: =D180*E180 -> 202.2781737 | G180: =lista1!G180 -> 0 | H180: =+F180*G180 -> 0
A181: =lista1!A181 -> 0 | B181: =lista1!B181 -> Aplicado grueso y fino a la cal al fieltro | C181: =lista1!C181 -> m2 | D181: =$N$27 -> 1.105345212 | E181: 212 | F181: =D181*E181 -> 234.3331849 | G181: =lista1!G181 -> 104.05 | H181: =+F181*G181 -> 24382.36788
A182: =lista1!A182 -> 0 | B182: =lista1!B182 -> Suspendido a la cal armado en madera | C182: =lista1!C182 -> m2 | D182: 1.105345212 | E182: 536.2 | F182: 592.6861024 | G182: =lista1!G182 -> 0 | H182: 0
A183: =lista1!A183 -> 0 | B183: =lista1!B183 -> Suspendido a la cal armado en hierro | C183: =lista1!C183 -> m2 | D183: 1.105345212 | E183: 624.7 | F183: 690.5091537 | G183: =lista1!G183 -> 0 | H183: 0
A184: =lista1!A184 -> 0 | B184: =lista1!B184 -> Taparrollo armado a la cal | C184: =lista1!C184 -> ml | D184: 1.105345212 | E184: 389 | F184: 429.9792873 | G184: =lista1!G184 -> 0 | H184: 0
A185: =lista1!A185 -> 0 | B185: =lista1!B185 -> Suspendido termoacústico | C185: =lista1!C185 -> m2 | D185: 1.105345212 | E185: 415.2 | F185: 458.9393318 | G185: =lista1!G185 -> 0 | H185: 0
A186: =lista1!A186 -> 0 | B186: =lista1!B186 -> Suspendido con dorso de aluminio | C186: =lista1!C186 -> m2 | D186: 1.105345212 | E186: 458.3 | F186: 506.5797105 | G186: =lista1!G186 -> 0 | H186: 0
A187: =lista1!A187 -> 0 | B187: =lista1!B187 -> Paneles de aluminio microperforado | C187: =lista1!C187 -> m2 | D187: 1.105345212 | E187: 371.8 | F187: 410.9673497 | G187: =lista1!G187 -> 0 | H187: 0
A188: =lista1!A188 -> 0 | B188: =lista1!B188 -> 0 | C188: =lista1!C188 -> 0 | G188: =lista1!G188 -> 0
A189: =lista1!A189 -> 16 | B189: =lista1!B189 -> Yeseria | C189: =lista1!C189 -> 0 | G189: =lista1!G189 -> 0
A190: =lista1!A190 -> 0 | B190: =lista1!B190 -> Enlucido de yeso | C190: =lista1!C190 -> m2 | D190: =$N$27 -> 1.105345212 | E190: 145.8 | F190: =D190*E190 -> 161.1593318 | G190: =lista1!G190 -> 0 | H190: =+F190*G190 -> 0
A191: =lista1!A191 -> 0 | B191: =lista1!B191 -> Enlucido de yeso reforzado con cemento | C191: =lista1!C191 -> m2 | D191: =$N$27 -> 1.105345212 | E191: 157.3 | F191: =D191*E191 -> 173.8708018 | G191: =lista1!G191 -> 0 | H191: =+F191*G191 -> 0
A192: =lista1!A192 -> 0 | B192: =lista1!B192 -> Enlucido de yeso y engrosado con yeso gris | C192: =lista1!C192 -> m2 | D192: 1.105345212 | E192: 205.8 | F192: 227.4800445 | G192: =lista1!G192 -> 0 | H192: 0
A193: =lista1!A193 -> 0 | B193: =lista1!B193 -> Guardacanto de yesero. Incluye el recubrimiento de yeso | C193: =lista1!C193 -> ml | D193: 1.105345212 | E193: 105.7 | F193: 116.8349889 | G193: =lista1!G193 -> 0 | H193: 0
A194: =lista1!A194 -> 0 | B194: =lista1!B194 -> Fajas sobre revestimiento | C194: =lista1!C194 -> ml | D194: 1.105345212 | E194: 236.7 | F194: 261.6352116 | G194: =lista1!G194 -> 0 | H194: 0
A195: =lista1!A195 -> 0 | B195: =lista1!B195 -> Agujeros circulares hasta 40 cm de diámetro | C195: =lista1!C195 -> u | D195: 1.105345212 | E195: 76.5 | F195: 84.55890869 | G195: =lista1!G195 -> 0 | H195: 0
A196: =lista1!A196 -> 0 | B196: =lista1!B196 -> Cielorraso aplicado al yeso | C196: =lista1!C196 -> m2 | D196: 1.105345212 | E196: 139.7 | F196: 154.4167261 | G196: =lista1!G196 -> 0 | H196: 0
A197: =lista1!A197 -> 0 | B197: =lista1!B197 -> Cielorraso de yeso armado estructura de madera | C197: =lista1!C197 -> m2 | D197: 1.105345212 | E197: 360 | F197: 397.9242762 | G197: =lista1!G197 -> 0 | H197: 0
A198: =lista1!A198 -> 0 | B198: =lista1!B198 -> Cielorraso de yeso armado estructura de hierro | C198: =lista1!C198 -> m2 | D198: 1.105345212 | E198: 452.5 | F198: 500.1687082 | G198: =lista1!G198 -> 0 | H198: 0
A199: =lista1!A199 -> 0 | B199: =lista1!B199 -> Taparrollo de yeso armado | C199: =lista1!C199 -> ml | D199: 1.105345212 | E199: 349.9 | F199: 386.7602895 | G199: =lista1!G199 -> 0 | H199: 0
A200: =lista1!A200 -> 0 | B200: =lista1!B200 -> 0 | C200: =lista1!C200 -> 0 | G200: =lista1!G200 -> 0
... 4300 more rows

Sheet Cómp.(obra2)
B2: OBRA: | K2: Superf. Cubierta total: | L2: ='Costos grales.'!R3 -> obra2 | N2: m2
B3: PROPIETARIO: | M3: =M2*M5 -> 0 | N3: 1
B4: UBICACION: | K4: ¿INCLUIRÁ ESTA HOJA EN CALC. DE ESTE LIBRO EXCEL? | N4: 0
K5: NO | M5: =MAX((L6:L7=K5)*(M6:M7)) -> 0
C6: FECHA: | D6: =TODAY() -> 2015-11-12 | L6: SI | M6: 1
L7: NO | M7: 0
B8: Nº | C8: RUBRO | D8: Unidad | K8: COSTO UNITARIO $ | L8: TOTAL ITEM $ | M8: TOTAL RUBRO $
B11: 0 | C11: TRABAJOS PRELIMINARES | D11: Largo [m] | E11: Ancho [m] | F11: Alto [m] | G11: Área [m2] | H11: Perímetro [m] | I11: General | J11: [m³]
C12: limpieza y preparacion del terreno | G12: 567 | K12: 32.75 | L12: =+K12*G12*$M$5 -> 0 | M12: =+L12+L13 -> 0 | P12: 1 | Q12: =M12 -> 0
C13: replanteo | G13: 260 | K13: 17.85 | L13: =+K13*G13*$M$5 -> 0 | Q13: =M13 -> 0
B14: 1 | C14: MOVIMIENTO DE TIERRA | Q14: 0
B15: 1.1 | C15: Excavación para platea | D15: 13.16 | E15: 5 | F15: 0.25 | J15: =D15*E15*F15 -> 16.45 | K15: 87.59 | L15: 0 | M15: =+L15+L16+L17 -> 0 | P15: 2 | Q15: 0
C16: Excavacion cimientos (Total) | F16: 0.35 | G16: =2*14.58 -> 29.16 | J16: =+(G16*F16) -> 10.206 | K16: 87.59 | L16: 0 | Q16: 0
B17: 1.2 | C17: Relleno | F17: 0.53 | G17: 546.76 | J17: =F17*G17 -> 289.7828 | K17: 156 | L17: 0 | Q17: 0
B18: 2 | C18: FUNDACIONES | D18: Largo [m] | E18: Ancho [m] | F18: Alto [m] | G18: Área [m2] | H18: Perímetro [m] | I18: General | J18: [m³] | Q18: 0
B19: 2.1 | C19: Platea de H° A° | D19: 13.16 | E19: 5 | F19: 0.18 | J19: =D19*E19*F19 -> 11.844 | K19: 1077.3 | L19: 0 | M19: =+L19+L20 -> 0 | P19: 3 | Q19: 0
C20: VIGAS RIOSTRAS (TOTAL) | F20: 0.35 | G20: =+G16 -> 29.16 | J20: =+F20*G20 -> 10.206 | K20: 1077.3 | L20: 0 | Q20: 0
B21: 3 | C21: ESTRUCTURAS RESISTENTES (por vivienda) | D21: Largo [m] | E21: Ancho [m] | F21: Alto [m] | G21: Área [m2] | H21: Perímetro [m] | I21: General | J21: [m³] | Q21: 0
B22: 3.1 | C22: VIGAS DE ENCADENADO SUPERIOR | L22: 0 | M22: =+L36+L41+L46+L68 -> 0 | P22: 4 | Q22: 0
C23: Nivel 2,60 | L23: 0 | Q23: 0
C24: VE 18x30 | D24: 10.78 | E24: 0.18 | F24: 0.3 | J24: =D24*E24*F24 -> 0.58212 | K24: 1914.2 | L24: 0 | Q24: 0
C25: VE 18x30 | D25: 10.78 | E25: 0.18 | F25: 0.3 | J25: =D25*E25*F25 -> 0.58212 | K25: 1914.2 | L25: 0 | Q25: 0
C26: VE 18x30 | D26: 3.05 | E26: 0.18 | F26: 0.3 | J26: 0.1647 | K26: 1914.2 | L26: 0 | Q26: 0
C27: VE 18x30 | D27: 3.05 | E27: 0.18 | F27: 0.3 | J27: 0.1647 | K27: 1914.2 | L27: 0 | Q27: 0
C28: VE 18x30 | D28: 3.05 | E28: 0.18 | F28: 0.3 | J28: 0.1647 | K28: 1914.2 | L28: 0 | Q28: 0
C29: VE 18x30 | D29: 3.05 | E29: 0.18 | F29: 0.3 | J29: 0.1647 | K29: 1914.2 | L29: 0 | Q29: 0
C30: VE 18x30 | D30: 3.05 | E30: 0.18 | F30: 0.3 | J30: 0.1647 | K30: 1914.2 | L30: 0 | Q30: 0
C31: VE 18x30 | D31: 1.55 | E31: 0.18 | F31: 0.3 | J31: 0.0837 | K31: 1914.2 | L31: 0 | Q31: 0
C32: VE 18x30 | D32: 1.55 | E32: 0.18 | F32: 0.3 | J32: 0.0837 | K32: 1914.2 | L32: 0 | Q32: 0
C33: VE 18x30 | D33: 1.79 | E33: 0.2 | F33: 0.3 | J33: 0.1074 | K33: 1914.2 | L33: 0 | Q33: 0
C34: VE 18x30 | D34: 4.5 | E34: 0.2 | F34: 0.3 | J34: 0.27 | K34: 1914.2 | L34: 0 | Q34: 0
C35: VE 18x30 (apoyo intermedio escalera) | D35: 2.6 | E35: 0.18 | F35: 0.3 | J35: =D35*E35*F35 -> 0.1404 | K35: 1914.2 | L35: 0 | Q35: 0
C36: Nivel 5,20 | L36: 0 | Q36: 0
C37: VE 18x30 | D37: 7.47 | E37: 0.18 | F37: 0.3 | J37: =D37*E37*F37 -> 0.40338 | K37: 1914.2 | L37: 0 | Q37: 0
C38: VE 18x30 | D38: 7.18 | E38: 0.18 | F38: 0.3 | J38: =D38*E38*F38 -> 0.38772 | K38: 1914.2 | L38: 0 | Q38: 0
C39: VE 18x30 | D39: 3.04 | E39: 0.18 | F39: 0.3 | J39: =D39*E39*F39 -> 0.16416 | K39: 1914.2 | L39: 0 | Q39: 0
C40: VE 18x30 | D40: 3.04 | E40: 0.18 | F40: 0.3 | J40: =D40*E40*F40 -> 0.16416 | K40: 1914.2 | L40: 0 | Q40: 0
C41: Apoyo tanque | L41: 0 | Q41: 0
C42: VE 18x20 | D42: 1.98 | E42: 0.18 | F42: 0.2 | J42: =D42*E42*F42 -> 0.07128 | K42: 1914.2 | L42: 0 | Q42: 0
C43: VE 18x20 | D43: 1.98 | E43: 0.18 | F43: 0.2 | J43: =D43*E43*F43 -> 0.07128 | K43: 1914.2 | L43: 0 | Q43: 0
C44: VE 18x20 | D44: 2.18 | E44: 0.18 | F44: 0.2 | J44: =D44*E44*F44 -> 0.07848 | K44: 1914.2 | L44: 0 | Q44: 0
C45: Viga invertida 40x15 | D45: 3.04 | E45: 0.4 | F45: 0.15 | J45: =D45*E45*F45 -> 0.1824 | K45: 1914.2 | L45: 0 | Q45: 0
J46: =SUM(J24:J45) -> 4.1958 | L46: 0 | Q46: 0
B47: 3.2 | C47: COLUMNAS ESTRUCTURALES | L47: 0 | Q47: 0
C48: C 20x20 | F48: 2.6 | G48: =0.2*0.2 -> 0.04 | J48: =F48*G48 -> 0.104 | K48: 1896.3 | L48: 0 | Q48: 0
C49: C 20x20 | F49: 2.6 | G49: =0.2*0.2 -> 0.04 | J49: =F49*G49 -> 0.104 | K49: 1896.3 | L49: 0 | Q49: 0
C50: C 20x20 | F50: 2.6 | G50: 0.04 | J50: 0.104 | K50: 1896.3 | L50: 0 | Q50: 0
C51: C 20x20 | F51: 2.6 | G51: 0.04 | J51: 0.104 | K51: 1896.3 | L51: 0 | Q51: 0
C52: C 20x20 | F52: 2.6 | G52: 0.04 | J52: 0.104 | K52: 1896.3 | L52: 0 | Q52: 0
C53: C 20x20 | F53: 2.6 | G53: 0.04 | J53: 0.104 | K53: 1896.3 | L53: 0 | Q53: 0
C54: C 20x20 | F54: 2.6 | G54: 0.04 | J54: 0.104 | K54: 1896.3 | L54: 0 | Q54: 0
C55: C 20x20 | F55: 2.6 | G55: 0.04 | J55: 0.104 | K55: 1896.3 | L55: 0 | Q55: 0
C56: C 20x20 | F56: 2.6 | G56: 0.04 | J56: 0.104 | K56: 1896.3 | L56: 0 | Q56: 0
C57: C 20x20 | F57: 2.6 | G57: 0.04 | J57: 0.104 | K57: 1896.3 | L57: 0 | Q57: 0
C58: C 20x20 | F58: 2.6 | G58: 0.04 | J58: 0.104 | K58: 1896.3 | L58: 0 | Q58: 0
C59: C 20x20 | F59: 2.6 | G59: 0.04 | J59: 0.104 | K59: 1896.3 | L59: 0 | Q59: 0
C60: C 20x20 | F60: 2.6 | G60: 0.04 | J60: 0.104 | K60: 1896.3 | L60: 0 | Q60: 0
C61: C 20x20 | F61: 2.6 | G61: 0.04 | J61: 0.104 | K61: 1896.3 | L61: 0 | Q61: 0
C62: C 20x20 | F62: 2.6 | G62: 0.04 | J62: 0.104 | K62: 1896.3 | L62: 0 | Q62: 0
C63: C 20x20 | F63: 2.6 | G63: 0.04 | J63: 0.104 | K63: 1896.3 | L63: 0 | Q63: 0
C64: C 20x20 | F64: 2.6 | G64: 0.04 | J64: 0.104 | K64: 1896.3 | L64: 0 | Q64: 0
C65: C 20x20 | F65: 2.6 | G65: 0.04 | J65: 0.104 | K65: 1896.3 | L65: 0 | Q65: 0
C66: C 20x20 | F66: 2.6 | G66: 0.04 | J66: 0.104 | K66: 1896.3 | L66: 0 | Q66: 0
C67: C 20x20 | F67: 2.6 | G67: 0.04 | J67: 0.104 | K67: 1896.3 | L67: 0 | Q67: 0
J68: =SUM(J48:J67) -> 2.08 | L68: 0 | Q68: 0
L69: 0 | Q69: 0
B70: 4 | C70: MAMPOSTERÍA | D70: Largo [m] | E70: Ancho [m] | F70: Alto [m] | G70: Área [m2] | H70: Perímetro [m] | I70: General | J70: [m²] | Q70: 0
L71: 0 | M71: =+L103+L117+L124+L133+L142 -> 0 | P71: 5 | Q71: 0
B72: 4.1 | C72: DE LADRILLOS cerámicos huecos no portante (18x18x33) | L72: 0 | Q72: 0
C73: Planta baja | L73: 0 | Q73: 0
C74: Muro | D74: 0.7 | F74: 2.6 | J74: =D74*F74 -> 1.82 | K74: 173.3 | L74: 0 | Q74: 0
C75: Muro | D75: 0.7 | F75: 2.6 | J75: =D75*F75 -> 1.82 | K75: 173.3 | L75: 0 | Q75: 0
C76: Muro | D76: 3.65 | F76: 2.6 | J76: =D76*F76 -> 9.49 | K76: 173.3 | L76: 0 | Q76: 0
C77: Muro | D77: 3.65 | F77: 2.6 | J77: =D77*F77 -> 9.49 | K77: 173.3 | L77: =+K77*G77*$M$5 -> 0 | Q77: =M77 -> 0
C78: Muro | D78: 0.75 | F78: 2.6 | J78: 1.95 | K78: 173.3 | L78: 0 | Q78: 0
C79: Muro | D79: 0.75 | F79: 2.6 | J79: =D79*F79 -> 1.95 | K79: 173.3 | L79: 0 | Q79: 0
C80: Muro | D80: 4.6 | F80: 2.6 | J80: 11.96 | K80: 173.3 | L80: 0 | Q80: 0
C81: Muro | D81: 4.6 | F81: 2.6 | J81: =D81*F81 -> 11.96 | K81: 173.3 | L81: 0 | Q81: 0
C82: Muro | D82: 1.55 | F82: 2.6 | J82: 4.03 | K82: 173.3 | L82: 0 | Q82: 0
C83: Muro | D83: 1.55 | F83: 2.6 | J83: =D83*F83 -> 4.03 | K83: 173.3 | L83: 0 | Q83: 0
C84: Muro | D84: 0.94 | F84: 2.6 | J84: 2.444 | K84: 173.3 | L84: 0 | Q84: 0
C85: Muro | D85: 0.94 | F85: 2.6 | J85: =D85*F85 -> 2.444 | K85: 173.3 | L85: 0 | Q85: 0
C86: Muro | D86: 1.79 | F86: 2.6 | J86: 4.654 | K86: 173.3 | L86: 0 | Q86: 0
C87: Muro | D87: 1.79 | F87: 2.6 | J87: =D87*F87 -> 4.654 | K87: 173.3 | L87: 0 | Q87: 0
C88: Muro | D88: 2.19 | F88: 2.6 | J88: 5.694 | K88: 173.3 | L88: 0 | Q88: 0
C89: Muro | D89: 2.19 | F89: 2.6 | J89: 5.694 | K89: 173.3 | L89: 0 | Q89: 0
C90: Muro | D90: 3.05 | F90: 2.6 | J90: 7.93 | K90: 173.3 | L90: 0 | Q90: 0
C91: Muro | D91: 3.05 | F91: 2.6 | J91: 7.93 | K91: 173.3 | L91: 0 | Q91: 0
C92: Muro | D92: 3.05 | F92: 2.6 | J92: 7.93 | K92: 173.3 | L92: 0 | Q92: 0
C93: Muro | D93: 3.05 | F93: 2.6 | J93: 7.93 | K93: 173.3 | L93: 0 | Q93: 0
C94: Muro | D94: 1.35 | F94: 2.6 | J94: 3.51 | K94: 173.3 | L94: 0 | Q94: 0
C95: Muro | D95: 1.35 | F95: 2.6 | J95: 3.51 | K95: 173.3 | L95: 0 | Q95: 0
C96: Muro | D96: 0.7 | F96: 2.6 | J96: 1.82 | K96: 173.3 | L96: 0 | Q96: 0
C97: Muro | D97: 0.7 | F97: 2.6 | J97: 1.82 | K97: 173.3 | L97: 0 | Q97: 0
C98: Muro | D98: 0.4 | F98: 2.6 | J98: 1.04 | K98: 173.3 | L98: 0 | Q98: 0
C99: Muro | D99: 0.4 | F99: 2.6 | J99: 1.04 | K99: 173.3 | L99: 0 | Q99: 0
C100: Muro (divisor - común a ambas viviendas) | D100: 3.4 | F100: 2.6 | J100: 8.84 | K100: 173.3 | L100: 0 | Q100: 0
C101: Muro (divisor - común a ambas viviendas) | D101: 1.79 | F101: 2.6 | J101: 4.654 | K101: 173.3 | L101: 0 | Q101: 0
C102: Muro (divisor - común a ambas viviendas) | D102: 5.08 | F102: 2.6 | J102: 13.208 | K102: 173.3 | L102: 0 | Q102: 0
C103: Planta alta | L103: 0 | Q103: 0
C104: Muro | D104: 6.78 | F104: 2.6 | J104: =D104*F104 -> 17.628 | K104: 173.3 | L104: 0 | Q104: 0
C105: Muro | D105: 6.78 | F105: 2.6 | J105: 17.628 | K105: 173.3 | L105: 0 | Q105: 0
C106: Muro | D106: 3.04 | F106: 2.6 | J106: 7.904 | K106: 173.3 | L106: 0 | Q106: 0
C107: Muro | D107: 3.04 | F107: 2.6 | J107: 7.904 | K107: 173.3 | L107: 0 | Q107: 0
C108: Muro (divisor - común a ambas viviendas) | D108: 1.79 | F108: 2.6 | J108: 4.654 | K108: 173.3 | L108: 0 | Q108: 0
C109: Muro (divisor - común a ambas viviendas) | D109: 1.35 | F109: 2.6 | J109: 3.51 | K109: 173.3 | L109: 0 | Q109: 0
C110: Muro (divisor - común a ambas viviendas) | D110: 3.59 | F110: 2.6 | J110: 9.334 | K110: 173.3 | L110: 0 | Q110: 0
C111: Muro | D111: 0.7 | F111: 2.6 | J111: 1.82 | K111: 173.3 | L111: 0 | Q111: 0
C112: Muro | D112: 0.7 | F112: 2.6 | J112: 1.82 | K112: 173.3 | L112: 0 | Q112: 0
C113: Muro | D113: 0.4 | F113: 2.6 | J113: 1.04 | K113: 173.3 | L113: 0 | Q113: 0
C114: Muro | D114: 0.4 | F114: 2.6 | J114: 1.04 | K114: 173.3 | L114: 0 | Q114: 0
C115: Muro | D115: 2.25 | F115: 2.6 | J115: 5.85 | K115: 173.3 | L115: 0 | Q115: 0
C116: Muro | D116: 2.25 | F116: 2.6 | J116: 5.85 | K116: 173.3 | L116: 0 | Q116: 0
J117: =SUM(J74:J116) -> 241.228 | L117: 0 | Q117: 0
B118: 4.2 | C118: DE LADRILLOS cerámicos huecos no portante (12x18x33) | L118: 0 | Q118: 0
C119: Planta alta | L119: 0 | Q119: 0
C120: Muro | D120: 0.64 | F120: 2.6 | J120: =D120*F120 -> 1.664 | K120: 123.8 | L120: 0 | Q120: 0
C121: Muro | D121: 0.64 | F121: 2.6 | J121: =D121*F121 -> 1.664 | K121: 123.8 | L121: 0 | Q121: 0
C122: Muro | D122: 2.15 | F122: 2.6 | J122: =D122*F122 -> 5.59 | K122: 123.8 | L122: 0 | Q122: 0
C123: Muro | D123: 2.15 | F123: 2.6 | J123: =D123*F123 -> 5.59 | K123: 123.8 | L123: 0 | Q123: 0
J124: =SUM(J120:J123) -> 14.508 | L124: 0 | Q124: 0
B125: 4.3 | C125: DE LADRILLOS cerámicos huecos no portante (8x18x33) | L125: 0 | Q125: 0
C126: Planta baja | L126: 0 | Q126: 0
C127: Muro | D127: 1.82 | F127: 2.6 | J127: =D127*F127 -> 4.732 | K127: 166.52 | L127: 0 | Q127: 0
C128: Muro | D128: 1.82 | F128: 2.6 | J128: 4.732 | K128: 166.52 | L128: 0 | Q128: 0
C129: Muro | D129: 0.85 | F129: 2.6 | J129: 2.21 | K129: 166.52 | L129: 0 | Q129: 0
C130: Muro | D130: 0.85 | F130: 2.6 | J130: 2.21 | K130: 166.52 | L130: 0 | Q130: 0
C131: Muro | D131: 2.16 | F131: 2.6 | J131: 5.616 | K131: 166.52 | L131: 0 | Q131: 0
C132: Muro | D132: 2.16 | F132: 2.6 | J132: 5.616 | K132: 166.52 | L132: 0 | Q132: 0
C133: Planta alta | L133: 0 | Q133: 0
C134: Muro | D134: 0.84 | F134: 2.6 | J134: =D134*F134 -> 2.184 | K134: 166.52 | L134: 0 | Q134: 0
C135: Muro | D135: 0.84 | F135: 2.6 | J135: 2.184 | K135: 166.52 | L135: 0 | Q135: 0
C136: Muro | D136: 1.35 | F136: 2.6 | J136: 3.51 | K136: 166.52 | L136: 0 | Q136: 0
C137: Muro | D137: 1.35 | F137: 2.6 | J137: 3.51 | K137: 166.52 | L137: 0 | Q137: 0
C138: Muro | D138: 0.26 | F138: 2.6 | J138: 0.676 | K138: 166.52 | L138: 0 | Q138: 0
C139: Muro | D139: 0.26 | F139: 2.6 | J139: 0.676 | K139: 166.52 | L139: 0 | Q139: 0
C140: Muro | D140: 0.6 | F140: 2.6 | J140: 1.56 | K140: 166.52 | L140: 0 | Q140: 0
C141: Muro | D141: 0.6 | F141: 2.6 | J141: 1.56 | K141: 166.52 | L141: =+K141*G141*$M$5 -> 0 | Q141: =M141 -> 0
J142: =SUM(J127:J141) -> 40.976 | L142: 0 | Q142: 0
B143: 5 | C143: CAPAS AISLADORAS | D143: Largo [m] | E143: Ancho [m] | F143: Alto [m] | J143: [m²] | L143: 0 | Q143: 0
B144: 5.1 | C144: Horizontal para muros y tabiques | L144: 0 | M144: =+L175+L183 -> 0 | P144: 6 | Q144: 0
C145: Ancho 0,20 [m], Alto 0,2 [m] | L145: 0 | Q145: 0
C146: Muro | D146: 0.7 | J146: =(0.2+2*0.2)*D146 -> 0.42 | K146: 65.5 | L146: 0 | Q146: 0
C147: Muro | D147: 0.7 | J147: =(0.2+2*0.2)*D147 -> 0.42 | K147: 65.5 | L147: 0 | Q147: 0
C148: Muro | D148: 3.65 | J148: 2.19 | K148: 65.5 | L148: 0 | Q148: 0
C149: Muro | D149: 3.65 | J149: 2.19 | K149: 65.5 | L149: 0 | Q149: 0
C150: Muro | D150: 0.75 | J150: 0.45 | K150: 65.5 | L150: 0 | Q150: 0
C151: Muro | D151: 0.75 | J151: 0.45 | K151: 65.5 | L151: 0 | Q151: 0
C152: Muro | D152: 4.6 | J152: 2.76 | K152: 65.5 | L152: 0 | Q152: 0
C153: Muro | D153: 4.6 | J153: 2.76 | K153: 65.5 | L153: 0 | Q153: 0
C154: Muro | D154: 1.55 | J154: 0.93 | K154: 65.5 | L154: 0 | Q154: 0
C155: Muro | D155: 1.55 | J155: 0.93 | K155: 65.5 | L155: 0 | Q155: 0
C156: Muro | D156: 0.94 | J156: 0.564 | K156: 65.5 | L156: 0 | Q156: 0
C157: Muro | D157: 0.94 | J157: 0.564 | K157: 65.5 | L157: 0 | Q157: 0
C158: Muro | D158: 1.79 | J158: 1.074 | K158: 65.5 | L158: 0 | Q158: 0
C159: Muro | D159: 1.79 | J159: 1.074 | K159: 65.5 | L159: 0 | Q159: 0
C160: Muro | D160: 2.19 | J160: 1.314 | K160: 65.5 | L160: 0 | Q160: 0
C161: Muro | D161: 2.19 | J161: 1.314 | K161: 65.5 | L161: 0 | Q161: 0
C162: Muro | D162: 3.05 | J162: 1.83 | K162: 65.5 | L162: 0 | Q162: 0
C163: Muro | D163: 3.05 | J163: 1.83 | K163: 65.5 | L163: 0 | Q163: 0
C164: Muro | D164: 3.05 | J164: 1.83 | K164: 65.5 | L164: 0 | Q164: 0
C165: Muro | D165: 3.05 | J165: 1.83 | K165: 65.5 | L165: 0 | Q165: 0
C166: Muro | D166: 1.35 | J166: 0.81 | K166: 65.5 | L166: 0 | Q166: 0
C167: Muro | D167: 1.35 | J167: 0.81 | K167: 65.5 | L167: 0 | Q167: 0
C168: Muro | D168: 0.7 | J168: 0.42 | K168: 65.5 | L168: 0 | Q168: 0
C169: Muro | D169: 0.7 | J169: 0.42 | K169: 65.5 | L169: 0 | Q169: 0
C170: Muro | D170: 0.4 | J170: 0.24 | K170: 65.5 | L170: 0 | Q170: 0
C171: Muro | D171: 0.4 | J171: 0.24 | K171: 65.5 | L171: 0 | Q171: 0
C172: Muro (divisor - común a ambas viviendas) | D172: 3.4 | J172: 2.04 | K172: 65.5 | L172: 0 | Q172: 0
C173: Muro (divisor - común a ambas viviendas) | D173: 1.79 | J173: 1.074 | K173: 65.5 | L173: 0 | Q173: 0
C174: Muro (divisor - común a ambas viviendas) | D174: 5.08 | J174: 3.048 | K174: 65.5 | L174: 0 | Q174: 0
J175: =SUM(J146:J174) -> 35.826 | L175: 0 | Q175: 0
C176: Ancho 0,10 [m], Alto 0,2 [m] | L176: 0 | Q176: 0
C177: Muro | D177: 1.82 | J177: =(0.1+2*0.2)*D177 -> 0.91 | K177: 65.5 | L177: 0 | Q177: 0
C178: Muro | D178: 1.82 | J178: 0.91 | K178: 65.5 | L178: 0 | Q178: 0
C179: Muro | D179: 0.85 | J179: 0.425 | K179: 65.5 | L179: 0 | Q179: 0
C180: Muro | D180: 0.85 | J180: 0.425 | K180: 65.5 | L180: 0 | Q180: 0
C181: Muro | D181: 2.16 | J181: 1.08 | K181: 65.5 | L181: 0 | Q181: 0
C182: Muro | D182: 2.16 | J182: 1.08 | K182: 65.5 | L182: 0 | Q182: 0
J183: =SUM(J177:J182) -> 4.83 | L183: 0 | Q183: 0
B184: 6 | C184: LOSAS | D184: Largo [m] | E184: Ancho [m] | F184: Alto [m] | J184: [m²] | L184: 0 | Q184: 0
B185: 6.1 | C185: Planas | L185: 0 | M185: =+L188+L193+L200 -> 0 | P185: 7 | Q185: 0
C186: Losa de viguetas premoldeadas (ancho 25 [cm]; altura 11 [cm]) | D186: 7.18 | E186: 3.35 | J186: =D186*E186 -> 24.053 | K186: 343.45 | L186: 0 | Q186: 0
C187: Losa de viguetas premoldeadas (ancho 25 [cm]; altura 11 [cm]) | D187: 7.18 | E187: 3.35 | J187: =D187*E187 -> 24.053 | K187: 343.45 | L187: 0 | Q187: 0
J188: =SUM(J186:J187) -> 48.106 | L188: 0 | Q188: 0
B189: . | C189: Losa de H° A° | D189: 5 | E189: 1.65 | F189: 0.1 | J189: =D189*E189*F189 -> 0.825 | K189: 2698.33 | L189: =+K189*G189*$M$5 -> 0 | Q189: 0
C190: Losa de H° A° | D190: 5 | E190: 1.65 | F190: 0.1 | J190: =D190*E190*F190 -> 0.825 | K190: 2698.33 | L190: =+K190*G190*$M$5 -> 0 | Q190: 0
C191: Losa de H° A° | D191: 10.78 | E191: 3.35 | F191: 0.1 | J191: =D191*E191*F191 -> 3.6113 | K191: 2698.33 | L191: 0 | Q191: 0
C192: Losa de H° A° | D192: 10.78 | E192: 3.35 | F192: 0.1 | J192: =D192*E192*F192 -> 3.6113 | K192: 2698.33 | L192: 0 | Q192: 0
J193: =SUM(J189:J192) -> 8.8726 | L193: 0 | Q193: 0
L194: 0 | Q194: 0
B195: 6.2 | C195: Capa de compresión (espesor 5 [cm]) | J195: 6.84 | K195: 2698.33 | L195: 0 | Q195: 0
B196: 6.3 | C196: Barrera de vapor (dos manos de pintura asfáltica) | J196: =J188+J189+J190 -> 49.756 | K196: 17.77 | L196: 0 | Q196: 0
B197: 6.4 | C197: Aislación poliestireno expandido alta densidad (2 [cm] de espesor) | J197: =J195 -> 6.84 | K197: 6.9 | L197: 0 | Q197: 0
B198: 6.5 | C198: Membrana asfáltica con cara de aluminio (espesor 4 [mm]) | J198: =J196 -> 49.756 | K198: 191.57 | L198: 0 | Q198: 0
B199: 6.6 | C199: Contrapiso de pendiente sobre losa | J199: =J196 -> 49.756 | K199: 65.6 | L199: 0 | Q199: 0
L200: 0 | Q200: 0
B201: 7 | C201: REVOQUES | D201: Largo [m] | E201: Ancho [m] | F201: Alto [m] | J201: [m²] | L201: 0 | Q201: 0
B202: 7.1 | C202: INTERIOR (GRUESO Y FINO A LA CAL) | L202: 0 | M202: =+L211+L220+L225 -> 0 | P202: 8 | Q202: 0
C203: Grueso | L203: 0 | Q203: 0
... 150 more rows

Sheet Cómp. (obra1)
C2: OBRA: vivienda N1º PLANTA BAJA
C3: PROPIETARIO: Esteban Chaia
C4: UBICACION: Córdoba
D6: =lista1!A1 -> nro | E6: =lista1!B1 -> rubros o items | F6: =lista1!C1 -> Unid. | G6: =lista1!G1 -> Cantid. | H6: =lista1!H1 -> Parc. | I6: tot.rubro
D7: =lista1!A2 -> 0 | E7: =lista1!B2 -> 0 | F7: =lista1!C2 -> 0 | G7: =lista1!G2 -> 0 | H7: =lista1!H2 -> 0
D8: =lista1!A3 -> 1 | E8: =lista1!B3 -> Trabajos preliminares | F8: =lista1!C3 -> 0 | G8: =lista1!G3 -> 0 | H8: =lista1!H3 -> 0 | I8: =SUM(H9:H11) -> 26768.46885 | N8: ='Incidencia GG'!E5 -> Impacto de GGO (%) | P8: ='Incidencia GG'!F5 -> Impacto GGE (%) | Q8: Imprev. %
D9: =lista1!A4 -> 0 | E9: =lista1!B4 -> Limpieza y nivelación del terreno | F9: =lista1!C4 -> m2 | G9: =lista1!G4 -> 162.5 | H9: =lista1!H4 -> 9525.083554 | N9: ='Incidencia GG'!E6 -> 0.1044879098 | P9: ='Incidencia GG'!F6 -> 0.08782746619 | Q9: ='Incidencia GG'!$B$13 -> 0.005
D10: =lista1!A5 -> 0 | E10: =lista1!B5 -> Obrador, depósito y sanitarios | F10: =lista1!C5 -> m2 | G10: =lista1!G5 -> 13 | H10: =lista1!H5 -> 17243.3853
D11: =lista1!A6 -> 0 | E11: =lista1!B6 -> desmonte en terreno comun (si en terr. C. roca disgregable con barreta se debera mult. Prec. X 2,3) | F11: =lista1!C6 -> m3 | G11: =lista1!G6 -> 0 | H11: =lista1!H6 -> 0 | I11: =SUM(G11:H11) -> 0
D12: =lista1!A7 -> 2 | E12: =lista1!B7 -> Procedimientos y cumplimientos | F12: =lista1!C7 -> 0 | G12: =lista1!G7 -> 0 | H12: =lista1!H7 -> 0 | I12: =SUM(H13:H17) -> 2960.464743 | M12: RUBRO | N12: CD obr1 | O12: CDobr2 | P12: CD TOTAL | Q12: GOT por rubro | R12: GGER (por rubro) | S12: CTOR | T12: Imprevistos | U12: C. Total (s/ben) | V12: Beneficio | W12: C. Total (C/ben)
D13: =lista1!A8 -> 0 | E13: =lista1!B8 -> Replanteo | F13: =lista1!C8 -> m2 | G13: =lista1!G8 -> 104.05 | H13: =lista1!H8 -> 2960.464743 | L13: 1 | M13: =VLOOKUP($L13:$L45,D$8:$I$380,2,FALSE) -> Trabajos preliminares | N13: =VLOOKUP($L13:$L45,D$8:$I$380,6,FALSE) -> 26768.46885 | P13: =N13+O13 -> 26768.46885 | Q13: =($N$9)*P13 -> 2796.981358 | R13: =(P13+Q13)*$P$9 -> 2596.658579 | S13: =SUM(P13:R13) -> 32162.10879 | T13: ='Incidencia GG'!$B$13*S13 -> 160.810544 | U13: =S13+T13 -> 32322.91934 | V13: ='Incidencia GG'!$B$14*S13 -> 6432.421758 | W13: =V13+T13+S13 -> 38755.34109
D14: =lista1!A9 -> 0 | E14: =lista1!B9 -> Cartel de obra | F14: =lista1!C9 -> m2 | G14: =lista1!G9 -> 0 | H14: =lista1!H9 -> 0 | L14: 2 | M14: =VLOOKUP($L14:$L46,D$8:$I$380,2,FALSE) -> Procedimientos y cumplimientos | N14: =VLOOKUP($L14:$L46,D$8:$I$380,6,FALSE) -> 2960.464743 | P14: =N14+O14 -> 2960.464743 | Q14: =($N$9)*P14 -> 309.332773 | R14: =(P14+Q14)*$P$9 -> 287.1780308 | S14: =SUM(P14:R14) -> 3556.975547 | T14: ='Incidencia GG'!$B$13*S14 -> 17.78487773 | U14: =S14+T14 -> 3574.760425 | V14: ='Incidencia GG'!$B$14*S14 -> 711.3951094 | W14: 4286.155534
D15: =lista1!A10 -> 0 | E15: =lista1!B10 -> Cerco de obra | F15: =lista1!C10 -> ml | G15: =lista1!G10 -> 0 | H15: =lista1!H10 -> 0 | L15: 3 | M15: =VLOOKUP($L15:$L47,D$8:$I$380,2,FALSE) -> Demoliciones | N15: =VLOOKUP($L15:$L47,D$8:$I$380,6,FALSE) -> 43809.91323 | P15: 43809.91323 | Q15: 4577.60626 | R15: 4249.753232 | S15: 52637.27272 | T15: ='Incidencia GG'!$B$13*S15 -> 263.1863636 | U15: 52900.45908 | V15: ='Incidencia GG'!$B$14*S15 -> 10527.45454 | W15: 63427.91362
D16: =lista1!A11 -> 0 | E16: =lista1!B11 -> Defensa de protección para trabajo en obra | F16: =lista1!C11 -> ml | G16: =lista1!G11 -> 0 | H16: =lista1!H11 -> 0 | L16: 4 | M16: =VLOOKUP($L16:$L48,D$8:$I$380,2,FALSE) -> Movimientos de tierra | N16: =VLOOKUP($L16:$L48,D$8:$I$380,6,FALSE) -> 15186.86105 | P16: 15186.86105 | Q16: 1586.843367 | R16: 1473.191958 | S16: 18246.89638 | T16: ='Incidencia GG'!$B$13*S16 -> 91.2344819 | U16: 18338.13086 | V16: ='Incidencia GG'!$B$14*S16 -> 3649.379276 | W16: 21987.51014
D17: =lista1!A12 -> 0 | E17: =lista1!B12 -> 0 | F17: =lista1!C12 -> 0 | G17: =lista1!G12 -> 0 | H17: =lista1!H12 -> 0 | L17: 5 | M17: =VLOOKUP($L17:$L49,D$8:$I$380,2,FALSE) -> Estructuras de hormigón armado | N17: =VLOOKUP($L17:$L49,D$8:$I$380,6,FALSE) -> 165321.813 | P17: 165321.813 | Q17: 17274.13068 | R17: 16036.93907 | S17: 198632.8828 | T17: ='Incidencia GG'!$B$13*S17 -> 993.164414 | U17: 199626.0472 | V17: ='Incidencia GG'!$B$14*S17 -> 39726.57656 | W17: 239352.6238
D18: =lista1!A13 -> 3 | E18: =lista1!B13 -> Demoliciones | F18: =lista1!C13 -> 0 | G18: =lista1!G13 -> 0 | H18: =lista1!H13 -> 0 | I18: =SUM(H19:H29) -> 43809.91323 | L18: 6 | M18: =VLOOKUP($L18:$L50,D$8:$I$380,2,FALSE) -> Estructuras metálicas | N18: =VLOOKUP($L18:$L50,D$8:$I$380,6,FALSE) -> 0 | P18: 0 | Q18: 0 | R18: 0 | S18: 0 | T18: ='Incidencia GG'!$B$13*S18 -> 0 | U18: 0 | V18: ='Incidencia GG'!$B$14*S18 -> 0 | W18: 0
D19: =lista1!A14 -> 0 | E19: =lista1!B14 -> En los siguientes items, se incluye el retiro de los escombros de la obra hasta coloc.dentro del contenedor | F19: =lista1!C14 -> 0 | G19: =lista1!G14 -> 0 | H19: =lista1!H14 -> 0 | L19: 7 | M19: =VLOOKUP($L19:$L51,D$8:$I$380,2,FALSE) -> Mampostería | N19: =VLOOKUP($L19:$L51,D$8:$I$380,6,FALSE) -> 104436.3751 | P19: 104436.3751 | Q19: 10912.33854 | R19: 10130.78525 | S19: 125479.4989 | T19: ='Incidencia GG'!$B$13*S19 -> 627.3974944 | U19: 126106.8964 | V19: ='Incidencia GG'!$B$14*S19 -> 25095.89978 | W19: 151202.7961
D20: =lista1!A15 -> 0 | E20: =lista1!B15 -> De estructura de hormigón, losas de HºAº, dados, camaras de HºAº (incluye cargarlo) | F20: =lista1!C15 -> m3 | G20: =lista1!G15 -> 0 | H20: =lista1!H15 -> 0 | L20: 8 | M20: =VLOOKUP($L20:$L52,D$8:$I$380,2,FALSE) -> Construcción con placas de roca de yeso | N20: =VLOOKUP($L20:$L52,D$8:$I$380,6,FALSE) -> 0 | P20: 0 | Q20: 0 | R20: 0 | S20: 0 | T20: ='Incidencia GG'!$B$13*S20 -> 0 | U20: 0 | V20: ='Incidencia GG'!$B$14*S20 -> 0 | W20: 0
D21: =lista1!A16 -> 0 | E21: =lista1!B16 -> De mamposteria (todos los items incluyen cargar escombros a un contenedor cercano, refiere a planta baja) | F21: =lista1!C16 -> m3 | G21: =lista1!G16 -> 0 | H21: =lista1!H16 -> 0 | L21: 9 | M21: =VLOOKUP($L21:$L53,D$8:$I$380,2,FALSE) -> Aislaciones | N21: =VLOOKUP($L21:$L53,D$8:$I$380,6,FALSE) -> 14211.243 | P21: 14211.243 | Q21: 1484.903076 | R21: 1378.552739 | S21: 17074.69881 | T21: ='Incidencia GG'!$B$13*S21 -> 85.37349406 | U21: 17160.07231 | V21: ='Incidencia GG'!$B$14*S21 -> 3414.939762 | W21: 20575.01207
D22: =lista1!A17 -> 0 | E22: =lista1!B17 -> De pisos | F22: =lista1!C17 -> m2 | G22: =lista1!G17 -> 0 | H22: =lista1!H17 -> 0 | L22: 10 | M22: =VLOOKUP($L22:$L54,D$8:$I$380,2,FALSE) -> Cubiertas | N22: =VLOOKUP($L22:$L54,D$8:$I$380,6,FALSE) -> 107063.8975 | P22: 107063.8975 | Q22: 11186.88286 | R22: 10385.66641 | S22: 128636.4467 | T22: ='Incidencia GG'!$B$13*S22 -> 643.1822337 | U22: 129279.629 | V22: ='Incidencia GG'!$B$14*S22 -> 25727.28935 | W22: 155006.9183
D23: =lista1!A18 -> 0 | E23: =lista1!B18 -> De contrapisos | F23: =lista1!C18 -> m2 | G23: =lista1!G18 -> 0 | H23: =lista1!H18 -> 0 | L23: 11 | M23: =VLOOKUP($L23:$L55,D$8:$I$380,2,FALSE) -> Contrapiso | N23: =VLOOKUP($L23:$L55,D$8:$I$380,6,FALSE) -> 47368.53665 | P23: 47368.53665 | Q23: 4949.439383 | R23: 4594.955271 | S23: 56912.9313 | T23: ='Incidencia GG'!$B$13*S23 -> 284.5646565 | U23: 57197.49596 | V23: ='Incidencia GG'!$B$14*S23 -> 11382.58626 | W23: 68580.08222
D24: =lista1!A19 -> 0 | E24: =lista1!B19 -> Picado de revoques, cielorrasos suspendidos ó demolcic. de cubiert d tejas coloniales (sin recuper. de tejas) | F24: =lista1!C19 -> m2 | G24: =lista1!G19 -> 0 | H24: =lista1!H19 -> 0 | L24: 12 | M24: =VLOOKUP($L24:$L56,D$8:$I$380,2,FALSE) -> Carpetas | N24: =VLOOKUP($L24:$L56,D$8:$I$380,6,FALSE) -> 17572.48194 | P24: 17572.48194 | Q24: 1836.111907 | R24: 1704.60762 | S24: 21113.20147 | T24: ='Incidencia GG'!$B$13*S24 -> 105.5660073 | U24: 21218.76748 | V24: ='Incidencia GG'!$B$14*S24 -> 4222.640294 | W24: 25441.40777
D25: =lista1!A20 -> 0 | E25: =lista1!B20 -> Picado de revestimientos | F25: =lista1!C20 -> m2 | G25: =lista1!G20 -> 0 | H25: =lista1!H20 -> 0 | L25: 13 | M25: =VLOOKUP($L25:$L57,D$8:$I$380,2,FALSE) -> Revoques | N25: =VLOOKUP($L25:$L57,D$8:$I$380,6,FALSE) -> 91992.34512 | P25: 91992.34512 | Q25: 9612.087856 | R25: 8923.659902 | S25: 110528.0929 | T25: ='Incidencia GG'!$B$13*S25 -> 552.6404644 | U25: 111080.7333 | V25: ='Incidencia GG'!$B$14*S25 -> 22105.61858 | W25: 133186.3519
D26: =lista1!A21 -> 0 | E26: =lista1!B21 -> De estructura de madera con tejas francesa (o colonial) | F26: =lista1!C21 -> m2 | G26: =lista1!G21 -> 0 | H26: =lista1!H21 -> 0 | L26: 14 | M26: =VLOOKUP($L26:$L58,D$8:$I$380,2,FALSE) -> Revestimientos | N26: =VLOOKUP($L26:$L58,D$8:$I$380,6,FALSE) -> 10199.48341 | P26: 10199.48341 | Q26: 1065.722702 | R26: 989.3945086 | S26: 12254.60062 | T26: ='Incidencia GG'!$B$13*S26 -> 61.27300309 | U26: 12315.87362 | V26: ='Incidencia GG'!$B$14*S26 -> 2450.920123 | W26: 14766.79374
D27: =lista1!A22 -> 0 | E27: =lista1!B22 -> Demolición de obra completa | F27: =lista1!C22 -> m2 | G27: =lista1!G22 -> 28 | H27: =lista1!H22 -> 24400.05131 | L27: 15 | M27: =VLOOKUP($L27:$L59,D$8:$I$380,2,FALSE) -> Cielorrasos | N27: =VLOOKUP($L27:$L59,D$8:$I$380,6,FALSE) -> 24382.36788 | P27: 24382.36788 | Q27: 2547.662655 | R27: 2365.196347 | S27: 29295.22689 | T27: ='Incidencia GG'!$B$13*S27 -> 146.4761344 | U27: 29441.70302 | V27: ='Incidencia GG'!$B$14*S27 -> 5859.045377 | W27: 35300.7484
D28: =lista1!A23 -> 0 | E28: =lista1!B23 -> Contenedor/Volquete, alquiler | F28: =lista1!C23 -> u | G28: =lista1!G23 -> 16 | H28: =lista1!H23 -> 9727.037862 | L28: 16 | M28: =VLOOKUP($L28:$L60,D$8:$I$380,2,FALSE) -> Yeseria | N28: =VLOOKUP($L28:$L60,D$8:$I$380,6,FALSE) -> 0 | P28: 0 | Q28: 0 | R28: 0 | S28: 0 | T28: ='Incidencia GG'!$B$13*S28 -> 0 | U28: 0 | V28: ='Incidencia GG'!$B$14*S28 -> 0 | W28: 0
D29: =lista1!A24 -> 0 | E29: =lista1!B24 -> Cargar Contenedor/Volquete | F29: =lista1!C24 -> u | G29: =lista1!G24 -> 16 | H29: =lista1!H24 -> 9682.824053 | L29: 17 | M29: =VLOOKUP($L29:$L61,D$8:$I$380,2,FALSE) -> Solados | N29: =VLOOKUP($L29:$L61,D$8:$I$380,6,FALSE) -> 53447.41553 | P29: 53447.41553 | Q29: 5584.608731 | R29: 5184.633114 | S29: 64216.65737 | T29: ='Incidencia GG'!$B$13*S29 -> 321.0832869 | U29: 64537.74066 | V29: ='Incidencia GG'!$B$14*S29 -> 12843.33147 | W29: 77381.07213
D30: =lista1!A25 -> 4 | E30: =lista1!B25 -> Movimientos de tierra | F30: =lista1!C25 -> 0 | G30: =lista1!G25 -> 0 | H30: =lista1!H25 -> 0 | I30: =SUM(H31:H38) -> 15186.86105 | L30: 18 | M30: =VLOOKUP($L30:$L62,D$8:$I$380,2,FALSE) -> Pisos especiales | N30: =VLOOKUP($L30:$L62,D$8:$I$380,6,FALSE) -> 0 | P30: 0 | Q30: 0 | R30: 0 | S30: 0 | T30: ='Incidencia GG'!$B$13*S30 -> 0 | U30: 0 | V30: ='Incidencia GG'!$B$14*S30 -> 0 | W30: 0
D31: =lista1!A26 -> 0 | E31: =lista1!B26 -> Excavación manual p cimientos y bases column terreno común (si tosca mult.al prec.x 1,214 y x1,714 si es roca digregable) | F31: =lista1!C26 -> m3 | G31: =lista1!G26 -> 6.001526718 | H31: =lista1!H26 -> 1939.923775 | L31: 19 | M31: =VLOOKUP($L31:$L63,D$8:$I$380,2,FALSE) -> Escaleras | N31: =VLOOKUP($L31:$L63,D$8:$I$380,6,FALSE) -> 0 | P31: =N31+O31 -> 0 | Q31: 0 | R31: 0 | S31: =SUM(P31:R31) -> 0 | T31: ='Incidencia GG'!$B$13*S31 -> 0 | U31: =S31+T31 -> 0 | V31: ='Incidencia GG'!$B$14*S31 -> 0 | W31: =V31+T31+S31 -> 0
D32: =lista1!A27 -> 0 | E32: =lista1!B27 -> Excavación manual de vigas de fundación hasta 1,20 m de prof. | F32: =lista1!C27 -> m3 | G32: =lista1!G27 -> 9.90225 | H32: =lista1!H27 -> 2422.706336 | L32: 20 | M32: =VLOOKUP($L32:$L64,D$8:$I$380,2,FALSE) -> Zócalos | N32: =VLOOKUP($L32:$L64,D$8:$I$380,6,FALSE) -> 18167.5998 | P32: 18167.5998 | Q32: 1898.294529 | R32: 1762.336656 | S32: 21828.23099 | T32: ='Incidencia GG'!$B$13*S32 -> 109.1411549 | U32: 21937.37214 | V32: ='Incidencia GG'!$B$14*S32 -> 4365.646198 | W32: 26303.01834
D33: =lista1!A28 -> 0 | E33: =lista1!B28 -> Excavación de pozos para pilotín (diám. 23 cm - prof. 1,6 m) | F33: =lista1!C28 -> u | G33: =lista1!G28 -> 24 | H33: =lista1!H28 -> 3713.959911 | L33: 21 | M33: =VLOOKUP($L33:$L65,D$8:$I$380,2,FALSE) -> Marmoleria | N33: =VLOOKUP($L33:$L65,D$8:$I$380,6,FALSE) -> 11917.63311 | P33: 11917.63311 | Q33: 1245.248573 | R33: 1156.062546 | S33: 14318.94423 | T33: ='Incidencia GG'!$B$13*S33 -> 71.59472114 | U33: 14390.53895 | V33: ='Incidencia GG'!$B$14*S33 -> 2863.788846 | W33: 17254.32779
D34: =lista1!A29 -> 0 | E34: =lista1!B29 -> Excavación p/ cisternas, cámaras sépt.,de inspec., sótanos a mano terr. Comun hast4m (tosca x1,351 y si fuese roc disgr x 1,89) | F34: =lista1!C29 -> m3 | G34: =lista1!G29 -> 12.076 | H34: =lista1!H29 -> 4050.542636 | L34: 22 | M34: =VLOOKUP($L34:$L66,D$8:$I$380,2,FALSE) -> Pinturas | N34: =VLOOKUP($L34:$L66,D$8:$I$380,6,FALSE) -> 69089.92136 | P34: 69089.92136 | Q34: 7219.061469 | R34: 6702.02461 | S34: 83011.00744 | T34: ='Incidencia GG'!$B$13*S34 -> 415.0550372 | U34: 83426.06248 | V34: ='Incidencia GG'!$B$14*S34 -> 16602.20149 | W34: 100028.264
D35: =lista1!A30 -> 0 | E35: =lista1!B30 -> Excavación p/ pozo absorbt o Romano, a mano terr. Comun hast10mprof.(tosca x1,364 y si fuese roc disgr x 1,909) | F35: =lista1!C30 -> m3 | G35: =lista1!G30 -> 6 | H35: =lista1!H30 -> 3059.728396 | L35: 23 | M35: =VLOOKUP($L35:$L67,D$8:$I$380,2,FALSE) -> Artefactos Sanitarios - Accesorios Griferías | N35: =VLOOKUP($L35:$L67,D$8:$I$380,6,FALSE) -> 2970.062584 | P35: 2970.062584 | Q35: 310.3356312 | R35: 288.1090633 | S35: 3568.507278 | T35: ='Incidencia GG'!$B$13*S35 -> 17.84253639 | U35: 3586.349814 | V35: ='Incidencia GG'!$B$14*S35 -> 713.7014556 | W35: 4300.05127
D36: =lista1!A31 -> 0 | E36: =lista1!B31 -> Destape del terreno hasta 20/30 cm de profundidad con pala frontal o Excavación de sótanos a maquina | F36: =lista1!C31 -> m3 | G36: =lista1!G31 -> 0 | H36: =lista1!H31 -> 0 | L36: 24 | M36: =VLOOKUP($L36:$L68,D$8:$I$380,2,FALSE) -> Carpinterías Metálicas | N36: =VLOOKUP($L36:$L68,D$8:$I$380,6,FALSE) -> 2930.049087 | P36: 2930.049087 | Q36: 306.1547046 | R36: 284.2275791 | S36: 3520.431371 | T36: ='Incidencia GG'!$B$13*S36 -> 17.60215685 | U36: 3538.033527 | V36: ='Incidencia GG'!$B$14*S36 -> 704.0862741 | W36: 4242.119801
D37: =lista1!A32 -> 0 | E37: =lista1!B32 -> Carga y retiro de tierra con camión | F37: =lista1!C32 -> m3 | G37: =lista1!G32 -> 0 | H37: =lista1!H32 -> 0 | L37: 25 | M37: =VLOOKUP($L37:$L69,D$8:$I$380,2,FALSE) -> Carpinterías de madera | N37: =VLOOKUP($L37:$L69,D$8:$I$380,6,FALSE) -> 0 | P37: 0 | Q37: 0 | R37: 0 | S37: 0 | T37: ='Incidencia GG'!$B$13*S37 -> 0 | U37: 0 | V37: ='Incidencia GG'!$B$14*S37 -> 0 | W37: 0
D38: =lista1!A33 -> 0 | E38: =lista1!B33 -> terraplenamiento | F38: =lista1!C33 -> m3 | G38: =lista1!G33 -> 0 | H38: =lista1!H33 -> 0 | L38: 26 | M38: =VLOOKUP($L38:$L70,D$8:$I$380,2,FALSE) -> Carpinterías de Aluminio y accesorios de fachadas | N38: =VLOOKUP($L38:$L70,D$8:$I$380,6,FALSE) -> 14581.27189 | P38: 14581.27189 | Q38: 1523.566622 | R38: 1414.44716 | S38: 17519.28568 | T38: ='Incidencia GG'!$B$13*S38 -> 87.59642838 | U38: 17606.8821 | V38: ='Incidencia GG'!$B$14*S38 -> 3503.857135 | W38: 21110.73924
D39: =lista1!A34 -> 5 | E39: =lista1!B34 -> Estructuras de hormigón armado | F39: =lista1!C34 -> Unid. | G39: =lista1!G34 -> Cant. | H39: =lista1!H34 -> Parcial | I39: =SUM(H41:H64) -> 165321.813 | L39: 27 | M39: =VLOOKUP($L39:$L71,D$8:$I$380,2,FALSE) -> Cristales | N39: =VLOOKUP($L39:$L71,D$8:$I$380,6,FALSE) -> 0 | P39: 0 | Q39: 0 | R39: 0 | S39: 0 | T39: ='Incidencia GG'!$B$13*S39 -> 0 | U39: 0 | V39: ='Incidencia GG'!$B$14*S39 -> 0 | W39: 0
D40: =lista1!A35 -> 0 | E40: =lista1!B35 -> Incluye el material, mano de obra, armado y desarme de encofrados de madera tradicionales y equipos | L40: 28 | M40: =VLOOKUP($L40:$L72,D$8:$I$380,2,FALSE) -> Limpieza y ayuda de gremios | N40: =VLOOKUP($L40:$L72,D$8:$I$380,6,FALSE) -> 0 | P40: 0 | Q40: 0 | R40: 0 | S40: 0 | T40: ='Incidencia GG'!$B$13*S40 -> 0 | U40: 0 | V40: ='Incidencia GG'!$B$14*S40 -> 0 | W40: 0
D41: =lista1!A36 -> 0 | E41: =lista1!B36 -> hormigon sin armar para relleno de cimientos | F41: =lista1!C36 -> m3 | G41: =lista1!G36 -> 0 | H41: =lista1!H36 -> 0 | L41: 29 | M41: =VLOOKUP($L41:$L73,D$8:$I$380,2,FALSE) -> Instalación sanitaria | N41: =VLOOKUP($L41:$L73,D$8:$I$380,6,FALSE) -> 52723.57386 | P41: 52723.57386 | Q41: 5508.976028 | R41: 5114.417306 | S41: 63346.96719 | T41: ='Incidencia GG'!$B$13*S41 -> 316.734836 | U41: 63663.70203 | V41: ='Incidencia GG'!$B$14*S41 -> 12669.39344 | W41: 76333.09547
D42: =lista1!A37 -> 0 | E42: =lista1!B37 -> Bases céntricas cuantía 60 kg, HºAº p/ cabezal de pozos romanos (p/fuste pz rom dividir precio en 1,124) | F42: =lista1!C37 -> m3 | G42: =lista1!G37 -> 6.001526718 | H42: =lista1!H37 -> 16150.20516 | L42: 30 | M42: =VLOOKUP($L42:$L74,D$8:$I$380,2,FALSE) -> Instalación de Gas | N42: =VLOOKUP($L42:$L74,D$8:$I$380,6,FALSE) -> 77086.11185 | P42: 77086.11185 | Q42: 8054.566699 | R42: 7477.690067 | S42: 92618.36861 | T42: ='Incidencia GG'!$B$13*S42 -> 463.0918431 | U42: 93081.46046 | V42: ='Incidencia GG'!$B$14*S42 -> 18523.67372 | W42: 111605.1342
D43: =lista1!A38 -> 0 | E43: =lista1!B38 -> Vigas de fundación 60 kg/m3, arriostramiento y de equilibrio | F43: =lista1!C38 -> m3 | G43: =lista1!G38 -> 9.90225 | H43: =lista1!H38 -> 39460.83484 | L43: 31 | M43: =VLOOKUP($L43:$L75,D$8:$I$380,2,FALSE) -> Instalación termomecánica | N43: =VLOOKUP($L43:$L75,D$8:$I$380,6,FALSE) -> 0 | P43: 0 | Q43: 0 | R43: 0 | S43: 0 | T43: ='Incidencia GG'!$B$13*S43 -> 0 | U43: 0 | V43: ='Incidencia GG'!$B$14*S43 -> 0 | W43: 0
D44: =lista1!A39 -> 0 | E44: =lista1!B39 -> Pilotín diametro 23 cm / profundidad 1,6 m | F44: =lista1!C39 -> ml | G44: =lista1!G39 -> 38.4 | H44: =lista1!H39 -> 9376.157078 | L44: 32 | M44: =VLOOKUP($L44:$L76,D$8:$I$380,2,FALSE) -> Instalación eléctrica | N44: =VLOOKUP($L44:$L76,D$8:$I$380,6,FALSE) -> 52183.34744 | P44: 52183.34744 | Q44: 5452.528898 | R44: 5062.01298 | S44: 62697.88932 | T44: ='Incidencia GG'!$B$13*S44 -> 313.4894466 | U44: 63011.37876 | V44: ='Incidencia GG'!$B$14*S44 -> 12539.57786 | W44: 75550.95663
D45: =lista1!A40 -> 0 | E45: =lista1!B40 -> Platea de fundación 35 kg/m3 de hierro o quiza con un poco mas de kg de cuantía, (bases de cañerías div./1,345). | F45: =lista1!C40 -> m3 | G45: =lista1!G40 -> 0 | H45: =lista1!H40 -> 0 | L45: 33 | M45: =VLOOKUP($L45:$L77,D$8:$I$380,2,FALSE) -> Instalación contra incendio | N45: =VLOOKUP($L45:$L77,D$8:$I$380,6,FALSE) -> 0 | P45: 0 | Q45: 0 | R45: 0 | S45: 0 | T45: ='Incidencia GG'!$B$13*S45 -> 0 | U45: 0 | V45: ='Incidencia GG'!$B$14*S45 -> 0 | W45: 0
D46: =lista1!A41 -> 0 | E46: =lista1!B41 -> Zapatas para tabique de hormigón para submuración 80 kg hierro, bases de columna y zapatas de columna | F46: =lista1!C41 -> m3 | G46: =lista1!G41 -> 0 | H46: =lista1!H41 -> 0 | Q46: =SUM(Q13:Q30) -> 75724.65215 | R46: 70301.17203 | S46: 870747.4912 | T46: 4353.737456 | U46: 875101.2286 | V46: 174149.4982 | W46: 1049250.727
D47: =lista1!A42 -> 0 | E47: =lista1!B42 -> Zapatas para muro de Mamposteria 30 cm de ladrillo común cuantía 35kg de hierro/m3 | F47: =lista1!C42 -> m3 | G47: =lista1!G42 -> 0 | H47: =lista1!H42 -> 0
D48: =lista1!A43 -> 0 | E48: =lista1!B43 -> Tabiques de sótanos una cara vista 80 kg de hierro/m3 | F48: =lista1!C43 -> m3 | G48: =lista1!G43 -> 0 | H48: =lista1!H43 -> 0
D49: =lista1!A44 -> 0 | E49: =lista1!B44 -> Losas espesor 10 cm | F49: =lista1!C44 -> m3 | G49: =lista1!G44 -> 0 | H49: =lista1!H44 -> 0
D50: =lista1!A45 -> 0 | E50: =lista1!B45 -> Losas de hormigón a la vista con encofrado fenólico | F50: =lista1!C45 -> m3 | G50: =lista1!G45 -> 0 | H50: =lista1!H45 -> 0
D51: =lista1!A46 -> 0 | E51: =lista1!B46 -> Losas casetonada 70 kg/m3 de hierro (es precio mínimo.. p/ prec max mult. X 1,216) | F51: =lista1!C46 -> m3 | G51: =lista1!G46 -> 0 | H51: =lista1!H46 -> 0
D52: =lista1!A47 -> 0 | E52: =lista1!B47 -> Losa nervurada Aº en un sentid. bloqH 14*19*39 (o x 1,162 sii es Aºda en 2 sentid c bloq poliest exp. De 40*40*25) | F52: =lista1!C47 -> m2 | G52: =lista1!G47 -> 0 | H52: =lista1!H47 -> 0
D53: =lista1!A48 -> 0 | E53: =lista1!B48 -> Losa hueca pretensada 12 cm de espesor con tomado de juntas | F53: =lista1!C48 -> m2 | G53: =lista1!G48 -> 0 | H53: =lista1!H48 -> 0
D54: =lista1!A49 -> 0 | E54: =lista1!B49 -> Losa viguetas pretensadas de hormigón y ladrillos cerámicos espesor 17cm con capa de compresión. | F54: =lista1!C49 -> m2 | G54: =lista1!G49 -> 104.05 | H54: =lista1!H49 -> 61455.79398
D55: =lista1!A50 -> 0 | E55: =lista1!B50 -> columnas estructurales de aprox. 30x30 (Si son a la vista al precio mult. X 1,08) | F55: =lista1!C50 -> m3 | G55: =lista1!G50 -> 0.324 | H55: =lista1!H50 -> 2104.72453
D56: =lista1!A51 -> 0 | E56: =lista1!B51 -> Encadenado verticales, horizontales, dinteles, dadosdapoyo, llaves,banquinas 7cm esp. de HºAº | F56: =lista1!C51 -> m3 | G56: =lista1!G51 -> 5.293920809 | H56: =lista1!H51 -> 27695.04238
D57: =lista1!A52 -> 0 | E57: =lista1!B52 -> Vigas cuantía 180 kg/m3, vigas aprox. De 20x40 (Si son a la vista al precio mult. X 1,08) | F57: =lista1!C52 -> m3 | G57: =lista1!G52 -> 0.24 | H57: =lista1!H52 -> 2055.931966
D58: =lista1!A53 -> 0 | E58: =lista1!B53 -> Tabiques vistos cuantía 80 kg | F58: =lista1!C53 -> m3 | G58: =lista1!G53 -> 0 | H58: =lista1!H53 -> 0
D59: =lista1!A54 -> 0 | E59: =lista1!B54 -> Tabiques cuantía 80 kg/m3 | F59: =lista1!C54 -> m3 | G59: =lista1!G54 -> 0 | H59: =lista1!H54 -> 0
D60: =lista1!A55 -> 0 | E60: =lista1!B55 -> Escaleras cuantía 75 kg/m3 (sii es HºAº p/LOSAS macizas de escaleras a este prec. Dividir por 1,887) | F60: =lista1!C55 -> m3 | G60: =lista1!G55 -> 0 | H60: =lista1!H55 -> 0
D61: =lista1!A56 -> 0 | E61: =lista1!B56 -> Tanque de bombeo cuantía 105 kg/m3 | F61: =lista1!C56 -> m3 | G61: =lista1!G56 -> 0 | H61: =lista1!H56 -> 0
D62: =lista1!A57 -> 0 | E62: =lista1!B57 -> Tanque de reserva cuantía 105 kg/m3 y cisternas de HAº | F62: =lista1!C57 -> m3 | G62: =lista1!G57 -> 0.299 | H62: =lista1!H57 -> 2652.310394
D63: =lista1!A58 -> 0 | E63: =lista1!B58 -> Junta de PVC para hormigón | F63: =lista1!C58 -> ml | G63: =lista1!G58 -> 0 | H63: =lista1!H58 -> 0
D64: =lista1!A59 -> 0 | E64: =lista1!B59 -> Barrera de vapor (dos manos de pintura asfáltica + 10% nafta) | F64: =lista1!C59 -> m2 | G64: =lista1!G59 -> 104.05 | H64: =lista1!H59 -> 4370.812707
D65: =lista1!A60 -> 6 | E65: =lista1!B60 -> Estructuras metálicas | F65: =lista1!C60 -> 0 | G65: =lista1!G60 -> 0 | H65: =lista1!H60 -> 0 | I65: =SUM(H67:H72) -> 0
D66: =lista1!A61 -> 0 | E66: =lista1!B61 -> En el caso de cubiertas no se consideran los cerramientos laterales ni superiores. Para los entrepisos no se incluye el solado. En ambos, tampoco la pintura. El armado es en taller. Incluye el montaje en obra y no se considera el flete
D67: =lista1!A62 -> 0 | E67: =lista1!B62 -> Estructuras metálicas de perfiles normales | F67: =lista1!C62 -> kg | G67: =lista1!G62 -> 0 | H67: =lista1!H62 -> 0
D68: =lista1!A63 -> 0 | E68: =lista1!B63 -> Estructuras metálicas de perfiles ángulos | F68: =lista1!C63 -> kg | G68: =lista1!G63 -> 0 | H68: =lista1!H63 -> 0
D69: =lista1!A64 -> 0 | E69: =lista1!B64 -> Estructuras metálicas de hierro redondo | F69: =lista1!C64 -> kg | G69: =lista1!G64 -> 0 | H69: =lista1!H64 -> 0
D70: =lista1!A65 -> 0 | E70: =lista1!B65 -> 0 | F70: =lista1!C65 -> 0 | G70: =lista1!G65 -> 0 | H70: =lista1!H65 -> 0
D71: =lista1!A66 -> 0 | E71: =lista1!B66 -> 0 | F71: =lista1!C66 -> 0 | G71: =lista1!G66 -> 0 | H71: =lista1!H66 -> 0
D72: =lista1!A67 -> 0 | E72: =lista1!B67 -> 0 | F72: =lista1!C67 -> 0 | G72: =lista1!G67 -> 0 | H72: =lista1!H67 -> 0
D73: =lista1!A68 -> 7 | E73: =lista1!B68 -> Mampostería | F73: =lista1!C68 -> Unid. | G73: =lista1!G68 -> Cantid. | H73: =lista1!H68 -> Parcial | I73: =SUM(H74:H106) -> 104436.3751
D74: =lista1!A69 -> 0 | E74: =lista1!B69 -> Bloques de hormigón estandar 19 x 19 x 39 ; idem cribada = D x 0,9365 | F74: =lista1!C69 -> m2 | G74: =lista1!G69 -> 0 | H74: =lista1!H69 -> 0
D75: =lista1!A70 -> 0 | E75: =lista1!B70 -> Bloques de hormigón estandar 9,2 x 19 x 39 ; ladrillos comunes de pandere 30 ud/m2 = corregir D x 0,88 | F75: =lista1!C70 -> m2 | G75: =lista1!G70 -> 0 | H75: =lista1!H70 -> 0
D76: =lista1!A71 -> 0 | E76: =lista1!B71 -> Junta de dilatación bloque ""u""de hormigón | F76: =lista1!C71 -> ml | G76: =lista1!G71 -> 0 | H76: =lista1!H71 -> 0
D77: =lista1!A72 -> 0 | E77: =lista1!B72 -> Encadenado pared bloques de hormigón | F77: =lista1!C72 -> ml | G77: =lista1!G72 -> 0 | H77: =lista1!H72 -> 0
D78: =lista1!A73 -> 0 | E78: =lista1!B73 -> Ladrillos comunes elevación espesor 30 cm (si es de cimiento =D/1,03) si es p/ 1er piso =D*1,08 | F78: =lista1!C73 -> m3 | G78: =lista1!G73 -> 0 | H78: =lista1!H73 -> 0
D79: =lista1!A74 -> 0 | E79: =lista1!B74 -> Ladrillos de máquina para vista espesor 30 cm sin tomado de juntas (con tomado junt =D x 1,094) | F79: =lista1!C74 -> m3 | G79: =lista1!G74 -> 0 | H79: =lista1!H74 -> 0
D80: =lista1!A75 -> 0 | E80: =lista1!B75 -> Ladrillo común en elevación espesor 15 cm (si es de cimiento =D/1,03) si es p/ 1er piso =D*1,08 , cribadas | F80: =lista1!C75 -> m3 | G80: =lista1!G75 -> 0 | H80: =lista1!H75 -> 0
D81: =lista1!A76 -> 0 | E81: =lista1!B76 -> Ladrillo de máquina para vista espesor 15 cm con tomado de junta | F81: =lista1!C76 -> m3 | G81: =lista1!G76 -> 0 | H81: =lista1!H76 -> 0
D82: =lista1!A77 -> 0 | E82: =lista1!B77 -> Refuerzos horizontales o encadenado para mampostería (vigas o dintel) en ladrillo común | F82: =lista1!C77 -> ml | G82: =lista1!G77 -> 0 | H82: =lista1!H77 -> 0
D83: =lista1!A78 -> 0 | E83: =lista1!B78 -> Ladrillo cerámico hueco de 8 x 18 x 33 pared de 8 cm de espesor | F83: =lista1!C78 -> m2 | G83: =lista1!G78 -> 0 | H83: =lista1!H78 -> 0
D84: =lista1!A79 -> 0 | E84: =lista1!B79 -> Ladrillo cerámico hueco de 12 x 18 x 33 pared de 12 cm de espesor | F84: =lista1!C79 -> m2 | G84: =lista1!G79 -> 0 | H84: =lista1!H79 -> 0
D85: =lista1!A80 -> 0 | E85: =lista1!B80 -> Ladrillo cerámico hueco de 18 x 18 x 33 pared de 18 cm de espesor | F85: =lista1!C80 -> m2 | G85: =lista1!G80 -> 0 | H85: =lista1!H80 -> 0
D86: =lista1!A81 -> 0 | E86: =lista1!B81 -> Ladrillo cerámico portante de 13 x 19 x 33 | F86: =lista1!C81 -> m2 | G86: =lista1!G81 -> 360.4326 | H86: =lista1!H81 -> 100794.3732
D87: =lista1!A82 -> 0 | E87: =lista1!B82 -> Ladrillo cerámico portante de 18 x 19 x 33 | F87: =lista1!C82 -> m2 | G87: =lista1!G82 -> 0 | H87: =lista1!H82 -> 0
D88: =lista1!A83 -> 0 | E88: =lista1!B83 -> Viga de encadenado superior con peine cerámico, armadura y hormigonado | F88: =lista1!C83 -> ml | G88: =lista1!G83 -> 0 | H88: =lista1!H83 -> 0
D89: =lista1!A84 -> 0 | E89: =lista1!B84 -> Columna con bloque cerámico armadura y hormigón | F89: =lista1!C84 -> ml | G89: =lista1!G84 -> 0 | H89: =lista1!H84 -> 0
D90: =lista1!A85 -> 0 | E90: =lista1!B85 -> Muro portante en elevación de HCCA tipo Retak | F90: =lista1!C85 -> m3 | G90: =lista1!G85 -> 0 | H90: =lista1!H85 -> 0
D91: =lista1!A86 -> 0 | E91: =lista1!B86 -> Colocación de carpinterías (incluye amurado, marcos y premarcos) | F91: =lista1!C86 -> m2 | G91: =lista1!G86 -> 0 | H91: =lista1!H86 -> 0
D92: =lista1!A87 -> 0 | E92: =lista1!B87 -> Colocación de barandas | F92: =lista1!C87 -> ml | G92: =lista1!G87 -> 0 | H92: =lista1!H87 -> 0
D93: =lista1!A88 -> 0 | E93: =lista1!B88 -> Muro portante en elevación de HCCA de 15x25x50 tipo Retak | F93: =lista1!C88 -> m2 | G93: =lista1!G88 -> 0 | H93: =lista1!H88 -> 0
D94: =lista1!A89 -> 0 | E94: =lista1!B89 -> murete de mesada de cocina hasta 95 cm de alto (incl mat y m.o: muro 0,15+ revoq gr y fno ambas caras) sin revestim. | F94: =lista1!C89 -> u | G94: =lista1!G89 -> 0 | H94: =lista1!H89 -> 0
D95: =lista1!A90 -> 0 | E95: =lista1!B90 -> murete de mesada de cocina hasta 95 cm de alto (incl mat y m.o: muro 0,15+ revoq gr y revest. ambas caras) sin fino | F95: =lista1!C90 -> u | G95: =lista1!G90 -> 0 | H95: =lista1!H90 -> 0
D96: =lista1!A91 -> 0 | E96: =lista1!B91 -> Conducto de ventilación | F96: =lista1!C91 -> ml | G96: =lista1!G91 -> 0 | H96: =lista1!H91 -> 0
D97: =lista1!A92 -> 0 | E97: =lista1!B92 -> Sombrete conducto ventilación | F97: =lista1!C92 -> u | G97: =lista1!G92 -> 0 | H97: =lista1!H92 -> 0
D98: =lista1!A93 -> 0 | E98: =lista1!B93 -> Rejilla para conducto | F98: =lista1!C93 -> ml | G98: =lista1!G93 -> 0 | H98: =lista1!H93 -> 0
D99: =lista1!A94 -> 0 | E99: =lista1!B94 -> Conducto de presurización | F99: =lista1!C94 -> ml | G99: =lista1!G94 -> 0 | H99: =lista1!H94 -> 0
D100: =lista1!A95 -> 0 | E100: =lista1!B95 -> Sombrete conducto presuriz. | F100: =lista1!C95 -> u | G100: =lista1!G95 -> 0 | H100: =lista1!H95 -> 0
D101: =lista1!A96 -> 0 | E101: =lista1!B96 -> Reja conducto ventilación | F101: =lista1!C96 -> u | G101: =lista1!G96 -> 0 | H101: =lista1!H96 -> 0
D102: =lista1!A97 -> 0 | E102: =lista1!B97 -> banquinas de mesada (contrapiso + carpeta + revest. Ceramico) | F102: =lista1!C97 -> ml | G102: =lista1!G97 -> 6.3 | H102: =lista1!H97 -> 3642.001938
D103: =lista1!A98 -> 0 | E103: =lista1!B98 -> tomado de juntas en ladrillos visto rehundidas (al ras es 0,841*D) | F103: =lista1!C98 -> m2 | G103: =lista1!G98 -> 0 | H103: =lista1!H98 -> 0
D104: =lista1!A99 -> 0 | E104: =lista1!B99 -> Muros de ladrillo de vidrio 20x20x10 cm | F104: =lista1!C99 -> m2 | G104: =lista1!G99 -> 0 | H104: =lista1!H99 -> 0
D105: =lista1!A100 -> 0 | E105: =lista1!B100 -> Tabique de placas de yeso, tipo durlock 12,5 mm esp. | F105: =lista1!C100 -> m2 | G105: =lista1!G100 -> 0 | H105: =lista1!H100 -> 0
D106: =lista1!A101 -> 0 | E106: =lista1!B101 -> 0 | F106: =lista1!C101 -> 0 | G106: =lista1!G101 -> 0 | H106: =lista1!H101 -> 0
D107: =lista1!A102 -> 8 | E107: =lista1!B102 -> Construcción con placas de roca de yeso | F107: =lista1!C102 -> Unid. | G107: =lista1!G102 -> Cantid. | H107: =lista1!H102 -> Parcial | I107: =SUM(H109:H116) -> 0
D108: =lista1!A103 -> 0 | E108: =lista1!B103 -> En todos los casos las terminaciones quedan listas para pintar. Junta tomada con cinta tramada y mansilla
D109: =lista1!A104 -> 0 | E109: =lista1!B104 -> Tabique simple espesor 9,5 cm. Estructura de chapa galvanizada con montantes cada 48 cm. Solera inferior y superior de 70mm. Placa normal 15mm | F109: =lista1!C104 -> m2 | G109: =lista1!G104 -> 0 | H109: =lista1!H104 -> 0
D110: =lista1!A105 -> 0 | E110: =lista1!B105 -> Idem con aislación de lana de vidrio | F110: =lista1!C105 -> m2 | G110: =lista1!G105 -> 0 | H110: =lista1!H105 -> 0
D111: =lista1!A106 -> 0 | E111: =lista1!B106 -> Medio tabique espesor total 8,5 cm | F111: =lista1!C106 -> m2 | G111: =lista1!G106 -> 0 | H111: =lista1!H106 -> 0
D112: =lista1!A107 -> 0 | E112: =lista1!B107 -> Pared divisoria de unidades funcionales espesor total 12 cm. Doble placa de 15mm en ambas caras. Montantes cada 40cm. Solera 70mm interior y super. | F112: =lista1!C107 -> m2 | G112: =lista1!G107 -> 0 | H112: =lista1!H107 -> 0
D113: =lista1!A108 -> 0 | E113: =lista1!B108 -> Cielorraso suspendido, junta tomada con placas de 12,5mm, Estructura soleras y montantes de chapa galvanizada | F113: =lista1!C108 -> m2 | G113: =lista1!G108 -> 0 | H113: =lista1!H108 -> 0
D114: =lista1!A109 -> 0 | E114: =lista1!B109 -> Idem con placa verde. | F114: =lista1!C109 -> m2 | G114: =lista1!G109 -> 0 | H114: =lista1!H109 -> 0
D115: =lista1!A110 -> 0 | E115: =lista1!B110 -> Cielorraso suspendido desmontable. Estructura con bastidor de aluminio. Placas texturadas 60 x 1,20 | F115: =lista1!C110 -> m2 | G115: =lista1!G110 -> 0 | H115: =lista1!H110 -> 0
D116: =lista1!A111 -> 0 | E116: =lista1!B111 -> 0 | F116: =lista1!C111 -> 0 | G116: =lista1!G111 -> 0 | H116: =lista1!H111 -> 0
D117: =lista1!A112 -> 9 | E117: =lista1!B112 -> Aislaciones | F117: =lista1!C112 -> 0 | G117: =lista1!G112 -> 0 | H117: =lista1!H112 -> 0 | I117: =SUM(H118:H127) -> 14211.243
D118: =lista1!A113 -> 0 | E118: =lista1!B113 -> De sótanos cementicia para cerramientos horizontal y vertical | F118: =lista1!C113 -> m2 | G118: =lista1!G113 -> 0 | H118: =lista1!H113 -> 0
D119: =lista1!A114 -> 0 | E119: =lista1!B114 -> Capa aisladora con tabique panderete | F119: =lista1!C114 -> m2 | G119: =lista1!G114 -> 0 | H119: =lista1!H114 -> 0
D120: =lista1!A115 -> 0 | E120: =lista1!B115 -> Horizontal espesor 2 cm sobre muro | F120: =lista1!C115 -> m2 | G120: =lista1!G115 -> 14.36947059 | H120: =lista1!H115 -> 2609.591405
D121: =lista1!A116 -> 0 | E121: =lista1!B116 -> Film de polietileno bajo plateas o contrapisos | F121: =lista1!C116 -> m2 | G121: =lista1!G116 -> 0 | H121: =lista1!H116 -> 0
D122: =lista1!A117 -> 0 | E122: =lista1!B117 -> Horizontal cementicia en contrapiso sobre terreno natural | F122: =lista1!C117 -> m2 | G122: =lista1!G117 -> 0 | H122: =lista1!H117 -> 0
D123: =lista1!A118 -> 0 | E123: =lista1!B118 -> Horizontal sobre losa para locales húmedos | F123: =lista1!C118 -> m2 | G123: =lista1!G118 -> 0 | H123: =lista1!H118 -> 0
D124: =lista1!A119 -> 0 | E124: =lista1!B119 -> Azotado hidrófugo bajo revestimientos | F124: =lista1!C119 -> m2 | G124: =lista1!G119 -> 0 | H124: =lista1!H119 -> 0
D125: =lista1!A120 -> 0 | E125: =lista1!B120 -> Vertical de 1,5 de esp. sobre muros | F125: =lista1!C120 -> m2 | G125: =lista1!G120 -> 21.6 | H125: =lista1!H120 -> 1958.45249
D126: =lista1!A121 -> 0 | E126: =lista1!B121 -> Horizontal y vertical cementicia para interior tanques de agua | F126: =lista1!C121 -> m2 | G126: =lista1!G121 -> 0 | H126: =lista1!H121 -> 0
D127: =lista1!A122 -> 0 | E127: =lista1!B122 -> inyeccion de líquidos químicos SIKA inertol infiltración, c perf c/15 cm a tres bolillos, rev.,rev fino (220MO+300mat) | F127: =lista1!C122 -> ml | G127: =lista1!G122 -> 22 | H127: =lista1!H122 -> 9643.199101
D128: =lista1!A123 -> 10 | E128: =lista1!B123 -> Cubiertas | F128: =lista1!C123 -> 0 | G128: =lista1!G123 -> 0 | H128: =lista1!H123 -> 0 | I128: =SUM(H130:H133) -> 107063.8975
D129: =lista1!A124 -> 0 | E129: =lista1!B124 -> No se incluye la losa de hormigón | F129: =lista1!C124 -> 0 | G129: =lista1!G124 -> 0 | H129: =lista1!H124 -> 0
D130: =lista1!A125 -> 0 | E130: =lista1!B125 -> Planas | F130: =lista1!C125 -> 0 | G130: =lista1!G125 -> 0 | H130: =lista1!H125 -> 0
D131: =lista1!A126 -> 0 | E131: =lista1!B126 -> Sobre losa con barrera de vapor, contrapiso con pendiente. Carpeta para recibir, y proteger, aislación térmica e hidráulica con membrana con aluminio | F131: =lista1!C126 -> m2 | G131: =lista1!G126 -> 104.05 | H131: =lista1!H126 -> 107063.8975
D132: =lista1!A127 -> 0 | E132: =lista1!B127 -> Idem anterior. Cubierta transitable terminación baldosas 20 x 20 para terraza | F132: =lista1!C127 -> m2 | G132: =lista1!G127 -> 0 | H132: =lista1!H127 -> 0
D133: =lista1!A128 -> 0 | E133: =lista1!B128 -> 0 | F133: =lista1!C128 -> 0 | G133: =lista1!G128 -> 0 | H133: =lista1!H128 -> 0
D134: =lista1!A129 -> 0 | E134: =lista1!B129 -> Con pendiente | F134: =lista1!C129 -> 0 | G134: =lista1!G129 -> 0 | H134: =lista1!H129 -> 0 | I134: =SUM(H136:H146) -> 0
D135: =lista1!A130 -> 0 | E135: =lista1!B130 -> No incluye la pintura. Para las de madera se consideró la aplicación de preservador. No incluye correas | F135: =lista1!C130 -> 0 | G135: =lista1!G130 -> 0 | H135: =lista1!H130 -> 0
D136: =lista1!A131 -> 0 | E136: =lista1!B131 -> Tejas francesa estructura de madera vista con aislación térmica | F136: =lista1!C131 -> m2 | G136: =lista1!G131 -> 0 | H136: =lista1!H131 -> 0
D137: =lista1!A132 -> 0 | E137: =lista1!B132 -> Idem, con madera sin cepillar | F137: =lista1!C132 -> m2 | G137: =lista1!G132 -> 0 | H137: =lista1!H132 -> 0
D138: =lista1!A133 -> 0 | E138: =lista1!B133 -> Chapa ondulada N24 estructura de madera vista. No se considera con aislación térmica | F138: =lista1!C133 -> m2 | G138: =lista1!G133 -> 0 | H138: =lista1!H133 -> 0
D139: =lista1!A134 -> 0 | E139: =lista1!B134 -> Idem, chapa prepintada | F139: =lista1!C134 -> m2 | G139: =lista1!G134 -> 0 | H139: =lista1!H134 -> 0
D140: =lista1!A135 -> 0 | E140: =lista1!B135 -> Chapa ambas caras con aislación térmica | F140: =lista1!C135 -> m2 | G140: =lista1!G135 -> 0 | H140: =lista1!H135 -> 0
D141: =lista1!A136 -> 0 | E141: =lista1!B136 -> Teja colonial madera vista | F141: =lista1!C136 -> m2 | G141: =lista1!G136 -> 0 | H141: =lista1!H136 -> 0
D142: =lista1!A137 -> 0 | E142: =lista1!B137 -> Teja colonial madera sin cepillar | F142: =lista1!C137 -> m2 | G142: =lista1!G137 -> 0 | H142: =lista1!H137 -> 0
D143: =lista1!A138 -> 0 | E143: =lista1!B138 -> Chapa imitación tejas | F143: =lista1!C138 -> m2 | G143: =lista1!G138 -> 0 | H143: =lista1!H138 -> 0
D144: =lista1!A139 -> 0 | E144: =lista1!B139 -> Junta de dilatación membrana asfáltica | F144: =lista1!C139 -> m2 | G144: =lista1!G139 -> 0 | H144: =lista1!H139 -> 0
D145: =lista1!A140 -> 0 | E145: =lista1!B140 -> Tinglado chapa galvanizada sobre vigaa spagueti | F145: =lista1!C140 -> m2 | G145: =lista1!G140 -> 0 | H145: =lista1!H140 -> 0
D146: =lista1!A141 -> 0 | E146: =lista1!B141 -> 0 | F146: =lista1!C141 -> 0 | G146: =lista1!G141 -> 0 | H146: =lista1!H141 -> 0
D147: =lista1!A142 -> 11 | E147: =lista1!B142 -> Contrapiso | F147: =lista1!C142 -> 0 | G147: =lista1!G142 -> 0 | H147: =lista1!H142 -> 0 | I147: =SUM(H148:H153) -> 47368.53665
D148: =lista1!A143 -> 0 | E148: =lista1!B143 -> Hormigón de cascotes armado de espesor 15 cm sobre terreno natural | F148: =lista1!C143 -> m2 | G148: =lista1!G143 -> 158.66 | H148: =lista1!H143 -> 47368.53665
D149: =lista1!A144 -> 0 | E149: =lista1!B144 -> Hormigón de cascotes sobre losa espesor 7 cm | F149: =lista1!C144 -> m2 | G149: =lista1!G144 -> 0 | H149: =lista1!H144 -> 0
D150: =lista1!A145 -> 0 | E150: =lista1!B145 -> Hormigón de cascotes sobre losa local sanitario espesor 25 cm | F150: =lista1!C145 -> m2 | G150: =lista1!G145 -> 0 | H150: =lista1!H145 -> 0
D151: =lista1!A146 -> 0 | E151: =lista1!B146 -> Hormigón de arcilla expandida 10 cm de espesor | F151: =lista1!C146 -> m2 | G151: =lista1!G146 -> 0 | H151: =lista1!H146 -> 0
D152: =lista1!A147 -> 0 | E152: =lista1!B147 -> Mortero celular de 7 cm espesor | F152: =lista1!C147 -> m2 | G152: =lista1!G147 -> 0 | H152: =lista1!H147 -> 0
D153: =lista1!A148 -> 0 | E153: =lista1!B148 -> 0 | F153: =lista1!C148 -> 0 | G153: =lista1!G148 -> 0 | H153: =lista1!H148 -> 0
D154: =lista1!A149 -> 12 | E154: =lista1!B149 -> Carpetas | F154: =lista1!C149 -> 0 | G154: =lista1!G149 -> 0 | H154: =lista1!H149 -> 0 | I154: =SUM(H155:H158) -> 17572.48194
D155: =lista1!A150 -> 0 | E155: =lista1!B150 -> De concreto bajo solado | F155: =lista1!C150 -> m2 | G155: =lista1!G150 -> 158.66 | H155: =lista1!H150 -> 17572.48194
D156: =lista1!A151 -> 0 | E156: =lista1!B151 -> Carpeta de mortero celular 2 cm espesor | F156: =lista1!C151 -> m2 | G156: =lista1!G151 -> 0 | H156: =lista1!H151 -> 0
D157: =lista1!A152 -> 0 | E157: =lista1!B152 -> Carpeta clavadora para parquet | F157: =lista1!C152 -> m2 | G157: =lista1!G152 -> 0 | H157: =lista1!H152 -> 0
D158: =lista1!A153 -> 0 | E158: =lista1!B153 -> 0 | F158: =lista1!C153 -> 0 | G158: =lista1!G153 -> 0 | H158: =lista1!H153 -> 0
D159: =lista1!A154 -> 13 | E159: =lista1!B154 -> Revoques | F159: =lista1!C154 -> 0 | G159: =lista1!G154 -> 0 | H159: =lista1!H154 -> 0 | I159: =SUM(H161:H172) -> 91992.34512
D160: =lista1!A155 -> 0 | E160: =lista1!B155 -> No se considera el trabajo de andamio | F160: =lista1!C155 -> 0 | G160: =lista1!G155 -> 0 | H160: =lista1!H155 -> 0
D161: =lista1!A156 -> 0 | E161: =lista1!B156 -> Grueso y fino a la cal al fieltro | F161: =lista1!C156 -> m2 | G161: =lista1!G156 -> 342.03624 | H161: =lista1!H156 -> 51290.61151
D162: =lista1!A157 -> 0 | E162: =lista1!B157 -> Grueso a la cal impermeable para exterior completo | F162: =lista1!C157 -> m2 | G162: =lista1!G157 -> 146.58696 | H162: =lista1!H157 -> 40701.73361
D163: =lista1!A158 -> 0 | E163: =lista1!B158 -> Grueso bajo revestimientos | F163: =lista1!C158 -> m2 | G163: =lista1!G158 -> 0 | H163: =lista1!H158 -> 0
D164: =lista1!A159 -> 0 | E164: =lista1!B159 -> Revoque proyectado exterior con hidrófugo | F164: =lista1!C159 -> m2 | G164: =lista1!G159 -> 0 | H164: =lista1!H159 -> 0
D165: =lista1!A160 -> 0 | E165: =lista1!B160 -> Revoque proyectable grueso a la cal para interior | F165: =lista1!C160 -> m2 | G165: =lista1!G160 -> 0 | H165: =lista1!H160 -> 0
D166: =lista1!A161 -> 0 | E166: =lista1!B161 -> Revoque proyectable fino a la cal para interior | F166: =lista1!C161 -> m2 | G166: =lista1!G161 -> 0 | H166: =lista1!H161 -> 0
D167: =lista1!A162 -> 0 | E167: =lista1!B162 -> Revoque proyectable de yeso para interior, con engrosado | F167: =lista1!C162 -> m2 | G167: =lista1!G162 -> 0 | H167: =lista1!H162 -> 0
D168: =lista1!A163 -> 0 | E168: =lista1!B163 -> Salpicado con molinete | F168: =lista1!C163 -> m2 | G168: =lista1!G163 -> 0 | H168: =lista1!H163 -> 0
D169: =lista1!A164 -> 0 | E169: =lista1!B164 -> Salpicado con molinete exterior planchado | F169: =lista1!C164 -> m2 | G169: =lista1!G164 -> 0 | H169: =lista1!H164 -> 0
D170: =lista1!A165 -> 0 | E170: =lista1!B165 -> Revoque especial super Iggam | F170: =lista1!C165 -> ml | G170: =lista1!G165 -> 0 | H170: =lista1!H165 -> 0
D171: =lista1!A166 -> 0 | E171: =lista1!B166 -> Buñas super Iggam | F171: =lista1!C166 -> ml | G171: =lista1!G166 -> 0 | H171: =lista1!H166 -> 0
D172: =lista1!A167 -> 0 | E172: =lista1!B167 -> http://www.construircordoba.com/precios-de-tareas/revoques/ | F172: =lista1!C167 -> 0 | G172: =lista1!G167 -> 0 | H172: =lista1!H167 -> 0
D173: =lista1!A168 -> 14 | E173: =lista1!B168 -> Revestimientos | F173: =lista1!C168 -> Unid. | G173: =lista1!G168 -> Cantid. | H173: =lista1!H168 -> Parcial | I173: =SUM(H175:H183) -> 10199.48341
D174: =lista1!A169 -> 0 | E174: =lista1!B169 -> Incluye la mano de obra completa, adhesivo y tomado de juntas
D175: =lista1!A170 -> 0 | E175: =lista1!B170 -> Cerámico tipo San Lorenzo 20 x 20 | F175: =lista1!C170 -> m2 | G175: =lista1!G170 -> 0 | H175: =lista1!H170 -> 0
D176: =lista1!A171 -> 0 | E176: =lista1!B171 -> De venecita | F176: =lista1!C171 -> m2 | G176: =lista1!G171 -> 0 | H176: =lista1!H171 -> 0
D177: =lista1!A172 -> 0 | E177: =lista1!B172 -> Cerámico esmaltado 30 x 30 cm | F177: =lista1!C172 -> m2 | G177: =lista1!G172 -> 29.93 | H177: =lista1!H172 -> 10199.48341
D178: =lista1!A173 -> 0 | E178: =lista1!B173 -> Revestimientos secos | F178: =lista1!C173 -> 0 | G178: =lista1!G173 -> 0 | H178: =lista1!H173 -> 0
D179: =lista1!A174 -> 0 | E179: =lista1!B174 -> De muros con machiembrado de pino 1/2". Incluye la estructura sobre muro | F179: =lista1!C174 -> m2 | G179: =lista1!G174 -> 0 | H179: =lista1!H174 -> 0
D180: =lista1!A175 -> 0 | E180: =lista1!B175 -> Cerámica esmaltada 30x30 con guardas | F180: =lista1!C175 -> m2 | G180: =lista1!G175 -> 0 | H180: =lista1!H175 -> 0
D181: =lista1!A176 -> 0 | E181: =lista1!B176 -> Porcellanato 30x30 rústico | F181: =lista1!C176 -> m2 | G181: =lista1!G176 -> 0 | H181: =lista1!H176 -> 0
D182: =lista1!A177 -> 0 | E182: =lista1!B177 -> Tejuelas de ladrillo | F182: =lista1!C177 -> m2 | G182: =lista1!G177 -> 0 | H182: =lista1!H177 -> 0
D183: =lista1!A178 -> 0 | E183: =lista1!B178 -> 0 | F183: =lista1!C178 -> 0 | G183: =lista1!G178 -> 0 | H183: =lista1!H178 -> 0
D184: =lista1!A179 -> 15 | E184: =lista1!B179 -> Cielorrasos | F184: =lista1!C179 -> 0 | G184: =lista1!G179 -> 0 | H184: =lista1!H179 -> 0 | I184: =SUM(H185:H193) -> 24382.36788
D185: =lista1!A180 -> 0 | E185: =lista1!B180 -> Aplicado a la cal fina fratasada | F185: =lista1!C180 -> m2 | G185: =lista1!G180 -> 0 | H185: =lista1!H180 -> 0
D186: =lista1!A181 -> 0 | E186: =lista1!B181 -> Aplicado grueso y fino a la cal al fieltro | F186: =lista1!C181 -> m2 | G186: =lista1!G181 -> 104.05 | H186: =lista1!H181 -> 24382.36788
D187: =lista1!A182 -> 0 | E187: =lista1!B182 -> Suspendido a la cal armado en madera | F187: =lista1!C182 -> m2 | G187: =lista1!G182 -> 0 | H187: =lista1!H182 -> 0
D188: =lista1!A183 -> 0 | E188: =lista1!B183 -> Suspendido a la cal armado en hierro | F188: =lista1!C183 -> m2 | G188: =lista1!G183 -> 0 | H188: =lista1!H183 -> 0
D189: =lista1!A184 -> 0 | E189: =lista1!B184 -> Taparrollo armado a la cal | F189: =lista1!C184 -> ml | G189: =lista1!G184 -> 0 | H189: =lista1!H184 -> 0
D190: =lista1!A185 -> 0 | E190: =lista1!B185 -> Suspendido termoacústico | F190: =lista1!C185 -> m2 | G190: =lista1!G185 -> 0 | H190: =lista1!H185 -> 0
D191: =lista1!A186 -> 0 | E191: =lista1!B186 -> Suspendido con dorso de aluminio | F191: =lista1!C186 -> m2 | G191: =lista1!G186 -> 0 | H191: =lista1!H186 -> 0
D192: =lista1!A187 -> 0 | E192: =lista1!B187 -> Paneles de aluminio microperforado | F192: =lista1!C187 -> m2 | G192: =lista1!G187 -> 0 | H192: =lista1!H187 -> 0
D193: =lista1!A188 -> 0 | E193: =lista1!B188 -> 0 | F193: =lista1!C188 -> 0 | G193: =lista1!G188 -> 0 | H193: =lista1!H188 -> 0
D194: =lista1!A189 -> 16 | E194: =lista1!B189 -> Yeseria | F194: =lista1!C189 -> 0 | G194: =lista1!G189 -> 0 | H194: =lista1!H189 -> 0 | I194: =SUM(H195:H205) -> 0
D195: =lista1!A190 -> 0 | E195: =lista1!B190 -> Enlucido de yeso | F195: =lista1!C190 -> m2 | G195: =lista1!G190 -> 0 | H195: =lista1!H190 -> 0
D196: =lista1!A191 -> 0 | E196: =lista1!B191 -> Enlucido de yeso reforzado con cemento | F196: =lista1!C191 -> m2 | G196: =lista1!G191 -> 0 | H196: =lista1!H191 -> 0
D197: =lista1!A192 -> 0 | E197: =lista1!B192 -> Enlucido de yeso y engrosado con yeso gris | F197: =lista1!C192 -> m2 | G197: =lista1!G192 -> 0 | H197: =lista1!H192 -> 0
D198: =lista1!A193 -> 0 | E198: =lista1!B193 -> Guardacanto de yesero. Incluye el recubrimiento de yeso | F198: =lista1!C193 -> ml | G198: =lista1!G193 -> 0 | H198: =lista1!H193 -> 0
D199: =lista1!A194 -> 0 | E199: =lista1!B194 -> Fajas sobre revestimiento | F199: =lista1!C194 -> ml | G199: =lista1!G194 -> 0 | H199: =lista1!H194 -> 0
D200: =lista1!A195 -> 0 | E200: =lista1!B195 -> Agujeros circulares hasta 40 cm de diámetro | F200: =lista1!C195 -> u | G200: =lista1!G195 -> 0 | H200: =lista1!H195 -> 0
D201: =lista1!A196 -> 0 | E201: =lista1!B196 -> Cielorraso aplicado al yeso | F201: =lista1!C196 -> m2 | G201: =lista1!G196 -> 0 | H201: =lista1!H196 -> 0
D202: =lista1!A197 -> 0 | E202: =lista1!B197 -> Cielorraso de yeso armado estructura de madera | F202: =lista1!C197 -> m2 | G202: =lista1!G197 -> 0 | H202: =lista1!H197 -> 0
... 173 more rows

Sheet Costos grales.
O1: ¿SE INCLUIRÁ ESTA TABLA EN CÁLC. DE ESTE LIBRO EXCEL?
O2: ='Cómp.(obra2)'!K5 -> NO | P2: elija SI o NO en Cómp.(obra2) | Q2: ='Cómp.(obra2)'!M5 -> 0
B3: PRESUPUESTO - COSTOS GENERALES | E3: obra1 | H3: MES 1 | O3: PRESUPUESTO - COSTOS GENERALES | R3: obra2 | U3: MES 1
F4: Costos generales de obra y de empresa | J4: Referencias: | S4: Costos generales de obra y de empresa
B5: N° | C5: DESIGNACIÓN | D5: UNIDAD | E5: CANT. | F5: COST UNIT. [$/un] | G5: TOTAL | H5: % de INCIDENCIA | K5: Datos vinculados, vienen de otra celda | O5: N° | P5: DESIGNACIÓN | Q5: UNIDAD | R5: CANT. | S5: COST UNIT. [$/un] | T5: TOTAL | U5: % de INCIDENCIA
B6: 1 | C6: Gastos Generales de Obra | D6: tiemp. total que dura la obra [meses] | E6: 5 | K6: ingrese datos | O6: 1 | P6: Gastos Generales de Obra | Q6: tiemp. total que dura la obra [meses] | R6: 3
B7: 1.1 | C7: Trabajos preliminares | O7: 1.1 | P7: Trabajos preliminares
C8: Postes y alambrados | D8: m | E8: 0 | F8: 250 | G8: =E8*F8 -> 0 | H8: =G8/$G$50 -> 0 | K8: celda con Fórmula | P8: Postes y alambrados | Q8: m | R8: 1 | S8: 250 | T8: =R8*S8*$Q$2 -> 0 | U8: =T8/$G$50 -> 0
C9: Obrador | D9: GL | E9: =lista1!G5/E6 -> 2.6 | F9: =lista1!F5 -> 1326.414254 | G9: =E9*F9 -> 3448.67706 | H9: =G9/$G$50 -> 0.08337956763 | P9: Obrador | Q9: GL | R9: 1 | S9: =lista1!F5 -> 1326.414254 | T9: =R9*S9*$Q$2 -> 0 | U9: =T9/$G$50 -> 0
B10: 1.2 | C10: Personal | G10: 0 | O10: 1.2 | P10: Personal | T10: 0
C11: Sereno | D11: $/mes | E11: 1 | F11: 7000 | G11: 7000 | H11: =G11/$G$50 -> 0.1692408316 | P11: Sereno | Q11: $/mes | R11: =1*(2) -> 2 | S11: 7000 | T11: 0 | U11: =T11/$G$50 -> 0
C12: Capataz | D12: $/mes | E12: 1 | F12: 8500 | G12: 8500 | H12: =G12/$G$50 -> 0.205506724 | P12: Capataz | Q12: $/mes | R12: =1*(2) -> 2 | S12: 8500 | T12: 0 | U12: =T12/$G$50 -> 0
B13: 1.3 | C13: Servicios | G13: 0 | O13: 1.3 | P13: Servicios | R13: =0*(2) -> 0 | T13: 0
C14: Agua potable | D14: $/mes | E14: 1 | F14: 200 | G14: 200 | H14: =G14/$G$50 -> 0.00483545233 | P14: Agua potable | Q14: $/mes | R14: =1*(2) -> 2 | S14: 350 | T14: 0 | U14: =T14/$G$50 -> 0
C15: Electricidad | D15: $/mes | E15: 1 | F15: 400 | G15: 400 | H15: 0.009670904661 | P15: Electricidad | Q15: $/mes | R15: =1*(2) -> 2 | S15: 500 | T15: 0 | U15: 0
B16: 1.4 | C16: Muebles, útiles, instrumental | D16: GL | E16: 0 | F16: 0 | G16: 0 | H16: 0 | O16: 1.4 | P16: Muebles, útiles, instrumental | Q16: GL | R16: =0*(2) -> 0 | S16: 0 | T16: 0 | U16: 0
B17: 1.5 | C17: Seguro contra terceros | D17: $/mes | E17: 0 | F17: 0 | G17: 0 | H17: 0 | O17: 1.5 | P17: Seguro contra terceros | Q17: $/mes | R17: =0*(2) -> 0 | S17: 0 | T17: 0 | U17: 0
B18: 1.6 | C18: Baño químico | D18: $/mes | E18: 1 | F18: 500 | G18: 500 | H18: 0.01208863083 | O18: 1.6 | P18: Baño químico | Q18: $/mes | R18: =1*(2) -> 2 | S18: 500 | T18: 0 | U18: 0
B19: 1.7 | C19: Flete baño químico | E19: 1 | F19: 200 | G19: 200 | H19: 0.00483545233 | O19: 1.7 | P19: Flete baño químico | R19: =1*(2) -> 2 | S19: 200 | T19: 0 | U19: 0
B20: 1.8 | C20: Mantenimiento baño químico | D20: $/mes | E20: 4 | F20: 300 | G20: 1200 | H20: 0.02901271398 | O20: 1.8 | P20: Mantenimiento baño químico | Q20: $/mes | R20: =4*(2) -> 8 | S20: 300 | T20: 0 | U20: 0
B21: TOTAL Gastos Generales de Obra | G21: =SUM(G7:G20) -> 21448.67706 | H21: 0.5185702774 | O21: TOTAL Gastos Generales de Obra | T21: =SUM(T7:T20) -> 0 | U21: 0
B23: N° | C23: DESIGNACIÓN | D23: UNIDAD | E23: cant. | F23: COST UN. [$/un] | G23: TOTAL | H23: % de INCIDENCIA | O23: N° | P23: DESIGNACIÓN | Q23: UNIDAD | R23: cant. | S23: COST UN. [$/un] | T23: TOTAL | U23: % de INCIDENCIA
B24: 2 | C24: Gastos Generales de Empresa | D24: CONSIDERAR LOS GGE? | E24: SI | F24: SI | G24: 1 | H24: =MAX((F24:F25=E24)*(G24:G25)) -> 1 | O24: 2 | P24: Gastos Generales de Empresa | Q24: CONSIDERAR LOS GGE? | R24: SI | S24: SI | T24: 1 | U24: =MAX((S24:S25=R24)*(T24:T25)) -> 1
B25: 2.1 | C25: Personal | F25: NO | G25: 0 | O25: 2.1 | P25: Personal | S25: NO | T25: 0
C26: Director | D26: $/mes | E26: 0 | F26: 10000 | G26: =E26*F26 -> 0 | H26: =G26/$G$50 -> 0 | P26: Director | Q26: $/mes | R26: 1 | S26: 15000 | T26: =R26*S26*$Q$2 -> 0 | U26: =T26/$G$50 -> 0
C27: Ingeniero de obra | D27: $/mes | E27: 1 | F27: 12000 | G27: =E27*F27 -> 12000 | H27: =G27/$G$50 -> 0.2901271398 | P27: Ingeniero de obra | Q27: $/mes | R27: 1 | S27: 20000 | T27: =R27*S27*$Q$2 -> 0 | U27: =T27/$G$50 -> 0
C28: Secretaria administrativa | D28: $/mes | E28: 0 | F28: 7500 | G28: 0 | H28: =G28/$G$50 -> 0 | P28: Secretaria administrativa | Q28: $/mes | R28: 1 | S28: 7500 | T28: 0 | U28: =T28/$G$50 -> 0
B29: 2.2 | C29: Edificio (Oficina) | G29: 0 | O29: 2.2 | P29: Edificio (Oficina) | T29: 0
C30: Alquiler | D30: $/mes | E30: 1 | F30: 2700 | G30: 2700 | H30: =G30/$G$50 -> 0.06527860646 | P30: Alquiler | Q30: $/mes | R30: 1 | S30: 8000 | T30: 0 | U30: =T30/$G$50 -> 0
C31: Impuestos | D31: $/mes | E31: 1 | F31: 150 | G31: 150 | H31: =G31/$G$50 -> 0.003626589248 | P31: Impuestos | Q31: $/mes | R31: 1 | S31: 400 | T31: 0 | U31: =T31/$G$50 -> 0
C32: Seguro | D32: $/mes | E32: 0 | F32: 300 | G32: 0 | H32: =G32/$G$50 -> 0 | P32: Seguro | Q32: $/mes | R32: 1 | S32: 300 | T32: 0 | U32: =T32/$G$50 -> 0
B33: 2.3 | C33: Equipamiento | G33: 0 | O33: 2.3 | P33: Equipamiento | T33: 0
C34: muebles | D34: $/mes | E34: =SUM(E26:E28)*3 -> 3 | F34: =500/24 -> 20.83333333 | G34: 62.5 | H34: =G34/$G$50 -> 0.001511078853 | P34: muebles | Q34: $/mes | R34: =SUM(R26:R28)*3 -> 9 | S34: =500/24 -> 20.83333333 | T34: 0 | U34: =T34/$G$50 -> 0
C35: manten. Computadoras | D35: $/mes | E35: =SUM(E26:E28) -> 1 | F35: 200 | G35: 200 | H35: =G35/$G$50 -> 0.00483545233 | P35: manten. Computadoras | Q35: $/mes | R35: =SUM(R26:R28) -> 3 | S35: 200 | T35: 0 | U35: =T35/$G$50 -> 0
B36: 2.4 | C36: Movilidad | G36: 0 | O36: 2.4 | P36: Movilidad | T36: 0
C37: Amortización de auto | D37: $/mes | E37: 1 | F37: 200 | G37: 200 | H37: =G37/$G$50 -> 0.00483545233 | P37: Amortización de auto | Q37: $/mes | R37: 1 | S37: 250 | T37: 0 | U37: =T37/$G$50 -> 0
C38: Impuestos y seguro | D38: $/mes | E38: 1 | F38: 1300 | G38: 1300 | H38: =G38/$G$50 -> 0.03143044015 | P38: Impuestos y seguro | Q38: $/mes | R38: 1 | S38: 945 | T38: 0 | U38: =T38/$G$50 -> 0
C39: Gastos de uso | D39: $/mes | E39: 1 | F39: 300 | G39: 300 | H39: =G39/$G$50 -> 0.007253178495 | P39: Gastos de uso | Q39: $/mes | R39: 1 | S39: 300 | T39: 0 | U39: =T39/$G$50 -> 0
C40: Combustible y aceite | D40: $/mes | E40: 1 | F40: 1600 | G40: 1600 | H40: =G40/$G$50 -> 0.03868361864 | P40: Combustible y aceite | Q40: $/mes | R40: 1 | S40: 1600 | T40: 0 | U40: =T40/$G$50 -> 0
B41: 2.5 | C41: Consumos administrativos | G41: 0 | O41: 2.5 | P41: Consumos administrativos | T41: 0
C42: Servicio eléctrico | D42: $/mes | E42: 1 | F42: 350 | G42: 350 | H42: =G42/$G$50 -> 0.008462041578 | P42: Servicio eléctrico | Q42: $/mes | R42: 1 | S42: 350 | T42: =R42*S42*$Q$2 -> 0 | U42: =T42/$G$50 -> 0
C43: Servicio de gas | D43: $/mes | E43: 1 | F43: 350 | G43: 350 | H43: =G43/$G$50 -> 0.008462041578 | P43: Servicio de gas | Q43: $/mes | R43: 1 | S43: 350 | T43: 0 | U43: =T43/$G$50 -> 0
C44: Servicio de agua potable | D44: $/mes | E44: 1 | F44: 150 | G44: 150 | H44: =G44/$G$50 -> 0.003626589248 | P44: Servicio de agua potable | Q44: $/mes | R44: 1 | S44: 350 | T44: 0 | U44: =T44/$G$50 -> 0
C45: Servicio de teléfono e Internet | D45: $/mes | E45: 1 | F45: 350 | G45: 350 | H45: =G45/$G$50 -> 0.008462041578 | P45: Servicio de teléfono e Internet | Q45: $/mes | R45: 1 | S45: 350 | T45: 0 | U45: =T45/$G$50 -> 0
C46: Papelería y útiles (20días/mes) | D46: $/mes | E46: =20*SUM(E26:E28) -> 20 | F46: 10 | G46: 200 | H46: =G46/$G$50 -> 0.00483545233 | P46: Papelería y útiles (20días/mes) | Q46: $/mes | R46: =20*SUM(R26:R28) -> 60 | S46: 10 | T46: 0 | U46: =T46/$G$50 -> 0
T47: 0
B48: TOTAL Gastos Generales de Empresa | G48: =H24*SUM(G26:G47) -> 19912.5 | H48: =G48/$G$50 -> 0.4814297226 | O48: TOTAL Gastos Generales de Empresa | T48: =U24*SUM(T26:T47) -> 0 | U48: =T48/$G$50 -> 0
H49: =H48+H21 -> 1 | U49: =U48+U21 -> 0
B50: TOTAL Gastos Generales | G50: =G21+G48 -> 41361.17706 | H50: ,---> por mes | O50: TOTAL Gastos Generales | T50: =T21+T48 -> 0 | U50: ,---> por mes
B51: Total de gastos generales de obra (para el plazo de ejecución de la obra) | F51: =G21*E6 -> 107243.3853 | O51: Total de gastos generales de obra (para el plazo de ejecución de la obra) | S51: =T21*R6 -> 0
B52: Total de gastos generales de empresa (para el plazo de ejecución de la obra) | F52: =G48*E6 -> 99562.5 | O52: Total de gastos generales de empresa (para el plazo de ejecución de la obra) | S52: =T48*R6 -> 0
B53: TOTAL DE GASTOS GRALES * PLAZO DE OBRA = Tot. De Cost. Indir. | F53: =SUM(F51:F52) -> 206805.8853 | G53: =G50*E6 -> 206805.8853 | H53: suma de todos los meses | O53: TOTAL DE GASTOS GRALES * PLAZO DE OBRA = Tot. De Cost. Indir. | S53: =SUM(S51:S52) -> 0 | T53: =T50*R6 -> 0 | U53: suma de todos los meses

Sheet Incidencia GG
J4: CD | L4: PRECIO DE OBRA SIN COSTO FINANCIERO
B5: Costos directos: | C5: de cómp.(obra1): | D5: =lista1!H361 -> 1026371.238 | E5: Impacto de GGO (%) | F5: Impacto GGE (%) | H5: Item | I5: RUBRO | J5: ='Costos grales.'!E3 -> obra1 | K5: ='Costos grales.'!R3 -> obra2 | L5: CDTR | M5: % | N5: GGOR | O5: GGER | P5: CTOR | Q5: Imprevisto (I) | R5: Beneficio (B) | S5: CUTO con I y B
C6: de cómp.(obra2): | D6: ='Cómp.(obra2)'!M354 -> 0 | E6: =(D8/D7) -> 0.1044879098 | F6: =(D10/D9) -> 0.08782746619 | H6: ='Cómp. (obra1)'!L13 -> 1 | I6: ='Cómp. (obra1)'!M13 -> Trabajos preliminares | J6: ='Cómp. (obra1)'!N13 -> 26768.46885 | K6: ='Cómp. (obra1)'!O13 -> 0 | L6: ='Cómp. (obra1)'!P13 -> 26768.46885 | M6: =IF(L6=0,0,L6/$L$58) -> 0.0260806888 | N6: =L6*$E$6 -> 2796.981358 | O6: =(L6+N6)*$F$6 -> 2596.658579 | P6: =O6+N6+L6 -> 32162.10879 | Q6: =P6*$B$13 -> 160.810544 | R6: =(P6+Q6)*$B$14 -> 6464.583867 | S6: =P6+Q6+R6 -> 38787.5032
C7: costos directos | D7: =SUM(D5:D6) -> 1026371.238 | H7: ='Cómp. (obra1)'!L14 -> 2 | I7: ='Cómp. (obra1)'!M14 -> Procedimientos y cumplimientos | J7: ='Cómp. (obra1)'!N14 -> 2960.464743 | K7: ='Cómp. (obra1)'!O14 -> 0 | L7: ='Cómp. (obra1)'!P14 -> 2960.464743 | M7: 0.002884399556 | N7: =L7*$E$6 -> 309.332773 | O7: 287.1780308 | P7: =O7+N7+L7 -> 3556.975547 | Q7: =P7*$B$13 -> 17.78487773 | R7: =(P7+Q7)*$B$14 -> 714.9520849 | S7: =P7+Q7+R7 -> 4289.71251
B8: Costos Indirectos | C8: Gastos generales de obra | D8: ='Costos grales.'!F51+'Costos grales.'!S51 -> 107243.3853 | H8: ='Cómp. (obra1)'!L15 -> 3 | I8: ='Cómp. (obra1)'!M15 -> Demoliciones | J8: ='Cómp. (obra1)'!N15 -> 43809.91323 | K8: ='Cómp. (obra1)'!O15 -> 0 | L8: ='Cómp. (obra1)'!P15 -> 43809.91323 | M8: 0.04268427602 | N8: 4577.60626 | O8: 4249.753232 | P8: 52637.27272 | Q8: 263.1863636 | R8: 10580.09182 | S8: 63480.5509
C9: Gasto total de obra (CD + GGO) | D9: =D8+D7 -> 1133614.623 | H9: ='Cómp. (obra1)'!L16 -> 4 | I9: ='Cómp. (obra1)'!M16 -> Movimientos de tierra | J9: ='Cómp. (obra1)'!N16 -> 15186.86105 | K9: ='Cómp. (obra1)'!O16 -> 0 | L9: ='Cómp. (obra1)'!P16 -> 15186.86105 | M9: 0.01479665495 | N9: 1586.843367 | O9: 1473.191958 | P9: 18246.89638 | Q9: 91.2344819 | R9: 3667.626172 | S9: 22005.75703
C10: Gastos generales de empresa | D10: =('Costos grales.'!F52)+'Costos grales.'!S52 -> 99562.5 | H10: ='Cómp. (obra1)'!L17 -> 5 | I10: ='Cómp. (obra1)'!M17 -> Estructuras de hormigón armado | J10: ='Cómp. (obra1)'!N17 -> 165321.813 | K10: ='Cómp. (obra1)'!O17 -> 0 | L10: ='Cómp. (obra1)'!P17 -> 165321.813 | M10: 0.1610740899 | N10: 17274.13068 | O10: 16036.93907 | P10: 198632.8828 | Q10: 993.164414 | R10: 39925.20944 | S10: 239551.2566
C11: Total costos indirectos | D11: =D10+D8 -> 206805.8853 | H11: ='Cómp. (obra1)'!L18 -> 6 | I11: ='Cómp. (obra1)'!M18 -> Estructuras metálicas | J11: ='Cómp. (obra1)'!N18 -> 0 | K11: ='Cómp. (obra1)'!O18 -> 0 | L11: ='Cómp. (obra1)'!P18 -> 0 | M11: 0 | N11: 0 | O11: 0 | P11: 0 | Q11: 0 | R11: 0 | S11: 0
C12: Costo total de Obra | D12: =D11+D7 -> 1233177.123 | H12: ='Cómp. (obra1)'!L19 -> 7 | I12: ='Cómp. (obra1)'!M19 -> Mampostería | J12: ='Cómp. (obra1)'!N19 -> 104436.3751 | K12: ='Cómp. (obra1)'!O19 -> 0 | L12: ='Cómp. (obra1)'!P19 -> 104436.3751 | M12: 0.1017530219 | N12: 10912.33854 | O12: 10130.78525 | P12: 125479.4989 | Q12: 627.3974944 | R12: 25221.37927 | S12: 151328.2756
